Workbook

Sheet Poland
C4: Poland
C5: Construction Database | AD5: 2 | AE5: New Residential | AG5: 3 | AH5: Austria
AE6: Residential R&M | AH6: Belgium
AE7: Total Residential | AH7: Czech Republic
AE8: New Non-Residential | AH8: Denmark
AE9: Non-Residential R&M | AH9: Finland
AE10: Total Non-Residential | AH10: France
AE11: Total Building | AH11: Germany
AE12: Total Building R&M | AH12: Hungary
AE13: All Building | AH13: Ireland
AE14: New Civil Engineering | AH14: Italy
AE15: Civil Engineering R&M | AH15: Netherlands
AE16: Total Civil Engineering | AH16: Norway
AE17: Total New Work | AH17: Poland
AE18: Total R&M | AH18: Portugal
B19: Construction Forecasting and Research | AE19: Total Construction | AH19: Slovakia
AH20: Spain
AH21: Sweden
AH22: Switzerland
AH23: UK

Sheet Demographics
A1: POLAND
A2: Main Demographic Indicators
B3: 1985 | C3: 1986 | D3: 1987 | E3: 1988 | F3: 1989 | G3: 1990 | H3: 1991 | I3: 1992 | J3: 1993 | K3: 1994 | L3: 1995 | M3: 1996 | N3: 1997 | O3: 1998 | P3: 1999 | Q3: 2000 | R3: 2001 | S3: 2002 | T3: 2003 | U3: 2004 | V3: 2005 | W3: 2006 | X3: 2007 | Y3: 2008 | Z3: 2009 | AA3: 2010 | AB3: 2011 | AC3: 2012 | AD3: 2013 | AE3: 2014 | AF3: 2015 | AG3: 2016 | AH3: 2017 | AI3: 2018
A4: Population | B4: - | C4: - | D4: - | E4: - | F4: 38 | G4: 38.2 | H4: 38.3 | I4: 38.4 | J4: 38.5 | K4: 38.6 | L4: 38.6 | M4: 38.6 | N4: 38.6 | O4: 38.7 | P4: 38.6 | Q4: 38.254 | R4: 38.242 | S4: 38.219 | T4: 38.191 | U4: 38.174 | V4: 38.157 | W4: 38.125 | X4: 38.116 | Y4: 38.136 | Z4: 38.527 | AA4: 38.53 | AB4: 38.538 | AC4: 38.533 | AD4: 38.535 | AE4: 38.496 | AF4: 38.467 | AG4: 38.418 | AH4: 38.368 | AI4: 38.375
A5: % Change | B5: - | C5: - | D5: - | E5: - | F5: - | G5: =G4/F4%-100 -> 0.5263157895 | H5: =H4/G4%-100 -> 0.2617801047 | I5: =I4/H4%-100 -> 0.2610966057 | J5: =J4/I4%-100 -> 0.2604166667 | K5: =K4/J4%-100 -> 0.2597402597 | L5: 0 | M5: 0 | N5: 0 | O5: 0.2590673575 | P5: -0.2583979328 | Q5: =Q4/P4%-100 -> -0.896373057 | R5: -0.03136926857 | S5: -0.06014329794 | T5: -0.07326199011 | U5: -0.04451310518 | V5: -0.04453292817 | W5: =W4/V4%-100 -> -0.08386403543 | X5: -0.02360655738 | Y5: 0.05247140309 | Z5: 1.025277953 | AA5: 0.007786746957 | AB5: 0.02076304179 | AC5: -0.01297420728 | AD5: 0.005190356318 | AE5: =AE4/AD4%-100 -> -0.1012066952 | AF5: =AF4/AE4%-100 -> -0.07533250208 | AG5: =AG4/AF4%-100 -> -0.1273819118 | AH5: -0.1301473268 | AI5: 0.01824437031
A6: Households | B6: - | C6: - | D6: - | E6: - | F6: 12.1 | G6: 12.2 | H6: 12.3 | I6: 12.4 | J6: 12.5 | K6: 12.5 | L6: 12.5 | M6: 12.5 | N6: 12.5 | O6: 12.6 | P6: 12.6 | Q6: 12.14 | R6: 12.24 | S6: 13.337 | T6: 13.433 | U6: 13.525 | V6: 13.615 | W6: 13.7 | X6: 14.135 | Y6: 14.217 | Z6: 13.235 | AA6: 13.337 | AB6: 13.572 | AC6: 14.606 | AD6: 14.669 | AE6: 14.722 | AF6: 14.775 | AG6: 14.8 | AH6: 14.815 | AI6: 14.835
A7: % Change | B7: - | C7: - | D7: - | E7: - | F7: - | G7: =G6/F6%-100 -> 0.826446281 | H7: 0.8196721311 | I7: 0.8130081301 | J7: 0.8064516129 | K7: 0 | L7: 0 | M7: 0 | N7: 0 | O7: 0.8 | P7: =P6/O6%-100 -> 0 | Q7: -3.650793651 | R7: 0.823723229 | S7: 8.962418301 | T7: 0.7198020544 | U7: 0.6848805181 | V7: 0.6654343808 | W7: 0.6243114212 | X7: 3.175182482 | Y7: 0.5801202688 | Z7: -6.907223746 | AA7: 0.770683793 | AB7: 1.762015446 | AC7: 7.618626584 | AD7: 0.4313295906 | AE7: 0.3613061558 | AF7: =AF6/AE6%-100 -> 0.360005434 | AG7: =AG6/AF6%-100 -> 0.1692047377 | AH7: 0.1013513514 | AI7: 0.1349983125
A8: Unemployed (millions) | B8: - | C8: - | D8: - | E8: - | F8: - | G8: 1.1 | H8: 2.2 | I8: 2.5 | J8: 2.9 | K8: 2.8 | L8: 2.6 | M8: 2.36 | N8: 1.826 | O8: 1.831 | P8: 2.35 | Q8: 2.703 | R8: 3.115 | S8: 3.217 | T8: 3.176 | U8: 3 | V8: 2.773 | W8: 2.309 | X8: 1.747 | Y8: 1.19 | Z8: 1.5 | AA8: 1.667 | AB8: 1.682 | AC8: 1.749 | AD8: 1.787 | AE8: 1.56 | AF8: 1.422 | AG8: 1.37 | AH8: 1.301 | AI8: 1.22
A10: Unemployed % | B10: - | C10: - | D10: - | E10: - | F10: - | G10: - | H10: 11.8 | I10: 13.6 | J10: 16.4 | K10: 16 | L10: 14.9 | M10: 13.2 | N10: 10.3 | O10: 10.4 | P10: 13 | Q10: 15.1 | R10: 19.4 | S10: 20 | T10: 20 | U10: 14.3 | V10: 17.7 | W10: 13.8 | X10: 9.6 | Y10: 7.1 | Z10: 8.2 | AA10: 9.5 | AB10: 9.8 | AC10: 10.2 | AD10: 10.3 | AE10: 9 | AF10: 8.2 | AG10: 7.9 | AH10: 7.5 | AI10: 7
A12: Change in GDP % | B12: - | C12: - | D12: - | E12: - | F12: =GDP!F19 -> 0.2 | G12: =GDP!G19 -> -12 | H12: =GDP!H19 -> -7.6 | I12: =GDP!I19 -> 2.6 | J12: =GDP!J19 -> 3.8 | K12: =GDP!K19 -> 5.2 | L12: =GDP!L19 -> 7 | M12: 6 | N12: 6.8 | O12: 4.8 | P12: 4.1 | Q12: =GDP!Q19 -> 4 | R12: 1 | S12: 1.4 | T12: 3.8 | U12: 5.3 | V12: 3.6 | W12: 6.2 | X12: 6.8 | Y12: 5.1 | Z12: 1.6 | AA12: 3.9 | AB12: 4.8 | AC12: 1.8 | AD12: 1.7 | AE12: 3.4 | AF12: 3.5 | AG12: 3.4 | AH12: 3.6 | AI12: 4
A14: Change Consumer Prices % | B14: - | C14: - | D14: - | E14: - | F14: 251 | G14: 586 | H14: 70.3 | I14: 43 | J14: 35.3 | K14: 32.2 | L14: 27.8 | M14: 19.9 | N14: 14.9 | O14: 11.8 | P14: 7.3 | Q14: 10.1 | R14: 5.5 | S14: 1.9 | T14: 0.8 | U14: 3.5 | V14: 2.1 | W14: 1.1 | X14: 2 | Y14: 4.2 | Z14: 3.5 | AA14: 2.6 | AB14: 4.3 | AC14: 3.7 | AD14: 0.9 | AE14: 0 | AF14: -0.8 | AG14: 1.4 | AH14: 1.5 | AI14: 1.7
A16: Change in Construction Prices % (1) | B16: - | C16: - | D16: - | E16: - | F16: - | G16: 650 | H16: 46.3 | I16: 17.4 | J16: 16.3 | K16: 19.7 | L16: 21.9 | M16: 19.2 | N16: 14.2 | O16: 12.9 | P16: 8.6 | Q16: 7.9 | R16: 3.8 | S16: 1.2 | T16: -1.1 | U16: 2.5 | V16: 2.3 | W16: 3.6 | X16: 11.1 | Y16: 4 | Z16: 0.2 | AA16: -0.1 | AB16: 1 | AC16: -0.2 | AD16: -2.8 | AE16: -1.2 | AF16: 0.2 | AG16: 1.2 | AH16: 1.8 | AI16: 2.5
A18: Short Term Interest Rates % (2) | B18: - | C18: - | D18: - | E18: - | F18: 80 | G18: 64 | H18: 64.5 | I18: 48 | J18: 42 | K18: 38 | L18: 32 | M18: 24 | N18: 24 | Q18: 18 | R18: 14 | S18: 7.5 | T18: 5.8 | U18: 7 | V18: 5.3 | W18: 4.1 | X18: 4.4 | Y18: 5.8 | Z18: 5.9 | AA18: 5.7 | AB18: 5.22 | AC18: 4.2 | AD18: 3.2 | AE18: 2.7 | AF18: 2.4 | AG18: 2.3 | AH18: 2.7 | AI18: 3
A20: Long Term Interest Rates % (3) | B20: - | C20: - | D20: - | E20: - | F20: 83 | G20: 64 | H20: 64.5 | I20: 52 | J20: 50 | K20: 43 | L20: 34 | M20: 27 | N20: 27 | O20: 23 | P20: 19 | Q20: 21 | R20: 17 | S20: 12 | T20: 9 | U20: 12 | V20: 5.2 | W20: 5.3 | X20: 5.5 | Y20: 6.1 | Z20: 6.2 | AA20: 6.1 | AB20: 5.7 | AC20: 5.2 | AD20: 4.5 | AE20: 4 | AF20: 3.5 | AG20: 3.5 | AH20: 3.6 | AI20: 4
A22: (1) Refers to new construction only
A23: (2) 3-month Interbank rate (or equivalent)
A24: (3) 10-year government bond (or equivalent)

Sheet Construction by Type
A1: POLAND | AM1: Volume bn Euro (1)
AM2: Annual % change
B3: 1980 | C3: 1981 | D3: 1982 | E3: 1983 | F3: 1984 | G3: 1985 | H3: 1986 | I3: 1987 | J3: 1988 | K3: 1989 | L3: 1990 | M3: 1991 | N3: 1992 | O3: 1993 | P3: 1994 | Q3: 1995 | R3: 1996 | S3: 1997 | T3: 1998 | U3: 1999 | V3: 2000 | W3: 2001 | X3: 2002 | Y3: 2003 | Z3: 2004 | AA3: 2005 | AB3: 2006 | AC3: 2007 | AD3: 2008 | AE3: 2009 | AF3: 2010 | AG3: 2011 | AH3: 2012 | AI3: 2013 | AJ3: 2014 | AK3: 2015 | AL3: 2016 | AM3: 2017 | AN3: 2018
A4: New Residential Construction | B4: - | C4: - | D4: - | E4: - | F4: =(G4*100/(100+G5)) -> 4.644617451 | G4: 4.821112915 | H4: 4.859681818 | I4: 4.947156091 | J4: 5.090623617 | K4: 5.02444551 | L4: 4.788296571 | M4: =(N4*100/(100+N5)) -> 4.682954047 | N4: 3.877485951 | O4: 2.877094575 | P4: 2.669943766 | Q4: 2.448338433 | R4: 2.448338433 | S4: 2.881694336 | T4: 3.264959683 | U4: 3.800413071 | V4: 4.484487423 | W4: 4.448611524 | X4: 4.04156357 | Y4: 3.924358226 | Z4: 4.132349212 | AA4: 4.336487263 | AB4: 4.72243463 | AC4: 5.766092683 | AD4: 6.988504332 | AE4: 6.674021637 | AF4: 6.533867182 | AG4: 7.063110424 | AH4: 7.49396016 | AI4: 7.231671554 | AJ4: 7.398 | AK4: =(AJ4*(100+AK5)/100) -> 7.856676 | AL4: =(AK4*(100+AL5)/100) -> 8.21022642 | AM4: =(AL4*(100+AM5)/100) -> 8.76031159 | AN4: 9.242128728
B5: - | C5: - | D5: - | E5: - | F5: - | G5: 3.8 | H5: 0.8 | I5: 1.8 | J5: 2.9 | K5: -1.3 | L5: -4.7 | M5: -2.2 | N5: -17.2 | O5: -25.8 | P5: -7.2 | Q5: -8.3 | R5: 0 | S5: 17.7 | T5: 13.3 | U5: 16.4 | V5: 18 | W5: -0.8 | X5: -9.15 | Y5: -2.9 | Z5: 5.3 | AA5: 4.94 | AB5: 8.9 | AC5: 22.1 | AD5: 21.2 | AE5: -4.5 | AF5: -2.1 | AG5: 8.1 | AH5: 6.1 | AI5: -3.5 | AJ5: 2.3 | AK5: 6.2 | AL5: 4.5 | AM5: 6.7 | AN5: 5.5
A6: Residential R & M | B6: - | C6: - | D6: - | E6: - | F6: - | G6: - | H6: - | I6: - | J6: - | K6: - | L6: - | M6: - | N6: - | O6: =(P6*100/(100+P7)) -> 2.017980611 | P6: 1.997800805 | Q6: 1.997800805 | R6: 2.017778813 | S6: 2.041992159 | T6: 2.05220212 | U6: 2.103507173 | V6: 2.145577316 | W6: 2.145577316 | X6: 2.245132104 | Y6: 2.330447124 | Z6: 2.505230658 | AA6: 2.606441977 | AB6: 2.692454562 | AC6: 2.743611198 | AD6: 2.762816477 | AE6: 2.878854769 | AF6: 2.999766669 | AG6: 3.104758503 | AH6: 3.15132988 | AI6: 3.245869776 | AJ6: 3.34 | AK6: =(AJ6*(100+AK7)/100) -> 3.4402 | AL6: =(AK6*(100+AL7)/100) -> 3.5330854 | AM6: =(AL6*(100+AM7)/100) -> 3.635544877 | AN6: 3.744611223
B7: - | C7: - | D7: - | E7: - | F7: - | G7: - | H7: - | I7: - | J7: - | K7: - | L7: - | M7: - | N7: - | O7: - | P7: -1 | Q7: 0 | R7: 1 | S7: 1.2 | T7: 0.5 | U7: 2.5 | V7: 2 | W7: 0 | X7: 4.64 | Y7: 3.8 | Z7: 7.5 | AA7: 4.04 | AB7: 3.3 | AC7: 1.9 | AD7: 0.7 | AE7: 4.2 | AF7: 4.2 | AG7: 3.5 | AH7: 1.5 | AI7: 3 | AJ7: 2.9 | AK7: 3 | AL7: 2.7 | AM7: 2.9 | AN7: 3
A8: Total Residential | B8: - | C8: - | D8: - | E8: - | F8: - | G8: - | H8: - | I8: - | J8: - | K8: - | L8: - | M8: - | N8: - | O8: =O4+O6 -> 4.895075187 | P8: 4.667744571 | Q8: 4.446139239 | R8: 4.466117247 | S8: 4.923686495 | T8: 5.317161803 | U8: 5.903920244 | V8: 6.63006474 | W8: 6.59418884 | X8: 6.286695673 | Y8: 6.25480535 | Z8: 6.63757987 | AA8: 6.94292924 | AB8: =AB4+AB6 -> 7.414889191 | AC8: 8.509703881 | AD8: 9.751320808 | AE8: 9.552876405 | AF8: 9.533633851 | AG8: 10.16786893 | AH8: 10.64529004 | AI8: 10.47754133 | AJ8: 10.738 | AK8: 11.296876 | AL8: 11.74331182 | AM8: =AM4+AM6 -> 12.39585647 | AN8: 12.98673995
B9: - | C9: - | D9: - | E9: - | F9: - | G9: - | H9: - | I9: - | J9: - | K9: - | L9: - | M9: - | N9: - | O9: - | P9: -4.571986719 | Q9: -4.65016467 | R9: 0.4611850612 | S9: 10.0496333 | T9: 7.842418997 | U9: 10.15345701 | V9: =(V8-U8)/U8% -> 12.29936155 | W9: -0.5411093375 | X9: -4.663093133 | Y9: -0.5072668574 | Z9: 6.119687166 | AA9: 4.600311795 | AB9: 6.797706492 | AC9: 14.76508497 | AD9: =(AD8-AC8)/AC8% -> 14.59060085 | AE9: -2.035051526 | AF9: -0.2014320427 | AG9: 6.652605765 | AH9: 4.695390124 | AI9: -1.575802149 | AJ9: =(AJ8-AI8)/AI8% -> 2.485875847 | AK9: =(AK8-AJ8)/AJ8% -> 5.204656361 | AL9: =(AL8-AK8)/AK8% -> 3.951851999 | AM9: =(AM8-AL8)/AL8% -> 5.556734393 | AN9: 4.766782234
A10: New Non-residential building | B10: - | C10: - | D10: - | E10: - | F10: - | G10: - | H10: =(I10/(1+I11/100)) -> 4.021456682 | I10: 4.23207182 | J10: 4.430956821 | K10: 4.422712289 | L10: 3.881896117 | M10: 4.030478994 | N10: 4.132352246 | O10: 4.638727252 | P10: 5.191806761 | Q10: =(R10/(1+R11/100)) -> 6.074413911 | R10: 6.742599441 | S10: 8.124832326 | T10: 10.08291692 | U10: 10.43581901 | V10: 10.20623099 | W10: 8.910039655 | X10: 8.460082652 | Y10: 7.850956701 | Z10: 8.125740186 | AA10: 8.551528972 | AB10: 9.577712448 | AC10: 10.96648075 | AD10: 11.64640256 | AE10: 11.43676731 | AF10: 11.44820408 | AG10: 12.57012808 | AH10: 12.80896051 | AI10: 12.46311858 | AJ10: 13.348 | AK10: =(AJ10*(100+AK11)/100) -> 13.895268 | AL10: =(AK10*(100+AL11)/100) -> 14.38160238 | AM10: =(AL10*(100+AM11)/100) -> 15.00001128 | AN10: 15.61501174
B11: - | C11: - | D11: - | E11: - | F11: - | G11: - | H11: - | I11: 5.237284768 | J11: 4.699471317 | K11: -0.1860666315 | L11: -12.22815632 | M11: 3.827585087 | N11: 2.527571848 | O11: 12.25391678 | P11: 11.92308751 | Q11: 17 | R11: 11 | S11: 20.5 | T11: 24.1 | U11: 3.5 | V11: -2.2 | W11: -12.7 | X11: -5.05 | Y11: -7.2 | Z11: 3.5 | AA11: 5.24 | AB11: 12 | AC11: 14.5 | AD11: 6.2 | AE11: -1.8 | AF11: 0.1 | AG11: 9.8 | AH11: 1.9 | AI11: -2.7 | AJ11: 7.1 | AK11: 4.1 | AL11: 3.5 | AM11: 4.3 | AN11: 4.1
A12: Non-residential R & M | B12: - | C12: - | D12: - | E12: - | F12: - | G12: - | H12: - | I12: - | J12: - | K12: - | L12: - | M12: - | N12: - | O12: =(P12*100/(100+P13)) -> 2.39462046 | P12: 2.226997028 | Q12: 2.293806939 | R12: 2.293806939 | S12: 2.305275973 | T12: 2.708699269 | U12: 3.131256355 | V12: 3.262769122 | W12: 3.128995588 | X12: 3.030432227 | Y12: 3.069827846 | Z12: 3.192620959 | AA12: 3.417381475 | AB12: 3.728363189 | AC12: 3.858855901 | AD12: 4.013210137 | AE12: 4.025249767 | AF12: 4.194310257 | AG12: 4.40402577 | AH12: 4.514126415 | AI12: 4.636007828 | AJ12: 4.738 | AK12: =(AJ12*(100+AK13)/100) -> 4.894354 | AL12: =(AK12*(100+AL13)/100) -> 5.031395912 | AM12: =(AL12*(100+AM13)/100) -> 5.182337789 | AN12: 5.32226091
B13: - | C13: - | D13: - | E13: - | F13: - | G13: - | H13: - | I13: - | J13: - | K13: - | L13: - | M13: - | N13: - | O13: - | P13: -7 | Q13: 3 | R13: 0 | S13: 0.5 | T13: 17.5 | U13: 15.6 | V13: 4.2 | W13: -4.1 | X13: -3.15 | Y13: 1.3 | Z13: 4 | AA13: 7.04 | AB13: 9.1 | AC13: 3.5 | AD13: 4 | AE13: 0.3 | AF13: 4.2 | AG13: 5 | AH13: 2.5 | AI13: 2.7 | AJ13: 2.2 | AK13: 3.3 | AL13: 2.8 | AM13: 3 | AN13: 2.7
A14: Total Non-residential | B14: - | C14: - | D14: - | E14: - | F14: - | G14: - | H14: - | I14: - | J14: - | K14: - | L14: - | M14: - | N14: - | O14: =O10+O12 -> 7.033347712 | P14: 7.418803789 | Q14: 8.368220849 | R14: 9.03640638 | S14: 10.4301083 | T14: 12.79161619 | U14: 13.56707536 | V14: 13.46900011 | W14: 12.03903524 | X14: 11.49051488 | Y14: 10.92078455 | Z14: 11.31836115 | AA14: 11.96891045 | AB14: =AB10+AB12 -> 13.30607564 | AC14: 14.82533665 | AD14: 15.6596127 | AE14: 15.46201708 | AF14: 15.64251434 | AG14: 16.97415385 | AH14: 17.32308693 | AI14: 17.09912641 | AJ14: 18.086 | AK14: 18.789622 | AL14: 19.41299829 | AM14: 20.18234907 | AN14: 20.93727265
B15: - | C15: - | D15: - | E15: - | F15: - | G15: - | H15: - | I15: - | J15: - | K15: - | L15: - | M15: - | N15: - | O15: - | P15: 4.767267191 | Q15: 9.67873836 | R15: 7.532374197 | S15: 14.6368595 | T15: 22.40376499 | U15: 6.5 | V15: =(V14-U14)/U14% -> -0.7228916231 | W15: -10.6167114 | X15: -4.556182057 | Y15: -4.958266344 | Z15: 3.640549785 | AA15: 5.747734084 | AB15: 11.1719876 | AC15: 11.41779934 | AD15: 5.627366597 | AE15: -1.261816748 | AF15: 1.167359062 | AG15: 8.512950565 | AH15: 2.055672883 | AI15: -1.292844177 | AJ15: 5.771485442 | AK15: =(AK14-AJ14)/AJ14% -> 3.890423532 | AL15: =(AL14-AK14)/AK14% -> 3.317662761 | AM15: =(AM14-AL14)/AL14% -> 3.963070352 | AN15: =(AN14-AM14)/AM14% -> 3.740513952
A16: New Building | B16: - | C16: - | D16: - | E16: - | F16: - | G16: - | H16: =H4+H10 -> 8.8811385 | I16: 9.179227911 | J16: 9.521580439 | K16: 9.4471578 | L16: 8.670192688 | M16: 8.713433041 | N16: 8.009838197 | O16: 7.515821827 | P16: 7.861750527 | Q16: =Q4+Q10 -> 8.522752344 | R16: =R4+R10 -> 9.190937874 | S16: =S4+S10 -> 11.00652666 | T16: =T4+T10 -> 13.3478766 | U16: 14.23623208 | V16: 14.69071841 | W16: 13.35865118 | X16: 12.50164622 | Y16: 11.77531493 | Z16: =Z4+Z10 -> 12.2580894 | AA16: 12.88801623 | AB16: 14.30014708 | AC16: 16.73257344 | AD16: 18.63490689 | AE16: 18.11078895 | AF16: =AF4+AF10 -> 17.98207126 | AG16: 19.63323851 | AH16: 20.30292067 | AI16: 19.69479014 | AJ16: 20.746 | AK16: 21.751944 | AL16: 22.5918288 | AM16: =AM4+AM10 -> 23.76032287 | AN16: 24.85714047
B17: - | C17: - | D17: - | E17: - | F17: - | G17: - | H17: - | I17: =(I16-H16)/H16% -> 3.35643241 | J17: 3.729644054 | K17: -0.7816206522 | L17: -8.224326593 | M17: 0.4987242366 | N17: -8.074829294 | O17: -6.167619842 | P17: 4.602672976 | Q17: 8.407819792 | R17: 7.840020491 | S17: 19.75411882 | T17: 21.27237783 | U17: 6.655406749 | V17: =(V16-U16)/U16% -> 3.192462247 | W17: -9.067407037 | X17: -6.415355454 | Y17: -5.809885207 | Z17: 4.09988585 | AA17: 5.138866396 | AB17: =(AB16-AA16)/AA16% -> 10.95692942 | AC17: 17.00979958 | AD17: 11.36904292 | AE17: -2.81256002 | AF17: -0.7107237979 | AG17: 9.182297287 | AH17: 3.41096131 | AI17: -2.995285995 | AJ17: 5.337502242 | AK17: =(AK16-AJ16)/AJ16% -> 4.848857611 | AL17: =(AL16-AK16)/AK16% -> 3.861194199 | AM17: =(AM16-AL16)/AL16% -> 5.172197801 | AN17: 4.616172962
A18: Building R&M | B18: - | C18: - | D18: - | E18: - | F18: - | G18: - | H18: =H28-H16-H26 -> 3.370542716 | I18: =I28-I16-I26 -> 3.349456214 | J18: 4.432843776 | K18: 4.873917402 | L18: 3.398781477 | M18: 3.28144901 | N18: 2.91346609 | O18: =O6+O12 -> 4.412601071 | P18: 4.224797833 | Q18: 4.291607744 | R18: 4.311585752 | S18: 4.347268132 | T18: 4.760901389 | U18: 5.234763528 | V18: 5.408346438 | W18: 5.274572904 | X18: 5.27556433 | Y18: 5.400274969 | Z18: 5.697851617 | AA18: 6.023823451 | AB18: =AB6+AB12 -> 6.420817751 | AC18: 6.602467099 | AD18: 6.776026614 | AE18: 6.904104536 | AF18: 7.194076927 | AG18: 7.508784273 | AH18: 7.665456295 | AI18: 7.881877604 | AJ18: 8.078 | AK18: =AK6+AK12 -> 8.334554 | AL18: =AL6+AL12 -> 8.564481312 | AM18: =AM6+AM12 -> 8.817882666 | AN18: 9.066872133
B19: - | C19: - | D19: - | E19: - | F19: - | G19: - | H19: - | I19: =(I18-H18)/H18% -> -0.6256114776 | J19: 32.34517762 | K19: 9.9501279 | L19: -30.26591965 | M19: -3.452192131 | N19: -11.21403744 | O19: 51.45537774 | P19: -4.256066553 | Q19: 1.581375334 | R19: 0.465513375 | S19: 0.8275929671 | T19: 9.514785919 | U19: 9.953202141 | V19: =(V18-U18)/U18% -> 3.315964693 | W19: -2.473464589 | X19: 0.01879633633 | Y19: 2.36392983 | Z19: 5.510398078 | AA19: 5.72096039 | AB19: 6.590403963 | AC19: 2.829068747 | AD19: 2.628706994 | AE19: 1.890162624 | AF19: 4.2 | AG19: 4.374534072 | AH19: 2.086516487 | AI19: 2.823332379 | AJ19: 2.488269998 | AK19: =(AK18-AJ18)/AJ18% -> 3.175959396 | AL19: =(AL18-AK18)/AK18% -> 2.758723646 | AM19: =(AM18-AL18)/AL18% -> 2.958747234 | AN19: 2.823687682
A20: Total Building | B20: - | C20: - | D20: - | E20: - | F20: - | G20: - | H20: - | I20: - | J20: - | K20: - | L20: - | M20: - | N20: - | O20: =O16+O18 -> 11.9284229 | P20: 12.08654836 | Q20: 12.81436009 | R20: 13.50252363 | S20: 15.35379479 | T20: 18.10877799 | U20: =U16+U18 -> 19.47099561 | V20: =V16+V18 -> 20.09906485 | W20: 18.63322408 | X20: 17.77721055 | Y20: 17.1755899 | Z20: 17.95594102 | AA20: 18.91183969 | AB20: =AB16+AB18 -> 20.72096483 | AC20: 23.33504054 | AD20: 25.41093351 | AE20: 25.01489349 | AF20: 25.17614819 | AG20: 27.14202278 | AH20: 27.96837697 | AI20: 27.57666774 | AJ20: 28.824 | AK20: =AK16+AK18 -> 30.086498 | AL20: =AL16+AL18 -> 31.15631011 | AM20: =AM16+AM18 -> 32.57820554 | AN20: 33.92401261
B21: - | C21: - | D21: - | E21: - | F21: - | G21: - | H21: - | I21: - | J21: - | K21: - | L21: - | M21: - | N21: - | O21: - | P21: 0.872113243 | Q21: 4.723228958 | R21: 5.875567544 | S21: 12.82462117 | T21: 17.22917318 | U21: 7.5 | V21: =(V20-U20)/U20% -> 3.225665793 | W21: -7.293079454 | X21: -4.594017261 | Y21: -3.384224166 | Z21: 4.543373027 | AA21: 5.32357881 | AB21: 9.566098129 | AC21: 12.61560805 | AD21: 8.896033271 | AE21: =(AE20-AD20)/AD20% -> -1.558541793 | AF21: 0.6446347795 | AG21: 7.808480365 | AH21: 3.044556399 | AI21: -1.4005433 | AJ21: 4.523143523 | AK21: =(AK20-AJ20)/AJ20% -> 4.380023591 | AL21: =(AL20-AK20)/AK20% -> 3.555788088 | AM21: 4.563747829 | AN21: 4.131004285
A22: Civil Engineering New | B22: - | C22: - | D22: - | E22: - | F22: - | G22: - | H22: - | I22: - | J22: - | K22: - | L22: - | M22: - | N22: - | O22: =(P22*100/(100+P23)) -> 3.024891857 | P22: 3.058165667 | Q22: 3.241655607 | R22: 3.656587525 | S22: 4.153883428 | T22: 4.091575177 | U22: 4.222505582 | V22: =(W22*100/(100+W23)) -> 3.884705136 | W22: 3.72931693 | X22: 3.544715742 | Y22: 3.707772666 | Z22: 3.844960255 | AA22: 4.365567874 | AB22: 5.011671919 | AC22: 5.813539426 | AD22: 6.78440051 | AE22: 8.697601454 | AF22: 10.08921769 | AG22: 12.65187898 | AH22: 10.77940089 | AI22: 8.472609099 | AJ22: 9.125 | AK22: =(AJ22*(100+AK23)/100) -> 10.0375 | AL22: =(AK22*(100+AL23)/100) -> 12.1152625 | AM22: =(AL22*(100+AM23)/100) -> 14.51408447 | AN22: 16.98147884
B23: - | C23: - | D23: - | E23: - | F23: - | G23: - | H23: - | I23: - | J23: - | K23: - | L23: - | M23: - | N23: - | O23: - | P23: 1.1 | Q23: 6 | R23: 12.8 | S23: 13.6 | T23: -1.5 | U23: 3.2 | V23: -8 | W23: -4 | X23: -4.95 | Y23: 4.6 | Z23: 3.7 | AA23: 13.54 | AB23: 14.8 | AC23: 16 | AD23: 16.7 | AE23: 28.2 | AF23: 16 | AG23: 25.4 | AH23: -14.8 | AI23: -21.4 | AJ23: 7.7 | AK23: 10 | AL23: 20.7 | AM23: 19.8 | AN23: 17
A24: Civil Engineering R&M | B24: - | C24: - | D24: - | E24: - | F24: - | G24: - | H24: - | I24: - | J24: - | K24: - | L24: - | M24: - | N24: - | O24: =(P24*100/(100+P25)) -> 1.22545449 | P24: 1.347999939 | Q24: 1.395179937 | R24: 1.495632893 | S24: 1.854584787 | T24: 2.225501744 | U24: 2.28336479 | V24: 2.527684822 | W24: 2.41141132 | X24: 2.320983396 | Y24: 2.400825225 | Z24: 2.520866486 | AA24: 2.632792958 | AB24: 3.117226862 | AC24: 3.310494928 | AD24: 3.542229573 | AE24: 3.967297121 | AF24: 4.268811702 | AG24: 4.546284463 | AH24: 4.778144971 | AI24: 4.935823755 | AJ24: 5.153 | AK24: =(AJ24*(100+AK25)/100) -> 5.379732 | AL24: =(AK24*(100+AL25)/100) -> 5.59492128 | AM24: =(AL24*(100+AM25)/100) -> 5.835502895 | AN24: 6.109771531
B25: - | C25: - | D25: - | E25: - | F25: - | G25: - | H25: - | I25: - | J25: - | K25: - | L25: - | M25: - | N25: - | O25: - | P25: 10 | Q25: 3.5 | R25: 7.2 | S25: 24 | T25: 20 | U25: 2.6 | V25: 10.7 | W25: -4.6 | X25: -3.75 | Y25: 3.44 | Z25: 5 | AA25: 4.44 | AB25: 18.4 | AC25: 6.2 | AD25: 7 | AE25: 12 | AF25: 7.6 | AG25: 6.5 | AH25: 5.1 | AI25: 3.3 | AJ25: 4.4 | AK25: 4.4 | AL25: 4 | AM25: 4.3 | AN25: 4.7
A26: Total Civil Engineering | B26: - | C26: - | D26: - | E26: - | F26: - | G26: ='Civil engineering'!B20 -> 5.852465871 | H26: ='Civil engineering'!C20 -> 5.934400393 | I26: ='Civil engineering'!D20 -> 6.130235606 | J26: ='Civil engineering'!E20 -> 5.376216626 | K26: ='Civil engineering'!F20 -> 4.139686802 | L26: ='Civil engineering'!G20 -> 3.899584968 | M26: ='Civil engineering'!H20 -> 3.973677082 | N26: ='Civil engineering'!I20 -> 4.470386717 | O26: =O22+O24 -> 4.250346347 | P26: 4.406165606 | Q26: 4.636835544 | R26: 5.152220417 | S26: 6.008468215 | T26: 6.317076921 | U26: 6.505870372 | V26: =V22+V24 -> 6.412389958 | W26: 6.140728251 | X26: 5.865699138 | Y26: 6.108597891 | Z26: 6.365826741 | AA26: 6.998360831 | AB26: =AB22+AB24 -> 8.128898781 | AC26: 9.124034353 | AD26: 10.32663008 | AE26: 12.66489857 | AF26: 14.35802939 | AG26: 17.19816344 | AH26: 15.55754586 | AI26: 13.40843285 | AJ26: 14.278 | AK26: 15.417232 | AL26: 17.71018378 | AM26: 20.34958737 | AN26: 23.09125037
B27: - | C27: - | D27: - | E27: - | F27: - | G27: - | H27: =(H26-G26)/G26% -> 1.4 | I27: 3.3 | J27: -12.3 | K27: -23 | L27: -5.8 | M27: 1.9 | N27: 12.5 | O27: -4.922177532 | P27: 3.666036759 | Q27: 5.23516269 | R27: 11.11501299 | S27: 16.61900556 | T27: 5.136229317 | U27: 2.988620423 | V27: =(V26-U26)/U26% -> -1.436862537 | W27: -4.23651258 | X27: -4.478770291 | Y27: 4.141002585 | Z27: 4.210931125 | AA27: 9.936401292 | AB27: 16.15432495 | AC27: 12.24194813 | AD27: 13.1805261 | AE27: 22.64309338 | AF27: 13.3686883 | AG27: 19.7808068 | AH27: -9.539492904 | AI27: -13.813959 | AJ27: 6.485225793 | AK27: =(AK26-AJ26)/AJ26% -> 7.978932624 | AL27: =(AL26-AK26)/AK26% -> 14.87265535 | AM27: =(AM26-AL26)/AL26% -> 14.90331 | AN27: 13.47281862
A28: Total Construction Output | B28: - | C28: - | D28: - | E28: - | F28: =(G28*100/(100+G29)) -> 16.65353963 | G28: 17.40294891 | H28: 18.18608161 | I28: 18.65891973 | J28: 19.33064084 | K28: 18.460762 | L28: 15.96855913 | M28: 15.96855913 | N28: 15.393691 | O28: =O20+O26 -> 16.17876925 | P28: 16.49271397 | Q28: 17.45119563 | R28: 18.65474404 | S28: 21.36226301 | T28: 24.42585491 | U28: =U20+U26 -> 25.97686598 | V28: =(W28*100/(100+W29)) -> 26.47986899 | W28: 24.75867751 | X28: 23.56035751 | Y28: 23.18339179 | Z28: 24.22664442 | AA28: 25.80137631 | AB28: 28.71693184 | AC28: 32.45013297 | AD28: 35.98719747 | AE28: 37.75057014 | AF28: 39.53417758 | AG28: 44.34018622 | AH28: 43.52592283 | AI28: 40.98510059 | AJ28: 43.102 | AK28: =(AJ28*(100+AK29)/100) -> 45.50373 | AL28: =(AK28*(100+AL29)/100) -> 48.86649389 | AM28: =(AL28*(100+AM29)/100) -> 52.92779291 | AN28: 57.01526297
B29: - | C29: - | D29: - | E29: - | F29: - | G29: 4.5 | H29: 4.5 | I29: 2.6 | J29: 3.6 | K29: -4.5 | L29: -13.5 | M29: 0 | N29: -3.6 | O29: 5.1 | P29: 1.6 | Q29: 3.7 | R29: 7 | S29: 14.1 | T29: 13.5 | U29: 6.7 | V29: 1 | W29: -6.5 | X29: -4.84 | Y29: -1.6 | Z29: 4.5 | AA29: 6.5 | AB29: 11.3 | AC29: 13 | AD29: 10.9 | AE29: 4.9 | AF29: 4.724716548 | AG29: 12.15659193 | AH29: -1.836400474 | AI29: -5.837491938 | AJ29: 5.165046263 | AK29: 5.572200826 | AL29: 7.390084048 | AM29: 8.311009637 | AN29: 7.722729097
A31: =GDP!$A$21 -> (1) Billions Euro at 2014 Prices: 1 Euro = 4.1198 PLN
A32: Building R&M 1986-1992 is derived from total construction output minus new building and total civil engineering

Sheet Residential
A1: POLAND
A2: Residential Construction | AH2: 000's
B3: 1985 | C3: 1986 | D3: 1987 | E3: 1988 | F3: 1989 | G3: 1990 | H3: 1991 | I3: 1992 | J3: 1993 | K3: 1994 | L3: 1995 | M3: 1996 | N3: 1997 | O3: 1998 | P3: 1999 | Q3: 2000 | R3: 2001 | S3: 2002 | T3: 2003 | U3: 2004 | V3: 2005 | W3: 2006 | X3: 2007 | Y3: 2008 | Z3: 2009 | AA3: 2010 | AB3: 2011 | AC3: 2012 | AD3: 2013 | AE3: 2014 | AF3: 2015 | AG3: 2016 | AH3: 2017 | AI3: 2018
A4: Building Permits
A5: 1+2 family dwellings | B5: - | C5: - | D5: - | E5: - | F5: 322.9 | G5: 328 | H5: 55.6 | I5: 69.9 | J5: 75 | K5: 83.3 | L5: 64.2 | M5: 68.5 | N5: 70.7 | O5: 81.9 | P5: 106 | Q5: 81.3 | R5: 91.3 | S5: 45.7 | T5: 67.6 | U5: 59 | V5: 58.9 | W5: 73.7 | X5: 110.5 | Y5: 110.5 | Z5: 95 | AA5: 98.9 | AB5: 96.4 | AC5: 88.1 | AD5: 78.1 | AE5: 75.9 | AF5: 82.7 | AG5: 83.1 | AH5: 85.2 | AI5: 86.5
A6: Flats | B6: - | C6: - | D6: - | E6: - | F6: 174.5 | G6: 176 | H6: 131 | I6: 86.4 | J6: 25.9 | K6: 27.2 | L6: 30 | M6: 42 | N6: 41.1 | O6: 41.1 | P6: 78.7 | Q6: 70.7 | R6: 57.7 | S6: 40.3 | T6: 28 | U6: 46.8 | V6: 56.9 | W6: 86.8 | X6: 137.2 | Y6: 109.9 | Z6: 73.4 | AA6: 76 | AB6: 87.7 | AC6: 77 | AD6: 60.6 | AE6: 80.9 | AF6: 87.1 | AG6: 83 | AH6: 86.2 | AI6: 89
A7: Total | B7: - | C7: - | D7: - | E7: - | F7: =SUM(F5:F6) -> 497.4 | G7: 504 | H7: 186.6 | I7: 156.3 | J7: 100.9 | K7: 110.5 | L7: 94.2 | M7: 110.5 | N7: 111.8 | O7: 123 | P7: 184.7 | Q7: 152 | R7: =SUM(R5:R6) -> 149 | S7: 86 | T7: 95.6 | U7: 105.8 | V7: 115.8 | W7: 160.5 | X7: 247.7 | Y7: 220.4 | Z7: 168.4 | AA7: 174.9 | AB7: 184.1 | AC7: 165.1 | AD7: 138.7 | AE7: 156.8 | AF7: 169.8 | AG7: 166.1 | AH7: =SUM(AH5:AH6) -> 171.4 | AI7: 175.5
A8: Housing Starts
A9: 1+2 family dwellings | B9: - | C9: - | D9: - | E9: - | F9: - | G9: - | H9: - | I9: - | J9: - | K9: - | L9: - | M9: - | N9: - | O9: 58.3 | P9: 88.9 | Q9: 72.2 | R9: 76.5 | S9: 47.8 | T9: 57 | U9: 61 | V9: 58.8 | W9: 69.4 | X9: 91.6 | Y9: 96.3 | Z9: 89.8 | AA9: 86.477 | AB9: 90.5 | AC9: 79.7 | AD9: 72.7 | AE9: 74.7 | AF9: 77.2 | AG9: 75.5 | AH9: 77.8 | AI9: 80
A10: Flats | B10: - | C10: - | D10: - | E10: - | F10: - | G10: - | H10: - | I10: - | J10: - | K10: - | L10: - | M10: - | N10: - | O10: 37 | P10: 46.7 | Q10: 53.6 | R10: 37.9 | S10: 29.2 | T10: 25.4 | U10: 36.2 | V10: 46.9 | W10: 68.6 | X10: 93.5 | Y10: 78.4 | Z10: 53.1 | AA10: 71.6 | AB10: 71.7 | AC10: 62.1 | AD10: 54.7 | AE10: 73.4 | AF10: 79.9 | AG10: 75.6 | AH10: 77.2 | AI10: 80
A11: Total | B11: - | C11: - | D11: - | E11: - | F11: 180.5 | G11: 145 | H11: 90.5 | I11: 83.5 | J11: 54.8 | K11: 47 | L11: 41.6 | M11: 43 | N11: 35.2 | O11: =SUM(O9:O10) -> 95.3 | P11: =SUM(P9:P10) -> 135.6 | Q11: 125.8 | R11: 114.4 | S11: 77 | T11: 82.4 | U11: 97.2 | V11: =SUM(V9:V10) -> 105.7 | W11: 138 | X11: 185.1 | Y11: 174.7 | Z11: 142.9 | AA11: 158.077 | AB11: 162.2 | AC11: 141.8 | AD11: 127.4 | AE11: 148.1 | AF11: 157.1 | AG11: 151.1 | AH11: =SUM(AH9:AH10) -> 155 | AI11: 160
A12: Housing Completions
A13: 1+2 family dwellings | B13: - | C13: - | D13: - | E13: - | F13: 55 | G13: 47.4 | H13: 40 | I13: 36.9 | J13: 33.4 | K13: 36.1 | L13: 31.7 | M13: 30.1 | N13: 35.2 | O13: 37.3 | P13: 33.3 | Q13: 35.5 | R13: 39.9 | S13: 52.4 | T13: 117.9 | U13: 64.9 | V13: 63.3 | W13: 57.6 | X13: 71.6 | Y13: 83.3 | Z13: 72.2 | AA13: 70.425 | AB13: 73.1 | AC13: 81.1 | AD13: 81.2 | AE13: 76.6 | AF13: 78.9 | AG13: 80.7 | AH13: 81.5 | AI13: 82
A14: Flats | B14: - | C14: - | D14: - | E14: - | F14: 95.2 | G14: 86.8 | H14: 96.8 | I14: 96.1 | J14: 61 | K14: 35.5 | L14: 35.4 | M14: 32 | N14: 38.6 | O14: 43.3 | P14: 48.7 | Q14: 52.3 | R14: 66 | S14: 45.2 | T14: 44.7 | U14: 43.2 | V14: 50.8 | W14: 57.6 | X14: 62.2 | Y14: 81.9 | Z14: 87.8 | AA14: 65.4 | AB14: 58 | AC14: 71.8 | AD14: 63.9 | AE14: 66.8 | AF14: 71.4 | AG14: 74.5 | AH14: 76.8 | AI14: 81
A15: Total | B15: - | C15: - | D15: - | E15: - | F15: =SUM(F13:F14) -> 150.2 | G15: 134.2 | H15: 136.8 | I15: 133 | J15: 94.4 | K15: 71.6 | L15: 67.1 | M15: 62.1 | N15: 73.8 | O15: 80.6 | P15: 82 | Q15: =SUM(Q13:Q14) -> 87.8 | R15: 105.9 | S15: 97.6 | T15: 162.6 | U15: 108.1 | V15: 114.1 | W15: 115.2 | X15: =SUM(X13:X14) -> 133.8 | Y15: 165.2 | Z15: 160 | AA15: 135.825 | AB15: 131.1 | AC15: 152.9 | AD15: 145.1 | AE15: =SUM(AE13:AE14) -> 143.4 | AF15: 150.3 | AG15: =SUM(AG13:AG14) -> 155.2 | AH15: =SUM(AH13:AH14) -> 158.3 | AI15: =SUM(AI13:AI14) -> 163
A16: Housing Stock (millions dwellings) | F16: 11.06 | G16: 11.02 | H16: 11.2 | I16: 11.3 | J16: 11.5 | K16: 11.6 | L16: 11.6 | M16: 11.7 | N16: 11.77 | O16: 11.75 | P16: 11.995 | Q16: 12.4 | R16: 12.49 | S16: 12.57 | T16: 12.73 | U16: 12.83 | V16: 12.905 | W16: 13.005 | X16: 13.128 | Y16: 13.281 | Z16: 13.415 | AA16: 13.54 | AB16: 13.665 | AC16: 13.81 | AD16: 13.94 | AE16: 14.1 | AF16: 14.232 | AG16: 14.38 | AH16: 14.515 | AI16: 14.635
A17: second homes | Q17: 0.08 | R17: 0.1 | S17: 0.11 | T17: 0.14 | U17: 0.16 | V17: 0.17 | W17: 0.18 | X17: 0.19 | Y17: 0.205 | Z17: 0.225 | AA17: 0.255 | AB17: 0.28 | AC17: 0.295 | AD17: 0.305 | AE17: 0.32 | AF17: 0.335 | AG17: 0.347 | AH17: 0.38 | AI17: 0.4
A18: vacancies | Q18: 0.6 | R18: 0.68 | S18: 0.76 | T18: 0.78 | U18: 0.8 | V18: 0.8 | W18: 0.8 | X18: 0.8 | Y18: 0.82 | Z18: 0.835 | AA18: 0.86 | AB18: 0.89 | AC18: 0.9 | AD18: 0.905 | AE18: 0.91 | AF18: 0.915 | AG18: 0.92 | AH18: 0.925 | AI18: 0.935
A19: share of family dwellings (%) | V19: 58.9 | W19: 58.9 | X19: 58.9 | Y19: 58.9 | Z19: 58.9 | AA19: 58.9 | AB19: 58.8 | AC19: 59.1 | AD19: 59.2 | AE19: 59.2 | AF19: 59.2 | AG19: 59.3 | AH19: 59.4 | AI19: 59.5
A20: Homeownership rate (%) | Q20: 72.6 | R20: 74.7 | S20: 74.9 | T20: 75 | U20: 75.1 | V20: 75.3 | W20: 75.5 | X20: 75.7 | Y20: 76 | Z20: 76.2 | AA20: 76.5 | AB20: 77.3 | AC20: 77.5 | AD20: 77.7 | AE20: 77.9 | AF20: 78 | AG20: 78.1 | AH20: 78.2 | AI20: 78.3

Sheet Non-residential
A1: POLAND | AH1: Volume bn Euro (1)
A2: New Non-Residential Building | AH2: Annual % change
B3: 1985 | C3: 1986 | D3: 1987 | E3: 1988 | F3: 1989 | G3: 1990 | H3: 1991 | I3: 1992 | J3: 1993 | K3: 1994 | L3: 1995 | M3: 1996 | N3: 1997 | O3: 1998 | P3: 1999 | Q3: 2000 | R3: 2001 | S3: 2002 | T3: 2003 | U3: 2004 | V3: 2005 | W3: 2006 | X3: 2007 | Y3: 2008 | Z3: 2009 | AA3: 2010 | AB3: 2011 | AC3: 2012 | AD3: 2013 | AE3: 2014 | AF3: 2015 | AG3: 2016 | AH3: 2017 | AI3: 2018
A4: Buildings for education | B4: - | C4: - | D4: - | E4: - | F4: - | G4: - | H4: - | I4: - | J4: - | K4: - | L4: - | M4: - | N4: =O4*100/(100+O5) -> 0.5940524903 | O4: 0.6172205375 | P4: 0.592531716 | Q4: 0.6778562831 | R4: 0.7727561627 | S4: 0.736436623 | T4: 0.670157327 | U4: 0.6828903162 | V4: 0.6863047678 | W4: 0.7515037207 | X4: 0.7665337951 | Y4: 0.8899457361 | Z4: 0.9566916663 | AA4: 1.052360833 | AB4: 1.03657542 | AC4: 1.005478158 | AD4: 0.8938700823 | AE4: 0.977 | AF4: =(AE4*(100+AF5)/100) -> 0.979931 | AG4: =(AF4*(100+AG5)/100) -> 0.93093445 | AH4: =(AG4*(100+AH5)/100) -> 0.968171828 | AI4: =(AH4*(100+AI5)/100) -> 1.014644076
B5: - | C5: - | D5: - | E5: - | F5: - | G5: - | H5: - | I5: - | J5: - | K5: - | L5: - | M5: - | N5: - | O5: 3.9 | P5: -4 | Q5: 14.4 | R5: 14 | S5: -4.7 | T5: -9 | U5: 1.9 | V5: 0.5 | W5: 9.5 | X5: 2 | Y5: 16.1 | Z5: 7.5 | AA5: 10 | AB5: -1.5 | AC5: -3 | AD5: -11.1 | AE5: 9.3 | AF5: 0.3 | AG5: -5 | AH5: 4 | AI5: 4.8
A6: Buildings for health | B6: - | C6: - | D6: - | E6: - | F6: - | G6: - | H6: - | I6: - | J6: - | K6: - | L6: - | M6: - | N6: =O6*100/(100+O7) -> 0.8148271999 | O6: 0.8498647695 | P6: 0.6263503351 | Q6: 0.6752056613 | R6: 0.5131563026 | S6: 0.4515775463 | T6: 0.4533838565 | U6: 0.4252740574 | V6: 0.4142169319 | W6: 0.4481827203 | X6: 0.4481827203 | Y6: 0.5136173974 | Z6: 0.55059785 | AA6: 0.576475949 | AB6: 0.6041467946 | AC6: 0.6210629048 | AD6: 0.8235294118 | AE6: 0.756 | AF6: =(AE6*(100+AF7)/100) -> 0.765072 | AG6: =(AF6*(100+AG7)/100) -> 0.73829448 | AH6: =(AG6*(100+AH7)/100) -> 0.7715177316 | AI6: =(AH6*(100+AI7)/100) -> 0.7946632635
B7: - | C7: - | D7: - | E7: - | F7: - | G7: - | H7: - | I7: - | J7: - | K7: - | L7: - | M7: - | N7: - | O7: 4.3 | P7: -26.3 | Q7: 7.8 | R7: -24 | S7: -12 | T7: 0.4 | U7: -6.2 | V7: -2.6 | W7: 8.2 | X7: 0 | Y7: 14.6 | Z7: 7.2 | AA7: 4.7 | AB7: 4.8 | AC7: 2.8 | AD7: 32.6 | AE7: -8.2 | AF7: 1.2 | AG7: -3.5 | AH7: 4.5 | AI7: 3
A8: Industrial Buildings | B8: - | C8: - | D8: - | E8: - | F8: - | G8: - | H8: - | I8: - | J8: - | K8: - | L8: - | M8: - | N8: =O8*100/(100+O9) -> 2.250951127 | O8: 2.793430349 | P8: 2.514087314 | Q8: 2.333073027 | R8: 2.218752449 | S8: 1.619689288 | T8: 1.805953556 | U8: 2.125607335 | V8: 2.263771812 | W8: 2.535424429 | X8: 2.95376946 | Y8: 2.73814429 | Z8: 2.360280378 | AA8: 2.119531779 | AB8: 2.420505292 | AC8: 2.631089252 | AD8: 2.88630491 | AE8: 3.351 | AF8: =(AE8*(100+AF9)/100) -> 3.58557 | AG8: =(AF8*(100+AG9)/100) -> 3.8007042 | AH8: =(AG8*(100+AH9)/100) -> 3.971735889 | AI8: =(AH8*(100+AI9)/100) -> 4.170322683
B9: - | C9: - | D9: - | E9: - | F9: - | G9: - | H9: - | I9: - | J9: - | K9: - | L9: - | M9: - | N9: - | O9: 24.1 | P9: -10 | Q9: -7.2 | R9: -4.9 | S9: -27 | T9: 11.5 | U9: 17.7 | V9: 6.5 | W9: 12 | X9: 16.5 | Y9: -7.3 | Z9: -13.8 | AA9: -10.2 | AB9: 14.2 | AC9: 8.7 | AD9: 9.7 | AE9: 16.1 | AF9: 7 | AG9: 6 | AH9: 4.5 | AI9: 5
A10: Storage Buildings | B10: - | C10: - | D10: - | E10: - | F10: - | G10: - | H10: - | I10: - | J10: - | K10: - | L10: - | M10: - | N10: - | O10: - | P10: - | Q10: - | R10: - | S10: =T10*100/(100+T11) -> 0.8254606967 | T10: 0.7429146271 | U10: 0.8484085041 | V10: 0.9086455079 | W10: 1.054028789 | X10: 1.249024115 | Y10: 1.345198972 | Z10: 1.28197462 | AA10: 1.178134676 | AB10: 1.257069699 | AC10: 1.319923184 | AD10: 1.308043876 | AE10: 1.431 | AF10: =(AE10*(100+AF11)/100) -> 1.495395 | AG10: =(AF10*(100+AG11)/100) -> 1.54324764 | AH10: =(AG10*(100+AH11)/100) -> 1.611150536 | AI10: =(AH10*(100+AI11)/100) -> 1.667540805
B11: - | C11: - | D11: - | E11: - | F11: - | G11: - | H11: - | I11: - | J11: - | K11: - | L11: - | M11: - | N11: - | O11: - | P11: - | Q11: - | R11: - | S11: - | T11: -10 | U11: 14.2 | V11: 7.1 | W11: 16 | X11: 18.5 | Y11: 7.7 | Z11: -4.7 | AA11: -8.1 | AB11: 6.7 | AC11: 5 | AD11: -0.9 | AE11: 9.4 | AF11: 4.5 | AG11: 3.2 | AH11: 4.4 | AI11: 3.5
A12: Office Buildings | B12: - | C12: - | D12: - | E12: - | F12: - | G12: - | H12: - | I12: - | J12: - | K12: - | L12: - | M12: - | N12: =O12*100/(100+O13) -> 0.6460228608 | O12: 0.839829719 | P12: 0.9985575359 | Q12: 1.079440696 | R12: 0.8311693362 | S12: 0.895169375 | T12: 0.8316123494 | U12: 0.740134991 | V12: 0.7541975558 | W12: 0.7315716291 | X12: 0.8669123805 | Y12: 1.038561032 | Z12: 0.9720931258 | AA12: 0.9827861502 | AB12: 1.125290142 | AC12: 1.283956052 | AD12: 1.178671656 | AE12: 1.26 | AF12: =(AE12*(100+AF13)/100) -> 1.37718 | AG12: =(AF12*(100+AG13)/100) -> 1.42124976 | AH12: =(AG12*(100+AH13)/100) -> 1.465308503 | AI12: =(AH12*(100+AI13)/100) -> 1.494614673
B13: - | C13: - | D13: - | E13: - | F13: - | G13: - | H13: - | I13: - | J13: - | K13: - | L13: - | M13: - | N13: - | O13: 30 | P13: 18.9 | Q13: 8.1 | R13: -23 | S13: 7.7 | T13: -7.1 | U13: -11 | V13: 1.9 | W13: -3 | X13: 18.5 | Y13: 19.8 | Z13: -6.4 | AA13: 1.1 | AB13: 14.5 | AC13: 14.1 | AD13: -8.2 | AE13: 6.9 | AF13: 9.3 | AG13: 3.2 | AH13: 3.1 | AI13: 2
A14: Commercial Buildings | B14: - | C14: - | D14: - | E14: - | F14: - | G14: - | H14: - | I14: - | J14: - | K14: - | L14: - | M14: - | N14: =O14*100/(100+O15) -> 2.179903652 | O14: 2.317237582 | P14: 3.065705321 | Q14: 2.918551466 | R14: 2.378619445 | S14: 1.819643875 | T14: 1.655875926 | U14: 1.606199649 | V14: 1.742726619 | W14: 2.183636453 | X14: 2.596343743 | Y14: 2.80924393 | Z14: 2.694064929 | AA14: 2.373471202 | AB14: 2.572842783 | AC14: 2.868719703 | AD14: 2.699465241 | AE14: 2.524 | AF14: =(AE14*(100+AF15)/100) -> 2.387704 | AG14: =(AF14*(100+AG15)/100) -> 2.418744152 | AH14: =(AG14*(100+AH15)/100) -> 2.467119035 | AI14: =(AH14*(100+AI15)/100) -> 2.528797011
B15: - | C15: - | D15: - | E15: - | F15: - | G15: - | H15: - | I15: - | J15: - | K15: - | L15: - | M15: - | N15: - | O15: 6.3 | P15: 32.3 | Q15: -4.8 | R15: -18.5 | S15: -23.5 | T15: -9 | U15: -3 | V15: 8.5 | W15: 25.3 | X15: 18.9 | Y15: 8.2 | Z15: -4.1 | AA15: -11.9 | AB15: 8.4 | AC15: 11.5 | AD15: -5.9 | AE15: -6.5 | AF15: -5.4 | AG15: 1.3 | AH15: 2 | AI15: 2.5
A16: Agricultural Buildings | B16: - | C16: - | D16: - | E16: - | F16: - | G16: - | H16: - | I16: - | J16: - | K16: - | L16: - | M16: - | N16: - | O16: - | P16: - | Q16: - | R16: - | S16: =T16*100/(100+T17) -> 0.1456995816 | T16: 0.1486135732 | U16: 0.1755126299 | V16: 0.2000843981 | W16: 0.2252950323 | X16: 0.2692275636 | Y16: 0.3074578776 | Z16: 0.3182189033 | AA16: 0.3341298485 | AB16: 0.4681159178 | AC16: 0.5079057708 | AD16: 0.5785046729 | AE16: 0.619 | AF16: =(AE16*(100+AF17)/100) -> 0.645617 | AG16: =(AF16*(100+AG17)/100) -> 0.675315382 | AH16: =(AG16*(100+AH17)/100) -> 0.7259640357 | AI16: =(AH16*(100+AI17)/100) -> 0.7586324173
B17: - | C17: - | D17: - | E17: - | F17: - | G17: - | H17: - | I17: - | J17: - | K17: - | L17: - | M17: - | N17: - | O17: - | P17: - | Q17: - | R17: - | S17: -1 | T17: 2 | U17: 18.1 | V17: 14 | W17: 12.6 | X17: 19.5 | Y17: 14.2 | Z17: 3.5 | AA17: 5 | AB17: 40.1 | AC17: 8.5 | AD17: 13.9 | AE17: 7 | AF17: 4.3 | AG17: 4.6 | AH17: 7.5 | AI17: 4.5
A18: Miscellaneous | B18: - | C18: - | D18: - | E18: - | F18: - | G18: - | H18: - | I18: - | J18: - | K18: - | L18: - | M18: - | N18: - | O18: - | P18: - | Q18: =R18*100/(100+R19) -> 2.599482004 | R18: 2.118577833 | S18: 1.938498717 | T18: =U18*100/(100+U19) -> 1.337564115 | U18: 1.385716423 | V18: 1.455002244 | W18: 1.658702559 | X18: 1.803009681 | Y18: 2.019370843 | Z18: 2.388915707 | AA18: 2.830865113 | AB18: 3.085642973 | AC18: 2.570340597 | AD18: 2.094827586 | AE18: 2.43 | AF18: =(AE18*(100+AF19)/100) -> 2.65842 | AG18: =(AF18*(100+AG19)/100) -> 2.85248466 | AH18: =(AG18*(100+AH19)/100) -> 3.01792877 | AI18: =(AH18*(100+AI19)/100) -> 3.183914853
B19: - | C19: - | D19: - | E19: - | F19: - | G19: - | H19: - | I19: - | J19: - | K19: - | L19: - | M19: - | N19: - | O19: - | P19: - | Q19: - | R19: -18.5 | S19: -8.5 | T19: -31 | U19: 3.6 | V19: 5 | W19: 14 | X19: 8.7 | Y19: 12 | Z19: 18.3 | AA19: 18.5 | AB19: 9 | AC19: -16.7 | AD19: -18.5 | AE19: 16 | AF19: 9.4 | AG19: 7.3 | AH19: 5.8 | AI19: 5.5
A20: Total | B20: - | C20: =D20*100/(100+D21) -> 4.021456682 | D20: 4.23207182 | E20: 4.430956821 | F20: 4.422712289 | G20: 3.881896117 | H20: 4.030478994 | I20: 4.132352246 | J20: 4.638727252 | K20: 5.191806761 | L20: 6.074413911 | M20: 6.742599441 | N20: =O20*100/(100+O21) -> 8.124832326 | O20: 10.08291692 | P20: 10.43581901 | Q20: 10.20623099 | R20: 8.910039655 | S20: 8.460082652 | T20: 7.850956701 | U20: 8.125740186 | V20: 8.551528972 | W20: 9.577712448 | X20: 10.96648075 | Y20: 11.64640256 | Z20: 11.43676731 | AA20: 11.44820408 | AB20: =AC20*100/(100+AC21) -> 12.57012808 | AC20: =AD20*100/(100+AD21) -> 12.80896051 | AD20: 12.46311858 | AE20: 13.348 | AF20: =(AE20*(100+AF21)/100) -> 13.895268 | AG20: =(AF20*(100+AG21)/100) -> 14.38160238 | AH20: =(AG20*(100+AH21)/100) -> 15.00001128 | AI20: =(AH20*(100+AI21)/100) -> 15.61501174
B21: - | C21: - | D21: 5.237284768 | E21: 4.699471317 | F21: -0.1860666315 | G21: -12.22815632 | H21: 3.827585087 | I21: 2.527571848 | J21: 12.25391678 | K21: 11.92308751 | L21: 17 | M21: 11 | N21: 20.5 | O21: 24.1 | P21: 3.5 | Q21: -2.2 | R21: -12.7 | S21: -5.05 | T21: -7.2 | U21: 3.5 | V21: 5.24 | W21: 12 | X21: 14.5 | Y21: 6.2 | Z21: -1.8 | AA21: 0.1 | AB21: 9.8 | AC21: 1.9 | AD21: -2.7 | AE21: 7.1 | AF21: 4.1 | AG21: 3.5 | AH21: 4.3 | AI21: 4.1
A24: =GDP!$A$21 -> (1) Billions Euro at 2014 Prices: 1 Euro = 4.1198 PLN
A25: (2) Sum of the parts does not equal the whole pre 2002

Sheet Civil engineering
A1: POLAND | AH1: Volume bn Euro (1)
A2: Civil engineering | AH2: Annual % change
B3: 1985 | C3: 1986 | D3: 1987 | E3: 1988 | F3: 1989 | G3: 1990 | H3: 1991 | I3: 1992 | J3: 1993 | K3: 1994 | L3: 1995 | M3: 1996 | N3: 1997 | O3: 1998 | P3: 1999 | Q3: 2000 | R3: 2001 | S3: 2002 | T3: 2003 | U3: 2004 | V3: 2005 | W3: 2006 | X3: 2007 | Y3: 2008 | Z3: 2009 | AA3: 2010 | AB3: 2011 | AC3: 2012 | AD3: 2013 | AE3: 2014 | AF3: 2015 | AG3: 2016 | AH3: 2017 | AI3: 2018
A4: Transport Infrastructure | B4: - | C4: - | D4: - | E4: - | F4: - | G4: - | H4: - | I4: - | J4: - | K4: - | L4: - | M4: - | N4: - | O4: =(P4*100/(100+P5)) -> 2.271171819 | P4: 2.441509705 | Q4: 2.64903803 | R4: 2.503340939 | S4: 2.813755215 | T4: 3.055738164 | U4: 3.562990699 | V4: 3.944230703 | W4: 4.65419223 | X4: 5.212695298 | Y4: 6.046726545 | Z4: 7.860744509 | AA4: 9.073513116 | AB4: 11.82257791 | AC4: 10.22869042 | AD4: 7.805807144 | AE4: 8.143 | AF4: =(AE4*(100+AF5)/100) -> 8.79471 | AG4: =(AF4*(100+AG5)/100) -> 10.31701968 | AH4: =(AG4*(100+AH5)/100) -> 12.16851923 | AI4: =(AH4*(100+AI5)/100) -> 14.3867028
B5: - | C5: - | D5: - | E5: - | F5: - | G5: - | H5: - | I5: - | J5: - | K5: - | L5: - | M5: - | N5: - | O5: - | P5: 7.5 | Q5: 8.5 | R5: -5.5 | S5: 12.4 | T5: 8.6 | U5: 16.6 | V5: 10.7 | W5: 18 | X5: 12 | Y5: 16 | Z5: 30 | AA5: 15.42816467 | AB5: 30.29768911 | AC5: -13.48172541 | AD5: -23.68713079 | AE5: 4.319769245 | AF5: 8.003315731 | AG5: 17.30937893 | AH5: 17.94606975 | AI5: 18.22887019
A6: Roads | B6: - | C6: - | D6: - | E6: - | F6: - | G6: - | H6: - | I6: - | J6: - | K6: - | L6: - | M6: - | N6: - | O6: - | P6: - | Q6: - | R6: - | S6: =(T6*100/(100+T7)) -> 2.270117847 | T6: 2.417675507 | U6: 2.864945476 | V6: 3.294687297 | W6: 3.986571629 | X6: 4.285564501 | Y6: 4.812688935 | Z6: 6.487504684 | AA6: 7.493067911 | AB6: 9.853384302 | AC6: 8.316256351 | AD6: 6.045918367 | AE6: 5.925 | AF6: =(AE6*(100+AF7)/100) -> 6.162 | AG6: =(AF6*(100+AG7)/100) -> 7.338942 | AH6: =(AG6*(100+AH7)/100) -> 8.637934734 | AI6: =(AH6*(100+AI7)/100) -> 10.36552168
B7: - | C7: - | D7: - | E7: - | F7: - | G7: - | H7: - | I7: - | J7: - | K7: - | L7: - | M7: - | N7: - | O7: - | P7: - | Q7: - | R7: - | T7: 6.5 | U7: 18.5 | V7: 15 | W7: 21 | X7: 7.5 | Y7: 12.3 | Z7: 34.8 | AA7: 15.5 | AB7: 31.5 | AC7: -15.6 | AD7: -27.3 | AE7: -2 | AF7: 4 | AG7: 19.1 | AH7: 17.7 | AI7: 20
A8: Railways | B8: - | C8: - | D8: - | E8: - | F8: - | G8: - | H8: - | I8: - | J8: - | K8: - | L8: - | M8: - | N8: - | O8: - | P8: - | Q8: - | R8: - | S8: =(T8*100/(100+T9)) -> 0.1859148195 | T8: 0.248196284 | U8: 0.2754978753 | V8: 0.2203983002 | W8: 0.2688859263 | X8: 0.4173109576 | Y8: 0.5153790326 | Z8: 0.5911397504 | AA8: 0.769663955 | AB8: 0.9597709519 | AC8: 0.9837652257 | AD8: 1.045742435 | AE8: 1.486 | AF8: =(AE8*(100+AF9)/100) -> 1.858986 | AG8: =(AF8*(100+AG9)/100) -> 2.11924404 | AH8: =(AG8*(100+AH9)/100) -> 2.555808312 | AI8: =(AH8*(100+AI9)/100) -> 2.939179559
B9: - | C9: - | D9: - | E9: - | F9: - | G9: - | H9: - | I9: - | J9: - | K9: - | L9: - | M9: - | N9: - | O9: - | P9: - | Q9: - | R9: - | T9: 33.5 | U9: 11 | V9: -20 | W9: 22 | X9: 55.2 | Y9: 23.5 | Z9: 14.7 | AA9: 30.2 | AB9: 24.7 | AC9: 2.5 | AD9: 6.3 | AE9: 42.1 | AF9: 25.1 | AG9: 14 | AH9: 20.6 | AI9: 15
A10: Other transport | B10: - | C10: - | D10: - | E10: - | F10: - | G10: - | H10: - | I10: - | J10: - | K10: - | L10: - | M10: - | N10: - | O10: - | P10: - | Q10: - | R10: - | S10: =(T10*100/(100+T11)) -> 0.3586946984 | T10: 0.3604881719 | U10: 0.3785125805 | V10: 0.4106861498 | W10: 0.4648967216 | X10: 0.5481132347 | Y10: 0.6538990891 | Z10: 0.7729087233 | AA10: 0.8107812507 | AB10: 1.009422657 | AC10: 0.9286688446 | AD10: 0.7141463415 | AE10: 0.732 | AF10: =(AE10*(100+AF11)/100) -> 0.773724 | AG10: =(AF10*(100+AG11)/100) -> 0.85883364 | AH10: =(AG10*(100+AH11)/100) -> 0.9747761814 | AI10: =(AH10*(100+AI11)/100) -> 1.082001561
B11: - | C11: - | D11: - | E11: - | F11: - | G11: - | H11: - | I11: - | J11: - | K11: - | L11: - | M11: - | N11: - | O11: - | P11: - | Q11: - | R11: - | T11: 0.5 | U11: 5 | V11: 8.5 | W11: 13.2 | X11: 17.9 | Y11: 19.3 | Z11: 18.2 | AA11: 4.9 | AB11: 24.5 | AC11: -8 | AD11: -23.1 | AE11: 2.5 | AF11: 5.7 | AG11: 11 | AH11: 13.5 | AI11: 11
A12: Telecommunications | B12: - | C12: - | D12: - | E12: - | F12: - | G12: - | H12: - | I12: - | J12: - | K12: - | L12: - | M12: - | N12: - | O12: =(P12*100/(100+P13)) -> 1.155890261 | P12: 1.323494349 | Q12: 1.124970197 | R12: 1.012473177 | S12: 0.491049491 | T12: 0.4051158301 | U12: 0.3309796332 | V12: 0.3515003704 | W12: 0.3602878797 | X12: 0.3801037131 | Y12: 0.43711927 | Z12: 0.4699032153 | AA12: 0.4854100214 | AB12: 0.5111367525 | AC12: 0.5274931286 | AD12: 0.5401529637 | AE12: 0.565 | AF12: =(AE12*(100+AF13)/100) -> 0.605115 | AG12: =(AF12*(100+AG13)/100) -> 0.64021167 | AH12: =(AG12*(100+AH13)/100) -> 0.6882275452 | AI12: =(AH12*(100+AI13)/100) -> 0.7198860123
B13: - | C13: - | D13: - | E13: - | F13: - | G13: - | H13: - | I13: - | J13: - | K13: - | L13: - | M13: - | N13: - | O13: - | P13: 14.5 | Q13: -15 | R13: -10 | S13: -51.5 | T13: -17.5 | U13: -18.3 | V13: 6.2 | W13: 2.5 | X13: 5.5 | Y13: 15 | Z13: 7.5 | AA13: 3.3 | AB13: 5.3 | AC13: 3.2 | AD13: 2.4 | AE13: 4.6 | AF13: 7.1 | AG13: 5.8 | AH13: 7.5 | AI13: 4.6
A14: Energy works (3) | B14: - | C14: - | D14: - | E14: - | F14: - | G14: - | H14: - | I14: - | J14: - | K14: - | L14: - | M14: - | N14: - | O14: =(P14*100/(100+P15)) -> 3.248279014 | P14: 2.981920135 | Q14: 2.564451316 | R14: 2.43622875 | S14: 2.177988503 | T14: 2.136606721 | U14: 2.243437057 | V14: 2.50816263 | W14: 2.608489135 | X14: 2.999762505 | Y14: =((Z14*100/(100+Z15))+((Z16*100/(100+Z17)))) -> 3.458726169 | Z14: 1.569614732 | AA14: 1.726576205 | AB14: 1.91995274 | AC14: 1.989071038 | AD14: 2.184 | AE14: 2.457 | AF14: =(AE14*(100+AF15)/100) -> 2.707614 | AG14: =(AF14*(100+AG15)/100) -> 3.054188592 | AH14: =(AG14*(100+AH15)/100) -> 3.377932583 | AI14: =(AH14*(100+AI15)/100) -> 3.607631998
B15: - | C15: - | D15: - | E15: - | F15: - | G15: - | H15: - | I15: - | J15: - | K15: - | L15: - | M15: - | N15: - | O15: - | P15: -8.2 | Q15: -14 | R15: -5 | S15: -10.6 | T15: -1.9 | U15: 5 | V15: 11.8 | W15: 4 | X15: 15 | Y15: 15.3 | Z15: 10.4 | AA15: 10 | AB15: 11.2 | AC15: 3.6 | AD15: 9.8 | AE15: 12.5 | AF15: 10.2 | AG15: 12.8 | AH15: 10.6 | AI15: 6.8
A16: Water works (3) | B16: - | C16: - | D16: - | E16: - | F16: - | G16: - | H16: - | I16: - | J16: - | K16: - | L16: - | M16: - | N16: - | O16: - | P16: - | Q16: - | R16: - | S16: - | T16: - | U16: - | V16: - | W16: - | X16: - | Y16: - | Z16: =(AA16*100/(100+AA17)) -> 2.322150012 | AA16: =(AB16*100/(100+AB17)) -> 2.607774463 | AB16: =(AC16*100/(100+AC17)) -> 2.412191378 | AC16: =(AD16*100/(100+AD17)) -> 2.291581809 | AD16: 2.424493554 | AE16: 2.633 | AF16: =(AE16*(100+AF17)/100) -> 2.809411 | AG16: =(AF16*(100+AG17)/100) -> 3.149349731 | AH16: =(AG16*(100+AH17)/100) -> 3.51152495 | AI16: =(AH16*(100+AI17)/100) -> 3.729239497
B17: - | C17: - | D17: - | E17: - | F17: - | G17: - | H17: - | I17: - | J17: - | K17: - | L17: - | M17: - | N17: - | O17: - | P17: - | Q17: - | R17: - | S17: - | T17: - | U17: - | V17: - | W17: - | X17: - | Y17: - | Z17: 14 | AA17: 12.3 | AB17: -7.5 | AC17: -5 | AD17: 5.8 | AE17: 8.6 | AF17: 6.7 | AG17: 12.1 | AH17: 11.5 | AI17: 6.2
A18: Other | B18: - | C18: - | D18: - | E18: - | F18: - | G18: - | H18: - | I18: - | J18: - | K18: - | L18: - | M18: - | N18: - | O18: =(P18*100/(100+P19)) -> 0.223527429 | P18: 0.2358214375 | Q18: 0.2039855435 | R18: 0.2292797509 | S18: 0.2810969746 | T18: 0.3080822841 | U18: 0.2501628147 | V18: 0.2746787706 | W18: 0.2752281281 | X18: 0.3140352942 | Y18: 0.3611405883 | Z18: 0.4160339577 | AA18: 0.4651259647 | AB18: 0.5330343555 | AC18: 0.5207745654 | AD18: 0.454115421 | AE18: 0.48 | AF18: =(AE18*(100+AF19)/100) -> 0.50016 | AG18: =(AF18*(100+AG19)/100) -> 0.54917568 | AH18: =(AG18*(100+AH19)/100) -> 0.6029948966 | AI18: =(AH18*(100+AI19)/100) -> 0.6482195139
B19: - | C19: - | D19: - | E19: - | F19: - | G19: - | H19: - | I19: - | J19: - | K19: - | L19: - | M19: - | N19: - | O19: - | P19: 5.5 | Q19: -13.5 | R19: 12.4 | S19: 22.6 | T19: 9.6 | U19: -18.8 | V19: 9.8 | W19: 0.2 | X19: 14.1 | Y19: 15 | Z19: 15.2 | AA19: 11.8 | AB19: 14.6 | AC19: -2.3 | AD19: -12.8 | AE19: 5.7 | AF19: 4.2 | AG19: 9.8 | AH19: 9.8 | AI19: 7.5
A20: Total | B20: =(C20*100/(100+C21)) -> 5.852465871 | C20: 5.934400393 | D20: 6.130235606 | E20: 5.376216626 | F20: 4.139686802 | G20: 3.899584968 | H20: 3.973677082 | I20: 4.470386717 | J20: =(K20*100/(100+K21)) -> 4.247729635 | K20: 4.401608223 | L20: 4.632595469 | M20: 5.148807212 | N20: 6.001864138 | O20: 6.303582176 | P20: 6.49217787 | Q20: 6.392307851 | R20: 6.121715286 | S20: 5.847120059 | T20: 6.089636134 | U20: 6.345400852 | V20: 6.979940937 | W20: =(X20*100/(100+X21)) -> 8.106098012 | X20: 9.102918838 | Y20: 10.30759453 | Z20: 12.65051342 | AA20: 14.35802939 | AB20: 17.19816344 | AC20: 15.55754586 | AD20: 13.40843285 | AE20: 14.278 | AF20: =(AE20*(100+AF21)/100) -> 15.417232 | AG20: =(AF20*(100+AG21)/100) -> 17.71018378 | AH20: =(AG20*(100+AH21)/100) -> 20.34958737 | AI20: =(AH20*(100+AI21)/100) -> 23.09125037
B21: 2.7 | C21: 1.4 | D21: 3.3 | E21: -12.3 | F21: -23 | G21: -5.8 | H21: 1.9 | I21: 12.5 | J21: -4.980711893 | K21: 3.622607869 | L21: 5.247792057 | M21: 11.14303517 | N21: 16.56804947 | O21: 5.027072115 | P21: 2.99188126 | Q21: -1.538313037 | R21: -4.233096583 | S21: -4.485592919 | T21: 4.147615798 | U21: 4.2 | V21: 10 | W21: 16.13419205 | X21: 12.29717214 | Y21: 13.23394956 | Z21: 22.73002576 | AA21: 13.49760215 | AB21: 19.7808068 | AC21: -9.539492904 | AD21: -13.813959 | AE21: 6.485225793 | AF21: 7.978932624 | AG21: 14.87265535 | AH21: 14.90331 | AI21: 13.47281862
A23: =GDP!$A$21 -> (1) Billions Euro at 2014 Prices: 1 Euro = 4.1198 PLN | AJ23: =AJ6+AJ8+AJ10+AJ12+AJ14+AJ16+AJ18 -> 0 | AK23: 0 | AL23: 0 | AM23: 0 | AN23: 0 | AO23: 0 | AP23: 0 | AQ23: 0 | AR23: 0 | AS23: 0 | AT23: 0 | AU23: 0 | AV23: 0 | AW23: 0 | AX23: 0 | AY23: 0 | AZ23: 0 | BA23: 0 | BB23: 0 | BC23: 0 | BD23: 0 | BE23: 0 | BF23: 0 | BG23: 0 | BH23: 0 | BI23: 0 | BJ23: 0 | BK23: 0 | BL23: 0 | BM23: 0 | BN23: 0 | BO23: 0 | BP23: 0 | BQ23: 0 | BR23: 0 | BS23: 0 | BT23: 0 | BU23: 0 | BV23: 0 | BW23: 0 | BX23: 0 | BY23: 0 | BZ23: 0 | CA23: 0 | CB23: 0 | CC23: 0 | CD23: 0 | CE23: 0 | CF23: 0 | CG23: 0 | CH23: 0 | CI23: 0 | CJ23: 0 | CK23: 0 | CL23: 0 | CM23: =CM6+CM8+CM10+CM12+CM14+CM16+CM18 -> 0 | CN23: 0 | CO23: 0 | CP23: 0 | CQ23: 0 | CR23: 0 | CS23: 0 | CT23: 0 | CU23: 0 | CV23: 0 | CW23: 0 | CX23: 0 | CY23: 0 | CZ23: 0 | DA23: 0 | DB23: 0 | DC23: 0 | DD23: 0 | DE23: 0 | DF23: 0 | DG23: 0 | DH23: 0 | DI23: 0 | DJ23: 0 | DK23: 0 | DL23: 0 | DM23: 0 | DN23: 0 | DO23: 0 | DP23: 0 | DQ23: 0 | DR23: 0 | DS23: 0 | DT23: 0 | DU23: 0 | DV23: 0 | DW23: 0 | DX23: 0 | DY23: 0 | DZ23: 0 | EA23: 0 | EB23: 0 | EC23: 0 | ED23: 0 | EE23: 0 | EF23: 0 | EG23: 0 | EH23: 0 | EI23: 0 | EJ23: 0 | EK23: 0 | EL23: 0 | EM23: 0 | EN23: 0 | EO23: 0 | EP23: 0 | EQ23: 0 | ER23: 0 | ES23: 0 | ET23: 0 | EU23: 0 | EV23: 0 | EW23: 0 | EX23: 0 | EY23: =EY6+EY8+EY10+EY12+EY14+EY16+EY18 -> 0 | EZ23: 0 | FA23: 0 | FB23: 0 | FC23: 0 | FD23: 0 | FE23: 0 | FF23: 0 | FG23: 0 | FH23: 0 | FI23: 0 | FJ23: 0 | FK23: 0 | FL23: 0 | FM23: 0 | FN23: 0 | FO23: 0 | FP23: 0 | FQ23: 0 | FR23: 0 | FS23: 0 | FT23: 0 | FU23: 0 | FV23: 0 | FW23: 0 | FX23: 0 | FY23: 0 | FZ23: 0 | GA23: 0 | GB23: 0 | GC23: 0 | GD23: 0 | GE23: 0 | GF23: 0 | GG23: 0 | GH23: 0 | GI23: 0 | GJ23: 0 | GK23: 0 | GL23: 0 | GM23: 0 | GN23: 0 | GO23: 0 | GP23: 0 | GQ23: 0 | GR23: 0 | GS23: 0 | GT23: 0 | GU23: 0 | GV23: 0 | GW23: 0 | GX23: 0 | GY23: 0 | GZ23: 0 | HA23: 0 | HB23: 0 | HC23: 0 | HD23: 0 | HE23: 0 | HF23: 0 | HG23: 0 | HH23: 0 | HI23: 0 | HJ23: 0 | HK23: =HK6+HK8+HK10+HK12+HK14+HK16+HK18 -> 0 | HL23: 0 | HM23: 0 | HN23: 0 | HO23: 0 | HP23: 0 | HQ23: 0 | HR23: 0 | HS23: 0 | HT23: 0 | HU23: 0 | HV23: 0 | HW23: 0 | HX23: 0 | HY23: 0 | HZ23: 0 | IA23: 0 | IB23: 0 | IC23: 0 | ID23: 0 | IE23: 0 | IF23: 0 | IG23: 0 | IH23: 0 | II23: 0 | IJ23: 0 | IK23: 0 | IL23: 0 | IM23: 0 | IN23: 0 | IO23: 0 | IP23: 0 | IQ23: 0 | IR23: 0 | IS23: 0 | IT23: 0 | IU23: 0 | IV23: 0 | IW23: 0 | IX23: 0 | IY23: 0 | IZ23: 0 | JA23: 0 | JB23: 0 | JC23: 0 | JD23: 0 | JE23: 0 | JF23: 0 | JG23: 0 | JH23: 0 | JI23: 0 | JJ23: 0 | JK23: 0 | JL23: 0 | JM23: 0 | JN23: 0 | JO23: 0 | JP23: 0 | JQ23: 0 | JR23: 0 | JS23: 0 | JT23: 0 | JU23: 0 | JV23: 0 | JW23: =JW6+JW8+JW10+JW12+JW14+JW16+JW18 -> 0 | JX23: 0 | JY23: 0 | JZ23: 0 | KA23: 0 | KB23: 0 | KC23: 0 | KD23: 0 | KE23: 0 | KF23: 0 | KG23: 0 | KH23: 0 | KI23: 0 | KJ23: 0 | KK23: 0 | KL23: 0 | KM23: 0 | KN23: 0 | KO23: 0 | KP23: 0 | KQ23: 0 | KR23: 0 | KS23: 0 | KT23: 0 | KU23: 0 | KV23: 0 | KW23: 0 | KX23: 0 | KY23: 0 | KZ23: 0 | LA23: 0 | LB23: 0 | LC23: 0 | LD23: 0 | LE23: 0 | LF23: 0 | LG23: 0 | LH23: 0 | LI23: 0 | LJ23: 0 | LK23: 0 | LL23: 0 | LM23: 0 | LN23: 0 | LO23: 0 | LP23: 0 | LQ23: 0 | LR23: 0 | LS23: 0 | LT23: 0 | LU23: 0 | LV23: 0 | LW23: 0 | LX23: 0 | LY23: 0 | LZ23: 0 | MA23: 0 | MB23: 0 | MC23: 0 | MD23: 0 | ME23: 0 | MF23: 0 | MG23: 0 | MH23: 0 | MI23: =MI6+MI8+MI10+MI12+MI14+MI16+MI18 -> 0 | MJ23: 0 | MK23: 0 | ML23: 0 | MM23: 0 | MN23: 0 | MO23: 0 | MP23: 0 | MQ23: 0 | MR23: 0 | MS23: 0 | MT23: 0 | MU23: 0 | MV23: 0 | MW23: 0 | MX23: 0 | MY23: 0 | MZ23: 0 | NA23: 0 | NB23: 0 | NC23: 0 | ND23: 0 | NE23: 0 | NF23: 0 | NG23: 0 | NH23: 0 | NI23: 0 | NJ23: 0 | NK23: 0 | NL23: 0 | NM23: 0 | NN23: 0 | NO23: 0 | NP23: 0 | NQ23: 0 | NR23: 0 | NS23: 0 | NT23: 0 | NU23: 0 | NV23: 0 | NW23: 0 | NX23: 0 | NY23: 0 | NZ23: 0 | OA23: 0 | OB23: 0 | OC23: 0 | OD23: 0 | OE23: 0 | OF23: 0 | OG23: 0 | OH23: 0 | OI23: 0 | OJ23: 0 | OK23: 0 | OL23: 0 | OM23: 0 | ON23: 0 | OO23: 0 | OP23: 0 | OQ23: 0 | OR23: 0 | OS23: 0 | OT23: 0 | OU23: =OU6+OU8+OU10+OU12+OU14+OU16+OU18 -> 0 | OV23: 0 | OW23: 0 | OX23: 0 | OY23: 0 | OZ23: 0 | PA23: 0 | PB23: 0 | PC23: 0 | PD23: 0 | PE23: 0 | PF23: 0 | PG23: 0 | PH23: 0 | PI23: 0 | PJ23: 0 | PK23: 0 | PL23: 0 | PM23: 0 | PN23: 0 | PO23: 0 | PP23: 0 | PQ23: 0 | PR23: 0 | PS23: 0 | PT23: 0 | PU23: 0 | PV23: 0 | PW23: 0 | PX23: 0 | PY23: 0 | PZ23: 0 | QA23: 0 | QB23: 0 | QC23: 0 | QD23: 0 | QE23: 0 | QF23: 0 | QG23: 0 | QH23: 0 | QI23: 0 | QJ23: 0 | QK23: 0 | QL23: 0 | QM23: 0 | QN23: 0 | QO23: 0 | QP23: 0 | QQ23: 0 | QR23: 0 | QS23: 0 | QT23: 0 | QU23: 0 | QV23: 0 | QW23: 0 | QX23: 0 | QY23: 0 | QZ23: 0 | RA23: 0 | RB23: 0 | RC23: 0 | RD23: 0 | RE23: 0 | RF23: 0 | RG23: =RG6+RG8+RG10+RG12+RG14+RG16+RG18 -> 0 | RH23: 0 | RI23: 0 | RJ23: 0 | RK23: 0 | RL23: 0 | RM23: 0 | RN23: 0 | RO23: 0 | RP23: 0 | RQ23: 0 | RR23: 0 | RS23: 0 | RT23: 0 | RU23: 0 | RV23: 0 | RW23: 0 | RX23: 0 | RY23: 0 | RZ23: 0 | SA23: 0 | SB23: 0 | SC23: 0 | SD23: 0 | SE23: 0 | SF23: 0 | SG23: 0 | SH23: 0 | SI23: 0 | SJ23: 0 | SK23: 0 | SL23: 0 | SM23: 0 | SN23: 0 | SO23: 0 | SP23: 0 | SQ23: 0 | SR23: 0 | SS23: 0 | ST23: 0 | SU23: 0 | SV23: 0 | SW23: 0 | SX23: 0 | SY23: 0 | SZ23: 0 | TA23: 0 | TB23: 0 | TC23: 0 | TD23: 0 | TE23: 0 | TF23: 0 | TG23: 0 | TH23: 0 | TI23: 0 | TJ23: 0 | TK23: 0 | TL23: 0 | TM23: 0 | TN23: 0 | TO23: 0 | TP23: 0 | TQ23: 0 | TR23: 0 | TS23: =TS6+TS8+TS10+TS12+TS14+TS16+TS18 -> 0 | TT23: 0 | TU23: 0 | TV23: 0 | TW23: 0 | TX23: 0 | TY23: 0 | TZ23: 0 | UA23: 0 | UB23: 0 | UC23: 0 | UD23: 0 | UE23: 0 | UF23: 0 | UG23: 0 | UH23: 0 | UI23: 0 | UJ23: 0 | UK23: 0 | UL23: 0 | UM23: 0 | UN23: 0 | UO23: 0 | UP23: 0 | UQ23: 0 | UR23: 0 | US23: 0 | UT23: 0 | UU23: 0 | UV23: 0 | UW23: 0 | UX23: 0 | UY23: 0 | UZ23: 0 | VA23: 0 | VB23: 0 | VC23: 0 | VD23: 0 | VE23: 0 | VF23: 0 | VG23: 0 | VH23: 0 | VI23: 0 | VJ23: 0 | VK23: 0 | VL23: 0 | VM23: 0 | VN23: 0 | VO23: 0 | VP23: 0 | VQ23: 0 | VR23: 0 | VS23: 0 | VT23: 0 | VU23: 0 | VV23: 0 | VW23: 0 | VX23: 0 | VY23: 0 | VZ23: 0 | WA23: 0 | WB23: 0 | WC23: 0 | WD23: 0 | WE23: =WE6+WE8+WE10+WE12+WE14+WE16+WE18 -> 0 | WF23: 0 | WG23: 0 | WH23: 0 | WI23: 0 | WJ23: 0 | WK23: 0 | WL23: 0 | WM23: 0 | WN23: 0 | WO23: 0 | WP23: 0 | WQ23: 0 | WR23: 0 | WS23: 0 | WT23: 0 | WU23: 0 | WV23: 0 | WW23: 0 | WX23: 0 | WY23: 0 | WZ23: 0 | XA23: 0 | XB23: 0 | XC23: 0 | XD23: 0 | XE23: 0 | XF23: 0 | XG23: 0 | XH23: 0 | XI23: 0 | XJ23: 0 | XK23: 0 | XL23: 0 | XM23: 0 | XN23: 0 | XO23: 0 | XP23: 0 | XQ23: 0 | XR23: 0 | XS23: 0 | XT23: 0 | XU23: 0 | XV23: 0 | XW23: 0 | XX23: 0 | XY23: 0 | XZ23: 0 | YA23: 0 | YB23: 0 | YC23: 0 | YD23: 0 | YE23: 0 | YF23: 0 | YG23: 0 | YH23: 0 | YI23: 0 | YJ23: 0 | YK23: 0 | YL23: 0 | YM23: 0 | YN23: 0 | YO23: 0 | YP23: 0 | YQ23: =YQ6+YQ8+YQ10+YQ12+YQ14+YQ16+YQ18 -> 0 | YR23: 0 | YS23: 0 | YT23: 0 | YU23: 0 | YV23: 0 | YW23: 0 | YX23: 0 | YY23: 0 | YZ23: 0 | ZA23: 0 | ZB23: 0 | ZC23: 0 | ZD23: 0 | ZE23: 0 | ZF23: 0 | ZG23: 0 | ZH23: 0 | ZI23: 0 | ZJ23: 0 | ZK23: 0 | ZL23: 0 | ZM23: 0 | ZN23: 0 | ZO23: 0 | ZP23: 0 | ZQ23: 0 | ZR23: 0 | ZS23: 0 | ZT23: 0 | ZU23: 0 | ZV23: 0 | ZW23: 0 | ZX23: 0 | ZY23: 0 | ZZ23: 0 | AAA23: 0 | AAB23: 0 | AAC23: 0 | AAD23: 0 | AAE23: 0 | AAF23: 0 | AAG23: 0 | AAH23: 0 | AAI23: 0 | AAJ23: 0 | AAK23: 0 | AAL23: 0 | AAM23: 0 | AAN23: 0 | AAO23: 0 | AAP23: 0 | AAQ23: 0 | AAR23: 0 | AAS23: 0 | AAT23: 0 | AAU23: 0 | AAV23: 0 | AAW23: 0 | AAX23: 0 | AAY23: 0 | AAZ23: 0 | ABA23: 0 | ABB23: 0 | ABC23: =ABC6+ABC8+ABC10+ABC12+ABC14+ABC16+ABC18 -> 0 | ABD23: 0 | ABE23: 0 | ABF23: 0 | ABG23: 0 | ABH23: 0 | ABI23: 0 | ABJ23: 0 | ABK23: 0 | ABL23: 0 | ABM23: 0 | ABN23: 0 | ABO23: 0 | ABP23: 0 | ABQ23: 0 | ABR23: 0 | ABS23: 0 | ABT23: 0 | ABU23: 0 | ABV23: 0 | ABW23: 0 | ABX23: 0 | ABY23: 0 | ABZ23: 0 | ACA23: 0 | ACB23: 0 | ACC23: 0 | ACD23: 0 | ACE23: 0 | ACF23: 0 | ACG23: 0 | ACH23: 0 | ACI23: 0 | ACJ23: 0 | ACK23: 0 | ACL23: 0 | ACM23: 0 | ACN23: 0 | ACO23: 0 | ACP23: 0 | ACQ23: 0 | ACR23: 0 | ACS23: 0 | ACT23: 0 | ACU23: 0 | ACV23: 0 | ACW23: 0 | ACX23: 0 | ACY23: 0 | ACZ23: 0 | ADA23: 0 | ADB23: 0 | ADC23: 0 | ADD23: 0 | ADE23: 0 | ADF23: 0 | ADG23: 0 | ADH23: 0 | ADI23: 0 | ADJ23: 0 | ADK23: 0 | ADL23: 0 | ADM23: 0 | ADN23: 0 | ADO23: =ADO6+ADO8+ADO10+ADO12+ADO14+ADO16+ADO18 -> 0 | ADP23: 0 | ADQ23: 0 | ADR23: 0 | ADS23: 0 | ADT23: 0 | ADU23: 0 | ADV23: 0 | ADW23: 0 | ADX23: 0 | ADY23: 0 | ADZ23: 0 | AEA23: 0 | AEB23: 0 | AEC23: 0 | AED23: 0 | AEE23: 0 | AEF23: 0 | AEG23: 0 | AEH23: 0 | AEI23: 0 | AEJ23: 0 | AEK23: 0 | AEL23: 0 | AEM23: 0 | AEN23: 0 | AEO23: 0 | AEP23: 0 | AEQ23: 0 | AER23: 0 | AES23: 0 | AET23: 0 | AEU23: 0 | AEV23: 0 | AEW23: 0 | AEX23: 0 | AEY23: 0 | AEZ23: 0 | AFA23: 0 | AFB23: 0 | AFC23: 0 | AFD23: 0 | AFE23: 0 | AFF23: 0 | AFG23: 0 | AFH23: 0 | AFI23: 0 | AFJ23: 0 | AFK23: 0 | AFL23: 0 | AFM23: 0 | AFN23: 0 | AFO23: 0 | AFP23: 0 | AFQ23: 0 | AFR23: 0 | AFS23: 0 | AFT23: 0 | AFU23: 0 | AFV23: 0 | AFW23: 0 | AFX23: 0 | AFY23: 0 | AFZ23: 0 | AGA23: =AGA6+AGA8+AGA10+AGA12+AGA14+AGA16+AGA18 -> 0 | AGB23: 0 | AGC23: 0 | AGD23: 0 | AGE23: 0 | AGF23: 0 | AGG23: 0 | AGH23: 0 | AGI23: 0 | AGJ23: 0 | AGK23: 0 | AGL23: 0 | AGM23: 0 | AGN23: 0 | AGO23: 0 | AGP23: 0 | AGQ23: 0 | AGR23: 0 | AGS23: 0 | AGT23: 0 | AGU23: 0 | AGV23: 0 | AGW23: 0 | AGX23: 0 | AGY23: 0 | AGZ23: 0 | AHA23: 0 | AHB23: 0 | AHC23: 0 | AHD23: 0 | AHE23: 0 | AHF23: 0 | AHG23: 0 | AHH23: 0 | AHI23: 0 | AHJ23: 0 | AHK23: 0 | AHL23: 0 | AHM23: 0 | AHN23: 0 | AHO23: 0 | AHP23: 0 | AHQ23: 0 | AHR23: 0 | AHS23: 0 | AHT23: 0 | AHU23: 0 | AHV23: 0 | AHW23: 0 | AHX23: 0 | AHY23: 0 | AHZ23: 0 | AIA23: 0 | AIB23: 0 | AIC23: 0 | AID23: 0 | AIE23: 0 | AIF23: 0 | AIG23: 0 | AIH23: 0 | AII23: 0 | AIJ23: 0 | AIK23: 0 | AIL23: 0 | AIM23: =AIM6+AIM8+AIM10+AIM12+AIM14+AIM16+AIM18 -> 0 | AIN23: 0 | AIO23: 0 | AIP23: 0 | AIQ23: 0 | AIR23: 0 | AIS23: 0 | AIT23: 0 | AIU23: 0 | AIV23: 0 | AIW23: 0 | AIX23: 0 | AIY23: 0 | AIZ23: 0 | AJA23: 0 | AJB23: 0 | AJC23: 0 | AJD23: 0 | AJE23: 0 | AJF23: 0 | AJG23: 0 | AJH23: 0 | AJI23: 0 | AJJ23: 0 | AJK23: 0 | AJL23: 0 | AJM23: 0 | AJN23: 0 | AJO23: 0 | AJP23: 0 | AJQ23: 0 | AJR23: 0 | AJS23: 0 | AJT23: 0 | AJU23: 0 | AJV23: 0 | AJW23: 0 | AJX23: 0 | AJY23: 0 | AJZ23: 0 | AKA23: 0 | AKB23: 0 | AKC23: 0 | AKD23: 0 | AKE23: 0 | AKF23: 0 | AKG23: 0 | AKH23: 0 | AKI23: 0 | AKJ23: 0 | AKK23: 0 | AKL23: 0 | AKM23: 0 | AKN23: 0 | AKO23: 0 | AKP23: 0 | AKQ23: 0 | AKR23: 0 | AKS23: 0 | AKT23: 0 | AKU23: 0 | AKV23: 0 | AKW23: 0 | AKX23: 0 | AKY23: =AKY6+AKY8+AKY10+AKY12+AKY14+AKY16+AKY18 -> 0 | AKZ23: 0 | ALA23: 0 | ALB23: 0 | ALC23: 0 | ALD23: 0 | ALE23: 0 | ALF23: 0 | ALG23: 0 | ALH23: 0 | ALI23: 0 | ALJ23: 0 | ALK23: 0 | ALL23: 0 | ALM23: 0 | ALN23: 0 | ALO23: 0 | ALP23: 0 | ALQ23: 0 | ALR23: 0 | ALS23: 0 | ALT23: 0 | ALU23: 0 | ALV23: 0 | ALW23: 0 | ALX23: 0 | ALY23: 0 | ALZ23: 0 | AMA23: 0 | AMB23: 0 | AMC23: 0 | AMD23: 0 | AME23: 0 | AMF23: 0 | AMG23: 0 | AMH23: 0 | AMI23: 0 | AMJ23: 0 | AMK23: 0 | AML23: 0 | AMM23: 0 | AMN23: 0 | AMO23: 0 | AMP23: 0 | AMQ23: 0 | AMR23: 0 | AMS23: 0 | AMT23: 0 | AMU23: 0 | AMV23: 0 | AMW23: 0 | AMX23: 0 | AMY23: 0 | AMZ23: 0 | ANA23: 0 | ANB23: 0 | ANC23: 0 | AND23: 0 | ANE23: 0 | ANF23: 0 | ANG23: 0 | ANH23: 0 | ANI23: 0 | ANJ23: 0 | ANK23: =ANK6+ANK8+ANK10+ANK12+ANK14+ANK16+ANK18 -> 0 | ANL23: 0 | ANM23: 0 | ANN23: 0 | ANO23: 0 | ANP23: 0 | ANQ23: 0 | ANR23: 0 | ANS23: 0 | ANT23: 0 | ANU23: 0 | ANV23: 0 | ANW23: 0 | ANX23: 0 | ANY23: 0 | ANZ23: 0 | AOA23: 0 | AOB23: 0 | AOC23: 0 | AOD23: 0 | AOE23: 0 | AOF23: 0 | AOG23: 0 | AOH23: 0 | AOI23: 0 | AOJ23: 0 | AOK23: 0 | AOL23: 0 | AOM23: 0 | AON23: 0 | AOO23: 0 | AOP23: 0 | AOQ23: 0 | AOR23: 0 | AOS23: 0 | AOT23: 0 | AOU23: 0 | AOV23: 0 | AOW23: 0 | AOX23: 0 | AOY23: 0 | AOZ23: 0 | APA23: 0 | APB23: 0 | APC23: 0 | APD23: 0 | APE23: 0 | APF23: 0 | APG23: 0 | APH23: 0 | API23: 0 | APJ23: 0 | APK23: 0 | APL23: 0 | APM23: 0 | APN23: 0 | APO23: 0 | APP23: 0 | APQ23: 0 | APR23: 0 | APS23: 0 | APT23: 0 | APU23: 0 | APV23: 0 | APW23: =APW6+APW8+APW10+APW12+APW14+APW16+APW18 -> 0 | APX23: 0 | APY23: 0 | APZ23: 0 | AQA23: 0 | AQB23: 0 | AQC23: 0 | AQD23: 0 | AQE23: 0 | AQF23: 0 | AQG23: 0 | AQH23: 0 | AQI23: 0 | AQJ23: 0 | AQK23: 0 | AQL23: 0 | AQM23: 0 | AQN23: 0 | AQO23: 0 | AQP23: 0 | AQQ23: 0 | AQR23: 0 | AQS23: 0 | AQT23: 0 | AQU23: 0 | AQV23: 0 | AQW23: 0 | AQX23: 0 | AQY23: 0 | AQZ23: 0 | ARA23: 0 | ARB23: 0 | ARC23: 0 | ARD23: 0 | ARE23: 0 | ARF23: 0 | ARG23: 0 | ARH23: 0 | ARI23: 0 | ARJ23: 0 | ARK23: 0 | ARL23: 0 | ARM23: 0 | ARN23: 0 | ARO23: 0 | ARP23: 0 | ARQ23: 0 | ARR23: 0 | ARS23: 0 | ART23: 0 | ARU23: 0 | ARV23: 0 | ARW23: 0 | ARX23: 0 | ARY23: 0 | ARZ23: 0 | ASA23: 0 | ASB23: 0 | ASC23: 0 | ASD23: 0 | ASE23: 0 | ASF23: 0 | ASG23: 0 | ASH23: 0 | ASI23: =ASI6+ASI8+ASI10+ASI12+ASI14+ASI16+ASI18 -> 0 | ASJ23: 0 | ASK23: 0 | ASL23: 0 | ASM23: 0 | ASN23: 0 | ASO23: 0 | ASP23: 0 | ASQ23: 0 | ASR23: 0 | ASS23: 0 | AST23: 0 | ASU23: 0 | ASV23: 0 | ASW23: 0 | ASX23: 0 | ASY23: 0 | ASZ23: 0 | ATA23: 0 | ATB23: 0 | ATC23: 0 | ATD23: 0 | ATE23: 0 | ATF23: 0 | ATG23: 0 | ATH23: 0 | ATI23: 0 | ATJ23: 0 | ATK23: 0 | ATL23: 0 | ATM23: 0 | ATN23: 0 | ATO23: 0 | ATP23: 0 | ATQ23: 0 | ATR23: 0 | ATS23: 0 | ATT23: 0 | ATU23: 0 | ATV23: 0 | ATW23: 0 | ATX23: 0 | ATY23: 0 | ATZ23: 0 | AUA23: 0 | AUB23: 0 | AUC23: 0 | AUD23: 0 | AUE23: 0 | AUF23: 0 | AUG23: 0 | AUH23: 0 | AUI23: 0 | AUJ23: 0 | AUK23: 0 | AUL23: 0 | AUM23: 0 | AUN23: 0 | AUO23: 0 | AUP23: 0 | AUQ23: 0 | AUR23: 0 | AUS23: 0 | AUT23: 0 | AUU23: =AUU6+AUU8+AUU10+AUU12+AUU14+AUU16+AUU18 -> 0 | AUV23: 0 | AUW23: 0 | AUX23: 0 | AUY23: 0 | AUZ23: 0 | AVA23: 0 | AVB23: 0 | AVC23: 0 | AVD23: 0 | AVE23: 0 | AVF23: 0 | AVG23: 0 | AVH23: 0 | AVI23: 0 | AVJ23: 0 | AVK23: 0 | AVL23: 0 | AVM23: 0 | AVN23: 0 | AVO23: 0 | AVP23: 0 | AVQ23: 0 | AVR23: 0 | AVS23: 0 | AVT23: 0 | AVU23: 0 | AVV23: 0 | AVW23: 0 | AVX23: 0 | AVY23: 0 | AVZ23: 0 | AWA23: 0 | AWB23: 0 | AWC23: 0 | AWD23: 0 | AWE23: 0 | AWF23: 0 | AWG23: 0 | AWH23: 0 | AWI23: 0 | AWJ23: 0 | AWK23: 0 | AWL23: 0 | AWM23: 0 | AWN23: 0 | AWO23: 0 | AWP23: 0 | AWQ23: 0 | AWR23: 0 | AWS23: 0 | AWT23: 0 | AWU23: 0 | AWV23: 0 | AWW23: 0 | AWX23: 0 | AWY23: 0 | AWZ23: 0 | AXA23: 0 | AXB23: 0 | AXC23: 0 | AXD23: 0 | AXE23: 0 | AXF23: 0 | AXG23: =AXG6+AXG8+AXG10+AXG12+AXG14+AXG16+AXG18 -> 0 | AXH23: 0 | AXI23: 0 | AXJ23: 0 | AXK23: 0 | AXL23: 0 | AXM23: 0 | AXN23: 0 | AXO23: 0 | AXP23: 0 | AXQ23: 0 | AXR23: 0 | AXS23: 0 | AXT23: 0 | AXU23: 0 | AXV23: 0 | AXW23: 0 | AXX23: 0 | AXY23: 0 | AXZ23: 0 | AYA23: 0 | AYB23: 0 | AYC23: 0 | AYD23: 0 | AYE23: 0 | AYF23: 0 | AYG23: 0 | AYH23: 0 | AYI23: 0 | AYJ23: 0 | AYK23: 0 | AYL23: 0 | AYM23: 0 | AYN23: 0 | AYO23: 0 | AYP23: 0 | AYQ23: 0 | AYR23: 0 | AYS23: 0 | AYT23: 0 | AYU23: 0 | AYV23: 0 | AYW23: 0 | AYX23: 0 | AYY23: 0 | AYZ23: 0 | AZA23: 0 | AZB23: 0 | AZC23: 0 | AZD23: 0 | AZE23: 0 | AZF23: 0 | AZG23: 0 | AZH23: 0 | AZI23: 0 | AZJ23: 0 | AZK23: 0 | AZL23: 0 | AZM23: 0 | AZN23: 0 | AZO23: 0 | AZP23: 0 | AZQ23: 0 | AZR23: 0 | AZS23: =AZS6+AZS8+AZS10+AZS12+AZS14+AZS16+AZS18 -> 0 | AZT23: 0 | AZU23: 0 | AZV23: 0 | AZW23: 0 | AZX23: 0 | AZY23: 0 | AZZ23: 0 | BAA23: 0 | BAB23: 0 | BAC23: 0 | BAD23: 0 | BAE23: 0 | BAF23: 0 | BAG23: 0 | BAH23: 0 | BAI23: 0 | BAJ23: 0 | BAK23: 0 | BAL23: 0 | BAM23: 0 | BAN23: 0 | BAO23: 0 | BAP23: 0 | BAQ23: 0 | BAR23: 0 | BAS23: 0 | BAT23: 0 | BAU23: 0 | BAV23: 0 | BAW23: 0 | BAX23: 0 | BAY23: 0 | BAZ23: 0 | BBA23: 0 | BBB23: 0 | BBC23: 0 | BBD23: 0 | BBE23: 0 | BBF23: 0 | BBG23: 0 | BBH23: 0 | BBI23: 0 | BBJ23: 0 | BBK23: 0 | BBL23: 0 | BBM23: 0 | BBN23: 0 | BBO23: 0 | BBP23: 0 | BBQ23: 0 | BBR23: 0 | BBS23: 0 | BBT23: 0 | BBU23: 0 | BBV23: 0 | BBW23: 0 | BBX23: 0 | BBY23: 0 | BBZ23: 0 | BCA23: 0 | BCB23: 0 | BCC23: 0 | BCD23: 0 | BCE23: =BCE6+BCE8+BCE10+BCE12+BCE14+BCE16+BCE18 -> 0 | BCF23: 0 | BCG23: 0 | BCH23: 0 | BCI23: 0 | BCJ23: 0 | BCK23: 0 | BCL23: 0 | BCM23: 0 | BCN23: 0 | BCO23: 0 | BCP23: 0 | BCQ23: 0 | BCR23: 0 | BCS23: 0 | BCT23: 0 | BCU23: 0 | BCV23: 0 | BCW23: 0 | BCX23: 0 | BCY23: 0 | BCZ23: 0 | BDA23: 0 | BDB23: 0 | BDC23: 0 | BDD23: 0 | BDE23: 0 | BDF23: 0 | BDG23: 0 | BDH23: 0 | BDI23: 0 | BDJ23: 0 | BDK23: 0 | BDL23: 0 | BDM23: 0 | BDN23: 0 | BDO23: 0 | BDP23: 0 | BDQ23: 0 | BDR23: 0 | BDS23: 0 | BDT23: 0 | BDU23: 0 | BDV23: 0 | BDW23: 0 | BDX23: 0 | BDY23: 0 | BDZ23: 0 | BEA23: 0 | BEB23: 0 | BEC23: 0 | BED23: 0 | BEE23: 0 | BEF23: 0 | BEG23: 0 | BEH23: 0 | BEI23: 0 | BEJ23: 0 | BEK23: 0 | BEL23: 0 | BEM23: 0 | BEN23: 0 | BEO23: 0 | BEP23: 0 | BEQ23: =BEQ6+BEQ8+BEQ10+BEQ12+BEQ14+BEQ16+BEQ18 -> 0 | BER23: 0 | BES23: 0 | BET23: 0 | BEU23: 0 | BEV23: 0 | BEW23: 0 | BEX23: 0 | BEY23: 0 | BEZ23: 0 | BFA23: 0 | BFB23: 0 | BFC23: 0 | BFD23: 0 | BFE23: 0 | BFF23: 0 | BFG23: 0 | BFH23: 0 | BFI23: 0 | BFJ23: 0 | BFK23: 0 | BFL23: 0 | BFM23: 0 | BFN23: 0 | BFO23: 0 | BFP23: 0 | BFQ23: 0 | BFR23: 0 | BFS23: 0 | BFT23: 0 | BFU23: 0 | BFV23: 0 | BFW23: 0 | BFX23: 0 | BFY23: 0 | BFZ23: 0 | BGA23: 0 | BGB23: 0 | BGC23: 0 | BGD23: 0 | BGE23: 0 | BGF23: 0 | BGG23: 0 | BGH23: 0 | BGI23: 0 | BGJ23: 0 | BGK23: 0 | BGL23: 0 | BGM23: 0 | BGN23: 0 | BGO23: 0 | BGP23: 0 | BGQ23: 0 | BGR23: 0 | BGS23: 0 | BGT23: 0 | BGU23: 0 | BGV23: 0 | BGW23: 0 | BGX23: 0 | BGY23: 0 | BGZ23: 0 | BHA23: 0 | BHB23: 0 | BHC23: =BHC6+BHC8+BHC10+BHC12+BHC14+BHC16+BHC18 -> 0 | BHD23: 0 | BHE23: 0 | BHF23: 0 | BHG23: 0 | BHH23: 0 | BHI23: 0 | BHJ23: 0 | BHK23: 0 | BHL23: 0 | BHM23: 0 | BHN23: 0 | BHO23: 0 | BHP23: 0 | BHQ23: 0 | BHR23: 0 | BHS23: 0 | BHT23: 0 | BHU23: 0 | BHV23: 0 | BHW23: 0 | BHX23: 0 | BHY23: 0 | BHZ23: 0 | BIA23: 0 | BIB23: 0 | BIC23: 0 | BID23: 0 | BIE23: 0 | BIF23: 0 | BIG23: 0 | BIH23: 0 | BII23: 0 | BIJ23: 0 | BIK23: 0 | BIL23: 0 | BIM23: 0 | BIN23: 0 | BIO23: 0 | BIP23: 0 | BIQ23: 0 | BIR23: 0 | BIS23: 0 | BIT23: 0 | BIU23: 0 | BIV23: 0 | BIW23: 0 | BIX23: 0 | BIY23: 0 | BIZ23: 0 | BJA23: 0 | BJB23: 0 | BJC23: 0 | BJD23: 0 | BJE23: 0 | BJF23: 0 | BJG23: 0 | BJH23: 0 | BJI23: 0 | BJJ23: 0 | BJK23: 0 | BJL23: 0 | BJM23: 0 | BJN23: 0 | BJO23: =BJO6+BJO8+BJO10+BJO12+BJO14+BJO16+BJO18 -> 0 | BJP23: 0 | BJQ23: 0 | BJR23: 0 | BJS23: 0 | BJT23: 0 | BJU23: 0 | BJV23: 0 | BJW23: 0 | BJX23: 0 | BJY23: 0 | BJZ23: 0 | BKA23: 0 | BKB23: 0 | BKC23: 0 | BKD23: 0 | BKE23: 0 | BKF23: 0 | BKG23: 0 | BKH23: 0 | BKI23: 0 | BKJ23: 0 | BKK23: 0 | BKL23: 0 | BKM23: 0 | BKN23: 0 | BKO23: 0 | BKP23: 0 | BKQ23: 0 | BKR23: 0 | BKS23: 0 | BKT23: 0 | BKU23: 0 | BKV23: 0 | BKW23: 0 | BKX23: 0 | BKY23: 0 | BKZ23: 0 | BLA23: 0 | BLB23: 0 | BLC23: 0 | BLD23: 0 | BLE23: 0 | BLF23: 0 | BLG23: 0 | BLH23: 0 | BLI23: 0 | BLJ23: 0 | BLK23: 0 | BLL23: 0 | BLM23: 0 | BLN23: 0 | BLO23: 0 | BLP23: 0 | BLQ23: 0 | BLR23: 0 | BLS23: 0 | BLT23: 0 | BLU23: 0 | BLV23: 0 | BLW23: 0 | BLX23: 0 | BLY23: 0 | BLZ23: 0 | BMA23: =BMA6+BMA8+BMA10+BMA12+BMA14+BMA16+BMA18 -> 0 | BMB23: 0 | BMC23: 0 | BMD23: 0 | BME23: 0 | BMF23: 0 | BMG23: 0 | BMH23: 0 | BMI23: 0 | BMJ23: 0 | BMK23: 0 | BML23: 0 | BMM23: 0 | BMN23: 0 | BMO23: 0 | BMP23: 0 | BMQ23: 0 | BMR23: 0 | BMS23: 0 | BMT23: 0 | BMU23: 0 | BMV23: 0 | BMW23: 0 | BMX23: 0 | BMY23: 0 | BMZ23: 0 | BNA23: 0 | BNB23: 0 | BNC23: 0 | BND23: 0 | BNE23: 0 | BNF23: 0 | BNG23: 0 | BNH23: 0 | BNI23: 0 | BNJ23: 0 | BNK23: 0 | BNL23: 0 | BNM23: 0 | BNN23: 0 | BNO23: 0 | BNP23: 0 | BNQ23: 0 | BNR23: 0 | BNS23: 0 | BNT23: 0 | BNU23: 0 | BNV23: 0 | BNW23: 0 | BNX23: 0 | BNY23: 0 | BNZ23: 0 | BOA23: 0 | BOB23: 0 | BOC23: 0 | BOD23: 0 | BOE23: 0 | BOF23: 0 | BOG23: 0 | BOH23: 0 | BOI23: 0 | BOJ23: 0 | BOK23: 0 | BOL23: 0 | BOM23: =BOM6+BOM8+BOM10+BOM12+BOM14+BOM16+BOM18 -> 0 | BON23: 0 | BOO23: 0 | BOP23: 0 | BOQ23: 0 | BOR23: 0 | BOS23: 0 | BOT23: 0 | BOU23: 0 | BOV23: 0 | BOW23: 0 | BOX23: 0 | BOY23: 0 | BOZ23: 0 | BPA23: 0 | BPB23: 0 | BPC23: 0 | BPD23: 0 | BPE23: 0 | BPF23: 0 | BPG23: 0 | BPH23: 0 | BPI23: 0 | BPJ23: 0 | BPK23: 0 | BPL23: 0 | BPM23: 0 | BPN23: 0 | BPO23: 0 | BPP23: 0 | BPQ23: 0 | BPR23: 0 | BPS23: 0 | BPT23: 0 | BPU23: 0 | BPV23: 0 | BPW23: 0 | BPX23: 0 | BPY23: 0 | BPZ23: 0 | BQA23: 0 | BQB23: 0 | BQC23: 0 | BQD23: 0 | BQE23: 0 | BQF23: 0 | BQG23: 0 | BQH23: 0 | BQI23: 0 | BQJ23: 0 | BQK23: 0 | BQL23: 0 | BQM23: 0 | BQN23: 0 | BQO23: 0 | BQP23: 0 | BQQ23: 0 | BQR23: 0 | BQS23: 0 | BQT23: 0 | BQU23: 0 | BQV23: 0 | BQW23: 0 | BQX23: 0 | BQY23: =BQY6+BQY8+BQY10+BQY12+BQY14+BQY16+BQY18 -> 0 | BQZ23: 0 | BRA23: 0 | BRB23: 0 | BRC23: 0 | BRD23: 0 | BRE23: 0 | BRF23: 0 | BRG23: 0 | BRH23: 0 | BRI23: 0 | BRJ23: 0 | BRK23: 0 | BRL23: 0 | BRM23: 0 | BRN23: 0 | BRO23: 0 | BRP23: 0 | BRQ23: 0 | BRR23: 0 | BRS23: 0 | BRT23: 0 | BRU23: 0 | BRV23: 0 | BRW23: 0 | BRX23: 0 | BRY23: 0 | BRZ23: 0 | BSA23: 0 | BSB23: 0 | BSC23: 0 | BSD23: 0 | BSE23: 0 | BSF23: 0 | BSG23: 0 | BSH23: 0 | BSI23: 0 | BSJ23: 0 | BSK23: 0 | BSL23: 0 | BSM23: 0 | BSN23: 0 | BSO23: 0 | BSP23: 0 | BSQ23: 0 | BSR23: 0 | BSS23: 0 | BST23: 0 | BSU23: 0 | BSV23: 0 | BSW23: 0 | BSX23: 0 | BSY23: 0 | BSZ23: 0 | BTA23: 0 | BTB23: 0 | BTC23: 0 | BTD23: 0 | BTE23: 0 | BTF23: 0 | BTG23: 0 | BTH23: 0 | BTI23: 0 | BTJ23: 0 | BTK23: =BTK6+BTK8+BTK10+BTK12+BTK14+BTK16+BTK18 -> 0 | BTL23: 0 | BTM23: 0 | BTN23: 0 | BTO23: 0 | BTP23: 0 | BTQ23: 0 | BTR23: 0 | BTS23: 0 | BTT23: 0 | BTU23: 0 | BTV23: 0 | BTW23: 0 | BTX23: 0 | BTY23: 0 | BTZ23: 0 | BUA23: 0 | BUB23: 0 | BUC23: 0 | BUD23: 0 | BUE23: 0 | BUF23: 0 | BUG23: 0 | BUH23: 0 | BUI23: 0 | BUJ23: 0 | BUK23: 0 | BUL23: 0 | BUM23: 0 | BUN23: 0 | BUO23: 0 | BUP23: 0 | BUQ23: 0 | BUR23: 0 | BUS23: 0 | BUT23: 0 | BUU23: 0 | BUV23: 0 | BUW23: 0 | BUX23: 0 | BUY23: 0 | BUZ23: 0 | BVA23: 0 | BVB23: 0 | BVC23: 0 | BVD23: 0 | BVE23: 0 | BVF23: 0 | BVG23: 0 | BVH23: 0 | BVI23: 0 | BVJ23: 0 | BVK23: 0 | BVL23: 0 | BVM23: 0 | BVN23: 0 | BVO23: 0 | BVP23: 0 | BVQ23: 0 | BVR23: 0 | BVS23: 0 | BVT23: 0 | BVU23: 0 | BVV23: 0 | BVW23: =BVW6+BVW8+BVW10+BVW12+BVW14+BVW16+BVW18 -> 0 | BVX23: 0 | BVY23: 0 | BVZ23: 0 | BWA23: 0 | BWB23: 0 | BWC23: 0 | BWD23: 0 | BWE23: 0 | BWF23: 0 | BWG23: 0 | BWH23: 0 | BWI23: 0 | BWJ23: 0 | BWK23: 0 | BWL23: 0 | BWM23: 0 | BWN23: 0 | BWO23: 0 | BWP23: 0 | BWQ23: 0 | BWR23: 0 | BWS23: 0 | BWT23: 0 | BWU23: 0 | BWV23: 0 | BWW23: 0 | BWX23: 0 | BWY23: 0 | BWZ23: 0 | BXA23: 0 | BXB23: 0 | BXC23: 0 | BXD23: 0 | BXE23: 0 | BXF23: 0 | BXG23: 0 | BXH23: 0 | BXI23: 0 | BXJ23: 0 | BXK23: 0 | BXL23: 0 | BXM23: 0 | BXN23: 0 | BXO23: 0 | BXP23: 0 | BXQ23: 0 | BXR23: 0 | BXS23: 0 | BXT23: 0 | BXU23: 0 | BXV23: 0 | BXW23: 0 | BXX23: 0 | BXY23: 0 | BXZ23: 0 | BYA23: 0 | BYB23: 0 | BYC23: 0 | BYD23: 0 | BYE23: 0 | BYF23: 0 | BYG23: 0 | BYH23: 0 | BYI23: =BYI6+BYI8+BYI10+BYI12+BYI14+BYI16+BYI18 -> 0 | BYJ23: 0 | BYK23: 0 | BYL23: 0 | BYM23: 0 | BYN23: 0 | BYO23: 0 | BYP23: 0 | BYQ23: 0 | BYR23: 0 | BYS23: 0 | BYT23: 0 | BYU23: 0 | BYV23: 0 | BYW23: 0 | BYX23: 0 | BYY23: 0 | BYZ23: 0 | BZA23: 0 | BZB23: 0 | BZC23: 0 | BZD23: 0 | BZE23: 0 | BZF23: 0 | BZG23: 0 | BZH23: 0 | BZI23: 0 | BZJ23: 0 | BZK23: 0 | BZL23: 0 | BZM23: 0 | BZN23: 0 | BZO23: 0 | BZP23: 0 | BZQ23: 0 | BZR23: 0 | BZS23: 0 | BZT23: 0 | BZU23: 0 | BZV23: 0 | BZW23: 0 | BZX23: 0 | BZY23: 0 | BZZ23: 0 | CAA23: 0 | CAB23: 0 | CAC23: 0 | CAD23: 0 | CAE23: 0 | CAF23: 0 | CAG23: 0 | CAH23: 0 | CAI23: 0 | CAJ23: 0 | CAK23: 0 | CAL23: 0 | CAM23: 0 | CAN23: 0 | CAO23: 0 | CAP23: 0 | CAQ23: 0 | CAR23: 0 | CAS23: 0 | CAT23: 0 | CAU23: =CAU6+CAU8+CAU10+CAU12+CAU14+CAU16+CAU18 -> 0 | CAV23: 0 | CAW23: 0 | CAX23: 0 | CAY23: 0 | CAZ23: 0 | CBA23: 0 | CBB23: 0 | CBC23: 0 | CBD23: 0 | CBE23: 0 | CBF23: 0 | CBG23: 0 | CBH23: 0 | CBI23: 0 | CBJ23: 0 | CBK23: 0 | CBL23: 0 | CBM23: 0 | CBN23: 0 | CBO23: 0 | CBP23: 0 | CBQ23: 0 | CBR23: 0 | CBS23: 0 | CBT23: 0 | CBU23: 0 | CBV23: 0 | CBW23: 0 | CBX23: 0 | CBY23: 0 | CBZ23: 0 | CCA23: 0 | CCB23: 0 | CCC23: 0 | CCD23: 0 | CCE23: 0 | CCF23: 0 | CCG23: 0 | CCH23: 0 | CCI23: 0 | CCJ23: 0 | CCK23: 0 | CCL23: 0 | CCM23: 0 | CCN23: 0 | CCO23: 0 | CCP23: 0 | CCQ23: 0 | CCR23: 0 | CCS23: 0 | CCT23: 0 | CCU23: 0 | CCV23: 0 | CCW23: 0 | CCX23: 0 | CCY23: 0 | CCZ23: 0 | CDA23: 0 | CDB23: 0 | CDC23: 0 | CDD23: 0 | CDE23: 0 | CDF23: 0 | CDG23: =CDG6+CDG8+CDG10+CDG12+CDG14+CDG16+CDG18 -> 0 | CDH23: 0 | CDI23: 0 | CDJ23: 0 | CDK23: 0 | CDL23: 0 | CDM23: 0 | CDN23: 0 | CDO23: 0 | CDP23: 0 | CDQ23: 0 | CDR23: 0 | CDS23: 0 | CDT23: 0 | CDU23: 0 | CDV23: 0 | CDW23: 0 | CDX23: 0 | CDY23: 0 | CDZ23: 0 | CEA23: 0 | CEB23: 0 | CEC23: 0 | CED23: 0 | CEE23: 0 | CEF23: 0 | CEG23: 0 | CEH23: 0 | CEI23: 0 | CEJ23: 0 | CEK23: 0 | CEL23: 0 | CEM23: 0 | CEN23: 0 | CEO23: 0 | CEP23: 0 | CEQ23: 0 | CER23: 0 | CES23: 0 | CET23: 0 | CEU23: 0 | CEV23: 0 | CEW23: 0 | CEX23: 0 | CEY23: 0 | CEZ23: 0 | CFA23: 0 | CFB23: 0 | CFC23: 0 | CFD23: 0 | CFE23: 0 | CFF23: 0 | CFG23: 0 | CFH23: 0 | CFI23: 0 | CFJ23: 0 | CFK23: 0 | CFL23: 0 | CFM23: 0 | CFN23: 0 | CFO23: 0 | CFP23: 0 | CFQ23: 0 | CFR23: 0 | CFS23: =CFS6+CFS8+CFS10+CFS12+CFS14+CFS16+CFS18 -> 0 | CFT23: 0 | CFU23: 0 | CFV23: 0 | CFW23: 0 | CFX23: 0 | CFY23: 0 | CFZ23: 0 | CGA23: 0 | CGB23: 0 | CGC23: 0 | CGD23: 0 | CGE23: 0 | CGF23: 0 | CGG23: 0 | CGH23: 0 | CGI23: 0 | CGJ23: 0 | CGK23: 0 | CGL23: 0 | CGM23: 0 | CGN23: 0 | CGO23: 0 | CGP23: 0 | CGQ23: 0 | CGR23: 0 | CGS23: 0 | CGT23: 0 | CGU23: 0 | CGV23: 0 | CGW23: 0 | CGX23: 0 | CGY23: 0 | CGZ23: 0 | CHA23: 0 | CHB23: 0 | CHC23: 0 | CHD23: 0 | CHE23: 0 | CHF23: 0 | CHG23: 0 | CHH23: 0 | CHI23: 0 | CHJ23: 0 | CHK23: 0 | CHL23: 0 | CHM23: 0 | CHN23: 0 | CHO23: 0 | CHP23: 0 | CHQ23: 0 | CHR23: 0 | CHS23: 0 | CHT23: 0 | CHU23: 0 | CHV23: 0 | CHW23: 0 | CHX23: 0 | CHY23: 0 | CHZ23: 0 | CIA23: 0 | CIB23: 0 | CIC23: 0 | CID23: 0 | CIE23: =CIE6+CIE8+CIE10+CIE12+CIE14+CIE16+CIE18 -> 0 | CIF23: 0 | CIG23: 0 | CIH23: 0 | CII23: 0 | CIJ23: 0 | CIK23: 0 | CIL23: 0 | CIM23: 0 | CIN23: 0 | CIO23: 0 | CIP23: 0 | CIQ23: 0 | CIR23: 0 | CIS23: 0 | CIT23: 0 | CIU23: 0 | CIV23: 0 | CIW23: 0 | CIX23: 0 | CIY23: 0 | CIZ23: 0 | CJA23: 0 | CJB23: 0 | CJC23: 0 | CJD23: 0 | CJE23: 0 | CJF23: 0 | CJG23: 0 | CJH23: 0 | CJI23: 0 | CJJ23: 0 | CJK23: 0 | CJL23: 0 | CJM23: 0 | CJN23: 0 | CJO23: 0 | CJP23: 0 | CJQ23: 0 | CJR23: 0 | CJS23: 0 | CJT23: 0 | CJU23: 0 | CJV23: 0 | CJW23: 0 | CJX23: 0 | CJY23: 0 | CJZ23: 0 | CKA23: 0 | CKB23: 0 | CKC23: 0 | CKD23: 0 | CKE23: 0 | CKF23: 0 | CKG23: 0 | CKH23: 0 | CKI23: 0 | CKJ23: 0 | CKK23: 0 | CKL23: 0 | CKM23: 0 | CKN23: 0 | CKO23: 0 | CKP23: 0 | CKQ23: =CKQ6+CKQ8+CKQ10+CKQ12+CKQ14+CKQ16+CKQ18 -> 0 | CKR23: 0 | CKS23: 0 | CKT23: 0 | CKU23: 0 | CKV23: 0 | CKW23: 0 | CKX23: 0 | CKY23: 0 | CKZ23: 0 | CLA23: 0 | CLB23: 0 | CLC23: 0 | CLD23: 0 | CLE23: 0 | CLF23: 0 | CLG23: 0 | CLH23: 0 | CLI23: 0 | CLJ23: 0 | CLK23: 0 | CLL23: 0 | CLM23: 0 | CLN23: 0 | CLO23: 0 | CLP23: 0 | CLQ23: 0 | CLR23: 0 | CLS23: 0 | CLT23: 0 | CLU23: 0 | CLV23: 0 | CLW23: 0 | CLX23: 0 | CLY23: 0 | CLZ23: 0 | CMA23: 0 | CMB23: 0 | CMC23: 0 | CMD23: 0 | CME23: 0 | CMF23: 0 | CMG23: 0 | CMH23: 0 | CMI23: 0 | CMJ23: 0 | CMK23: 0 | CML23: 0 | CMM23: 0 | CMN23: 0 | CMO23: 0 | CMP23: 0 | CMQ23: 0 | CMR23: 0 | CMS23: 0 | CMT23: 0 | CMU23: 0 | CMV23: 0 | CMW23: 0 | CMX23: 0 | CMY23: 0 | CMZ23: 0 | CNA23: 0 | CNB23: 0 | CNC23: =CNC6+CNC8+CNC10+CNC12+CNC14+CNC16+CNC18 -> 0 | CND23: 0 | CNE23: 0 | CNF23: 0 | CNG23: 0 | CNH23: 0 | CNI23: 0 | CNJ23: 0 | CNK23: 0 | CNL23: 0 | CNM23: 0 | CNN23: 0 | CNO23: 0 | CNP23: 0 | CNQ23: 0 | CNR23: 0 | CNS23: 0 | CNT23: 0 | CNU23: 0 | CNV23: 0 | CNW23: 0 | CNX23: 0 | CNY23: 0 | CNZ23: 0 | COA23: 0 | COB23: 0 | COC23: 0 | COD23: 0 | COE23: 0 | COF23: 0 | COG23: 0 | COH23: 0 | COI23: 0 | COJ23: 0 | COK23: 0 | COL23: 0 | COM23: 0 | CON23: 0 | COO23: 0 | COP23: 0 | COQ23: 0 | COR23: 0 | COS23: 0 | COT23: 0 | COU23: 0 | COV23: 0 | COW23: 0 | COX23: 0 | COY23: 0 | COZ23: 0 | CPA23: 0 | CPB23: 0 | CPC23: 0 | CPD23: 0 | CPE23: 0 | CPF23: 0 | CPG23: 0 | CPH23: 0 | CPI23: 0 | CPJ23: 0 | CPK23: 0 | CPL23: 0 | CPM23: 0 | CPN23: 0 | CPO23: =CPO6+CPO8+CPO10+CPO12+CPO14+CPO16+CPO18 -> 0 | CPP23: 0 | CPQ23: 0 | CPR23: 0 | CPS23: 0 | CPT23: 0 | CPU23: 0 | CPV23: 0 | CPW23: 0 | CPX23: 0 | CPY23: 0 | CPZ23: 0 | CQA23: 0 | CQB23: 0 | CQC23: 0 | CQD23: 0 | CQE23: 0 | CQF23: 0 | CQG23: 0 | CQH23: 0 | CQI23: 0 | CQJ23: 0 | CQK23: 0 | CQL23: 0 | CQM23: 0 | CQN23: 0 | CQO23: 0 | CQP23: 0 | CQQ23: 0 | CQR23: 0 | CQS23: 0 | CQT23: 0 | CQU23: 0 | CQV23: 0 | CQW23: 0 | CQX23: 0 | CQY23: 0 | CQZ23: 0 | CRA23: 0 | CRB23: 0 | CRC23: 0 | CRD23: 0 | CRE23: 0 | CRF23: 0 | CRG23: 0 | CRH23: 0 | CRI23: 0 | CRJ23: 0 | CRK23: 0 | CRL23: 0 | CRM23: 0 | CRN23: 0 | CRO23: 0 | CRP23: 0 | CRQ23: 0 | CRR23: 0 | CRS23: 0 | CRT23: 0 | CRU23: 0 | CRV23: 0 | CRW23: 0 | CRX23: 0 | CRY23: 0 | CRZ23: 0 | CSA23: =CSA6+CSA8+CSA10+CSA12+CSA14+CSA16+CSA18 -> 0 | CSB23: 0 | CSC23: 0 | CSD23: 0 | CSE23: 0 | CSF23: 0 | CSG23: 0 | CSH23: 0 | CSI23: 0 | CSJ23: 0 | CSK23: 0 | CSL23: 0 | CSM23: 0 | CSN23: 0 | CSO23: 0 | CSP23: 0 | CSQ23: 0 | CSR23: 0 | CSS23: 0 | CST23: 0 | CSU23: 0 | CSV23: 0 | CSW23: 0 | CSX23: 0 | CSY23: 0 | CSZ23: 0 | CTA23: 0 | CTB23: 0 | CTC23: 0 | CTD23: 0 | CTE23: 0 | CTF23: 0 | CTG23: 0 | CTH23: 0 | CTI23: 0 | CTJ23: 0 | CTK23: 0 | CTL23: 0 | CTM23: 0 | CTN23: 0 | CTO23: 0 | CTP23: 0 | CTQ23: 0 | CTR23: 0 | CTS23: 0 | CTT23: 0 | CTU23: 0 | CTV23: 0 | CTW23: 0 | CTX23: 0 | CTY23: 0 | CTZ23: 0 | CUA23: 0 | CUB23: 0 | CUC23: 0 | CUD23: 0 | CUE23: 0 | CUF23: 0 | CUG23: 0 | CUH23: 0 | CUI23: 0 | CUJ23: 0 | CUK23: 0 | CUL23: 0 | CUM23: =CUM6+CUM8+CUM10+CUM12+CUM14+CUM16+CUM18 -> 0 | CUN23: 0 | CUO23: 0 | CUP23: 0 | CUQ23: 0 | CUR23: 0 | CUS23: 0 | CUT23: 0 | CUU23: 0 | CUV23: 0 | CUW23: 0 | CUX23: 0 | CUY23: 0 | CUZ23: 0 | CVA23: 0 | CVB23: 0 | CVC23: 0 | CVD23: 0 | CVE23: 0 | CVF23: 0 | CVG23: 0 | CVH23: 0 | CVI23: 0 | CVJ23: 0 | CVK23: 0 | CVL23: 0 | CVM23: 0 | CVN23: 0 | CVO23: 0 | CVP23: 0 | CVQ23: 0 | CVR23: 0 | CVS23: 0 | CVT23: 0 | CVU23: 0 | CVV23: 0 | CVW23: 0 | CVX23: 0 | CVY23: 0 | CVZ23: 0 | CWA23: 0 | CWB23: 0 | CWC23: 0 | CWD23: 0 | CWE23: 0 | CWF23: 0 | CWG23: 0 | CWH23: 0 | CWI23: 0 | CWJ23: 0 | CWK23: 0 | CWL23: 0 | CWM23: 0 | CWN23: 0 | CWO23: 0 | CWP23: 0 | CWQ23: 0 | CWR23: 0 | CWS23: 0 | CWT23: 0 | CWU23: 0 | CWV23: 0 | CWW23: 0 | CWX23: 0 | CWY23: =CWY6+CWY8+CWY10+CWY12+CWY14+CWY16+CWY18 -> 0 | CWZ23: 0 | CXA23: 0 | CXB23: 0 | CXC23: 0 | CXD23: 0 | CXE23: 0 | CXF23: 0 | CXG23: 0 | CXH23: 0 | CXI23: 0 | CXJ23: 0 | CXK23: 0 | CXL23: 0 | CXM23: 0 | CXN23: 0 | CXO23: 0 | CXP23: 0 | CXQ23: 0 | CXR23: 0 | CXS23: 0 | CXT23: 0 | CXU23: 0 | CXV23: 0 | CXW23: 0 | CXX23: 0 | CXY23: 0 | CXZ23: 0 | CYA23: 0 | CYB23: 0 | CYC23: 0 | CYD23: 0 | CYE23: 0 | CYF23: 0 | CYG23: 0 | CYH23: 0 | CYI23: 0 | CYJ23: 0 | CYK23: 0 | CYL23: 0 | CYM23: 0 | CYN23: 0 | CYO23: 0 | CYP23: 0 | CYQ23: 0 | CYR23: 0 | CYS23: 0 | CYT23: 0 | CYU23: 0 | CYV23: 0 | CYW23: 0 | CYX23: 0 | CYY23: 0 | CYZ23: 0 | CZA23: 0 | CZB23: 0 | CZC23: 0 | CZD23: 0 | CZE23: 0 | CZF23: 0 | CZG23: 0 | CZH23: 0 | CZI23: 0 | CZJ23: 0 | CZK23: =CZK6+CZK8+CZK10+CZK12+CZK14+CZK16+CZK18 -> 0 | CZL23: 0 | CZM23: 0 | CZN23: 0 | CZO23: 0 | CZP23: 0 | CZQ23: 0 | CZR23: 0 | CZS23: 0 | CZT23: 0 | CZU23: 0 | CZV23: 0 | CZW23: 0 | CZX23: 0 | CZY23: 0 | CZZ23: 0 | DAA23: 0 | DAB23: 0 | DAC23: 0 | DAD23: 0 | DAE23: 0 | DAF23: 0 | DAG23: 0 | DAH23: 0 | DAI23: 0 | DAJ23: 0 | DAK23: 0 | DAL23: 0 | DAM23: 0 | DAN23: 0 | DAO23: 0 | DAP23: 0 | DAQ23: 0 | DAR23: 0 | DAS23: 0 | DAT23: 0 | DAU23: 0 | DAV23: 0 | DAW23: 0 | DAX23: 0 | DAY23: 0 | DAZ23: 0 | DBA23: 0 | DBB23: 0 | DBC23: 0 | DBD23: 0 | DBE23: 0 | DBF23: 0 | DBG23: 0 | DBH23: 0 | DBI23: 0 | DBJ23: 0 | DBK23: 0 | DBL23: 0 | DBM23: 0 | DBN23: 0 | DBO23: 0 | DBP23: 0 | DBQ23: 0 | DBR23: 0 | DBS23: 0 | DBT23: 0 | DBU23: 0 | DBV23: 0 | DBW23: =DBW6+DBW8+DBW10+DBW12+DBW14+DBW16+DBW18 -> 0 | DBX23: 0 | DBY23: 0 | DBZ23: 0 | DCA23: 0 | DCB23: 0 | DCC23: 0 | DCD23: 0 | DCE23: 0 | DCF23: 0 | DCG23: 0 | DCH23: 0 | DCI23: 0 | DCJ23: 0 | DCK23: 0 | DCL23: 0 | DCM23: 0 | DCN23: 0 | DCO23: 0 | DCP23: 0 | DCQ23: 0 | DCR23: 0 | DCS23: 0 | DCT23: 0 | DCU23: 0 | DCV23: 0 | DCW23: 0 | DCX23: 0 | DCY23: 0 | DCZ23: 0 | DDA23: 0 | DDB23: 0 | DDC23: 0 | DDD23: 0 | DDE23: 0 | DDF23: 0 | DDG23: 0 | DDH23: 0 | DDI23: 0 | DDJ23: 0 | DDK23: 0 | DDL23: 0 | DDM23: 0 | DDN23: 0 | DDO23: 0 | DDP23: 0 | DDQ23: 0 | DDR23: 0 | DDS23: 0 | DDT23: 0 | DDU23: 0 | DDV23: 0 | DDW23: 0 | DDX23: 0 | DDY23: 0 | DDZ23: 0 | DEA23: 0 | DEB23: 0 | DEC23: 0 | DED23: 0 | DEE23: 0 | DEF23: 0 | DEG23: 0 | DEH23: 0 | DEI23: =DEI6+DEI8+DEI10+DEI12+DEI14+DEI16+DEI18 -> 0 | DEJ23: 0 | DEK23: 0 | DEL23: 0 | DEM23: 0 | DEN23: 0 | DEO23: 0 | DEP23: 0 | DEQ23: 0 | DER23: 0 | DES23: 0 | DET23: 0 | DEU23: 0 | DEV23: 0 | DEW23: 0 | DEX23: 0 | DEY23: 0 | DEZ23: 0 | DFA23: 0 | DFB23: 0 | DFC23: 0 | DFD23: 0 | DFE23: 0 | DFF23: 0 | DFG23: 0 | DFH23: 0 | DFI23: 0 | DFJ23: 0 | DFK23: 0 | DFL23: 0 | DFM23: 0 | DFN23: 0 | DFO23: 0 | DFP23: 0 | DFQ23: 0 | DFR23: 0 | DFS23: 0 | DFT23: 0 | DFU23: 0 | DFV23: 0 | DFW23: 0 | DFX23: 0 | DFY23: 0 | DFZ23: 0 | DGA23: 0 | DGB23: 0 | DGC23: 0 | DGD23: 0 | DGE23: 0 | DGF23: 0 | DGG23: 0 | DGH23: 0 | DGI23: 0 | DGJ23: 0 | DGK23: 0 | DGL23: 0 | DGM23: 0 | DGN23: 0 | DGO23: 0 | DGP23: 0 | DGQ23: 0 | DGR23: 0 | DGS23: 0 | DGT23: 0 | DGU23: =DGU6+DGU8+DGU10+DGU12+DGU14+DGU16+DGU18 -> 0 | DGV23: 0 | DGW23: 0 | DGX23: 0 | DGY23: 0 | DGZ23: 0 | DHA23: 0 | DHB23: 0 | DHC23: 0 | DHD23: 0 | DHE23: 0 | DHF23: 0 | DHG23: 0 | DHH23: 0 | DHI23: 0 | DHJ23: 0 | DHK23: 0 | DHL23: 0 | DHM23: 0 | DHN23: 0 | DHO23: 0 | DHP23: 0 | DHQ23: 0 | DHR23: 0 | DHS23: 0 | DHT23: 0 | DHU23: 0 | DHV23: 0 | DHW23: 0 | DHX23: 0 | DHY23: 0 | DHZ23: 0 | DIA23: 0 | DIB23: 0 | DIC23: 0 | DID23: 0 | DIE23: 0 | DIF23: 0 | DIG23: 0 | DIH23: 0 | DII23: 0 | DIJ23: 0 | DIK23: 0 | DIL23: 0 | DIM23: 0 | DIN23: 0 | DIO23: 0 | DIP23: 0 | DIQ23: 0 | DIR23: 0 | DIS23: 0 | DIT23: 0 | DIU23: 0 | DIV23: 0 | DIW23: 0 | DIX23: 0 | DIY23: 0 | DIZ23: 0 | DJA23: 0 | DJB23: 0 | DJC23: 0 | DJD23: 0 | DJE23: 0 | DJF23: 0 | DJG23: =DJG6+DJG8+DJG10+DJG12+DJG14+DJG16+DJG18 -> 0 | DJH23: 0 | DJI23: 0 | DJJ23: 0 | DJK23: 0 | DJL23: 0 | DJM23: 0 | DJN23: 0 | DJO23: 0 | DJP23: 0 | DJQ23: 0 | DJR23: 0 | DJS23: 0 | DJT23: 0 | DJU23: 0 | DJV23: 0 | DJW23: 0 | DJX23: 0 | DJY23: 0 | DJZ23: 0 | DKA23: 0 | DKB23: 0 | DKC23: 0 | DKD23: 0 | DKE23: 0 | DKF23: 0 | DKG23: 0 | DKH23: 0 | DKI23: 0 | DKJ23: 0 | DKK23: 0 | DKL23: 0 | DKM23: 0 | DKN23: 0 | DKO23: 0 | DKP23: 0 | DKQ23: 0 | DKR23: 0 | DKS23: 0 | DKT23: 0 | DKU23: 0 | DKV23: 0 | DKW23: 0 | DKX23: 0 | DKY23: 0 | DKZ23: 0 | DLA23: 0 | DLB23: 0 | DLC23: 0 | DLD23: 0 | DLE23: 0 | DLF23: 0 | DLG23: 0 | DLH23: 0 | DLI23: 0 | DLJ23: 0 | DLK23: 0 | DLL23: 0 | DLM23: 0 | DLN23: 0 | DLO23: 0 | DLP23: 0 | DLQ23: 0 | DLR23: 0 | DLS23: =DLS6+DLS8+DLS10+DLS12+DLS14+DLS16+DLS18 -> 0 | DLT23: 0 | DLU23: 0 | DLV23: 0 | DLW23: 0 | DLX23: 0 | DLY23: 0 | DLZ23: 0 | DMA23: 0 | DMB23: 0 | DMC23: 0 | DMD23: 0 | DME23: 0 | DMF23: 0 | DMG23: 0 | DMH23: 0 | DMI23: 0 | DMJ23: 0 | DMK23: 0 | DML23: 0 | DMM23: 0 | DMN23: 0 | DMO23: 0 | DMP23: 0 | DMQ23: 0 | DMR23: 0 | DMS23: 0 | DMT23: 0 | DMU23: 0 | DMV23: 0 | DMW23: 0 | DMX23: 0 | DMY23: 0 | DMZ23: 0 | DNA23: 0 | DNB23: 0 | DNC23: 0 | DND23: 0 | DNE23: 0 | DNF23: 0 | DNG23: 0 | DNH23: 0 | DNI23: 0 | DNJ23: 0 | DNK23: 0 | DNL23: 0 | DNM23: 0 | DNN23: 0 | DNO23: 0 | DNP23: 0 | DNQ23: 0 | DNR23: 0 | DNS23: 0 | DNT23: 0 | DNU23: 0 | DNV23: 0 | DNW23: 0 | DNX23: 0 | DNY23: 0 | DNZ23: 0 | DOA23: 0 | DOB23: 0 | DOC23: 0 | DOD23: 0 | DOE23: =DOE6+DOE8+DOE10+DOE12+DOE14+DOE16+DOE18 -> 0 | DOF23: 0 | DOG23: 0 | DOH23: 0 | DOI23: 0 | DOJ23: 0 | DOK23: 0 | DOL23: 0 | DOM23: 0 | DON23: 0 | DOO23: 0 | DOP23: 0 | DOQ23: 0 | DOR23: 0 | DOS23: 0 | DOT23: 0 | DOU23: 0 | DOV23: 0 | DOW23: 0 | DOX23: 0 | DOY23: 0 | DOZ23: 0 | DPA23: 0 | DPB23: 0 | DPC23: 0 | DPD23: 0 | DPE23: 0 | DPF23: 0 | DPG23: 0 | DPH23: 0 | DPI23: 0 | DPJ23: 0 | DPK23: 0 | DPL23: 0 | DPM23: 0 | DPN23: 0 | DPO23: 0 | DPP23: 0 | DPQ23: 0 | DPR23: 0 | DPS23: 0 | DPT23: 0 | DPU23: 0 | DPV23: 0 | DPW23: 0 | DPX23: 0 | DPY23: 0 | DPZ23: 0 | DQA23: 0 | DQB23: 0 | DQC23: 0 | DQD23: 0 | DQE23: 0 | DQF23: 0 | DQG23: 0 | DQH23: 0 | DQI23: 0 | DQJ23: 0 | DQK23: 0 | DQL23: 0 | DQM23: 0 | DQN23: 0 | DQO23: 0 | DQP23: 0 | DQQ23: =DQQ6+DQQ8+DQQ10+DQQ12+DQQ14+DQQ16+DQQ18 -> 0 | DQR23: 0 | DQS23: 0 | DQT23: 0 | DQU23: 0 | DQV23: 0 | DQW23: 0 | DQX23: 0 | DQY23: 0 | DQZ23: 0 | DRA23: 0 | DRB23: 0 | DRC23: 0 | DRD23: 0 | DRE23: 0 | DRF23: 0 | DRG23: 0 | DRH23: 0 | DRI23: 0 | DRJ23: 0 | DRK23: 0 | DRL23: 0 | DRM23: 0 | DRN23: 0 | DRO23: 0 | DRP23: 0 | DRQ23: 0 | DRR23: 0 | DRS23: 0 | DRT23: 0 | DRU23: 0 | DRV23: 0 | DRW23: 0 | DRX23: 0 | DRY23: 0 | DRZ23: 0 | DSA23: 0 | DSB23: 0 | DSC23: 0 | DSD23: 0 | DSE23: 0 | DSF23: 0 | DSG23: 0 | DSH23: 0 | DSI23: 0 | DSJ23: 0 | DSK23: 0 | DSL23: 0 | DSM23: 0 | DSN23: 0 | DSO23: 0 | DSP23: 0 | DSQ23: 0 | DSR23: 0 | DSS23: 0 | DST23: 0 | DSU23: 0 | DSV23: 0 | DSW23: 0 | DSX23: 0 | DSY23: 0 | DSZ23: 0 | DTA23: 0 | DTB23: 0 | DTC23: =DTC6+DTC8+DTC10+DTC12+DTC14+DTC16+DTC18 -> 0 | DTD23: 0 | DTE23: 0 | DTF23: 0 | DTG23: 0 | DTH23: 0 | DTI23: 0 | DTJ23: 0 | DTK23: 0 | DTL23: 0 | DTM23: 0 | DTN23: 0 | DTO23: 0 | DTP23: 0 | DTQ23: 0 | DTR23: 0 | DTS23: 0 | DTT23: 0 | DTU23: 0 | DTV23: 0 | DTW23: 0 | DTX23: 0 | DTY23: 0 | DTZ23: 0 | DUA23: 0 | DUB23: 0 | DUC23: 0 | DUD23: 0 | DUE23: 0 | DUF23: 0 | DUG23: 0 | DUH23: 0 | DUI23: 0 | DUJ23: 0 | DUK23: 0 | DUL23: 0 | DUM23: 0 | DUN23: 0 | DUO23: 0 | DUP23: 0 | DUQ23: 0 | DUR23: 0 | DUS23: 0 | DUT23: 0 | DUU23: 0 | DUV23: 0 | DUW23: 0 | DUX23: 0 | DUY23: 0 | DUZ23: 0 | DVA23: 0 | DVB23: 0 | DVC23: 0 | DVD23: 0 | DVE23: 0 | DVF23: 0 | DVG23: 0 | DVH23: 0 | DVI23: 0 | DVJ23: 0 | DVK23: 0 | DVL23: 0 | DVM23: 0 | DVN23: 0 | DVO23: =DVO6+DVO8+DVO10+DVO12+DVO14+DVO16+DVO18 -> 0 | DVP23: 0 | DVQ23: 0 | DVR23: 0 | DVS23: 0 | DVT23: 0 | DVU23: 0 | DVV23: 0 | DVW23: 0 | DVX23: 0 | DVY23: 0 | DVZ23: 0 | DWA23: 0 | DWB23: 0 | DWC23: 0 | DWD23: 0 | DWE23: 0 | DWF23: 0 | DWG23: 0 | DWH23: 0 | DWI23: 0 | DWJ23: 0 | DWK23: 0 | DWL23: 0 | DWM23: 0 | DWN23: 0 | DWO23: 0 | DWP23: 0 | DWQ23: 0 | DWR23: 0 | DWS23: 0 | DWT23: 0 | DWU23: 0 | DWV23: 0 | DWW23: 0 | DWX23: 0 | DWY23: 0 | DWZ23: 0 | DXA23: 0 | DXB23: 0 | DXC23: 0 | DXD23: 0 | DXE23: 0 | DXF23: 0 | DXG23: 0 | DXH23: 0 | DXI23: 0 | DXJ23: 0 | DXK23: 0 | DXL23: 0 | DXM23: 0 | DXN23: 0 | DXO23: 0 | DXP23: 0 | DXQ23: 0 | DXR23: 0 | DXS23: 0 | DXT23: 0 | DXU23: 0 | DXV23: 0 | DXW23: 0 | DXX23: 0 | DXY23: 0 | DXZ23: 0 | DYA23: =DYA6+DYA8+DYA10+DYA12+DYA14+DYA16+DYA18 -> 0 | DYB23: 0 | DYC23: 0 | DYD23: 0 | DYE23: 0 | DYF23: 0 | DYG23: 0 | DYH23: 0 | DYI23: 0 | DYJ23: 0 | DYK23: 0 | DYL23: 0 | DYM23: 0 | DYN23: 0 | DYO23: 0 | DYP23: 0 | DYQ23: 0 | DYR23: 0 | DYS23: 0 | DYT23: 0 | DYU23: 0 | DYV23: 0 | DYW23: 0 | DYX23: 0 | DYY23: 0 | DYZ23: 0 | DZA23: 0 | DZB23: 0 | DZC23: 0 | DZD23: 0 | DZE23: 0 | DZF23: 0 | DZG23: 0 | DZH23: 0 | DZI23: 0 | DZJ23: 0 | DZK23: 0 | DZL23: 0 | DZM23: 0 | DZN23: 0 | DZO23: 0 | DZP23: 0 | DZQ23: 0 | DZR23: 0 | DZS23: 0 | DZT23: 0 | DZU23: 0 | DZV23: 0 | DZW23: 0 | DZX23: 0 | DZY23: 0 | DZZ23: 0 | EAA23: 0 | EAB23: 0 | EAC23: 0 | EAD23: 0 | EAE23: 0 | EAF23: 0 | EAG23: 0 | EAH23: 0 | EAI23: 0 | EAJ23: 0 | EAK23: 0 | EAL23: 0 | EAM23: =EAM6+EAM8+EAM10+EAM12+EAM14+EAM16+EAM18 -> 0 | EAN23: 0 | EAO23: 0 | EAP23: 0 | EAQ23: 0 | EAR23: 0 | EAS23: 0 | EAT23: 0 | EAU23: 0 | EAV23: 0 | EAW23: 0 | EAX23: 0 | EAY23: 0 | EAZ23: 0 | EBA23: 0 | EBB23: 0 | EBC23: 0 | EBD23: 0 | EBE23: 0 | EBF23: 0 | EBG23: 0 | EBH23: 0 | EBI23: 0 | EBJ23: 0 | EBK23: 0 | EBL23: 0 | EBM23: 0 | EBN23: 0 | EBO23: 0 | EBP23: 0 | EBQ23: 0 | EBR23: 0 | EBS23: 0 | EBT23: 0 | EBU23: 0 | EBV23: 0 | EBW23: 0 | EBX23: 0 | EBY23: 0 | EBZ23: 0 | ECA23: 0 | ECB23: 0 | ECC23: 0 | ECD23: 0 | ECE23: 0 | ECF23: 0 | ECG23: 0 | ECH23: 0 | ECI23: 0 | ECJ23: 0 | ECK23: 0 | ECL23: 0 | ECM23: 0 | ECN23: 0 | ECO23: 0 | ECP23: 0 | ECQ23: 0 | ECR23: 0 | ECS23: 0 | ECT23: 0 | ECU23: 0 | ECV23: 0 | ECW23: 0 | ECX23: 0 | ECY23: =ECY6+ECY8+ECY10+ECY12+ECY14+ECY16+ECY18 -> 0 | ECZ23: 0 | EDA23: 0 | EDB23: 0 | EDC23: 0 | EDD23: 0 | EDE23: 0 | EDF23: 0 | EDG23: 0 | EDH23: 0 | EDI23: 0 | EDJ23: 0 | EDK23: 0 | EDL23: 0 | EDM23: 0 | EDN23: 0 | EDO23: 0 | EDP23: 0 | EDQ23: 0 | EDR23: 0 | EDS23: 0 | EDT23: 0 | EDU23: 0 | EDV23: 0 | EDW23: 0 | EDX23: 0 | EDY23: 0 | EDZ23: 0 | EEA23: 0 | EEB23: 0 | EEC23: 0 | EED23: 0 | EEE23: 0 | EEF23: 0 | EEG23: 0 | EEH23: 0 | EEI23: 0 | EEJ23: 0 | EEK23: 0 | EEL23: 0 | EEM23: 0 | EEN23: 0 | EEO23: 0 | EEP23: 0 | EEQ23: 0 | EER23: 0 | EES23: 0 | EET23: 0 | EEU23: 0 | EEV23: 0 | EEW23: 0 | EEX23: 0 | EEY23: 0 | EEZ23: 0 | EFA23: 0 | EFB23: 0 | EFC23: 0 | EFD23: 0 | EFE23: 0 | EFF23: 0 | EFG23: 0 | EFH23: 0 | EFI23: 0 | EFJ23: 0 | EFK23: =EFK6+EFK8+EFK10+EFK12+EFK14+EFK16+EFK18 -> 0 | EFL23: 0 | EFM23: 0 | EFN23: 0 | EFO23: 0 | EFP23: 0 | EFQ23: 0 | EFR23: 0 | EFS23: 0 | EFT23: 0 | EFU23: 0 | EFV23: 0 | EFW23: 0 | EFX23: 0 | EFY23: 0 | EFZ23: 0 | EGA23: 0 | EGB23: 0 | EGC23: 0 | EGD23: 0 | EGE23: 0 | EGF23: 0 | EGG23: 0 | EGH23: 0 | EGI23: 0 | EGJ23: 0 | EGK23: 0 | EGL23: 0 | EGM23: 0 | EGN23: 0 | EGO23: 0 | EGP23: 0 | EGQ23: 0 | EGR23: 0 | EGS23: 0 | EGT23: 0 | EGU23: 0 | EGV23: 0 | EGW23: 0 | EGX23: 0 | EGY23: 0 | EGZ23: 0 | EHA23: 0 | EHB23: 0 | EHC23: 0 | EHD23: 0 | EHE23: 0 | EHF23: 0 | EHG23: 0 | EHH23: 0 | EHI23: 0 | EHJ23: 0 | EHK23: 0 | EHL23: 0 | EHM23: 0 | EHN23: 0 | EHO23: 0 | EHP23: 0 | EHQ23: 0 | EHR23: 0 | EHS23: 0 | EHT23: 0 | EHU23: 0 | EHV23: 0 | EHW23: =EHW6+EHW8+EHW10+EHW12+EHW14+EHW16+EHW18 -> 0 | EHX23: 0 | EHY23: 0 | EHZ23: 0 | EIA23: 0 | EIB23: 0 | EIC23: 0 | EID23: 0 | EIE23: 0 | EIF23: 0 | EIG23: 0 | EIH23: 0 | EII23: 0 | EIJ23: 0 | EIK23: 0 | EIL23: 0 | EIM23: 0 | EIN23: 0 | EIO23: 0 | EIP23: 0 | EIQ23: 0 | EIR23: 0 | EIS23: 0 | EIT23: 0 | EIU23: 0 | EIV23: 0 | EIW23: 0 | EIX23: 0 | EIY23: 0 | EIZ23: 0 | EJA23: 0 | EJB23: 0 | EJC23: 0 | EJD23: 0 | EJE23: 0 | EJF23: 0 | EJG23: 0 | EJH23: 0 | EJI23: 0 | EJJ23: 0 | EJK23: 0 | EJL23: 0 | EJM23: 0 | EJN23: 0 | EJO23: 0 | EJP23: 0 | EJQ23: 0 | EJR23: 0 | EJS23: 0 | EJT23: 0 | EJU23: 0 | EJV23: 0 | EJW23: 0 | EJX23: 0 | EJY23: 0 | EJZ23: 0 | EKA23: 0 | EKB23: 0 | EKC23: 0 | EKD23: 0 | EKE23: 0 | EKF23: 0 | EKG23: 0 | EKH23: 0 | EKI23: =EKI6+EKI8+EKI10+EKI12+EKI14+EKI16+EKI18 -> 0 | EKJ23: 0 | EKK23: 0 | EKL23: 0 | EKM23: 0 | EKN23: 0 | EKO23: 0 | EKP23: 0 | EKQ23: 0 | EKR23: 0 | EKS23: 0 | EKT23: 0 | EKU23: 0 | EKV23: 0 | EKW23: 0 | EKX23: 0 | EKY23: 0 | EKZ23: 0 | ELA23: 0 | ELB23: 0 | ELC23: 0 | ELD23: 0 | ELE23: 0 | ELF23: 0 | ELG23: 0 | ELH23: 0 | ELI23: 0 | ELJ23: 0 | ELK23: 0 | ELL23: 0 | ELM23: 0 | ELN23: 0 | ELO23: 0 | ELP23: 0 | ELQ23: 0 | ELR23: 0 | ELS23: 0 | ELT23: 0 | ELU23: 0 | ELV23: 0 | ELW23: 0 | ELX23: 0 | ELY23: 0 | ELZ23: 0 | EMA23: 0 | EMB23: 0 | EMC23: 0 | EMD23: 0 | EME23: 0 | EMF23: 0 | EMG23: 0 | EMH23: 0 | EMI23: 0 | EMJ23: 0 | EMK23: 0 | EML23: 0 | EMM23: 0 | EMN23: 0 | EMO23: 0 | EMP23: 0 | EMQ23: 0 | EMR23: 0 | EMS23: 0 | EMT23: 0 | EMU23: =EMU6+EMU8+EMU10+EMU12+EMU14+EMU16+EMU18 -> 0 | EMV23: 0 | EMW23: 0 | EMX23: 0 | EMY23: 0 | EMZ23: 0 | ENA23: 0 | ENB23: 0 | ENC23: 0 | END23: 0 | ENE23: 0 | ENF23: 0 | ENG23: 0 | ENH23: 0 | ENI23: 0 | ENJ23: 0 | ENK23: 0 | ENL23: 0 | ENM23: 0 | ENN23: 0 | ENO23: 0 | ENP23: 0 | ENQ23: 0 | ENR23: 0 | ENS23: 0 | ENT23: 0 | ENU23: 0 | ENV23: 0 | ENW23: 0 | ENX23: 0 | ENY23: 0 | ENZ23: 0 | EOA23: 0 | EOB23: 0 | EOC23: 0 | EOD23: 0 | EOE23: 0 | EOF23: 0 | EOG23: 0 | EOH23: 0 | EOI23: 0 | EOJ23: 0 | EOK23: 0 | EOL23: 0 | EOM23: 0 | EON23: 0 | EOO23: 0 | EOP23: 0 | EOQ23: 0 | EOR23: 0 | EOS23: 0 | EOT23: 0 | EOU23: 0 | EOV23: 0 | EOW23: 0 | EOX23: 0 | EOY23: 0 | EOZ23: 0 | EPA23: 0 | EPB23: 0 | EPC23: 0 | EPD23: 0 | EPE23: 0 | EPF23: 0 | EPG23: =EPG6+EPG8+EPG10+EPG12+EPG14+EPG16+EPG18 -> 0 | EPH23: 0 | EPI23: 0 | EPJ23: 0 | EPK23: 0 | EPL23: 0 | EPM23: 0 | EPN23: 0 | EPO23: 0 | EPP23: 0 | EPQ23: 0 | EPR23: 0 | EPS23: 0 | EPT23: 0 | EPU23: 0 | EPV23: 0 | EPW23: 0 | EPX23: 0 | EPY23: 0 | EPZ23: 0 | EQA23: 0 | EQB23: 0 | EQC23: 0 | EQD23: 0 | EQE23: 0 | EQF23: 0 | EQG23: 0 | EQH23: 0 | EQI23: 0 | EQJ23: 0 | EQK23: 0 | EQL23: 0 | EQM23: 0 | EQN23: 0 | EQO23: 0 | EQP23: 0 | EQQ23: 0 | EQR23: 0 | EQS23: 0 | EQT23: 0 | EQU23: 0 | EQV23: 0 | EQW23: 0 | EQX23: 0 | EQY23: 0 | EQZ23: 0 | ERA23: 0 | ERB23: 0 | ERC23: 0 | ERD23: 0 | ERE23: 0 | ERF23: 0 | ERG23: 0 | ERH23: 0 | ERI23: 0 | ERJ23: 0 | ERK23: 0 | ERL23: 0 | ERM23: 0 | ERN23: 0 | ERO23: 0 | ERP23: 0 | ERQ23: 0 | ERR23: 0 | ERS23: =ERS6+ERS8+ERS10+ERS12+ERS14+ERS16+ERS18 -> 0 | ERT23: 0 | ERU23: 0 | ERV23: 0 | ERW23: 0 | ERX23: 0 | ERY23: 0 | ERZ23: 0 | ESA23: 0 | ESB23: 0 | ESC23: 0 | ESD23: 0 | ESE23: 0 | ESF23: 0 | ESG23: 0 | ESH23: 0 | ESI23: 0 | ESJ23: 0 | ESK23: 0 | ESL23: 0 | ESM23: 0 | ESN23: 0 | ESO23: 0 | ESP23: 0 | ESQ23: 0 | ESR23: 0 | ESS23: 0 | EST23: 0 | ESU23: 0 | ESV23: 0 | ESW23: 0 | ESX23: 0 | ESY23: 0 | ESZ23: 0 | ETA23: 0 | ETB23: 0 | ETC23: 0 | ETD23: 0 | ETE23: 0 | ETF23: 0 | ETG23: 0 | ETH23: 0 | ETI23: 0 | ETJ23: 0 | ETK23: 0 | ETL23: 0 | ETM23: 0 | ETN23: 0 | ETO23: 0 | ETP23: 0 | ETQ23: 0 | ETR23: 0 | ETS23: 0 | ETT23: 0 | ETU23: 0 | ETV23: 0 | ETW23: 0 | ETX23: 0 | ETY23: 0 | ETZ23: 0 | EUA23: 0 | EUB23: 0 | EUC23: 0 | EUD23: 0 | EUE23: =EUE6+EUE8+EUE10+EUE12+EUE14+EUE16+EUE18 -> 0 | EUF23: 0 | EUG23: 0 | EUH23: 0 | EUI23: 0 | EUJ23: 0 | EUK23: 0 | EUL23: 0 | EUM23: 0 | EUN23: 0 | EUO23: 0 | EUP23: 0 | EUQ23: 0 | EUR23: 0 | EUS23: 0 | EUT23: 0 | EUU23: 0 | EUV23: 0 | EUW23: 0 | EUX23: 0 | EUY23: 0 | EUZ23: 0 | EVA23: 0 | EVB23: 0 | EVC23: 0 | EVD23: 0 | EVE23: 0 | EVF23: 0 | EVG23: 0 | EVH23: 0 | EVI23: 0 | EVJ23: 0 | EVK23: 0 | EVL23: 0 | EVM23: 0 | EVN23: 0 | EVO23: 0 | EVP23: 0 | EVQ23: 0 | EVR23: 0 | EVS23: 0 | EVT23: 0 | EVU23: 0 | EVV23: 0 | EVW23: 0 | EVX23: 0 | EVY23: 0 | EVZ23: 0 | EWA23: 0 | EWB23: 0 | EWC23: 0 | EWD23: 0 | EWE23: 0 | EWF23: 0 | EWG23: 0 | EWH23: 0 | EWI23: 0 | EWJ23: 0 | EWK23: 0 | EWL23: 0 | EWM23: 0 | EWN23: 0 | EWO23: 0 | EWP23: 0 | EWQ23: =EWQ6+EWQ8+EWQ10+EWQ12+EWQ14+EWQ16+EWQ18 -> 0 | EWR23: 0 | EWS23: 0 | EWT23: 0 | EWU23: 0 | EWV23: 0 | EWW23: 0 | EWX23: 0 | EWY23: 0 | EWZ23: 0 | EXA23: 0 | EXB23: 0 | EXC23: 0 | EXD23: 0 | EXE23: 0 | EXF23: 0 | EXG23: 0 | EXH23: 0 | EXI23: 0 | EXJ23: 0 | EXK23: 0 | EXL23: 0 | EXM23: 0 | EXN23: 0 | EXO23: 0 | EXP23: 0 | EXQ23: 0 | EXR23: 0 | EXS23: 0 | EXT23: 0 | EXU23: 0 | EXV23: 0 | EXW23: 0 | EXX23: 0 | EXY23: 0 | EXZ23: 0 | EYA23: 0 | EYB23: 0 | EYC23: 0 | EYD23: 0 | EYE23: 0 | EYF23: 0 | EYG23: 0 | EYH23: 0 | EYI23: 0 | EYJ23: 0 | EYK23: 0 | EYL23: 0 | EYM23: 0 | EYN23: 0 | EYO23: 0 | EYP23: 0 | EYQ23: 0 | EYR23: 0 | EYS23: 0 | EYT23: 0 | EYU23: 0 | EYV23: 0 | EYW23: 0 | EYX23: 0 | EYY23: 0 | EYZ23: 0 | EZA23: 0 | EZB23: 0 | EZC23: =EZC6+EZC8+EZC10+EZC12+EZC14+EZC16+EZC18 -> 0 | EZD23: 0 | EZE23: 0 | EZF23: 0 | EZG23: 0 | EZH23: 0 | EZI23: 0 | EZJ23: 0 | EZK23: 0 | EZL23: 0 | EZM23: 0 | EZN23: 0 | EZO23: 0 | EZP23: 0 | EZQ23: 0 | EZR23: 0 | EZS23: 0 | EZT23: 0 | EZU23: 0 | EZV23: 0 | EZW23: 0 | EZX23: 0 | EZY23: 0 | EZZ23: 0 | FAA23: 0 | FAB23: 0 | FAC23: 0 | FAD23: 0 | FAE23: 0 | FAF23: 0 | FAG23: 0 | FAH23: 0 | FAI23: 0 | FAJ23: 0 | FAK23: 0 | FAL23: 0 | FAM23: 0 | FAN23: 0 | FAO23: 0 | FAP23: 0 | FAQ23: 0 | FAR23: 0 | FAS23: 0 | FAT23: 0 | FAU23: 0 | FAV23: 0 | FAW23: 0 | FAX23: 0 | FAY23: 0 | FAZ23: 0 | FBA23: 0 | FBB23: 0 | FBC23: 0 | FBD23: 0 | FBE23: 0 | FBF23: 0 | FBG23: 0 | FBH23: 0 | FBI23: 0 | FBJ23: 0 | FBK23: 0 | FBL23: 0 | FBM23: 0 | FBN23: 0 | FBO23: =FBO6+FBO8+FBO10+FBO12+FBO14+FBO16+FBO18 -> 0 | FBP23: 0 | FBQ23: 0 | FBR23: 0 | FBS23: 0 | FBT23: 0 | FBU23: 0 | FBV23: 0 | FBW23: 0 | FBX23: 0 | FBY23: 0 | FBZ23: 0 | FCA23: 0 | FCB23: 0 | FCC23: 0 | FCD23: 0 | FCE23: 0 | FCF23: 0 | FCG23: 0 | FCH23: 0 | FCI23: 0 | FCJ23: 0 | FCK23: 0 | FCL23: 0 | FCM23: 0 | FCN23: 0 | FCO23: 0 | FCP23: 0 | FCQ23: 0 | FCR23: 0 | FCS23: 0 | FCT23: 0 | FCU23: 0 | FCV23: 0 | FCW23: 0 | FCX23: 0 | FCY23: 0 | FCZ23: 0 | FDA23: 0 | FDB23: 0 | FDC23: 0 | FDD23: 0 | FDE23: 0 | FDF23: 0 | FDG23: 0 | FDH23: 0 | FDI23: 0 | FDJ23: 0 | FDK23: 0 | FDL23: 0 | FDM23: 0 | FDN23: 0 | FDO23: 0 | FDP23: 0 | FDQ23: 0 | FDR23: 0 | FDS23: 0 | FDT23: 0 | FDU23: 0 | FDV23: 0 | FDW23: 0 | FDX23: 0 | FDY23: 0 | FDZ23: 0 | FEA23: =FEA6+FEA8+FEA10+FEA12+FEA14+FEA16+FEA18 -> 0 | FEB23: 0 | FEC23: 0 | FED23: 0 | FEE23: 0 | FEF23: 0 | FEG23: 0 | FEH23: 0 | FEI23: 0 | FEJ23: 0 | FEK23: 0 | FEL23: 0 | FEM23: 0 | FEN23: 0 | FEO23: 0 | FEP23: 0 | FEQ23: 0 | FER23: 0 | FES23: 0 | FET23: 0 | FEU23: 0 | FEV23: 0 | FEW23: 0 | FEX23: 0 | FEY23: 0 | FEZ23: 0 | FFA23: 0 | FFB23: 0 | FFC23: 0 | FFD23: 0 | FFE23: 0 | FFF23: 0 | FFG23: 0 | FFH23: 0 | FFI23: 0 | FFJ23: 0 | FFK23: 0 | FFL23: 0 | FFM23: 0 | FFN23: 0 | FFO23: 0 | FFP23: 0 | FFQ23: 0 | FFR23: 0 | FFS23: 0 | FFT23: 0 | FFU23: 0 | FFV23: 0 | FFW23: 0 | FFX23: 0 | FFY23: 0 | FFZ23: 0 | FGA23: 0 | FGB23: 0 | FGC23: 0 | FGD23: 0 | FGE23: 0 | FGF23: 0 | FGG23: 0 | FGH23: 0 | FGI23: 0 | FGJ23: 0 | FGK23: 0 | FGL23: 0 | FGM23: =FGM6+FGM8+FGM10+FGM12+FGM14+FGM16+FGM18 -> 0 | FGN23: 0 | FGO23: 0 | FGP23: 0 | FGQ23: 0 | FGR23: 0 | FGS23: 0 | FGT23: 0 | FGU23: 0 | FGV23: 0 | FGW23: 0 | FGX23: 0 | FGY23: 0 | FGZ23: 0 | FHA23: 0 | FHB23: 0 | FHC23: 0 | FHD23: 0 | FHE23: 0 | FHF23: 0 | FHG23: 0 | FHH23: 0 | FHI23: 0 | FHJ23: 0 | FHK23: 0 | FHL23: 0 | FHM23: 0 | FHN23: 0 | FHO23: 0 | FHP23: 0 | FHQ23: 0 | FHR23: 0 | FHS23: 0 | FHT23: 0 | FHU23: 0 | FHV23: 0 | FHW23: 0 | FHX23: 0 | FHY23: 0 | FHZ23: 0 | FIA23: 0 | FIB23: 0 | FIC23: 0 | FID23: 0 | FIE23: 0 | FIF23: 0 | FIG23: 0 | FIH23: 0 | FII23: 0 | FIJ23: 0 | FIK23: 0 | FIL23: 0 | FIM23: 0 | FIN23: 0 | FIO23: 0 | FIP23: 0 | FIQ23: 0 | FIR23: 0 | FIS23: 0 | FIT23: 0 | FIU23: 0 | FIV23: 0 | FIW23: 0 | FIX23: 0 | FIY23: =FIY6+FIY8+FIY10+FIY12+FIY14+FIY16+FIY18 -> 0 | FIZ23: 0 | FJA23: 0 | FJB23: 0 | FJC23: 0 | FJD23: 0 | FJE23: 0 | FJF23: 0 | FJG23: 0 | FJH23: 0 | FJI23: 0 | FJJ23: 0 | FJK23: 0 | FJL23: 0 | FJM23: 0 | FJN23: 0 | FJO23: 0 | FJP23: 0 | FJQ23: 0 | FJR23: 0 | FJS23: 0 | FJT23: 0 | FJU23: 0 | FJV23: 0 | FJW23: 0 | FJX23: 0 | FJY23: 0 | FJZ23: 0 | FKA23: 0 | FKB23: 0 | FKC23: 0 | FKD23: 0 | FKE23: 0 | FKF23: 0 | FKG23: 0 | FKH23: 0 | FKI23: 0 | FKJ23: 0 | FKK23: 0 | FKL23: 0 | FKM23: 0 | FKN23: 0 | FKO23: 0 | FKP23: 0 | FKQ23: 0 | FKR23: 0 | FKS23: 0 | FKT23: 0 | FKU23: 0 | FKV23: 0 | FKW23: 0 | FKX23: 0 | FKY23: 0 | FKZ23: 0 | FLA23: 0 | FLB23: 0 | FLC23: 0 | FLD23: 0 | FLE23: 0 | FLF23: 0 | FLG23: 0 | FLH23: 0 | FLI23: 0 | FLJ23: 0 | FLK23: =FLK6+FLK8+FLK10+FLK12+FLK14+FLK16+FLK18 -> 0 | FLL23: 0 | FLM23: 0 | FLN23: 0 | FLO23: 0 | FLP23: 0 | FLQ23: 0 | FLR23: 0 | FLS23: 0 | FLT23: 0 | FLU23: 0 | FLV23: 0 | FLW23: 0 | FLX23: 0 | FLY23: 0 | FLZ23: 0 | FMA23: 0 | FMB23: 0 | FMC23: 0 | FMD23: 0 | FME23: 0 | FMF23: 0 | FMG23: 0 | FMH23: 0 | FMI23: 0 | FMJ23: 0 | FMK23: 0 | FML23: 0 | FMM23: 0 | FMN23: 0 | FMO23: 0 | FMP23: 0 | FMQ23: 0 | FMR23: 0 | FMS23: 0 | FMT23: 0 | FMU23: 0 | FMV23: 0 | FMW23: 0 | FMX23: 0 | FMY23: 0 | FMZ23: 0 | FNA23: 0 | FNB23: 0 | FNC23: 0 | FND23: 0 | FNE23: 0 | FNF23: 0 | FNG23: 0 | FNH23: 0 | FNI23: 0 | FNJ23: 0 | FNK23: 0 | FNL23: 0 | FNM23: 0 | FNN23: 0 | FNO23: 0 | FNP23: 0 | FNQ23: 0 | FNR23: 0 | FNS23: 0 | FNT23: 0 | FNU23: 0 | FNV23: 0 | FNW23: =FNW6+FNW8+FNW10+FNW12+FNW14+FNW16+FNW18 -> 0 | FNX23: 0 | FNY23: 0 | FNZ23: 0 | FOA23: 0 | FOB23: 0 | FOC23: 0 | FOD23: 0 | FOE23: 0 | FOF23: 0 | FOG23: 0 | FOH23: 0 | FOI23: 0 | FOJ23: 0 | FOK23: 0 | FOL23: 0 | FOM23: 0 | FON23: 0 | FOO23: 0 | FOP23: 0 | FOQ23: 0 | FOR23: 0 | FOS23: 0 | FOT23: 0 | FOU23: 0 | FOV23: 0 | FOW23: 0 | FOX23: 0 | FOY23: 0 | FOZ23: 0 | FPA23: 0 | FPB23: 0 | FPC23: 0 | FPD23: 0 | FPE23: 0 | FPF23: 0 | FPG23: 0 | FPH23: 0 | FPI23: 0 | FPJ23: 0 | FPK23: 0 | FPL23: 0 | FPM23: 0 | FPN23: 0 | FPO23: 0 | FPP23: 0 | FPQ23: 0 | FPR23: 0 | FPS23: 0 | FPT23: 0 | FPU23: 0 | FPV23: 0 | FPW23: 0 | FPX23: 0 | FPY23: 0 | FPZ23: 0 | FQA23: 0 | FQB23: 0 | FQC23: 0 | FQD23: 0 | FQE23: 0 | FQF23: 0 | FQG23: 0 | FQH23: 0 | FQI23: =FQI6+FQI8+FQI10+FQI12+FQI14+FQI16+FQI18 -> 0 | FQJ23: 0 | FQK23: 0 | FQL23: 0 | FQM23: 0 | FQN23: 0 | FQO23: 0 | FQP23: 0 | FQQ23: 0 | FQR23: 0 | FQS23: 0 | FQT23: 0 | FQU23: 0 | FQV23: 0 | FQW23: 0 | FQX23: 0 | FQY23: 0 | FQZ23: 0 | FRA23: 0 | FRB23: 0 | FRC23: 0 | FRD23: 0 | FRE23: 0 | FRF23: 0 | FRG23: 0 | FRH23: 0 | FRI23: 0 | FRJ23: 0 | FRK23: 0 | FRL23: 0 | FRM23: 0 | FRN23: 0 | FRO23: 0 | FRP23: 0 | FRQ23: 0 | FRR23: 0 | FRS23: 0 | FRT23: 0 | FRU23: 0 | FRV23: 0 | FRW23: 0 | FRX23: 0 | FRY23: 0 | FRZ23: 0 | FSA23: 0 | FSB23: 0 | FSC23: 0 | FSD23: 0 | FSE23: 0 | FSF23: 0 | FSG23: 0 | FSH23: 0 | FSI23: 0 | FSJ23: 0 | FSK23: 0 | FSL23: 0 | FSM23: 0 | FSN23: 0 | FSO23: 0 | FSP23: 0 | FSQ23: 0 | FSR23: 0 | FSS23: 0 | FST23: 0 | FSU23: =FSU6+FSU8+FSU10+FSU12+FSU14+FSU16+FSU18 -> 0 | FSV23: 0 | FSW23: 0 | FSX23: 0 | FSY23: 0 | FSZ23: 0 | FTA23: 0 | FTB23: 0 | FTC23: 0 | FTD23: 0 | FTE23: 0 | FTF23: 0 | FTG23: 0 | FTH23: 0 | FTI23: 0 | FTJ23: 0 | FTK23: 0 | FTL23: 0 | FTM23: 0 | FTN23: 0 | FTO23: 0 | FTP23: 0 | FTQ23: 0 | FTR23: 0 | FTS23: 0 | FTT23: 0 | FTU23: 0 | FTV23: 0 | FTW23: 0 | FTX23: 0 | FTY23: 0 | FTZ23: 0 | FUA23: 0 | FUB23: 0 | FUC23: 0 | FUD23: 0 | FUE23: 0 | FUF23: 0 | FUG23: 0 | FUH23: 0 | FUI23: 0 | FUJ23: 0 | FUK23: 0 | FUL23: 0 | FUM23: 0 | FUN23: 0 | FUO23: 0 | FUP23: 0 | FUQ23: 0 | FUR23: 0 | FUS23: 0 | FUT23: 0 | FUU23: 0 | FUV23: 0 | FUW23: 0 | FUX23: 0 | FUY23: 0 | FUZ23: 0 | FVA23: 0 | FVB23: 0 | FVC23: 0 | FVD23: 0 | FVE23: 0 | FVF23: 0 | FVG23: =FVG6+FVG8+FVG10+FVG12+FVG14+FVG16+FVG18 -> 0 | FVH23: 0 | FVI23: 0 | FVJ23: 0 | FVK23: 0 | FVL23: 0 | FVM23: 0 | FVN23: 0 | FVO23: 0 | FVP23: 0 | FVQ23: 0 | FVR23: 0 | FVS23: 0 | FVT23: 0 | FVU23: 0 | FVV23: 0 | FVW23: 0 | FVX23: 0 | FVY23: 0 | FVZ23: 0 | FWA23: 0 | FWB23: 0 | FWC23: 0 | FWD23: 0 | FWE23: 0 | FWF23: 0 | FWG23: 0 | FWH23: 0 | FWI23: 0 | FWJ23: 0 | FWK23: 0 | FWL23: 0 | FWM23: 0 | FWN23: 0 | FWO23: 0 | FWP23: 0 | FWQ23: 0 | FWR23: 0 | FWS23: 0 | FWT23: 0 | FWU23: 0 | FWV23: 0 | FWW23: 0 | FWX23: 0 | FWY23: 0 | FWZ23: 0 | FXA23: 0 | FXB23: 0 | FXC23: 0 | FXD23: 0 | FXE23: 0 | FXF23: 0 | FXG23: 0 | FXH23: 0 | FXI23: 0 | FXJ23: 0 | FXK23: 0 | FXL23: 0 | FXM23: 0 | FXN23: 0 | FXO23: 0 | FXP23: 0 | FXQ23: 0 | FXR23: 0 | FXS23: =FXS6+FXS8+FXS10+FXS12+FXS14+FXS16+FXS18 -> 0 | FXT23: 0 | FXU23: 0 | FXV23: 0 | FXW23: 0 | FXX23: 0 | FXY23: 0 | FXZ23: 0 | FYA23: 0 | FYB23: 0 | FYC23: 0 | FYD23: 0 | FYE23: 0 | FYF23: 0 | FYG23: 0 | FYH23: 0 | FYI23: 0 | FYJ23: 0 | FYK23: 0 | FYL23: 0 | FYM23: 0 | FYN23: 0 | FYO23: 0 | FYP23: 0 | FYQ23: 0 | FYR23: 0 | FYS23: 0 | FYT23: 0 | FYU23: 0 | FYV23: 0 | FYW23: 0 | FYX23: 0 | FYY23: 0 | FYZ23: 0 | FZA23: 0 | FZB23: 0 | FZC23: 0 | FZD23: 0 | FZE23: 0 | FZF23: 0 | FZG23: 0 | FZH23: 0 | FZI23: 0 | FZJ23: 0 | FZK23: 0 | FZL23: 0 | FZM23: 0 | FZN23: 0 | FZO23: 0 | FZP23: 0 | FZQ23: 0 | FZR23: 0 | FZS23: 0 | FZT23: 0 | FZU23: 0 | FZV23: 0 | FZW23: 0 | FZX23: 0 | FZY23: 0 | FZZ23: 0 | GAA23: 0 | GAB23: 0 | GAC23: 0 | GAD23: 0 | GAE23: =GAE6+GAE8+GAE10+GAE12+GAE14+GAE16+GAE18 -> 0 | GAF23: 0 | GAG23: 0 | GAH23: 0 | GAI23: 0 | GAJ23: 0 | GAK23: 0 | GAL23: 0 | GAM23: 0 | GAN23: 0 | GAO23: 0 | GAP23: 0 | GAQ23: 0 | GAR23: 0 | GAS23: 0 | GAT23: 0 | GAU23: 0 | GAV23: 0 | GAW23: 0 | GAX23: 0 | GAY23: 0 | GAZ23: 0 | GBA23: 0 | GBB23: 0 | GBC23: 0 | GBD23: 0 | GBE23: 0 | GBF23: 0 | GBG23: 0 | GBH23: 0 | GBI23: 0 | GBJ23: 0 | GBK23: 0 | GBL23: 0 | GBM23: 0 | GBN23: 0 | GBO23: 0 | GBP23: 0 | GBQ23: 0 | GBR23: 0 | GBS23: 0 | GBT23: 0 | GBU23: 0 | GBV23: 0 | GBW23: 0 | GBX23: 0 | GBY23: 0 | GBZ23: 0 | GCA23: 0 | GCB23: 0 | GCC23: 0 | GCD23: 0 | GCE23: 0 | GCF23: 0 | GCG23: 0 | GCH23: 0 | GCI23: 0 | GCJ23: 0 | GCK23: 0 | GCL23: 0 | GCM23: 0 | GCN23: 0 | GCO23: 0 | GCP23: 0 | GCQ23: =GCQ6+GCQ8+GCQ10+GCQ12+GCQ14+GCQ16+GCQ18 -> 0 | GCR23: 0 | GCS23: 0 | GCT23: 0 | GCU23: 0 | GCV23: 0 | GCW23: 0 | GCX23: 0 | GCY23: 0 | GCZ23: 0 | GDA23: 0 | GDB23: 0 | GDC23: 0 | GDD23: 0 | GDE23: 0 | GDF23: 0 | GDG23: 0 | GDH23: 0 | GDI23: 0 | GDJ23: 0 | GDK23: 0 | GDL23: 0 | GDM23: 0 | GDN23: 0 | GDO23: 0 | GDP23: 0 | GDQ23: 0 | GDR23: 0 | GDS23: 0 | GDT23: 0 | GDU23: 0 | GDV23: 0 | GDW23: 0 | GDX23: 0 | GDY23: 0 | GDZ23: 0 | GEA23: 0 | GEB23: 0 | GEC23: 0 | GED23: 0 | GEE23: 0 | GEF23: 0 | GEG23: 0 | GEH23: 0 | GEI23: 0 | GEJ23: 0 | GEK23: 0 | GEL23: 0 | GEM23: 0 | GEN23: 0 | GEO23: 0 | GEP23: 0 | GEQ23: 0 | GER23: 0 | GES23: 0 | GET23: 0 | GEU23: 0 | GEV23: 0 | GEW23: 0 | GEX23: 0 | GEY23: 0 | GEZ23: 0 | GFA23: 0 | GFB23: 0 | GFC23: =GFC6+GFC8+GFC10+GFC12+GFC14+GFC16+GFC18 -> 0 | GFD23: 0 | GFE23: 0 | GFF23: 0 | GFG23: 0 | GFH23: 0 | GFI23: 0 | GFJ23: 0 | GFK23: 0 | GFL23: 0 | GFM23: 0 | GFN23: 0 | GFO23: 0 | GFP23: 0 | GFQ23: 0 | GFR23: 0 | GFS23: 0 | GFT23: 0 | GFU23: 0 | GFV23: 0 | GFW23: 0 | GFX23: 0 | GFY23: 0 | GFZ23: 0 | GGA23: 0 | GGB23: 0 | GGC23: 0 | GGD23: 0 | GGE23: 0 | GGF23: 0 | GGG23: 0 | GGH23: 0 | GGI23: 0 | GGJ23: 0 | GGK23: 0 | GGL23: 0 | GGM23: 0 | GGN23: 0 | GGO23: 0 | GGP23: 0 | GGQ23: 0 | GGR23: 0 | GGS23: 0 | GGT23: 0 | GGU23: 0 | GGV23: 0 | GGW23: 0 | GGX23: 0 | GGY23: 0 | GGZ23: 0 | GHA23: 0 | GHB23: 0 | GHC23: 0 | GHD23: 0 | GHE23: 0 | GHF23: 0 | GHG23: 0 | GHH23: 0 | GHI23: 0 | GHJ23: 0 | GHK23: 0 | GHL23: 0 | GHM23: 0 | GHN23: 0 | GHO23: =GHO6+GHO8+GHO10+GHO12+GHO14+GHO16+GHO18 -> 0 | GHP23: 0 | GHQ23: 0 | GHR23: 0 | GHS23: 0 | GHT23: 0 | GHU23: 0 | GHV23: 0 | GHW23: 0 | GHX23: 0 | GHY23: 0 | GHZ23: 0 | GIA23: 0 | GIB23: 0 | GIC23: 0 | GID23: 0 | GIE23: 0 | GIF23: 0 | GIG23: 0 | GIH23: 0 | GII23: 0 | GIJ23: 0 | GIK23: 0 | GIL23: 0 | GIM23: 0 | GIN23: 0 | GIO23: 0 | GIP23: 0 | GIQ23: 0 | GIR23: 0 | GIS23: 0 | GIT23: 0 | GIU23: 0 | GIV23: 0 | GIW23: 0 | GIX23: 0 | GIY23: 0 | GIZ23: 0 | GJA23: 0 | GJB23: 0 | GJC23: 0 | GJD23: 0 | GJE23: 0 | GJF23: 0 | GJG23: 0 | GJH23: 0 | GJI23: 0 | GJJ23: 0 | GJK23: 0 | GJL23: 0 | GJM23: 0 | GJN23: 0 | GJO23: 0 | GJP23: 0 | GJQ23: 0 | GJR23: 0 | GJS23: 0 | GJT23: 0 | GJU23: 0 | GJV23: 0 | GJW23: 0 | GJX23: 0 | GJY23: 0 | GJZ23: 0 | GKA23: =GKA6+GKA8+GKA10+GKA12+GKA14+GKA16+GKA18 -> 0 | GKB23: 0 | GKC23: 0 | GKD23: 0 | GKE23: 0 | GKF23: 0 | GKG23: 0 | GKH23: 0 | GKI23: 0 | GKJ23: 0 | GKK23: 0 | GKL23: 0 | GKM23: 0 | GKN23: 0 | GKO23: 0 | GKP23: 0 | GKQ23: 0 | GKR23: 0 | GKS23: 0 | GKT23: 0 | GKU23: 0 | GKV23: 0 | GKW23: 0 | GKX23: 0 | GKY23: 0 | GKZ23: 0 | GLA23: 0 | GLB23: 0 | GLC23: 0 | GLD23: 0 | GLE23: 0 | GLF23: 0 | GLG23: 0 | GLH23: 0 | GLI23: 0 | GLJ23: 0 | GLK23: 0 | GLL23: 0 | GLM23: 0 | GLN23: 0 | GLO23: 0 | GLP23: 0 | GLQ23: 0 | GLR23: 0 | GLS23: 0 | GLT23: 0 | GLU23: 0 | GLV23: 0 | GLW23: 0 | GLX23: 0 | GLY23: 0 | GLZ23: 0 | GMA23: 0 | GMB23: 0 | GMC23: 0 | GMD23: 0 | GME23: 0 | GMF23: 0 | GMG23: 0 | GMH23: 0 | GMI23: 0 | GMJ23: 0 | GMK23: 0 | GML23: 0 | GMM23: =GMM6+GMM8+GMM10+GMM12+GMM14+GMM16+GMM18 -> 0 | GMN23: 0 | GMO23: 0 | GMP23: 0 | GMQ23: 0 | GMR23: 0 | GMS23: 0 | GMT23: 0 | GMU23: 0 | GMV23: 0 | GMW23: 0 | GMX23: 0 | GMY23: 0 | GMZ23: 0 | GNA23: 0 | GNB23: 0 | GNC23: 0 | GND23: 0 | GNE23: 0 | GNF23: 0 | GNG23: 0 | GNH23: 0 | GNI23: 0 | GNJ23: 0 | GNK23: 0 | GNL23: 0 | GNM23: 0 | GNN23: 0 | GNO23: 0 | GNP23: 0 | GNQ23: 0 | GNR23: 0 | GNS23: 0 | GNT23: 0 | GNU23: 0 | GNV23: 0 | GNW23: 0 | GNX23: 0 | GNY23: 0 | GNZ23: 0 | GOA23: 0 | GOB23: 0 | GOC23: 0 | GOD23: 0 | GOE23: 0 | GOF23: 0 | GOG23: 0 | GOH23: 0 | GOI23: 0 | GOJ23: 0 | GOK23: 0 | GOL23: 0 | GOM23: 0 | GON23: 0 | GOO23: 0 | GOP23: 0 | GOQ23: 0 | GOR23: 0 | GOS23: 0 | GOT23: 0 | GOU23: 0 | GOV23: 0 | GOW23: 0 | GOX23: 0 | GOY23: =GOY6+GOY8+GOY10+GOY12+GOY14+GOY16+GOY18 -> 0 | GOZ23: 0 | GPA23: 0 | GPB23: 0 | GPC23: 0 | GPD23: 0 | GPE23: 0 | GPF23: 0 | GPG23: 0 | GPH23: 0 | GPI23: 0 | GPJ23: 0 | GPK23: 0 | GPL23: 0 | GPM23: 0 | GPN23: 0 | GPO23: 0 | GPP23: 0 | GPQ23: 0 | GPR23: 0 | GPS23: 0 | GPT23: 0 | GPU23: 0 | GPV23: 0 | GPW23: 0 | GPX23: 0 | GPY23: 0 | GPZ23: 0 | GQA23: 0 | GQB23: 0 | GQC23: 0 | GQD23: 0 | GQE23: 0 | GQF23: 0 | GQG23: 0 | GQH23: 0 | GQI23: 0 | GQJ23: 0 | GQK23: 0 | GQL23: 0 | GQM23: 0 | GQN23: 0 | GQO23: 0 | GQP23: 0 | GQQ23: 0 | GQR23: 0 | GQS23: 0 | GQT23: 0 | GQU23: 0 | GQV23: 0 | GQW23: 0 | GQX23: 0 | GQY23: 0 | GQZ23: 0 | GRA23: 0 | GRB23: 0 | GRC23: 0 | GRD23: 0 | GRE23: 0 | GRF23: 0 | GRG23: 0 | GRH23: 0 | GRI23: 0 | GRJ23: 0 | GRK23: =GRK6+GRK8+GRK10+GRK12+GRK14+GRK16+GRK18 -> 0 | GRL23: 0 | GRM23: 0 | GRN23: 0 | GRO23: 0 | GRP23: 0 | GRQ23: 0 | GRR23: 0 | GRS23: 0 | GRT23: 0 | GRU23: 0 | GRV23: 0 | GRW23: 0 | GRX23: 0 | GRY23: 0 | GRZ23: 0 | GSA23: 0 | GSB23: 0 | GSC23: 0 | GSD23: 0 | GSE23: 0 | GSF23: 0 | GSG23: 0 | GSH23: 0 | GSI23: 0 | GSJ23: 0 | GSK23: 0 | GSL23: 0 | GSM23: 0 | GSN23: 0 | GSO23: 0 | GSP23: 0 | GSQ23: 0 | GSR23: 0 | GSS23: 0 | GST23: 0 | GSU23: 0 | GSV23: 0 | GSW23: 0 | GSX23: 0 | GSY23: 0 | GSZ23: 0 | GTA23: 0 | GTB23: 0 | GTC23: 0 | GTD23: 0 | GTE23: 0 | GTF23: 0 | GTG23: 0 | GTH23: 0 | GTI23: 0 | GTJ23: 0 | GTK23: 0 | GTL23: 0 | GTM23: 0 | GTN23: 0 | GTO23: 0 | GTP23: 0 | GTQ23: 0 | GTR23: 0 | GTS23: 0 | GTT23: 0 | GTU23: 0 | GTV23: 0 | GTW23: =GTW6+GTW8+GTW10+GTW12+GTW14+GTW16+GTW18 -> 0 | GTX23: 0 | GTY23: 0 | GTZ23: 0 | GUA23: 0 | GUB23: 0 | GUC23: 0 | GUD23: 0 | GUE23: 0 | GUF23: 0 | GUG23: 0 | GUH23: 0 | GUI23: 0 | GUJ23: 0 | GUK23: 0 | GUL23: 0 | GUM23: 0 | GUN23: 0 | GUO23: 0 | GUP23: 0 | GUQ23: 0 | GUR23: 0 | GUS23: 0 | GUT23: 0 | GUU23: 0 | GUV23: 0 | GUW23: 0 | GUX23: 0 | GUY23: 0 | GUZ23: 0 | GVA23: 0 | GVB23: 0 | GVC23: 0 | GVD23: 0 | GVE23: 0 | GVF23: 0 | GVG23: 0 | GVH23: 0 | GVI23: 0 | GVJ23: 0 | GVK23: 0 | GVL23: 0 | GVM23: 0 | GVN23: 0 | GVO23: 0 | GVP23: 0 | GVQ23: 0 | GVR23: 0 | GVS23: 0 | GVT23: 0 | GVU23: 0 | GVV23: 0 | GVW23: 0 | GVX23: 0 | GVY23: 0 | GVZ23: 0 | GWA23: 0 | GWB23: 0 | GWC23: 0 | GWD23: 0 | GWE23: 0 | GWF23: 0 | GWG23: 0 | GWH23: 0 | GWI23: =GWI6+GWI8+GWI10+GWI12+GWI14+GWI16+GWI18 -> 0 | GWJ23: 0 | GWK23: 0 | GWL23: 0 | GWM23: 0 | GWN23: 0 | GWO23: 0 | GWP23: 0 | GWQ23: 0 | GWR23: 0 | GWS23: 0 | GWT23: 0 | GWU23: 0 | GWV23: 0 | GWW23: 0 | GWX23: 0 | GWY23: 0 | GWZ23: 0 | GXA23: 0 | GXB23: 0 | GXC23: 0 | GXD23: 0 | GXE23: 0 | GXF23: 0 | GXG23: 0 | GXH23: 0 | GXI23: 0 | GXJ23: 0 | GXK23: 0 | GXL23: 0 | GXM23: 0 | GXN23: 0 | GXO23: 0 | GXP23: 0 | GXQ23: 0 | GXR23: 0 | GXS23: 0 | GXT23: 0 | GXU23: 0 | GXV23: 0 | GXW23: 0 | GXX23: 0 | GXY23: 0 | GXZ23: 0 | GYA23: 0 | GYB23: 0 | GYC23: 0 | GYD23: 0 | GYE23: 0 | GYF23: 0 | GYG23: 0 | GYH23: 0 | GYI23: 0 | GYJ23: 0 | GYK23: 0 | GYL23: 0 | GYM23: 0 | GYN23: 0 | GYO23: 0 | GYP23: 0 | GYQ23: 0 | GYR23: 0 | GYS23: 0 | GYT23: 0 | GYU23: =GYU6+GYU8+GYU10+GYU12+GYU14+GYU16+GYU18 -> 0 | GYV23: 0 | GYW23: 0 | GYX23: 0 | GYY23: 0 | GYZ23: 0 | GZA23: 0 | GZB23: 0 | GZC23: 0 | GZD23: 0 | GZE23: 0 | GZF23: 0 | GZG23: 0 | GZH23: 0 | GZI23: 0 | GZJ23: 0 | GZK23: 0 | GZL23: 0 | GZM23: 0 | GZN23: 0 | GZO23: 0 | GZP23: 0 | GZQ23: 0 | GZR23: 0 | GZS23: 0 | GZT23: 0 | GZU23: 0 | GZV23: 0 | GZW23: 0 | GZX23: 0 | GZY23: 0 | GZZ23: 0 | HAA23: 0 | HAB23: 0 | HAC23: 0 | HAD23: 0 | HAE23: 0 | HAF23: 0 | HAG23: 0 | HAH23: 0 | HAI23: 0 | HAJ23: 0 | HAK23: 0 | HAL23: 0 | HAM23: 0 | HAN23: 0 | HAO23: 0 | HAP23: 0 | HAQ23: 0 | HAR23: 0 | HAS23: 0 | HAT23: 0 | HAU23: 0 | HAV23: 0 | HAW23: 0 | HAX23: 0 | HAY23: 0 | HAZ23: 0 | HBA23: 0 | HBB23: 0 | HBC23: 0 | HBD23: 0 | HBE23: 0 | HBF23: 0 | HBG23: =HBG6+HBG8+HBG10+HBG12+HBG14+HBG16+HBG18 -> 0 | HBH23: 0 | HBI23: 0 | HBJ23: 0 | HBK23: 0 | HBL23: 0 | HBM23: 0 | HBN23: 0 | HBO23: 0 | HBP23: 0 | HBQ23: 0 | HBR23: 0 | HBS23: 0 | HBT23: 0 | HBU23: 0 | HBV23: 0 | HBW23: 0 | HBX23: 0 | HBY23: 0 | HBZ23: 0 | HCA23: 0 | HCB23: 0 | HCC23: 0 | HCD23: 0 | HCE23: 0 | HCF23: 0 | HCG23: 0 | HCH23: 0 | HCI23: 0 | HCJ23: 0 | HCK23: 0 | HCL23: 0 | HCM23: 0 | HCN23: 0 | HCO23: 0 | HCP23: 0 | HCQ23: 0 | HCR23: 0 | HCS23: 0 | HCT23: 0 | HCU23: 0 | HCV23: 0 | HCW23: 0 | HCX23: 0 | HCY23: 0 | HCZ23: 0 | HDA23: 0 | HDB23: 0 | HDC23: 0 | HDD23: 0 | HDE23: 0 | HDF23: 0 | HDG23: 0 | HDH23: 0 | HDI23: 0 | HDJ23: 0 | HDK23: 0 | HDL23: 0 | HDM23: 0 | HDN23: 0 | HDO23: 0 | HDP23: 0 | HDQ23: 0 | HDR23: 0 | HDS23: =HDS6+HDS8+HDS10+HDS12+HDS14+HDS16+HDS18 -> 0 | HDT23: 0 | HDU23: 0 | HDV23: 0 | HDW23: 0 | HDX23: 0 | HDY23: 0 | HDZ23: 0 | HEA23: 0 | HEB23: 0 | HEC23: 0 | HED23: 0 | HEE23: 0 | HEF23: 0 | HEG23: 0 | HEH23: 0 | HEI23: 0 | HEJ23: 0 | HEK23: 0 | HEL23: 0 | HEM23: 0 | HEN23: 0 | HEO23: 0 | HEP23: 0 | HEQ23: 0 | HER23: 0 | HES23: 0 | HET23: 0 | HEU23: 0 | HEV23: 0 | HEW23: 0 | HEX23: 0 | HEY23: 0 | HEZ23: 0 | HFA23: 0 | HFB23: 0 | HFC23: 0 | HFD23: 0 | HFE23: 0 | HFF23: 0 | HFG23: 0 | HFH23: 0 | HFI23: 0 | HFJ23: 0 | HFK23: 0 | HFL23: 0 | HFM23: 0 | HFN23: 0 | HFO23: 0 | HFP23: 0 | HFQ23: 0 | HFR23: 0 | HFS23: 0 | HFT23: 0 | HFU23: 0 | HFV23: 0 | HFW23: 0 | HFX23: 0 | HFY23: 0 | HFZ23: 0 | HGA23: 0 | HGB23: 0 | HGC23: 0 | HGD23: 0 | HGE23: =HGE6+HGE8+HGE10+HGE12+HGE14+HGE16+HGE18 -> 0 | HGF23: 0 | HGG23: 0 | HGH23: 0 | HGI23: 0 | HGJ23: 0 | HGK23: 0 | HGL23: 0 | HGM23: 0 | HGN23: 0 | HGO23: 0 | HGP23: 0 | HGQ23: 0 | HGR23: 0 | HGS23: 0 | HGT23: 0 | HGU23: 0 | HGV23: 0 | HGW23: 0 | HGX23: 0 | HGY23: 0 | HGZ23: 0 | HHA23: 0 | HHB23: 0 | HHC23: 0 | HHD23: 0 | HHE23: 0 | HHF23: 0 | HHG23: 0 | HHH23: 0 | HHI23: 0 | HHJ23: 0 | HHK23: 0 | HHL23: 0 | HHM23: 0 | HHN23: 0 | HHO23: 0 | HHP23: 0 | HHQ23: 0 | HHR23: 0 | HHS23: 0 | HHT23: 0 | HHU23: 0 | HHV23: 0 | HHW23: 0 | HHX23: 0 | HHY23: 0 | HHZ23: 0 | HIA23: 0 | HIB23: 0 | HIC23: 0 | HID23: 0 | HIE23: 0 | HIF23: 0 | HIG23: 0 | HIH23: 0 | HII23: 0 | HIJ23: 0 | HIK23: 0 | HIL23: 0 | HIM23: 0 | HIN23: 0 | HIO23: 0 | HIP23: 0 | HIQ23: =HIQ6+HIQ8+HIQ10+HIQ12+HIQ14+HIQ16+HIQ18 -> 0 | HIR23: 0 | HIS23: 0 | HIT23: 0 | HIU23: 0 | HIV23: 0 | HIW23: 0 | HIX23: 0 | HIY23: 0 | HIZ23: 0 | HJA23: 0 | HJB23: 0 | HJC23: 0 | HJD23: 0 | HJE23: 0 | HJF23: 0 | HJG23: 0 | HJH23: 0 | HJI23: 0 | HJJ23: 0 | HJK23: 0 | HJL23: 0 | HJM23: 0 | HJN23: 0 | HJO23: 0 | HJP23: 0 | HJQ23: 0 | HJR23: 0 | HJS23: 0 | HJT23: 0 | HJU23: 0 | HJV23: 0 | HJW23: 0 | HJX23: 0 | HJY23: 0 | HJZ23: 0 | HKA23: 0 | HKB23: 0 | HKC23: 0 | HKD23: 0 | HKE23: 0 | HKF23: 0 | HKG23: 0 | HKH23: 0 | HKI23: 0 | HKJ23: 0 | HKK23: 0 | HKL23: 0 | HKM23: 0 | HKN23: 0 | HKO23: 0 | HKP23: 0 | HKQ23: 0 | HKR23: 0 | HKS23: 0 | HKT23: 0 | HKU23: 0 | HKV23: 0 | HKW23: 0 | HKX23: 0 | HKY23: 0 | HKZ23: 0 | HLA23: 0 | HLB23: 0 | HLC23: =HLC6+HLC8+HLC10+HLC12+HLC14+HLC16+HLC18 -> 0 | HLD23: 0 | HLE23: 0 | HLF23: 0 | HLG23: 0 | HLH23: 0 | HLI23: 0 | HLJ23: 0 | HLK23: 0 | HLL23: 0 | HLM23: 0 | HLN23: 0 | HLO23: 0 | HLP23: 0 | HLQ23: 0 | HLR23: 0 | HLS23: 0 | HLT23: 0 | HLU23: 0 | HLV23: 0 | HLW23: 0 | HLX23: 0 | HLY23: 0 | HLZ23: 0 | HMA23: 0 | HMB23: 0 | HMC23: 0 | HMD23: 0 | HME23: 0 | HMF23: 0 | HMG23: 0 | HMH23: 0 | HMI23: 0 | HMJ23: 0 | HMK23: 0 | HML23: 0 | HMM23: 0 | HMN23: 0 | HMO23: 0 | HMP23: 0 | HMQ23: 0 | HMR23: 0 | HMS23: 0 | HMT23: 0 | HMU23: 0 | HMV23: 0 | HMW23: 0 | HMX23: 0 | HMY23: 0 | HMZ23: 0 | HNA23: 0 | HNB23: 0 | HNC23: 0 | HND23: 0 | HNE23: 0 | HNF23: 0 | HNG23: 0 | HNH23: 0 | HNI23: 0 | HNJ23: 0 | HNK23: 0 | HNL23: 0 | HNM23: 0 | HNN23: 0 | HNO23: =HNO6+HNO8+HNO10+HNO12+HNO14+HNO16+HNO18 -> 0 | HNP23: 0 | HNQ23: 0 | HNR23: 0 | HNS23: 0 | HNT23: 0 | HNU23: 0 | HNV23: 0 | HNW23: 0 | HNX23: 0 | HNY23: 0 | HNZ23: 0 | HOA23: 0 | HOB23: 0 | HOC23: 0 | HOD23: 0 | HOE23: 0 | HOF23: 0 | HOG23: 0 | HOH23: 0 | HOI23: 0 | HOJ23: 0 | HOK23: 0 | HOL23: 0 | HOM23: 0 | HON23: 0 | HOO23: 0 | HOP23: 0 | HOQ23: 0 | HOR23: 0 | HOS23: 0 | HOT23: 0 | HOU23: 0 | HOV23: 0 | HOW23: 0 | HOX23: 0 | HOY23: 0 | HOZ23: 0 | HPA23: 0 | HPB23: 0 | HPC23: 0 | HPD23: 0 | HPE23: 0 | HPF23: 0 | HPG23: 0 | HPH23: 0 | HPI23: 0 | HPJ23: 0 | HPK23: 0 | HPL23: 0 | HPM23: 0 | HPN23: 0 | HPO23: 0 | HPP23: 0 | HPQ23: 0 | HPR23: 0 | HPS23: 0 | HPT23: 0 | HPU23: 0 | HPV23: 0 | HPW23: 0 | HPX23: 0 | HPY23: 0 | HPZ23: 0 | HQA23: =HQA6+HQA8+HQA10+HQA12+HQA14+HQA16+HQA18 -> 0 | HQB23: 0 | HQC23: 0 | HQD23: 0 | HQE23: 0 | HQF23: 0 | HQG23: 0 | HQH23: 0 | HQI23: 0 | HQJ23: 0 | HQK23: 0 | HQL23: 0 | HQM23: 0 | HQN23: 0 | HQO23: 0 | HQP23: 0 | HQQ23: 0 | HQR23: 0 | HQS23: 0 | HQT23: 0 | HQU23: 0 | HQV23: 0 | HQW23: 0 | HQX23: 0 | HQY23: 0 | HQZ23: 0 | HRA23: 0 | HRB23: 0 | HRC23: 0 | HRD23: 0 | HRE23: 0 | HRF23: 0 | HRG23: 0 | HRH23: 0 | HRI23: 0 | HRJ23: 0 | HRK23: 0 | HRL23: 0 | HRM23: 0 | HRN23: 0 | HRO23: 0 | HRP23: 0 | HRQ23: 0 | HRR23: 0 | HRS23: 0 | HRT23: 0 | HRU23: 0 | HRV23: 0 | HRW23: 0 | HRX23: 0 | HRY23: 0 | HRZ23: 0 | HSA23: 0 | HSB23: 0 | HSC23: 0 | HSD23: 0 | HSE23: 0 | HSF23: 0 | HSG23: 0 | HSH23: 0 | HSI23: 0 | HSJ23: 0 | HSK23: 0 | HSL23: 0 | HSM23: =HSM6+HSM8+HSM10+HSM12+HSM14+HSM16+HSM18 -> 0 | HSN23: 0 | HSO23: 0 | HSP23: 0 | HSQ23: 0 | HSR23: 0 | HSS23: 0 | HST23: 0 | HSU23: 0 | HSV23: 0 | HSW23: 0 | HSX23: 0 | HSY23: 0 | HSZ23: 0 | HTA23: 0 | HTB23: 0 | HTC23: 0 | HTD23: 0 | HTE23: 0 | HTF23: 0 | HTG23: 0 | HTH23: 0 | HTI23: 0 | HTJ23: 0 | HTK23: 0 | HTL23: 0 | HTM23: 0 | HTN23: 0 | HTO23: 0 | HTP23: 0 | HTQ23: 0 | HTR23: 0 | HTS23: 0 | HTT23: 0 | HTU23: 0 | HTV23: 0 | HTW23: 0 | HTX23: 0 | HTY23: 0 | HTZ23: 0 | HUA23: 0 | HUB23: 0 | HUC23: 0 | HUD23: 0 | HUE23: 0 | HUF23: 0 | HUG23: 0 | HUH23: 0 | HUI23: 0 | HUJ23: 0 | HUK23: 0 | HUL23: 0 | HUM23: 0 | HUN23: 0 | HUO23: 0 | HUP23: 0 | HUQ23: 0 | HUR23: 0 | HUS23: 0 | HUT23: 0 | HUU23: 0 | HUV23: 0 | HUW23: 0 | HUX23: 0 | HUY23: =HUY6+HUY8+HUY10+HUY12+HUY14+HUY16+HUY18 -> 0 | HUZ23: 0 | HVA23: 0 | HVB23: 0 | HVC23: 0 | HVD23: 0 | HVE23: 0 | HVF23: 0 | HVG23: 0 | HVH23: 0 | HVI23: 0 | HVJ23: 0 | HVK23: 0 | HVL23: 0 | HVM23: 0 | HVN23: 0 | HVO23: 0 | HVP23: 0 | HVQ23: 0 | HVR23: 0 | HVS23: 0 | HVT23: 0 | HVU23: 0 | HVV23: 0 | HVW23: 0 | HVX23: 0 | HVY23: 0 | HVZ23: 0 | HWA23: 0 | HWB23: 0 | HWC23: 0 | HWD23: 0 | HWE23: 0 | HWF23: 0 | HWG23: 0 | HWH23: 0 | HWI23: 0 | HWJ23: 0 | HWK23: 0 | HWL23: 0 | HWM23: 0 | HWN23: 0 | HWO23: 0 | HWP23: 0 | HWQ23: 0 | HWR23: 0 | HWS23: 0 | HWT23: 0 | HWU23: 0 | HWV23: 0 | HWW23: 0 | HWX23: 0 | HWY23: 0 | HWZ23: 0 | HXA23: 0 | HXB23: 0 | HXC23: 0 | HXD23: 0 | HXE23: 0 | HXF23: 0 | HXG23: 0 | HXH23: 0 | HXI23: 0 | HXJ23: 0 | HXK23: =HXK6+HXK8+HXK10+HXK12+HXK14+HXK16+HXK18 -> 0 | HXL23: 0 | HXM23: 0 | HXN23: 0 | HXO23: 0 | HXP23: 0 | HXQ23: 0 | HXR23: 0 | HXS23: 0 | HXT23: 0 | HXU23: 0 | HXV23: 0 | HXW23: 0 | HXX23: 0 | HXY23: 0 | HXZ23: 0 | HYA23: 0 | HYB23: 0 | HYC23: 0 | HYD23: 0 | HYE23: 0 | HYF23: 0 | HYG23: 0 | HYH23: 0 | HYI23: 0 | HYJ23: 0 | HYK23: 0 | HYL23: 0 | HYM23: 0 | HYN23: 0 | HYO23: 0 | HYP23: 0 | HYQ23: 0 | HYR23: 0 | HYS23: 0 | HYT23: 0 | HYU23: 0 | HYV23: 0 | HYW23: 0 | HYX23: 0 | HYY23: 0 | HYZ23: 0 | HZA23: 0 | HZB23: 0 | HZC23: 0 | HZD23: 0 | HZE23: 0 | HZF23: 0 | HZG23: 0 | HZH23: 0 | HZI23: 0 | HZJ23: 0 | HZK23: 0 | HZL23: 0 | HZM23: 0 | HZN23: 0 | HZO23: 0 | HZP23: 0 | HZQ23: 0 | HZR23: 0 | HZS23: 0 | HZT23: 0 | HZU23: 0 | HZV23: 0 | HZW23: =HZW6+HZW8+HZW10+HZW12+HZW14+HZW16+HZW18 -> 0 | HZX23: 0 | HZY23: 0 | HZZ23: 0 | IAA23: 0 | IAB23: 0 | IAC23: 0 | IAD23: 0 | IAE23: 0 | IAF23: 0 | IAG23: 0 | IAH23: 0 | IAI23: 0 | IAJ23: 0 | IAK23: 0 | IAL23: 0 | IAM23: 0 | IAN23: 0 | IAO23: 0 | IAP23: 0 | IAQ23: 0 | IAR23: 0 | IAS23: 0 | IAT23: 0 | IAU23: 0 | IAV23: 0 | IAW23: 0 | IAX23: 0 | IAY23: 0 | IAZ23: 0 | IBA23: 0 | IBB23: 0 | IBC23: 0 | IBD23: 0 | IBE23: 0 | IBF23: 0 | IBG23: 0 | IBH23: 0 | IBI23: 0 | IBJ23: 0 | IBK23: 0 | IBL23: 0 | IBM23: 0 | IBN23: 0 | IBO23: 0 | IBP23: 0 | IBQ23: 0 | IBR23: 0 | IBS23: 0 | IBT23: 0 | IBU23: 0 | IBV23: 0 | IBW23: 0 | IBX23: 0 | IBY23: 0 | IBZ23: 0 | ICA23: 0 | ICB23: 0 | ICC23: 0 | ICD23: 0 | ICE23: 0 | ICF23: 0 | ICG23: 0 | ICH23: 0 | ICI23: =ICI6+ICI8+ICI10+ICI12+ICI14+ICI16+ICI18 -> 0 | ICJ23: 0 | ICK23: 0 | ICL23: 0 | ICM23: 0 | ICN23: 0 | ICO23: 0 | ICP23: 0 | ICQ23: 0 | ICR23: 0 | ICS23: 0 | ICT23: 0 | ICU23: 0 | ICV23: 0 | ICW23: 0 | ICX23: 0 | ICY23: 0 | ICZ23: 0 | IDA23: 0 | IDB23: 0 | IDC23: 0 | IDD23: 0 | IDE23: 0 | IDF23: 0 | IDG23: 0 | IDH23: 0 | IDI23: 0 | IDJ23: 0 | IDK23: 0 | IDL23: 0 | IDM23: 0 | IDN23: 0 | IDO23: 0 | IDP23: 0 | IDQ23: 0 | IDR23: 0 | IDS23: 0 | IDT23: 0 | IDU23: 0 | IDV23: 0 | IDW23: 0 | IDX23: 0 | IDY23: 0 | IDZ23: 0 | IEA23: 0 | IEB23: 0 | IEC23: 0 | IED23: 0 | IEE23: 0 | IEF23: 0 | IEG23: 0 | IEH23: 0 | IEI23: 0 | IEJ23: 0 | IEK23: 0 | IEL23: 0 | IEM23: 0 | IEN23: 0 | IEO23: 0 | IEP23: 0 | IEQ23: 0 | IER23: 0 | IES23: 0 | IET23: 0 | IEU23: =IEU6+IEU8+IEU10+IEU12+IEU14+IEU16+IEU18 -> 0 | IEV23: 0 | IEW23: 0 | IEX23: 0 | IEY23: 0 | IEZ23: 0 | IFA23: 0 | IFB23: 0 | IFC23: 0 | IFD23: 0 | IFE23: 0 | IFF23: 0 | IFG23: 0 | IFH23: 0 | IFI23: 0 | IFJ23: 0 | IFK23: 0 | IFL23: 0 | IFM23: 0 | IFN23: 0 | IFO23: 0 | IFP23: 0 | IFQ23: 0 | IFR23: 0 | IFS23: 0 | IFT23: 0 | IFU23: 0 | IFV23: 0 | IFW23: 0 | IFX23: 0 | IFY23: 0 | IFZ23: 0 | IGA23: 0 | IGB23: 0 | IGC23: 0 | IGD23: 0 | IGE23: 0 | IGF23: 0 | IGG23: 0 | IGH23: 0 | IGI23: 0 | IGJ23: 0 | IGK23: 0 | IGL23: 0 | IGM23: 0 | IGN23: 0 | IGO23: 0 | IGP23: 0 | IGQ23: 0 | IGR23: 0 | IGS23: 0 | IGT23: 0 | IGU23: 0 | IGV23: 0 | IGW23: 0 | IGX23: 0 | IGY23: 0 | IGZ23: 0 | IHA23: 0 | IHB23: 0 | IHC23: 0 | IHD23: 0 | IHE23: 0 | IHF23: 0 | IHG23: =IHG6+IHG8+IHG10+IHG12+IHG14+IHG16+IHG18 -> 0 | IHH23: 0 | IHI23: 0 | IHJ23: 0 | IHK23: 0 | IHL23: 0 | IHM23: 0 | IHN23: 0 | IHO23: 0 | IHP23: 0 | IHQ23: 0 | IHR23: 0 | IHS23: 0 | IHT23: 0 | IHU23: 0 | IHV23: 0 | IHW23: 0 | IHX23: 0 | IHY23: 0 | IHZ23: 0 | IIA23: 0 | IIB23: 0 | IIC23: 0 | IID23: 0 | IIE23: 0 | IIF23: 0 | IIG23: 0 | IIH23: 0 | III23: 0 | IIJ23: 0 | IIK23: 0 | IIL23: 0 | IIM23: 0 | IIN23: 0 | IIO23: 0 | IIP23: 0 | IIQ23: 0 | IIR23: 0 | IIS23: 0 | IIT23: 0 | IIU23: 0 | IIV23: 0 | IIW23: 0 | IIX23: 0 | IIY23: 0 | IIZ23: 0 | IJA23: 0 | IJB23: 0 | IJC23: 0 | IJD23: 0 | IJE23: 0 | IJF23: 0 | IJG23: 0 | IJH23: 0 | IJI23: 0 | IJJ23: 0 | IJK23: 0 | IJL23: 0 | IJM23: 0 | IJN23: 0 | IJO23: 0 | IJP23: 0 | IJQ23: 0 | IJR23: 0 | IJS23: =IJS6+IJS8+IJS10+IJS12+IJS14+IJS16+IJS18 -> 0 | IJT23: 0 | IJU23: 0 | IJV23: 0 | IJW23: 0 | IJX23: 0 | IJY23: 0 | IJZ23: 0 | IKA23: 0 | IKB23: 0 | IKC23: 0 | IKD23: 0 | IKE23: 0 | IKF23: 0 | IKG23: 0 | IKH23: 0 | IKI23: 0 | IKJ23: 0 | IKK23: 0 | IKL23: 0 | IKM23: 0 | IKN23: 0 | IKO23: 0 | IKP23: 0 | IKQ23: 0 | IKR23: 0 | IKS23: 0 | IKT23: 0 | IKU23: 0 | IKV23: 0 | IKW23: 0 | IKX23: 0 | IKY23: 0 | IKZ23: 0 | ILA23: 0 | ILB23: 0 | ILC23: 0 | ILD23: 0 | ILE23: 0 | ILF23: 0 | ILG23: 0 | ILH23: 0 | ILI23: 0 | ILJ23: 0 | ILK23: 0 | ILL23: 0 | ILM23: 0 | ILN23: 0 | ILO23: 0 | ILP23: 0 | ILQ23: 0 | ILR23: 0 | ILS23: 0 | ILT23: 0 | ILU23: 0 | ILV23: 0 | ILW23: 0 | ILX23: 0 | ILY23: 0 | ILZ23: 0 | IMA23: 0 | IMB23: 0 | IMC23: 0 | IMD23: 0 | IME23: =IME6+IME8+IME10+IME12+IME14+IME16+IME18 -> 0 | IMF23: 0 | IMG23: 0 | IMH23: 0 | IMI23: 0 | IMJ23: 0 | IMK23: 0 | IML23: 0 | IMM23: 0 | IMN23: 0 | IMO23: 0 | IMP23: 0 | IMQ23: 0 | IMR23: 0 | IMS23: 0 | IMT23: 0 | IMU23: 0 | IMV23: 0 | IMW23: 0 | IMX23: 0 | IMY23: 0 | IMZ23: 0 | INA23: 0 | INB23: 0 | INC23: 0 | IND23: 0 | INE23: 0 | INF23: 0 | ING23: 0 | INH23: 0 | INI23: 0 | INJ23: 0 | INK23: 0 | INL23: 0 | INM23: 0 | INN23: 0 | INO23: 0 | INP23: 0 | INQ23: 0 | INR23: 0 | INS23: 0 | INT23: 0 | INU23: 0 | INV23: 0 | INW23: 0 | INX23: 0 | INY23: 0 | INZ23: 0 | IOA23: 0 | IOB23: 0 | IOC23: 0 | IOD23: 0 | IOE23: 0 | IOF23: 0 | IOG23: 0 | IOH23: 0 | IOI23: 0 | IOJ23: 0 | IOK23: 0 | IOL23: 0 | IOM23: 0 | ION23: 0 | IOO23: 0 | IOP23: 0 | IOQ23: =IOQ6+IOQ8+IOQ10+IOQ12+IOQ14+IOQ16+IOQ18 -> 0 | IOR23: 0 | IOS23: 0 | IOT23: 0 | IOU23: 0 | IOV23: 0 | IOW23: 0 | IOX23: 0 | IOY23: 0 | IOZ23: 0 | IPA23: 0 | IPB23: 0 | IPC23: 0 | IPD23: 0 | IPE23: 0 | IPF23: 0 | IPG23: 0 | IPH23: 0 | IPI23: 0 | IPJ23: 0 | IPK23: 0 | IPL23: 0 | IPM23: 0 | IPN23: 0 | IPO23: 0 | IPP23: 0 | IPQ23: 0 | IPR23: 0 | IPS23: 0 | IPT23: 0 | IPU23: 0 | IPV23: 0 | IPW23: 0 | IPX23: 0 | IPY23: 0 | IPZ23: 0 | IQA23: 0 | IQB23: 0 | IQC23: 0 | IQD23: 0 | IQE23: 0 | IQF23: 0 | IQG23: 0 | IQH23: 0 | IQI23: 0 | IQJ23: 0 | IQK23: 0 | IQL23: 0 | IQM23: 0 | IQN23: 0 | IQO23: 0 | IQP23: 0 | IQQ23: 0 | IQR23: 0 | IQS23: 0 | IQT23: 0 | IQU23: 0 | IQV23: 0 | IQW23: 0 | IQX23: 0 | IQY23: 0 | IQZ23: 0 | IRA23: 0 | IRB23: 0 | IRC23: =IRC6+IRC8+IRC10+IRC12+IRC14+IRC16+IRC18 -> 0 | IRD23: 0 | IRE23: 0 | IRF23: 0 | IRG23: 0 | IRH23: 0 | IRI23: 0 | IRJ23: 0 | IRK23: 0 | IRL23: 0 | IRM23: 0 | IRN23: 0 | IRO23: 0 | IRP23: 0 | IRQ23: 0 | IRR23: 0 | IRS23: 0 | IRT23: 0 | IRU23: 0 | IRV23: 0 | IRW23: 0 | IRX23: 0 | IRY23: 0 | IRZ23: 0 | ISA23: 0 | ISB23: 0 | ISC23: 0 | ISD23: 0 | ISE23: 0 | ISF23: 0 | ISG23: 0 | ISH23: 0 | ISI23: 0 | ISJ23: 0 | ISK23: 0 | ISL23: 0 | ISM23: 0 | ISN23: 0 | ISO23: 0 | ISP23: 0 | ISQ23: 0 | ISR23: 0 | ISS23: 0 | IST23: 0 | ISU23: 0 | ISV23: 0 | ISW23: 0 | ISX23: 0 | ISY23: 0 | ISZ23: 0 | ITA23: 0 | ITB23: 0 | ITC23: 0 | ITD23: 0 | ITE23: 0 | ITF23: 0 | ITG23: 0 | ITH23: 0 | ITI23: 0 | ITJ23: 0 | ITK23: 0 | ITL23: 0 | ITM23: 0 | ITN23: 0 | ITO23: =ITO6+ITO8+ITO10+ITO12+ITO14+ITO16+ITO18 -> 0 | ITP23: 0 | ITQ23: 0 | ITR23: 0 | ITS23: 0 | ITT23: 0 | ITU23: 0 | ITV23: 0 | ITW23: 0 | ITX23: 0 | ITY23: 0 | ITZ23: 0 | IUA23: 0 | IUB23: 0 | IUC23: 0 | IUD23: 0 | IUE23: 0 | IUF23: 0 | IUG23: 0 | IUH23: 0 | IUI23: 0 | IUJ23: 0 | IUK23: 0 | IUL23: 0 | IUM23: 0 | IUN23: 0 | IUO23: 0 | IUP23: 0 | IUQ23: 0 | IUR23: 0 | IUS23: 0 | IUT23: 0 | IUU23: 0 | IUV23: 0 | IUW23: 0 | IUX23: 0 | IUY23: 0 | IUZ23: 0 | IVA23: 0 | IVB23: 0 | IVC23: 0 | IVD23: 0 | IVE23: 0 | IVF23: 0 | IVG23: 0 | IVH23: 0 | IVI23: 0 | IVJ23: 0 | IVK23: 0 | IVL23: 0 | IVM23: 0 | IVN23: 0 | IVO23: 0 | IVP23: 0 | IVQ23: 0 | IVR23: 0 | IVS23: 0 | IVT23: 0 | IVU23: 0 | IVV23: 0 | IVW23: 0 | IVX23: 0 | IVY23: 0 | IVZ23: 0 | IWA23: =IWA6+IWA8+IWA10+IWA12+IWA14+IWA16+IWA18 -> 0 | IWB23: 0 | IWC23: 0 | IWD23: 0 | IWE23: 0 | IWF23: 0 | IWG23: 0 | IWH23: 0 | IWI23: 0 | IWJ23: 0 | IWK23: 0 | IWL23: 0 | IWM23: 0 | IWN23: 0 | IWO23: 0 | IWP23: 0 | IWQ23: 0 | IWR23: 0 | IWS23: 0 | IWT23: 0 | IWU23: 0 | IWV23: 0 | IWW23: 0 | IWX23: 0 | IWY23: 0 | IWZ23: 0 | IXA23: 0 | IXB23: 0 | IXC23: 0 | IXD23: 0 | IXE23: 0 | IXF23: 0 | IXG23: 0 | IXH23: 0 | IXI23: 0 | IXJ23: 0 | IXK23: 0 | IXL23: 0 | IXM23: 0 | IXN23: 0 | IXO23: 0 | IXP23: 0 | IXQ23: 0 | IXR23: 0 | IXS23: 0 | IXT23: 0 | IXU23: 0 | IXV23: 0 | IXW23: 0 | IXX23: 0 | IXY23: 0 | IXZ23: 0 | IYA23: 0 | IYB23: 0 | IYC23: 0 | IYD23: 0 | IYE23: 0 | IYF23: 0 | IYG23: 0 | IYH23: 0 | IYI23: 0 | IYJ23: 0 | IYK23: 0 | IYL23: 0 | IYM23: =IYM6+IYM8+IYM10+IYM12+IYM14+IYM16+IYM18 -> 0 | IYN23: 0 | IYO23: 0 | IYP23: 0 | IYQ23: 0 | IYR23: 0 | IYS23: 0 | IYT23: 0 | IYU23: 0 | IYV23: 0 | IYW23: 0 | IYX23: 0 | IYY23: 0 | IYZ23: 0 | IZA23: 0 | IZB23: 0 | IZC23: 0 | IZD23: 0 | IZE23: 0 | IZF23: 0 | IZG23: 0 | IZH23: 0 | IZI23: 0 | IZJ23: 0 | IZK23: 0 | IZL23: 0 | IZM23: 0 | IZN23: 0 | IZO23: 0 | IZP23: 0 | IZQ23: 0 | IZR23: 0 | IZS23: 0 | IZT23: 0 | IZU23: 0 | IZV23: 0 | IZW23: 0 | IZX23: 0 | IZY23: 0 | IZZ23: 0 | JAA23: 0 | JAB23: 0 | JAC23: 0 | JAD23: 0 | JAE23: 0 | JAF23: 0 | JAG23: 0 | JAH23: 0 | JAI23: 0 | JAJ23: 0 | JAK23: 0 | JAL23: 0 | JAM23: 0 | JAN23: 0 | JAO23: 0 | JAP23: 0 | JAQ23: 0 | JAR23: 0 | JAS23: 0 | JAT23: 0 | JAU23: 0 | JAV23: 0 | JAW23: 0 | JAX23: 0 | JAY23: =JAY6+JAY8+JAY10+JAY12+JAY14+JAY16+JAY18 -> 0 | JAZ23: 0 | JBA23: 0 | JBB23: 0 | JBC23: 0 | JBD23: 0 | JBE23: 0 | JBF23: 0 | JBG23: 0 | JBH23: 0 | JBI23: 0 | JBJ23: 0 | JBK23: 0 | JBL23: 0 | JBM23: 0 | JBN23: 0 | JBO23: 0 | JBP23: 0 | JBQ23: 0 | JBR23: 0 | JBS23: 0 | JBT23: 0 | JBU23: 0 | JBV23: 0 | JBW23: 0 | JBX23: 0 | JBY23: 0 | JBZ23: 0 | JCA23: 0 | JCB23: 0 | JCC23: 0 | JCD23: 0 | JCE23: 0 | JCF23: 0 | JCG23: 0 | JCH23: 0 | JCI23: 0 | JCJ23: 0 | JCK23: 0 | JCL23: 0 | JCM23: 0 | JCN23: 0 | JCO23: 0 | JCP23: 0 | JCQ23: 0 | JCR23: 0 | JCS23: 0 | JCT23: 0 | JCU23: 0 | JCV23: 0 | JCW23: 0 | JCX23: 0 | JCY23: 0 | JCZ23: 0 | JDA23: 0 | JDB23: 0 | JDC23: 0 | JDD23: 0 | JDE23: 0 | JDF23: 0 | JDG23: 0 | JDH23: 0 | JDI23: 0 | JDJ23: 0 | JDK23: =JDK6+JDK8+JDK10+JDK12+JDK14+JDK16+JDK18 -> 0 | JDL23: 0 | JDM23: 0 | JDN23: 0 | JDO23: 0 | JDP23: 0 | JDQ23: 0 | JDR23: 0 | JDS23: 0 | JDT23: 0 | JDU23: 0 | JDV23: 0 | JDW23: 0 | JDX23: 0 | JDY23: 0 | JDZ23: 0 | JEA23: 0 | JEB23: 0 | JEC23: 0 | JED23: 0 | JEE23: 0 | JEF23: 0 | JEG23: 0 | JEH23: 0 | JEI23: 0 | JEJ23: 0 | JEK23: 0 | JEL23: 0 | JEM23: 0 | JEN23: 0 | JEO23: 0 | JEP23: 0 | JEQ23: 0 | JER23: 0 | JES23: 0 | JET23: 0 | JEU23: 0 | JEV23: 0 | JEW23: 0 | JEX23: 0 | JEY23: 0 | JEZ23: 0 | JFA23: 0 | JFB23: 0 | JFC23: 0 | JFD23: 0 | JFE23: 0 | JFF23: 0 | JFG23: 0 | JFH23: 0 | JFI23: 0 | JFJ23: 0 | JFK23: 0 | JFL23: 0 | JFM23: 0 | JFN23: 0 | JFO23: 0 | JFP23: 0 | JFQ23: 0 | JFR23: 0 | JFS23: 0 | JFT23: 0 | JFU23: 0 | JFV23: 0 | JFW23: =JFW6+JFW8+JFW10+JFW12+JFW14+JFW16+JFW18 -> 0 | JFX23: 0 | JFY23: 0 | JFZ23: 0 | JGA23: 0 | JGB23: 0 | JGC23: 0 | JGD23: 0 | JGE23: 0 | JGF23: 0 | JGG23: 0 | JGH23: 0 | JGI23: 0 | JGJ23: 0 | JGK23: 0 | JGL23: 0 | JGM23: 0 | JGN23: 0 | JGO23: 0 | JGP23: 0 | JGQ23: 0 | JGR23: 0 | JGS23: 0 | JGT23: 0 | JGU23: 0 | JGV23: 0 | JGW23: 0 | JGX23: 0 | JGY23: 0 | JGZ23: 0 | JHA23: 0 | JHB23: 0 | JHC23: 0 | JHD23: 0 | JHE23: 0 | JHF23: 0 | JHG23: 0 | JHH23: 0 | JHI23: 0 | JHJ23: 0 | JHK23: 0 | JHL23: 0 | JHM23: 0 | JHN23: 0 | JHO23: 0 | JHP23: 0 | JHQ23: 0 | JHR23: 0 | JHS23: 0 | JHT23: 0 | JHU23: 0 | JHV23: 0 | JHW23: 0 | JHX23: 0 | JHY23: 0 | JHZ23: 0 | JIA23: 0 | JIB23: 0 | JIC23: 0 | JID23: 0 | JIE23: 0 | JIF23: 0 | JIG23: 0 | JIH23: 0 | JII23: =JII6+JII8+JII10+JII12+JII14+JII16+JII18 -> 0 | JIJ23: 0 | JIK23: 0 | JIL23: 0 | JIM23: 0 | JIN23: 0 | JIO23: 0 | JIP23: 0 | JIQ23: 0 | JIR23: 0 | JIS23: 0 | JIT23: 0 | JIU23: 0 | JIV23: 0 | JIW23: 0 | JIX23: 0 | JIY23: 0 | JIZ23: 0 | JJA23: 0 | JJB23: 0 | JJC23: 0 | JJD23: 0 | JJE23: 0 | JJF23: 0 | JJG23: 0 | JJH23: 0 | JJI23: 0 | JJJ23: 0 | JJK23: 0 | JJL23: 0 | JJM23: 0 | JJN23: 0 | JJO23: 0 | JJP23: 0 | JJQ23: 0 | JJR23: 0 | JJS23: 0 | JJT23: 0 | JJU23: 0 | JJV23: 0 | JJW23: 0 | JJX23: 0 | JJY23: 0 | JJZ23: 0 | JKA23: 0 | JKB23: 0 | JKC23: 0 | JKD23: 0 | JKE23: 0 | JKF23: 0 | JKG23: 0 | JKH23: 0 | JKI23: 0 | JKJ23: 0 | JKK23: 0 | JKL23: 0 | JKM23: 0 | JKN23: 0 | JKO23: 0 | JKP23: 0 | JKQ23: 0 | JKR23: 0 | JKS23: 0 | JKT23: 0 | JKU23: =JKU6+JKU8+JKU10+JKU12+JKU14+JKU16+JKU18 -> 0 | JKV23: 0 | JKW23: 0 | JKX23: 0 | JKY23: 0 | JKZ23: 0 | JLA23: 0 | JLB23: 0 | JLC23: 0 | JLD23: 0 | JLE23: 0 | JLF23: 0 | JLG23: 0 | JLH23: 0 | JLI23: 0 | JLJ23: 0 | JLK23: 0 | JLL23: 0 | JLM23: 0 | JLN23: 0 | JLO23: 0 | JLP23: 0 | JLQ23: 0 | JLR23: 0 | JLS23: 0 | JLT23: 0 | JLU23: 0 | JLV23: 0 | JLW23: 0 | JLX23: 0 | JLY23: 0 | JLZ23: 0 | JMA23: 0 | JMB23: 0 | JMC23: 0 | JMD23: 0 | JME23: 0 | JMF23: 0 | JMG23: 0 | JMH23: 0 | JMI23: 0 | JMJ23: 0 | JMK23: 0 | JML23: 0 | JMM23: 0 | JMN23: 0 | JMO23: 0 | JMP23: 0 | JMQ23: 0 | JMR23: 0 | JMS23: 0 | JMT23: 0 | JMU23: 0 | JMV23: 0 | JMW23: 0 | JMX23: 0 | JMY23: 0 | JMZ23: 0 | JNA23: 0 | JNB23: 0 | JNC23: 0 | JND23: 0 | JNE23: 0 | JNF23: 0 | JNG23: =JNG6+JNG8+JNG10+JNG12+JNG14+JNG16+JNG18 -> 0 | JNH23: 0 | JNI23: 0 | JNJ23: 0 | JNK23: 0 | JNL23: 0 | JNM23: 0 | JNN23: 0 | JNO23: 0 | JNP23: 0 | JNQ23: 0 | JNR23: 0 | JNS23: 0 | JNT23: 0 | JNU23: 0 | JNV23: 0 | JNW23: 0 | JNX23: 0 | JNY23: 0 | JNZ23: 0 | JOA23: 0 | JOB23: 0 | JOC23: 0 | JOD23: 0 | JOE23: 0 | JOF23: 0 | JOG23: 0 | JOH23: 0 | JOI23: 0 | JOJ23: 0 | JOK23: 0 | JOL23: 0 | JOM23: 0 | JON23: 0 | JOO23: 0 | JOP23: 0 | JOQ23: 0 | JOR23: 0 | JOS23: 0 | JOT23: 0 | JOU23: 0 | JOV23: 0 | JOW23: 0 | JOX23: 0 | JOY23: 0 | JOZ23: 0 | JPA23: 0 | JPB23: 0 | JPC23: 0 | JPD23: 0 | JPE23: 0 | JPF23: 0 | JPG23: 0 | JPH23: 0 | JPI23: 0 | JPJ23: 0 | JPK23: 0 | JPL23: 0 | JPM23: 0 | JPN23: 0 | JPO23: 0 | JPP23: 0 | JPQ23: 0 | JPR23: 0 | JPS23: =JPS6+JPS8+JPS10+JPS12+JPS14+JPS16+JPS18 -> 0 | JPT23: 0 | JPU23: 0 | JPV23: 0 | JPW23: 0 | JPX23: 0 | JPY23: 0 | JPZ23: 0 | JQA23: 0 | JQB23: 0 | JQC23: 0 | JQD23: 0 | JQE23: 0 | JQF23: 0 | JQG23: 0 | JQH23: 0 | JQI23: 0 | JQJ23: 0 | JQK23: 0 | JQL23: 0 | JQM23: 0 | JQN23: 0 | JQO23: 0 | JQP23: 0 | JQQ23: 0 | JQR23: 0 | JQS23: 0 | JQT23: 0 | JQU23: 0 | JQV23: 0 | JQW23: 0 | JQX23: 0 | JQY23: 0 | JQZ23: 0 | JRA23: 0 | JRB23: 0 | JRC23: 0 | JRD23: 0 | JRE23: 0 | JRF23: 0 | JRG23: 0 | JRH23: 0 | JRI23: 0 | JRJ23: 0 | JRK23: 0 | JRL23: 0 | JRM23: 0 | JRN23: 0 | JRO23: 0 | JRP23: 0 | JRQ23: 0 | JRR23: 0 | JRS23: 0 | JRT23: 0 | JRU23: 0 | JRV23: 0 | JRW23: 0 | JRX23: 0 | JRY23: 0 | JRZ23: 0 | JSA23: 0 | JSB23: 0 | JSC23: 0 | JSD23: 0 | JSE23: =JSE6+JSE8+JSE10+JSE12+JSE14+JSE16+JSE18 -> 0 | JSF23: 0 | JSG23: 0 | JSH23: 0 | JSI23: 0 | JSJ23: 0 | JSK23: 0 | JSL23: 0 | JSM23: 0 | JSN23: 0 | JSO23: 0 | JSP23: 0 | JSQ23: 0 | JSR23: 0 | JSS23: 0 | JST23: 0 | JSU23: 0 | JSV23: 0 | JSW23: 0 | JSX23: 0 | JSY23: 0 | JSZ23: 0 | JTA23: 0 | JTB23: 0 | JTC23: 0 | JTD23: 0 | JTE23: 0 | JTF23: 0 | JTG23: 0 | JTH23: 0 | JTI23: 0 | JTJ23: 0 | JTK23: 0 | JTL23: 0 | JTM23: 0 | JTN23: 0 | JTO23: 0 | JTP23: 0 | JTQ23: 0 | JTR23: 0 | JTS23: 0 | JTT23: 0 | JTU23: 0 | JTV23: 0 | JTW23: 0 | JTX23: 0 | JTY23: 0 | JTZ23: 0 | JUA23: 0 | JUB23: 0 | JUC23: 0 | JUD23: 0 | JUE23: 0 | JUF23: 0 | JUG23: 0 | JUH23: 0 | JUI23: 0 | JUJ23: 0 | JUK23: 0 | JUL23: 0 | JUM23: 0 | JUN23: 0 | JUO23: 0 | JUP23: 0 | JUQ23: =JUQ6+JUQ8+JUQ10+JUQ12+JUQ14+JUQ16+JUQ18 -> 0 | JUR23: 0 | JUS23: 0 | JUT23: 0 | JUU23: 0 | JUV23: 0 | JUW23: 0 | JUX23: 0 | JUY23: 0 | JUZ23: 0 | JVA23: 0 | JVB23: 0 | JVC23: 0 | JVD23: 0 | JVE23: 0 | JVF23: 0 | JVG23: 0 | JVH23: 0 | JVI23: 0 | JVJ23: 0 | JVK23: 0 | JVL23: 0 | JVM23: 0 | JVN23: 0 | JVO23: 0 | JVP23: 0 | JVQ23: 0 | JVR23: 0 | JVS23: 0 | JVT23: 0 | JVU23: 0 | JVV23: 0 | JVW23: 0 | JVX23: 0 | JVY23: 0 | JVZ23: 0 | JWA23: 0 | JWB23: 0 | JWC23: 0 | JWD23: 0 | JWE23: 0 | JWF23: 0 | JWG23: 0 | JWH23: 0 | JWI23: 0 | JWJ23: 0 | JWK23: 0 | JWL23: 0 | JWM23: 0 | JWN23: 0 | JWO23: 0 | JWP23: 0 | JWQ23: 0 | JWR23: 0 | JWS23: 0 | JWT23: 0 | JWU23: 0 | JWV23: 0 | JWW23: 0 | JWX23: 0 | JWY23: 0 | JWZ23: 0 | JXA23: 0 | JXB23: 0 | JXC23: =JXC6+JXC8+JXC10+JXC12+JXC14+JXC16+JXC18 -> 0 | JXD23: 0 | JXE23: 0 | JXF23: 0 | JXG23: 0 | JXH23: 0 | JXI23: 0 | JXJ23: 0 | JXK23: 0 | JXL23: 0 | JXM23: 0 | JXN23: 0 | JXO23: 0 | JXP23: 0 | JXQ23: 0 | JXR23: 0 | JXS23: 0 | JXT23: 0 | JXU23: 0 | JXV23: 0 | JXW23: 0 | JXX23: 0 | JXY23: 0 | JXZ23: 0 | JYA23: 0 | JYB23: 0 | JYC23: 0 | JYD23: 0 | JYE23: 0 | JYF23: 0 | JYG23: 0 | JYH23: 0 | JYI23: 0 | JYJ23: 0 | JYK23: 0 | JYL23: 0 | JYM23: 0 | JYN23: 0 | JYO23: 0 | JYP23: 0 | JYQ23: 0 | JYR23: 0 | JYS23: 0 | JYT23: 0 | JYU23: 0 | JYV23: 0 | JYW23: 0 | JYX23: 0 | JYY23: 0 | JYZ23: 0 | JZA23: 0 | JZB23: 0 | JZC23: 0 | JZD23: 0 | JZE23: 0 | JZF23: 0 | JZG23: 0 | JZH23: 0 | JZI23: 0 | JZJ23: 0 | JZK23: 0 | JZL23: 0 | JZM23: 0 | JZN23: 0 | JZO23: =JZO6+JZO8+JZO10+JZO12+JZO14+JZO16+JZO18 -> 0 | JZP23: 0 | JZQ23: 0 | JZR23: 0 | JZS23: 0 | JZT23: 0 | JZU23: 0 | JZV23: 0 | JZW23: 0 | JZX23: 0 | JZY23: 0 | JZZ23: 0 | KAA23: 0 | KAB23: 0 | KAC23: 0 | KAD23: 0 | KAE23: 0 | KAF23: 0 | KAG23: 0 | KAH23: 0 | KAI23: 0 | KAJ23: 0 | KAK23: 0 | KAL23: 0 | KAM23: 0 | KAN23: 0 | KAO23: 0 | KAP23: 0 | KAQ23: 0 | KAR23: 0 | KAS23: 0 | KAT23: 0 | KAU23: 0 | KAV23: 0 | KAW23: 0 | KAX23: 0 | KAY23: 0 | KAZ23: 0 | KBA23: 0 | KBB23: 0 | KBC23: 0 | KBD23: 0 | KBE23: 0 | KBF23: 0 | KBG23: 0 | KBH23: 0 | KBI23: 0 | KBJ23: 0 | KBK23: 0 | KBL23: 0 | KBM23: 0 | KBN23: 0 | KBO23: 0 | KBP23: 0 | KBQ23: 0 | KBR23: 0 | KBS23: 0 | KBT23: 0 | KBU23: 0 | KBV23: 0 | KBW23: 0 | KBX23: 0 | KBY23: 0 | KBZ23: 0 | KCA23: =KCA6+KCA8+KCA10+KCA12+KCA14+KCA16+KCA18 -> 0 | KCB23: 0 | KCC23: 0 | KCD23: 0 | KCE23: 0 | KCF23: 0 | KCG23: 0 | KCH23: 0 | KCI23: 0 | KCJ23: 0 | KCK23: 0 | KCL23: 0 | KCM23: 0 | KCN23: 0 | KCO23: 0 | KCP23: 0 | KCQ23: 0 | KCR23: 0 | KCS23: 0 | KCT23: 0 | KCU23: 0 | KCV23: 0 | KCW23: 0 | KCX23: 0 | KCY23: 0 | KCZ23: 0 | KDA23: 0 | KDB23: 0 | KDC23: 0 | KDD23: 0 | KDE23: 0 | KDF23: 0 | KDG23: 0 | KDH23: 0 | KDI23: 0 | KDJ23: 0 | KDK23: 0 | KDL23: 0 | KDM23: 0 | KDN23: 0 | KDO23: 0 | KDP23: 0 | KDQ23: 0 | KDR23: 0 | KDS23: 0 | KDT23: 0 | KDU23: 0 | KDV23: 0 | KDW23: 0 | KDX23: 0 | KDY23: 0 | KDZ23: 0 | KEA23: 0 | KEB23: 0 | KEC23: 0 | KED23: 0 | KEE23: 0 | KEF23: 0 | KEG23: 0 | KEH23: 0 | KEI23: 0 | KEJ23: 0 | KEK23: 0 | KEL23: 0 | KEM23: =KEM6+KEM8+KEM10+KEM12+KEM14+KEM16+KEM18 -> 0 | KEN23: 0 | KEO23: 0 | KEP23: 0 | KEQ23: 0 | KER23: 0 | KES23: 0 | KET23: 0 | KEU23: 0 | KEV23: 0 | KEW23: 0 | KEX23: 0 | KEY23: 0 | KEZ23: 0 | KFA23: 0 | KFB23: 0 | KFC23: 0 | KFD23: 0 | KFE23: 0 | KFF23: 0 | KFG23: 0 | KFH23: 0 | KFI23: 0 | KFJ23: 0 | KFK23: 0 | KFL23: 0 | KFM23: 0 | KFN23: 0 | KFO23: 0 | KFP23: 0 | KFQ23: 0 | KFR23: 0 | KFS23: 0 | KFT23: 0 | KFU23: 0 | KFV23: 0 | KFW23: 0 | KFX23: 0 | KFY23: 0 | KFZ23: 0 | KGA23: 0 | KGB23: 0 | KGC23: 0 | KGD23: 0 | KGE23: 0 | KGF23: 0 | KGG23: 0 | KGH23: 0 | KGI23: 0 | KGJ23: 0 | KGK23: 0 | KGL23: 0 | KGM23: 0 | KGN23: 0 | KGO23: 0 | KGP23: 0 | KGQ23: 0 | KGR23: 0 | KGS23: 0 | KGT23: 0 | KGU23: 0 | KGV23: 0 | KGW23: 0 | KGX23: 0 | KGY23: =KGY6+KGY8+KGY10+KGY12+KGY14+KGY16+KGY18 -> 0 | KGZ23: 0 | KHA23: 0 | KHB23: 0 | KHC23: 0 | KHD23: 0 | KHE23: 0 | KHF23: 0 | KHG23: 0 | KHH23: 0 | KHI23: 0 | KHJ23: 0 | KHK23: 0 | KHL23: 0 | KHM23: 0 | KHN23: 0 | KHO23: 0 | KHP23: 0 | KHQ23: 0 | KHR23: 0 | KHS23: 0 | KHT23: 0 | KHU23: 0 | KHV23: 0 | KHW23: 0 | KHX23: 0 | KHY23: 0 | KHZ23: 0 | KIA23: 0 | KIB23: 0 | KIC23: 0 | KID23: 0 | KIE23: 0 | KIF23: 0 | KIG23: 0 | KIH23: 0 | KII23: 0 | KIJ23: 0 | KIK23: 0 | KIL23: 0 | KIM23: 0 | KIN23: 0 | KIO23: 0 | KIP23: 0 | KIQ23: 0 | KIR23: 0 | KIS23: 0 | KIT23: 0 | KIU23: 0 | KIV23: 0 | KIW23: 0 | KIX23: 0 | KIY23: 0 | KIZ23: 0 | KJA23: 0 | KJB23: 0 | KJC23: 0 | KJD23: 0 | KJE23: 0 | KJF23: 0 | KJG23: 0 | KJH23: 0 | KJI23: 0 | KJJ23: 0 | KJK23: =KJK6+KJK8+KJK10+KJK12+KJK14+KJK16+KJK18 -> 0 | KJL23: 0 | KJM23: 0 | KJN23: 0 | KJO23: 0 | KJP23: 0 | KJQ23: 0 | KJR23: 0 | KJS23: 0 | KJT23: 0 | KJU23: 0 | KJV23: 0 | KJW23: 0 | KJX23: 0 | KJY23: 0 | KJZ23: 0 | KKA23: 0 | KKB23: 0 | KKC23: 0 | KKD23: 0 | KKE23: 0 | KKF23: 0 | KKG23: 0 | KKH23: 0 | KKI23: 0 | KKJ23: 0 | KKK23: 0 | KKL23: 0 | KKM23: 0 | KKN23: 0 | KKO23: 0 | KKP23: 0 | KKQ23: 0 | KKR23: 0 | KKS23: 0 | KKT23: 0 | KKU23: 0 | KKV23: 0 | KKW23: 0 | KKX23: 0 | KKY23: 0 | KKZ23: 0 | KLA23: 0 | KLB23: 0 | KLC23: 0 | KLD23: 0 | KLE23: 0 | KLF23: 0 | KLG23: 0 | KLH23: 0 | KLI23: 0 | KLJ23: 0 | KLK23: 0 | KLL23: 0 | KLM23: 0 | KLN23: 0 | KLO23: 0 | KLP23: 0 | KLQ23: 0 | KLR23: 0 | KLS23: 0 | KLT23: 0 | KLU23: 0 | KLV23: 0 | KLW23: =KLW6+KLW8+KLW10+KLW12+KLW14+KLW16+KLW18 -> 0 | KLX23: 0 | KLY23: 0 | KLZ23: 0 | KMA23: 0 | KMB23: 0 | KMC23: 0 | KMD23: 0 | KME23: 0 | KMF23: 0 | KMG23: 0 | KMH23: 0 | KMI23: 0 | KMJ23: 0 | KMK23: 0 | KML23: 0 | KMM23: 0 | KMN23: 0 | KMO23: 0 | KMP23: 0 | KMQ23: 0 | KMR23: 0 | KMS23: 0 | KMT23: 0 | KMU23: 0 | KMV23: 0 | KMW23: 0 | KMX23: 0 | KMY23: 0 | KMZ23: 0 | KNA23: 0 | KNB23: 0 | KNC23: 0 | KND23: 0 | KNE23: 0 | KNF23: 0 | KNG23: 0 | KNH23: 0 | KNI23: 0 | KNJ23: 0 | KNK23: 0 | KNL23: 0 | KNM23: 0 | KNN23: 0 | KNO23: 0 | KNP23: 0 | KNQ23: 0 | KNR23: 0 | KNS23: 0 | KNT23: 0 | KNU23: 0 | KNV23: 0 | KNW23: 0 | KNX23: 0 | KNY23: 0 | KNZ23: 0 | KOA23: 0 | KOB23: 0 | KOC23: 0 | KOD23: 0 | KOE23: 0 | KOF23: 0 | KOG23: 0 | KOH23: 0 | KOI23: =KOI6+KOI8+KOI10+KOI12+KOI14+KOI16+KOI18 -> 0 | KOJ23: 0 | KOK23: 0 | KOL23: 0 | KOM23: 0 | KON23: 0 | KOO23: 0 | KOP23: 0 | KOQ23: 0 | KOR23: 0 | KOS23: 0 | KOT23: 0 | KOU23: 0 | KOV23: 0 | KOW23: 0 | KOX23: 0 | KOY23: 0 | KOZ23: 0 | KPA23: 0 | KPB23: 0 | KPC23: 0 | KPD23: 0 | KPE23: 0 | KPF23: 0 | KPG23: 0 | KPH23: 0 | KPI23: 0 | KPJ23: 0 | KPK23: 0 | KPL23: 0 | KPM23: 0 | KPN23: 0 | KPO23: 0 | KPP23: 0 | KPQ23: 0 | KPR23: 0 | KPS23: 0 | KPT23: 0 | KPU23: 0 | KPV23: 0 | KPW23: 0 | KPX23: 0 | KPY23: 0 | KPZ23: 0 | KQA23: 0 | KQB23: 0 | KQC23: 0 | KQD23: 0 | KQE23: 0 | KQF23: 0 | KQG23: 0 | KQH23: 0 | KQI23: 0 | KQJ23: 0 | KQK23: 0 | KQL23: 0 | KQM23: 0 | KQN23: 0 | KQO23: 0 | KQP23: 0 | KQQ23: 0 | KQR23: 0 | KQS23: 0 | KQT23: 0 | KQU23: =KQU6+KQU8+KQU10+KQU12+KQU14+KQU16+KQU18 -> 0 | KQV23: 0 | KQW23: 0 | KQX23: 0 | KQY23: 0 | KQZ23: 0 | KRA23: 0 | KRB23: 0 | KRC23: 0 | KRD23: 0 | KRE23: 0 | KRF23: 0 | KRG23: 0 | KRH23: 0 | KRI23: 0 | KRJ23: 0 | KRK23: 0 | KRL23: 0 | KRM23: 0 | KRN23: 0 | KRO23: 0 | KRP23: 0 | KRQ23: 0 | KRR23: 0 | KRS23: 0 | KRT23: 0 | KRU23: 0 | KRV23: 0 | KRW23: 0 | KRX23: 0 | KRY23: 0 | KRZ23: 0 | KSA23: 0 | KSB23: 0 | KSC23: 0 | KSD23: 0 | KSE23: 0 | KSF23: 0 | KSG23: 0 | KSH23: 0 | KSI23: 0 | KSJ23: 0 | KSK23: 0 | KSL23: 0 | KSM23: 0 | KSN23: 0 | KSO23: 0 | KSP23: 0 | KSQ23: 0 | KSR23: 0 | KSS23: 0 | KST23: 0 | KSU23: 0 | KSV23: 0 | KSW23: 0 | KSX23: 0 | KSY23: 0 | KSZ23: 0 | KTA23: 0 | KTB23: 0 | KTC23: 0 | KTD23: 0 | KTE23: 0 | KTF23: 0 | KTG23: =KTG6+KTG8+KTG10+KTG12+KTG14+KTG16+KTG18 -> 0 | KTH23: 0 | KTI23: 0 | KTJ23: 0 | KTK23: 0 | KTL23: 0 | KTM23: 0 | KTN23: 0 | KTO23: 0 | KTP23: 0 | KTQ23: 0 | KTR23: 0 | KTS23: 0 | KTT23: 0 | KTU23: 0 | KTV23: 0 | KTW23: 0 | KTX23: 0 | KTY23: 0 | KTZ23: 0 | KUA23: 0 | KUB23: 0 | KUC23: 0 | KUD23: 0 | KUE23: 0 | KUF23: 0 | KUG23: 0 | KUH23: 0 | KUI23: 0 | KUJ23: 0 | KUK23: 0 | KUL23: 0 | KUM23: 0 | KUN23: 0 | KUO23: 0 | KUP23: 0 | KUQ23: 0 | KUR23: 0 | KUS23: 0 | KUT23: 0 | KUU23: 0 | KUV23: 0 | KUW23: 0 | KUX23: 0 | KUY23: 0 | KUZ23: 0 | KVA23: 0 | KVB23: 0 | KVC23: 0 | KVD23: 0 | KVE23: 0 | KVF23: 0 | KVG23: 0 | KVH23: 0 | KVI23: 0 | KVJ23: 0 | KVK23: 0 | KVL23: 0 | KVM23: 0 | KVN23: 0 | KVO23: 0 | KVP23: 0 | KVQ23: 0 | KVR23: 0 | KVS23: =KVS6+KVS8+KVS10+KVS12+KVS14+KVS16+KVS18 -> 0 | KVT23: 0 | KVU23: 0 | KVV23: 0 | KVW23: 0 | KVX23: 0 | KVY23: 0 | KVZ23: 0 | KWA23: 0 | KWB23: 0 | KWC23: 0 | KWD23: 0 | KWE23: 0 | KWF23: 0 | KWG23: 0 | KWH23: 0 | KWI23: 0 | KWJ23: 0 | KWK23: 0 | KWL23: 0 | KWM23: 0 | KWN23: 0 | KWO23: 0 | KWP23: 0 | KWQ23: 0 | KWR23: 0 | KWS23: 0 | KWT23: 0 | KWU23: 0 | KWV23: 0 | KWW23: 0 | KWX23: 0 | KWY23: 0 | KWZ23: 0 | KXA23: 0 | KXB23: 0 | KXC23: 0 | KXD23: 0 | KXE23: 0 | KXF23: 0 | KXG23: 0 | KXH23: 0 | KXI23: 0 | KXJ23: 0 | KXK23: 0 | KXL23: 0 | KXM23: 0 | KXN23: 0 | KXO23: 0 | KXP23: 0 | KXQ23: 0 | KXR23: 0 | KXS23: 0 | KXT23: 0 | KXU23: 0 | KXV23: 0 | KXW23: 0 | KXX23: 0 | KXY23: 0 | KXZ23: 0 | KYA23: 0 | KYB23: 0 | KYC23: 0 | KYD23: 0 | KYE23: =KYE6+KYE8+KYE10+KYE12+KYE14+KYE16+KYE18 -> 0 | KYF23: 0 | KYG23: 0 | KYH23: 0 | KYI23: 0 | KYJ23: 0 | KYK23: 0 | KYL23: 0 | KYM23: 0 | KYN23: 0 | KYO23: 0 | KYP23: 0 | KYQ23: 0 | KYR23: 0 | KYS23: 0 | KYT23: 0 | KYU23: 0 | KYV23: 0 | KYW23: 0 | KYX23: 0 | KYY23: 0 | KYZ23: 0 | KZA23: 0 | KZB23: 0 | KZC23: 0 | KZD23: 0 | KZE23: 0 | KZF23: 0 | KZG23: 0 | KZH23: 0 | KZI23: 0 | KZJ23: 0 | KZK23: 0 | KZL23: 0 | KZM23: 0 | KZN23: 0 | KZO23: 0 | KZP23: 0 | KZQ23: 0 | KZR23: 0 | KZS23: 0 | KZT23: 0 | KZU23: 0 | KZV23: 0 | KZW23: 0 | KZX23: 0 | KZY23: 0 | KZZ23: 0 | LAA23: 0 | LAB23: 0 | LAC23: 0 | LAD23: 0 | LAE23: 0 | LAF23: 0 | LAG23: 0 | LAH23: 0 | LAI23: 0 | LAJ23: 0 | LAK23: 0 | LAL23: 0 | LAM23: 0 | LAN23: 0 | LAO23: 0 | LAP23: 0 | LAQ23: =LAQ6+LAQ8+LAQ10+LAQ12+LAQ14+LAQ16+LAQ18 -> 0 | LAR23: 0 | LAS23: 0 | LAT23: 0 | LAU23: 0 | LAV23: 0 | LAW23: 0 | LAX23: 0 | LAY23: 0 | LAZ23: 0 | LBA23: 0 | LBB23: 0 | LBC23: 0 | LBD23: 0 | LBE23: 0 | LBF23: 0 | LBG23: 0 | LBH23: 0 | LBI23: 0 | LBJ23: 0 | LBK23: 0 | LBL23: 0 | LBM23: 0 | LBN23: 0 | LBO23: 0 | LBP23: 0 | LBQ23: 0 | LBR23: 0 | LBS23: 0 | LBT23: 0 | LBU23: 0 | LBV23: 0 | LBW23: 0 | LBX23: 0 | LBY23: 0 | LBZ23: 0 | LCA23: 0 | LCB23: 0 | LCC23: 0 | LCD23: 0 | LCE23: 0 | LCF23: 0 | LCG23: 0 | LCH23: 0 | LCI23: 0 | LCJ23: 0 | LCK23: 0 | LCL23: 0 | LCM23: 0 | LCN23: 0 | LCO23: 0 | LCP23: 0 | LCQ23: 0 | LCR23: 0 | LCS23: 0 | LCT23: 0 | LCU23: 0 | LCV23: 0 | LCW23: 0 | LCX23: 0 | LCY23: 0 | LCZ23: 0 | LDA23: 0 | LDB23: 0 | LDC23: =LDC6+LDC8+LDC10+LDC12+LDC14+LDC16+LDC18 -> 0 | LDD23: 0 | LDE23: 0 | LDF23: 0 | LDG23: 0 | LDH23: 0 | LDI23: 0 | LDJ23: 0 | LDK23: 0 | LDL23: 0 | LDM23: 0 | LDN23: 0 | LDO23: 0 | LDP23: 0 | LDQ23: 0 | LDR23: 0 | LDS23: 0 | LDT23: 0 | LDU23: 0 | LDV23: 0 | LDW23: 0 | LDX23: 0 | LDY23: 0 | LDZ23: 0 | LEA23: 0 | LEB23: 0 | LEC23: 0 | LED23: 0 | LEE23: 0 | LEF23: 0 | LEG23: 0 | LEH23: 0 | LEI23: 0 | LEJ23: 0 | LEK23: 0 | LEL23: 0 | LEM23: 0 | LEN23: 0 | LEO23: 0 | LEP23: 0 | LEQ23: 0 | LER23: 0 | LES23: 0 | LET23: 0 | LEU23: 0 | LEV23: 0 | LEW23: 0 | LEX23: 0 | LEY23: 0 | LEZ23: 0 | LFA23: 0 | LFB23: 0 | LFC23: 0 | LFD23: 0 | LFE23: 0 | LFF23: 0 | LFG23: 0 | LFH23: 0 | LFI23: 0 | LFJ23: 0 | LFK23: 0 | LFL23: 0 | LFM23: 0 | LFN23: 0 | LFO23: =LFO6+LFO8+LFO10+LFO12+LFO14+LFO16+LFO18 -> 0 | LFP23: 0 | LFQ23: 0 | LFR23: 0 | LFS23: 0 | LFT23: 0 | LFU23: 0 | LFV23: 0 | LFW23: 0 | LFX23: 0 | LFY23: 0 | LFZ23: 0 | LGA23: 0 | LGB23: 0 | LGC23: 0 | LGD23: 0 | LGE23: 0 | LGF23: 0 | LGG23: 0 | LGH23: 0 | LGI23: 0 | LGJ23: 0 | LGK23: 0 | LGL23: 0 | LGM23: 0 | LGN23: 0 | LGO23: 0 | LGP23: 0 | LGQ23: 0 | LGR23: 0 | LGS23: 0 | LGT23: 0 | LGU23: 0 | LGV23: 0 | LGW23: 0 | LGX23: 0 | LGY23: 0 | LGZ23: 0 | LHA23: 0 | LHB23: 0 | LHC23: 0 | LHD23: 0 | LHE23: 0 | LHF23: 0 | LHG23: 0 | LHH23: 0 | LHI23: 0 | LHJ23: 0 | LHK23: 0 | LHL23: 0 | LHM23: 0 | LHN23: 0 | LHO23: 0 | LHP23: 0 | LHQ23: 0 | LHR23: 0 | LHS23: 0 | LHT23: 0 | LHU23: 0 | LHV23: 0 | LHW23: 0 | LHX23: 0 | LHY23: 0 | LHZ23: 0 | LIA23: =LIA6+LIA8+LIA10+LIA12+LIA14+LIA16+LIA18 -> 0 | LIB23: 0 | LIC23: 0 | LID23: 0 | LIE23: 0 | LIF23: 0 | LIG23: 0 | LIH23: 0 | LII23: 0 | LIJ23: 0 | LIK23: 0 | LIL23: 0 | LIM23: 0 | LIN23: 0 | LIO23: 0 | LIP23: 0 | LIQ23: 0 | LIR23: 0 | LIS23: 0 | LIT23: 0 | LIU23: 0 | LIV23: 0 | LIW23: 0 | LIX23: 0 | LIY23: 0 | LIZ23: 0 | LJA23: 0 | LJB23: 0 | LJC23: 0 | LJD23: 0 | LJE23: 0 | LJF23: 0 | LJG23: 0 | LJH23: 0 | LJI23: 0 | LJJ23: 0 | LJK23: 0 | LJL23: 0 | LJM23: 0 | LJN23: 0 | LJO23: 0 | LJP23: 0 | LJQ23: 0 | LJR23: 0 | LJS23: 0 | LJT23: 0 | LJU23: 0 | LJV23: 0 | LJW23: 0 | LJX23: 0 | LJY23: 0 | LJZ23: 0 | LKA23: 0 | LKB23: 0 | LKC23: 0 | LKD23: 0 | LKE23: 0 | LKF23: 0 | LKG23: 0 | LKH23: 0 | LKI23: 0 | LKJ23: 0 | LKK23: 0 | LKL23: 0 | LKM23: =LKM6+LKM8+LKM10+LKM12+LKM14+LKM16+LKM18 -> 0 | LKN23: 0 | LKO23: 0 | LKP23: 0 | LKQ23: 0 | LKR23: 0 | LKS23: 0 | LKT23: 0 | LKU23: 0 | LKV23: 0 | LKW23: 0 | LKX23: 0 | LKY23: 0 | LKZ23: 0 | LLA23: 0 | LLB23: 0 | LLC23: 0 | LLD23: 0 | LLE23: 0 | LLF23: 0 | LLG23: 0 | LLH23: 0 | LLI23: 0 | LLJ23: 0 | LLK23: 0 | LLL23: 0 | LLM23: 0 | LLN23: 0 | LLO23: 0 | LLP23: 0 | LLQ23: 0 | LLR23: 0 | LLS23: 0 | LLT23: 0 | LLU23: 0 | LLV23: 0 | LLW23: 0 | LLX23: 0 | LLY23: 0 | LLZ23: 0 | LMA23: 0 | LMB23: 0 | LMC23: 0 | LMD23: 0 | LME23: 0 | LMF23: 0 | LMG23: 0 | LMH23: 0 | LMI23: 0 | LMJ23: 0 | LMK23: 0 | LML23: 0 | LMM23: 0 | LMN23: 0 | LMO23: 0 | LMP23: 0 | LMQ23: 0 | LMR23: 0 | LMS23: 0 | LMT23: 0 | LMU23: 0 | LMV23: 0 | LMW23: 0 | LMX23: 0 | LMY23: =LMY6+LMY8+LMY10+LMY12+LMY14+LMY16+LMY18 -> 0 | LMZ23: 0 | LNA23: 0 | LNB23: 0 | LNC23: 0 | LND23: 0 | LNE23: 0 | LNF23: 0 | LNG23: 0 | LNH23: 0 | LNI23: 0 | LNJ23: 0 | LNK23: 0 | LNL23: 0 | LNM23: 0 | LNN23: 0 | LNO23: 0 | LNP23: 0 | LNQ23: 0 | LNR23: 0 | LNS23: 0 | LNT23: 0 | LNU23: 0 | LNV23: 0 | LNW23: 0 | LNX23: 0 | LNY23: 0 | LNZ23: 0 | LOA23: 0 | LOB23: 0 | LOC23: 0 | LOD23: 0 | LOE23: 0 | LOF23: 0 | LOG23: 0 | LOH23: 0 | LOI23: 0 | LOJ23: 0 | LOK23: 0 | LOL23: 0 | LOM23: 0 | LON23: 0 | LOO23: 0 | LOP23: 0 | LOQ23: 0 | LOR23: 0 | LOS23: 0 | LOT23: 0 | LOU23: 0 | LOV23: 0 | LOW23: 0 | LOX23: 0 | LOY23: 0 | LOZ23: 0 | LPA23: 0 | LPB23: 0 | LPC23: 0 | LPD23: 0 | LPE23: 0 | LPF23: 0 | LPG23: 0 | LPH23: 0 | LPI23: 0 | LPJ23: 0 | LPK23: =LPK6+LPK8+LPK10+LPK12+LPK14+LPK16+LPK18 -> 0 | LPL23: 0 | LPM23: 0 | LPN23: 0 | LPO23: 0 | LPP23: 0 | LPQ23: 0 | LPR23: 0 | LPS23: 0 | LPT23: 0 | LPU23: 0 | LPV23: 0 | LPW23: 0 | LPX23: 0 | LPY23: 0 | LPZ23: 0 | LQA23: 0 | LQB23: 0 | LQC23: 0 | LQD23: 0 | LQE23: 0 | LQF23: 0 | LQG23: 0 | LQH23: 0 | LQI23: 0 | LQJ23: 0 | LQK23: 0 | LQL23: 0 | LQM23: 0 | LQN23: 0 | LQO23: 0 | LQP23: 0 | LQQ23: 0 | LQR23: 0 | LQS23: 0 | LQT23: 0 | LQU23: 0 | LQV23: 0 | LQW23: 0 | LQX23: 0 | LQY23: 0 | LQZ23: 0 | LRA23: 0 | LRB23: 0 | LRC23: 0 | LRD23: 0 | LRE23: 0 | LRF23: 0 | LRG23: 0 | LRH23: 0 | LRI23: 0 | LRJ23: 0 | LRK23: 0 | LRL23: 0 | LRM23: 0 | LRN23: 0 | LRO23: 0 | LRP23: 0 | LRQ23: 0 | LRR23: 0 | LRS23: 0 | LRT23: 0 | LRU23: 0 | LRV23: 0 | LRW23: =LRW6+LRW8+LRW10+LRW12+LRW14+LRW16+LRW18 -> 0 | LRX23: 0 | LRY23: 0 | LRZ23: 0 | LSA23: 0 | LSB23: 0 | LSC23: 0 | LSD23: 0 | LSE23: 0 | LSF23: 0 | LSG23: 0 | LSH23: 0 | LSI23: 0 | LSJ23: 0 | LSK23: 0 | LSL23: 0 | LSM23: 0 | LSN23: 0 | LSO23: 0 | LSP23: 0 | LSQ23: 0 | LSR23: 0 | LSS23: 0 | LST23: 0 | LSU23: 0 | LSV23: 0 | LSW23: 0 | LSX23: 0 | LSY23: 0 | LSZ23: 0 | LTA23: 0 | LTB23: 0 | LTC23: 0 | LTD23: 0 | LTE23: 0 | LTF23: 0 | LTG23: 0 | LTH23: 0 | LTI23: 0 | LTJ23: 0 | LTK23: 0 | LTL23: 0 | LTM23: 0 | LTN23: 0 | LTO23: 0 | LTP23: 0 | LTQ23: 0 | LTR23: 0 | LTS23: 0 | LTT23: 0 | LTU23: 0 | LTV23: 0 | LTW23: 0 | LTX23: 0 | LTY23: 0 | LTZ23: 0 | LUA23: 0 | LUB23: 0 | LUC23: 0 | LUD23: 0 | LUE23: 0 | LUF23: 0 | LUG23: 0 | LUH23: 0 | LUI23: =LUI6+LUI8+LUI10+LUI12+LUI14+LUI16+LUI18 -> 0 | LUJ23: 0 | LUK23: 0 | LUL23: 0 | LUM23: 0 | LUN23: 0 | LUO23: 0 | LUP23: 0 | LUQ23: 0 | LUR23: 0 | LUS23: 0 | LUT23: 0 | LUU23: 0 | LUV23: 0 | LUW23: 0 | LUX23: 0 | LUY23: 0 | LUZ23: 0 | LVA23: 0 | LVB23: 0 | LVC23: 0 | LVD23: 0 | LVE23: 0 | LVF23: 0 | LVG23: 0 | LVH23: 0 | LVI23: 0 | LVJ23: 0 | LVK23: 0 | LVL23: 0 | LVM23: 0 | LVN23: 0 | LVO23: 0 | LVP23: 0 | LVQ23: 0 | LVR23: 0 | LVS23: 0 | LVT23: 0 | LVU23: 0 | LVV23: 0 | LVW23: 0 | LVX23: 0 | LVY23: 0 | LVZ23: 0 | LWA23: 0 | LWB23: 0 | LWC23: 0 | LWD23: 0 | LWE23: 0 | LWF23: 0 | LWG23: 0 | LWH23: 0 | LWI23: 0 | LWJ23: 0 | LWK23: 0 | LWL23: 0 | LWM23: 0 | LWN23: 0 | LWO23: 0 | LWP23: 0 | LWQ23: 0 | LWR23: 0 | LWS23: 0 | LWT23: 0 | LWU23: =LWU6+LWU8+LWU10+LWU12+LWU14+LWU16+LWU18 -> 0 | LWV23: 0 | LWW23: 0 | LWX23: 0 | LWY23: 0 | LWZ23: 0 | LXA23: 0 | LXB23: 0 | LXC23: 0 | LXD23: 0 | LXE23: 0 | LXF23: 0 | LXG23: 0 | LXH23: 0 | LXI23: 0 | LXJ23: 0 | LXK23: 0 | LXL23: 0 | LXM23: 0 | LXN23: 0 | LXO23: 0 | LXP23: 0 | LXQ23: 0 | LXR23: 0 | LXS23: 0 | LXT23: 0 | LXU23: 0 | LXV23: 0 | LXW23: 0 | LXX23: 0 | LXY23: 0 | LXZ23: 0 | LYA23: 0 | LYB23: 0 | LYC23: 0 | LYD23: 0 | LYE23: 0 | LYF23: 0 | LYG23: 0 | LYH23: 0 | LYI23: 0 | LYJ23: 0 | LYK23: 0 | LYL23: 0 | LYM23: 0 | LYN23: 0 | LYO23: 0 | LYP23: 0 | LYQ23: 0 | LYR23: 0 | LYS23: 0 | LYT23: 0 | LYU23: 0 | LYV23: 0 | LYW23: 0 | LYX23: 0 | LYY23: 0 | LYZ23: 0 | LZA23: 0 | LZB23: 0 | LZC23: 0 | LZD23: 0 | LZE23: 0 | LZF23: 0 | LZG23: =LZG6+LZG8+LZG10+LZG12+LZG14+LZG16+LZG18 -> 0 | LZH23: 0 | LZI23: 0 | LZJ23: 0 | LZK23: 0 | LZL23: 0 | LZM23: 0 | LZN23: 0 | LZO23: 0 | LZP23: 0 | LZQ23: 0 | LZR23: 0 | LZS23: 0 | LZT23: 0 | LZU23: 0 | LZV23: 0 | LZW23: 0 | LZX23: 0 | LZY23: 0 | LZZ23: 0 | MAA23: 0 | MAB23: 0 | MAC23: 0 | MAD23: 0 | MAE23: 0 | MAF23: 0 | MAG23: 0 | MAH23: 0 | MAI23: 0 | MAJ23: 0 | MAK23: 0 | MAL23: 0 | MAM23: 0 | MAN23: 0 | MAO23: 0 | MAP23: 0 | MAQ23: 0 | MAR23: 0 | MAS23: 0 | MAT23: 0 | MAU23: 0 | MAV23: 0 | MAW23: 0 | MAX23: 0 | MAY23: 0 | MAZ23: 0 | MBA23: 0 | MBB23: 0 | MBC23: 0 | MBD23: 0 | MBE23: 0 | MBF23: 0 | MBG23: 0 | MBH23: 0 | MBI23: 0 | MBJ23: 0 | MBK23: 0 | MBL23: 0 | MBM23: 0 | MBN23: 0 | MBO23: 0 | MBP23: 0 | MBQ23: 0 | MBR23: 0 | MBS23: =MBS6+MBS8+MBS10+MBS12+MBS14+MBS16+MBS18 -> 0 | MBT23: 0 | MBU23: 0 | MBV23: 0 | MBW23: 0 | MBX23: 0 | MBY23: 0 | MBZ23: 0 | MCA23: 0 | MCB23: 0 | MCC23: 0 | MCD23: 0 | MCE23: 0 | MCF23: 0 | MCG23: 0 | MCH23: 0 | MCI23: 0 | MCJ23: 0 | MCK23: 0 | MCL23: 0 | MCM23: 0 | MCN23: 0 | MCO23: 0 | MCP23: 0 | MCQ23: 0 | MCR23: 0 | MCS23: 0 | MCT23: 0 | MCU23: 0 | MCV23: 0 | MCW23: 0 | MCX23: 0 | MCY23: 0 | MCZ23: 0 | MDA23: 0 | MDB23: 0 | MDC23: 0 | MDD23: 0 | MDE23: 0 | MDF23: 0 | MDG23: 0 | MDH23: 0 | MDI23: 0 | MDJ23: 0 | MDK23: 0 | MDL23: 0 | MDM23: 0 | MDN23: 0 | MDO23: 0 | MDP23: 0 | MDQ23: 0 | MDR23: 0 | MDS23: 0 | MDT23: 0 | MDU23: 0 | MDV23: 0 | MDW23: 0 | MDX23: 0 | MDY23: 0 | MDZ23: 0 | MEA23: 0 | MEB23: 0 | MEC23: 0 | MED23: 0 | MEE23: =MEE6+MEE8+MEE10+MEE12+MEE14+MEE16+MEE18 -> 0 | MEF23: 0 | MEG23: 0 | MEH23: 0 | MEI23: 0 | MEJ23: 0 | MEK23: 0 | MEL23: 0 | MEM23: 0 | MEN23: 0 | MEO23: 0 | MEP23: 0 | MEQ23: 0 | MER23: 0 | MES23: 0 | MET23: 0 | MEU23: 0 | MEV23: 0 | MEW23: 0 | MEX23: 0 | MEY23: 0 | MEZ23: 0 | MFA23: 0 | MFB23: 0 | MFC23: 0 | MFD23: 0 | MFE23: 0 | MFF23: 0 | MFG23: 0 | MFH23: 0 | MFI23: 0 | MFJ23: 0 | MFK23: 0 | MFL23: 0 | MFM23: 0 | MFN23: 0 | MFO23: 0 | MFP23: 0 | MFQ23: 0 | MFR23: 0 | MFS23: 0 | MFT23: 0 | MFU23: 0 | MFV23: 0 | MFW23: 0 | MFX23: 0 | MFY23: 0 | MFZ23: 0 | MGA23: 0 | MGB23: 0 | MGC23: 0 | MGD23: 0 | MGE23: 0 | MGF23: 0 | MGG23: 0 | MGH23: 0 | MGI23: 0 | MGJ23: 0 | MGK23: 0 | MGL23: 0 | MGM23: 0 | MGN23: 0 | MGO23: 0 | MGP23: 0 | MGQ23: =MGQ6+MGQ8+MGQ10+MGQ12+MGQ14+MGQ16+MGQ18 -> 0 | MGR23: 0 | MGS23: 0 | MGT23: 0 | MGU23: 0 | MGV23: 0 | MGW23: 0 | MGX23: 0 | MGY23: 0 | MGZ23: 0 | MHA23: 0 | MHB23: 0 | MHC23: 0 | MHD23: 0 | MHE23: 0 | MHF23: 0 | MHG23: 0 | MHH23: 0 | MHI23: 0 | MHJ23: 0 | MHK23: 0 | MHL23: 0 | MHM23: 0 | MHN23: 0 | MHO23: 0 | MHP23: 0 | MHQ23: 0 | MHR23: 0 | MHS23: 0 | MHT23: 0 | MHU23: 0 | MHV23: 0 | MHW23: 0 | MHX23: 0 | MHY23: 0 | MHZ23: 0 | MIA23: 0 | MIB23: 0 | MIC23: 0 | MID23: 0 | MIE23: 0 | MIF23: 0 | MIG23: 0 | MIH23: 0 | MII23: 0 | MIJ23: 0 | MIK23: 0 | MIL23: 0 | MIM23: 0 | MIN23: 0 | MIO23: 0 | MIP23: 0 | MIQ23: 0 | MIR23: 0 | MIS23: 0 | MIT23: 0 | MIU23: 0 | MIV23: 0 | MIW23: 0 | MIX23: 0 | MIY23: 0 | MIZ23: 0 | MJA23: 0 | MJB23: 0 | MJC23: =MJC6+MJC8+MJC10+MJC12+MJC14+MJC16+MJC18 -> 0 | MJD23: 0 | MJE23: 0 | MJF23: 0 | MJG23: 0 | MJH23: 0 | MJI23: 0 | MJJ23: 0 | MJK23: 0 | MJL23: 0 | MJM23: 0 | MJN23: 0 | MJO23: 0 | MJP23: 0 | MJQ23: 0 | MJR23: 0 | MJS23: 0 | MJT23: 0 | MJU23: 0 | MJV23: 0 | MJW23: 0 | MJX23: 0 | MJY23: 0 | MJZ23: 0 | MKA23: 0 | MKB23: 0 | MKC23: 0 | MKD23: 0 | MKE23: 0 | MKF23: 0 | MKG23: 0 | MKH23: 0 | MKI23: 0 | MKJ23: 0 | MKK23: 0 | MKL23: 0 | MKM23: 0 | MKN23: 0 | MKO23: 0 | MKP23: 0 | MKQ23: 0 | MKR23: 0 | MKS23: 0 | MKT23: 0 | MKU23: 0 | MKV23: 0 | MKW23: 0 | MKX23: 0 | MKY23: 0 | MKZ23: 0 | MLA23: 0 | MLB23: 0 | MLC23: 0 | MLD23: 0 | MLE23: 0 | MLF23: 0 | MLG23: 0 | MLH23: 0 | MLI23: 0 | MLJ23: 0 | MLK23: 0 | MLL23: 0 | MLM23: 0 | MLN23: 0 | MLO23: =MLO6+MLO8+MLO10+MLO12+MLO14+MLO16+MLO18 -> 0 | MLP23: 0 | MLQ23: 0 | MLR23: 0 | MLS23: 0 | MLT23: 0 | MLU23: 0 | MLV23: 0 | MLW23: 0 | MLX23: 0 | MLY23: 0 | MLZ23: 0 | MMA23: 0 | MMB23: 0 | MMC23: 0 | MMD23: 0 | MME23: 0 | MMF23: 0 | MMG23: 0 | MMH23: 0 | MMI23: 0 | MMJ23: 0 | MMK23: 0 | MML23: 0 | MMM23: 0 | MMN23: 0 | MMO23: 0 | MMP23: 0 | MMQ23: 0 | MMR23: 0 | MMS23: 0 | MMT23: 0 | MMU23: 0 | MMV23: 0 | MMW23: 0 | MMX23: 0 | MMY23: 0 | MMZ23: 0 | MNA23: 0 | MNB23: 0 | MNC23: 0 | MND23: 0 | MNE23: 0 | MNF23: 0 | MNG23: 0 | MNH23: 0 | MNI23: 0 | MNJ23: 0 | MNK23: 0 | MNL23: 0 | MNM23: 0 | MNN23: 0 | MNO23: 0 | MNP23: 0 | MNQ23: 0 | MNR23: 0 | MNS23: 0 | MNT23: 0 | MNU23: 0 | MNV23: 0 | MNW23: 0 | MNX23: 0 | MNY23: 0 | MNZ23: 0 | MOA23: =MOA6+MOA8+MOA10+MOA12+MOA14+MOA16+MOA18 -> 0 | MOB23: 0 | MOC23: 0 | MOD23: 0 | MOE23: 0 | MOF23: 0 | MOG23: 0 | MOH23: 0 | MOI23: 0 | MOJ23: 0 | MOK23: 0 | MOL23: 0 | MOM23: 0 | MON23: 0 | MOO23: 0 | MOP23: 0 | MOQ23: 0 | MOR23: 0 | MOS23: 0 | MOT23: 0 | MOU23: 0 | MOV23: 0 | MOW23: 0 | MOX23: 0 | MOY23: 0 | MOZ23: 0 | MPA23: 0 | MPB23: 0 | MPC23: 0 | MPD23: 0 | MPE23: 0 | MPF23: 0 | MPG23: 0 | MPH23: 0 | MPI23: 0 | MPJ23: 0 | MPK23: 0 | MPL23: 0 | MPM23: 0 | MPN23: 0 | MPO23: 0 | MPP23: 0 | MPQ23: 0 | MPR23: 0 | MPS23: 0 | MPT23: 0 | MPU23: 0 | MPV23: 0 | MPW23: 0 | MPX23: 0 | MPY23: 0 | MPZ23: 0 | MQA23: 0 | MQB23: 0 | MQC23: 0 | MQD23: 0 | MQE23: 0 | MQF23: 0 | MQG23: 0 | MQH23: 0 | MQI23: 0 | MQJ23: 0 | MQK23: 0 | MQL23: 0 | MQM23: =MQM6+MQM8+MQM10+MQM12+MQM14+MQM16+MQM18 -> 0 | MQN23: 0 | MQO23: 0 | MQP23: 0 | MQQ23: 0 | MQR23: 0 | MQS23: 0 | MQT23: 0 | MQU23: 0 | MQV23: 0 | MQW23: 0 | MQX23: 0 | MQY23: 0 | MQZ23: 0 | MRA23: 0 | MRB23: 0 | MRC23: 0 | MRD23: 0 | MRE23: 0 | MRF23: 0 | MRG23: 0 | MRH23: 0 | MRI23: 0 | MRJ23: 0 | MRK23: 0 | MRL23: 0 | MRM23: 0 | MRN23: 0 | MRO23: 0 | MRP23: 0 | MRQ23: 0 | MRR23: 0 | MRS23: 0 | MRT23: 0 | MRU23: 0 | MRV23: 0 | MRW23: 0 | MRX23: 0 | MRY23: 0 | MRZ23: 0 | MSA23: 0 | MSB23: 0 | MSC23: 0 | MSD23: 0 | MSE23: 0 | MSF23: 0 | MSG23: 0 | MSH23: 0 | MSI23: 0 | MSJ23: 0 | MSK23: 0 | MSL23: 0 | MSM23: 0 | MSN23: 0 | MSO23: 0 | MSP23: 0 | MSQ23: 0 | MSR23: 0 | MSS23: 0 | MST23: 0 | MSU23: 0 | MSV23: 0 | MSW23: 0 | MSX23: 0 | MSY23: =MSY6+MSY8+MSY10+MSY12+MSY14+MSY16+MSY18 -> 0 | MSZ23: 0 | MTA23: 0 | MTB23: 0 | MTC23: 0 | MTD23: 0 | MTE23: 0 | MTF23: 0 | MTG23: 0 | MTH23: 0 | MTI23: 0 | MTJ23: 0 | MTK23: 0 | MTL23: 0 | MTM23: 0 | MTN23: 0 | MTO23: 0 | MTP23: 0 | MTQ23: 0 | MTR23: 0 | MTS23: 0 | MTT23: 0 | MTU23: 0 | MTV23: 0 | MTW23: 0 | MTX23: 0 | MTY23: 0 | MTZ23: 0 | MUA23: 0 | MUB23: 0 | MUC23: 0 | MUD23: 0 | MUE23: 0 | MUF23: 0 | MUG23: 0 | MUH23: 0 | MUI23: 0 | MUJ23: 0 | MUK23: 0 | MUL23: 0 | MUM23: 0 | MUN23: 0 | MUO23: 0 | MUP23: 0 | MUQ23: 0 | MUR23: 0 | MUS23: 0 | MUT23: 0 | MUU23: 0 | MUV23: 0 | MUW23: 0 | MUX23: 0 | MUY23: 0 | MUZ23: 0 | MVA23: 0 | MVB23: 0 | MVC23: 0 | MVD23: 0 | MVE23: 0 | MVF23: 0 | MVG23: 0 | MVH23: 0 | MVI23: 0 | MVJ23: 0 | MVK23: =MVK6+MVK8+MVK10+MVK12+MVK14+MVK16+MVK18 -> 0 | MVL23: 0 | MVM23: 0 | MVN23: 0 | MVO23: 0 | MVP23: 0 | MVQ23: 0 | MVR23: 0 | MVS23: 0 | MVT23: 0 | MVU23: 0 | MVV23: 0 | MVW23: 0 | MVX23: 0 | MVY23: 0 | MVZ23: 0 | MWA23: 0 | MWB23: 0 | MWC23: 0 | MWD23: 0 | MWE23: 0 | MWF23: 0 | MWG23: 0 | MWH23: 0 | MWI23: 0 | MWJ23: 0 | MWK23: 0 | MWL23: 0 | MWM23: 0 | MWN23: 0 | MWO23: 0 | MWP23: 0 | MWQ23: 0 | MWR23: 0 | MWS23: 0 | MWT23: 0 | MWU23: 0 | MWV23: 0 | MWW23: 0 | MWX23: 0 | MWY23: 0 | MWZ23: 0 | MXA23: 0 | MXB23: 0 | MXC23: 0 | MXD23: 0 | MXE23: 0 | MXF23: 0 | MXG23: 0 | MXH23: 0 | MXI23: 0 | MXJ23: 0 | MXK23: 0 | MXL23: 0 | MXM23: 0 | MXN23: 0 | MXO23: 0 | MXP23: 0 | MXQ23: 0 | MXR23: 0 | MXS23: 0 | MXT23: 0 | MXU23: 0 | MXV23: 0 | MXW23: =MXW6+MXW8+MXW10+MXW12+MXW14+MXW16+MXW18 -> 0 | MXX23: 0 | MXY23: 0 | MXZ23: 0 | MYA23: 0 | MYB23: 0 | MYC23: 0 | MYD23: 0 | MYE23: 0 | MYF23: 0 | MYG23: 0 | MYH23: 0 | MYI23: 0 | MYJ23: 0 | MYK23: 0 | MYL23: 0 | MYM23: 0 | MYN23: 0 | MYO23: 0 | MYP23: 0 | MYQ23: 0 | MYR23: 0 | MYS23: 0 | MYT23: 0 | MYU23: 0 | MYV23: 0 | MYW23: 0 | MYX23: 0 | MYY23: 0 | MYZ23: 0 | MZA23: 0 | MZB23: 0 | MZC23: 0 | MZD23: 0 | MZE23: 0 | MZF23: 0 | MZG23: 0 | MZH23: 0 | MZI23: 0 | MZJ23: 0 | MZK23: 0 | MZL23: 0 | MZM23: 0 | MZN23: 0 | MZO23: 0 | MZP23: 0 | MZQ23: 0 | MZR23: 0 | MZS23: 0 | MZT23: 0 | MZU23: 0 | MZV23: 0 | MZW23: 0 | MZX23: 0 | MZY23: 0 | MZZ23: 0 | NAA23: 0 | NAB23: 0 | NAC23: 0 | NAD23: 0 | NAE23: 0 | NAF23: 0 | NAG23: 0 | NAH23: 0 | NAI23: =NAI6+NAI8+NAI10+NAI12+NAI14+NAI16+NAI18 -> 0 | NAJ23: 0 | NAK23: 0 | NAL23: 0 | NAM23: 0 | NAN23: 0 | NAO23: 0 | NAP23: 0 | NAQ23: 0 | NAR23: 0 | NAS23: 0 | NAT23: 0 | NAU23: 0 | NAV23: 0 | NAW23: 0 | NAX23: 0 | NAY23: 0 | NAZ23: 0 | NBA23: 0 | NBB23: 0 | NBC23: 0 | NBD23: 0 | NBE23: 0 | NBF23: 0 | NBG23: 0 | NBH23: 0 | NBI23: 0 | NBJ23: 0 | NBK23: 0 | NBL23: 0 | NBM23: 0 | NBN23: 0 | NBO23: 0 | NBP23: 0 | NBQ23: 0 | NBR23: 0 | NBS23: 0 | NBT23: 0 | NBU23: 0 | NBV23: 0 | NBW23: 0 | NBX23: 0 | NBY23: 0 | NBZ23: 0 | NCA23: 0 | NCB23: 0 | NCC23: 0 | NCD23: 0 | NCE23: 0 | NCF23: 0 | NCG23: 0 | NCH23: 0 | NCI23: 0 | NCJ23: 0 | NCK23: 0 | NCL23: 0 | NCM23: 0 | NCN23: 0 | NCO23: 0 | NCP23: 0 | NCQ23: 0 | NCR23: 0 | NCS23: 0 | NCT23: 0 | NCU23: =NCU6+NCU8+NCU10+NCU12+NCU14+NCU16+NCU18 -> 0 | NCV23: 0 | NCW23: 0 | NCX23: 0 | NCY23: 0 | NCZ23: 0 | NDA23: 0 | NDB23: 0 | NDC23: 0 | NDD23: 0 | NDE23: 0 | NDF23: 0 | NDG23: 0 | NDH23: 0 | NDI23: 0 | NDJ23: 0 | NDK23: 0 | NDL23: 0 | NDM23: 0 | NDN23: 0 | NDO23: 0 | NDP23: 0 | NDQ23: 0 | NDR23: 0 | NDS23: 0 | NDT23: 0 | NDU23: 0 | NDV23: 0 | NDW23: 0 | NDX23: 0 | NDY23: 0 | NDZ23: 0 | NEA23: 0 | NEB23: 0 | NEC23: 0 | NED23: 0 | NEE23: 0 | NEF23: 0 | NEG23: 0 | NEH23: 0 | NEI23: 0 | NEJ23: 0 | NEK23: 0 | NEL23: 0 | NEM23: 0 | NEN23: 0 | NEO23: 0 | NEP23: 0 | NEQ23: 0 | NER23: 0 | NES23: 0 | NET23: 0 | NEU23: 0 | NEV23: 0 | NEW23: 0 | NEX23: 0 | NEY23: 0 | NEZ23: 0 | NFA23: 0 | NFB23: 0 | NFC23: 0 | NFD23: 0 | NFE23: 0 | NFF23: 0 | NFG23: =NFG6+NFG8+NFG10+NFG12+NFG14+NFG16+NFG18 -> 0 | NFH23: 0 | NFI23: 0 | NFJ23: 0 | NFK23: 0 | NFL23: 0 | NFM23: 0 | NFN23: 0 | NFO23: 0 | NFP23: 0 | NFQ23: 0 | NFR23: 0 | NFS23: 0 | NFT23: 0 | NFU23: 0 | NFV23: 0 | NFW23: 0 | NFX23: 0 | NFY23: 0 | NFZ23: 0 | NGA23: 0 | NGB23: 0 | NGC23: 0 | NGD23: 0 | NGE23: 0 | NGF23: 0 | NGG23: 0 | NGH23: 0 | NGI23: 0 | NGJ23: 0 | NGK23: 0 | NGL23: 0 | NGM23: 0 | NGN23: 0 | NGO23: 0 | NGP23: 0 | NGQ23: 0 | NGR23: 0 | NGS23: 0 | NGT23: 0 | NGU23: 0 | NGV23: 0 | NGW23: 0 | NGX23: 0 | NGY23: 0 | NGZ23: 0 | NHA23: 0 | NHB23: 0 | NHC23: 0 | NHD23: 0 | NHE23: 0 | NHF23: 0 | NHG23: 0 | NHH23: 0 | NHI23: 0 | NHJ23: 0 | NHK23: 0 | NHL23: 0 | NHM23: 0 | NHN23: 0 | NHO23: 0 | NHP23: 0 | NHQ23: 0 | NHR23: 0 | NHS23: =NHS6+NHS8+NHS10+NHS12+NHS14+NHS16+NHS18 -> 0 | NHT23: 0 | NHU23: 0 | NHV23: 0 | NHW23: 0 | NHX23: 0 | NHY23: 0 | NHZ23: 0 | NIA23: 0 | NIB23: 0 | NIC23: 0 | NID23: 0 | NIE23: 0 | NIF23: 0 | NIG23: 0 | NIH23: 0 | NII23: 0 | NIJ23: 0 | NIK23: 0 | NIL23: 0 | NIM23: 0 | NIN23: 0 | NIO23: 0 | NIP23: 0 | NIQ23: 0 | NIR23: 0 | NIS23: 0 | NIT23: 0 | NIU23: 0 | NIV23: 0 | NIW23: 0 | NIX23: 0 | NIY23: 0 | NIZ23: 0 | NJA23: 0 | NJB23: 0 | NJC23: 0 | NJD23: 0 | NJE23: 0 | NJF23: 0 | NJG23: 0 | NJH23: 0 | NJI23: 0 | NJJ23: 0 | NJK23: 0 | NJL23: 0 | NJM23: 0 | NJN23: 0 | NJO23: 0 | NJP23: 0 | NJQ23: 0 | NJR23: 0 | NJS23: 0 | NJT23: 0 | NJU23: 0 | NJV23: 0 | NJW23: 0 | NJX23: 0 | NJY23: 0 | NJZ23: 0 | NKA23: 0 | NKB23: 0 | NKC23: 0 | NKD23: 0 | NKE23: =NKE6+NKE8+NKE10+NKE12+NKE14+NKE16+NKE18 -> 0 | NKF23: 0 | NKG23: 0 | NKH23: 0 | NKI23: 0 | NKJ23: 0 | NKK23: 0 | NKL23: 0 | NKM23: 0 | NKN23: 0 | NKO23: 0 | NKP23: 0 | NKQ23: 0 | NKR23: 0 | NKS23: 0 | NKT23: 0 | NKU23: 0 | NKV23: 0 | NKW23: 0 | NKX23: 0 | NKY23: 0 | NKZ23: 0 | NLA23: 0 | NLB23: 0 | NLC23: 0 | NLD23: 0 | NLE23: 0 | NLF23: 0 | NLG23: 0 | NLH23: 0 | NLI23: 0 | NLJ23: 0 | NLK23: 0 | NLL23: 0 | NLM23: 0 | NLN23: 0 | NLO23: 0 | NLP23: 0 | NLQ23: 0 | NLR23: 0 | NLS23: 0 | NLT23: 0 | NLU23: 0 | NLV23: 0 | NLW23: 0 | NLX23: 0 | NLY23: 0 | NLZ23: 0 | NMA23: 0 | NMB23: 0 | NMC23: 0 | NMD23: 0 | NME23: 0 | NMF23: 0 | NMG23: 0 | NMH23: 0 | NMI23: 0 | NMJ23: 0 | NMK23: 0 | NML23: 0 | NMM23: 0 | NMN23: 0 | NMO23: 0 | NMP23: 0 | NMQ23: =NMQ6+NMQ8+NMQ10+NMQ12+NMQ14+NMQ16+NMQ18 -> 0 | NMR23: 0 | NMS23: 0 | NMT23: 0 | NMU23: 0 | NMV23: 0 | NMW23: 0 | NMX23: 0 | NMY23: 0 | NMZ23: 0 | NNA23: 0 | NNB23: 0 | NNC23: 0 | NND23: 0 | NNE23: 0 | NNF23: 0 | NNG23: 0 | NNH23: 0 | NNI23: 0 | NNJ23: 0 | NNK23: 0 | NNL23: 0 | NNM23: 0 | NNN23: 0 | NNO23: 0 | NNP23: 0 | NNQ23: 0 | NNR23: 0 | NNS23: 0 | NNT23: 0 | NNU23: 0 | NNV23: 0 | NNW23: 0 | NNX23: 0 | NNY23: 0 | NNZ23: 0 | NOA23: 0 | NOB23: 0 | NOC23: 0 | NOD23: 0 | NOE23: 0 | NOF23: 0 | NOG23: 0 | NOH23: 0 | NOI23: 0 | NOJ23: 0 | NOK23: 0 | NOL23: 0 | NOM23: 0 | NON23: 0 | NOO23: 0 | NOP23: 0 | NOQ23: 0 | NOR23: 0 | NOS23: 0 | NOT23: 0 | NOU23: 0 | NOV23: 0 | NOW23: 0 | NOX23: 0 | NOY23: 0 | NOZ23: 0 | NPA23: 0 | NPB23: 0 | NPC23: =NPC6+NPC8+NPC10+NPC12+NPC14+NPC16+NPC18 -> 0 | NPD23: 0 | NPE23: 0 | NPF23: 0 | NPG23: 0 | NPH23: 0 | NPI23: 0 | NPJ23: 0 | NPK23: 0 | NPL23: 0 | NPM23: 0 | NPN23: 0 | NPO23: 0 | NPP23: 0 | NPQ23: 0 | NPR23: 0 | NPS23: 0 | NPT23: 0 | NPU23: 0 | NPV23: 0 | NPW23: 0 | NPX23: 0 | NPY23: 0 | NPZ23: 0 | NQA23: 0 | NQB23: 0 | NQC23: 0 | NQD23: 0 | NQE23: 0 | NQF23: 0 | NQG23: 0 | NQH23: 0 | NQI23: 0 | NQJ23: 0 | NQK23: 0 | NQL23: 0 | NQM23: 0 | NQN23: 0 | NQO23: 0 | NQP23: 0 | NQQ23: 0 | NQR23: 0 | NQS23: 0 | NQT23: 0 | NQU23: 0 | NQV23: 0 | NQW23: 0 | NQX23: 0 | NQY23: 0 | NQZ23: 0 | NRA23: 0 | NRB23: 0 | NRC23: 0 | NRD23: 0 | NRE23: 0 | NRF23: 0 | NRG23: 0 | NRH23: 0 | NRI23: 0 | NRJ23: 0 | NRK23: 0 | NRL23: 0 | NRM23: 0 | NRN23: 0 | NRO23: =NRO6+NRO8+NRO10+NRO12+NRO14+NRO16+NRO18 -> 0 | NRP23: 0 | NRQ23: 0 | NRR23: 0 | NRS23: 0 | NRT23: 0 | NRU23: 0 | NRV23: 0 | NRW23: 0 | NRX23: 0 | NRY23: 0 | NRZ23: 0 | NSA23: 0 | NSB23: 0 | NSC23: 0 | NSD23: 0 | NSE23: 0 | NSF23: 0 | NSG23: 0 | NSH23: 0 | NSI23: 0 | NSJ23: 0 | NSK23: 0 | NSL23: 0 | NSM23: 0 | NSN23: 0 | NSO23: 0 | NSP23: 0 | NSQ23: 0 | NSR23: 0 | NSS23: 0 | NST23: 0 | NSU23: 0 | NSV23: 0 | NSW23: 0 | NSX23: 0 | NSY23: 0 | NSZ23: 0 | NTA23: 0 | NTB23: 0 | NTC23: 0 | NTD23: 0 | NTE23: 0 | NTF23: 0 | NTG23: 0 | NTH23: 0 | NTI23: 0 | NTJ23: 0 | NTK23: 0 | NTL23: 0 | NTM23: 0 | NTN23: 0 | NTO23: 0 | NTP23: 0 | NTQ23: 0 | NTR23: 0 | NTS23: 0 | NTT23: 0 | NTU23: 0 | NTV23: 0 | NTW23: 0 | NTX23: 0 | NTY23: 0 | NTZ23: 0 | NUA23: =NUA6+NUA8+NUA10+NUA12+NUA14+NUA16+NUA18 -> 0 | NUB23: 0 | NUC23: 0 | NUD23: 0 | NUE23: 0 | NUF23: 0 | NUG23: 0 | NUH23: 0 | NUI23: 0 | NUJ23: 0 | NUK23: 0 | NUL23: 0 | NUM23: 0 | NUN23: 0 | NUO23: 0 | NUP23: 0 | NUQ23: 0 | NUR23: 0 | NUS23: 0 | NUT23: 0 | NUU23: 0 | NUV23: 0 | NUW23: 0 | NUX23: 0 | NUY23: 0 | NUZ23: 0 | NVA23: 0 | NVB23: 0 | NVC23: 0 | NVD23: 0 | NVE23: 0 | NVF23: 0 | NVG23: 0 | NVH23: 0 | NVI23: 0 | NVJ23: 0 | NVK23: 0 | NVL23: 0 | NVM23: 0 | NVN23: 0 | NVO23: 0 | NVP23: 0 | NVQ23: 0 | NVR23: 0 | NVS23: 0 | NVT23: 0 | NVU23: 0 | NVV23: 0 | NVW23: 0 | NVX23: 0 | NVY23: 0 | NVZ23: 0 | NWA23: 0 | NWB23: 0 | NWC23: 0 | NWD23: 0 | NWE23: 0 | NWF23: 0 | NWG23: 0 | NWH23: 0 | NWI23: 0 | NWJ23: 0 | NWK23: 0 | NWL23: 0 | NWM23: =NWM6+NWM8+NWM10+NWM12+NWM14+NWM16+NWM18 -> 0 | NWN23: 0 | NWO23: 0 | NWP23: 0 | NWQ23: 0 | NWR23: 0 | NWS23: 0 | NWT23: 0 | NWU23: 0 | NWV23: 0 | NWW23: 0 | NWX23: 0 | NWY23: 0 | NWZ23: 0 | NXA23: 0 | NXB23: 0 | NXC23: 0 | NXD23: 0 | NXE23: 0 | NXF23: 0 | NXG23: 0 | NXH23: 0 | NXI23: 0 | NXJ23: 0 | NXK23: 0 | NXL23: 0 | NXM23: 0 | NXN23: 0 | NXO23: 0 | NXP23: 0 | NXQ23: 0 | NXR23: 0 | NXS23: 0 | NXT23: 0 | NXU23: 0 | NXV23: 0 | NXW23: 0 | NXX23: 0 | NXY23: 0 | NXZ23: 0 | NYA23: 0 | NYB23: 0 | NYC23: 0 | NYD23: 0 | NYE23: 0 | NYF23: 0 | NYG23: 0 | NYH23: 0 | NYI23: 0 | NYJ23: 0 | NYK23: 0 | NYL23: 0 | NYM23: 0 | NYN23: 0 | NYO23: 0 | NYP23: 0 | NYQ23: 0 | NYR23: 0 | NYS23: 0 | NYT23: 0 | NYU23: 0 | NYV23: 0 | NYW23: 0 | NYX23: 0 | NYY23: =NYY6+NYY8+NYY10+NYY12+NYY14+NYY16+NYY18 -> 0 | NYZ23: 0 | NZA23: 0 | NZB23: 0 | NZC23: 0 | NZD23: 0 | NZE23: 0 | NZF23: 0 | NZG23: 0 | NZH23: 0 | NZI23: 0 | NZJ23: 0 | NZK23: 0 | NZL23: 0 | NZM23: 0 | NZN23: 0 | NZO23: 0 | NZP23: 0 | NZQ23: 0 | NZR23: 0 | NZS23: 0 | NZT23: 0 | NZU23: 0 | NZV23: 0 | NZW23: 0 | NZX23: 0 | NZY23: 0 | NZZ23: 0 | OAA23: 0 | OAB23: 0 | OAC23: 0 | OAD23: 0 | OAE23: 0 | OAF23: 0 | OAG23: 0 | OAH23: 0 | OAI23: 0 | OAJ23: 0 | OAK23: 0 | OAL23: 0 | OAM23: 0 | OAN23: 0 | OAO23: 0 | OAP23: 0 | OAQ23: 0 | OAR23: 0 | OAS23: 0 | OAT23: 0 | OAU23: 0 | OAV23: 0 | OAW23: 0 | OAX23: 0 | OAY23: 0 | OAZ23: 0 | OBA23: 0 | OBB23: 0 | OBC23: 0 | OBD23: 0 | OBE23: 0 | OBF23: 0 | OBG23: 0 | OBH23: 0 | OBI23: 0 | OBJ23: 0 | OBK23: =OBK6+OBK8+OBK10+OBK12+OBK14+OBK16+OBK18 -> 0 | OBL23: 0 | OBM23: 0 | OBN23: 0 | OBO23: 0 | OBP23: 0 | OBQ23: 0 | OBR23: 0 | OBS23: 0 | OBT23: 0 | OBU23: 0 | OBV23: 0 | OBW23: 0 | OBX23: 0 | OBY23: 0 | OBZ23: 0 | OCA23: 0 | OCB23: 0 | OCC23: 0 | OCD23: 0 | OCE23: 0 | OCF23: 0 | OCG23: 0 | OCH23: 0 | OCI23: 0 | OCJ23: 0 | OCK23: 0 | OCL23: 0 | OCM23: 0 | OCN23: 0 | OCO23: 0 | OCP23: 0 | OCQ23: 0 | OCR23: 0 | OCS23: 0 | OCT23: 0 | OCU23: 0 | OCV23: 0 | OCW23: 0 | OCX23: 0 | OCY23: 0 | OCZ23: 0 | ODA23: 0 | ODB23: 0 | ODC23: 0 | ODD23: 0 | ODE23: 0 | ODF23: 0 | ODG23: 0 | ODH23: 0 | ODI23: 0 | ODJ23: 0 | ODK23: 0 | ODL23: 0 | ODM23: 0 | ODN23: 0 | ODO23: 0 | ODP23: 0 | ODQ23: 0 | ODR23: 0 | ODS23: 0 | ODT23: 0 | ODU23: 0 | ODV23: 0 | ODW23: =ODW6+ODW8+ODW10+ODW12+ODW14+ODW16+ODW18 -> 0 | ODX23: 0 | ODY23: 0 | ODZ23: 0 | OEA23: 0 | OEB23: 0 | OEC23: 0 | OED23: 0 | OEE23: 0 | OEF23: 0 | OEG23: 0 | OEH23: 0 | OEI23: 0 | OEJ23: 0 | OEK23: 0 | OEL23: 0 | OEM23: 0 | OEN23: 0 | OEO23: 0 | OEP23: 0 | OEQ23: 0 | OER23: 0 | OES23: 0 | OET23: 0 | OEU23: 0 | OEV23: 0 | OEW23: 0 | OEX23: 0 | OEY23: 0 | OEZ23: 0 | OFA23: 0 | OFB23: 0 | OFC23: 0 | OFD23: 0 | OFE23: 0 | OFF23: 0 | OFG23: 0 | OFH23: 0 | OFI23: 0 | OFJ23: 0 | OFK23: 0 | OFL23: 0 | OFM23: 0 | OFN23: 0 | OFO23: 0 | OFP23: 0 | OFQ23: 0 | OFR23: 0 | OFS23: 0 | OFT23: 0 | OFU23: 0 | OFV23: 0 | OFW23: 0 | OFX23: 0 | OFY23: 0 | OFZ23: 0 | OGA23: 0 | OGB23: 0 | OGC23: 0 | OGD23: 0 | OGE23: 0 | OGF23: 0 | OGG23: 0 | OGH23: 0 | OGI23: =OGI6+OGI8+OGI10+OGI12+OGI14+OGI16+OGI18 -> 0 | OGJ23: 0 | OGK23: 0 | OGL23: 0 | OGM23: 0 | OGN23: 0 | OGO23: 0 | OGP23: 0 | OGQ23: 0 | OGR23: 0 | OGS23: 0 | OGT23: 0 | OGU23: 0 | OGV23: 0 | OGW23: 0 | OGX23: 0 | OGY23: 0 | OGZ23: 0 | OHA23: 0 | OHB23: 0 | OHC23: 0 | OHD23: 0 | OHE23: 0 | OHF23: 0 | OHG23: 0 | OHH23: 0 | OHI23: 0 | OHJ23: 0 | OHK23: 0 | OHL23: 0 | OHM23: 0 | OHN23: 0 | OHO23: 0 | OHP23: 0 | OHQ23: 0 | OHR23: 0 | OHS23: 0 | OHT23: 0 | OHU23: 0 | OHV23: 0 | OHW23: 0 | OHX23: 0 | OHY23: 0 | OHZ23: 0 | OIA23: 0 | OIB23: 0 | OIC23: 0 | OID23: 0 | OIE23: 0 | OIF23: 0 | OIG23: 0 | OIH23: 0 | OII23: 0 | OIJ23: 0 | OIK23: 0 | OIL23: 0 | OIM23: 0 | OIN23: 0 | OIO23: 0 | OIP23: 0 | OIQ23: 0 | OIR23: 0 | OIS23: 0 | OIT23: 0 | OIU23: =OIU6+OIU8+OIU10+OIU12+OIU14+OIU16+OIU18 -> 0 | OIV23: 0 | OIW23: 0 | OIX23: 0 | OIY23: 0 | OIZ23: 0 | OJA23: 0 | OJB23: 0 | OJC23: 0 | OJD23: 0 | OJE23: 0 | OJF23: 0 | OJG23: 0 | OJH23: 0 | OJI23: 0 | OJJ23: 0 | OJK23: 0 | OJL23: 0 | OJM23: 0 | OJN23: 0 | OJO23: 0 | OJP23: 0 | OJQ23: 0 | OJR23: 0 | OJS23: 0 | OJT23: 0 | OJU23: 0 | OJV23: 0 | OJW23: 0 | OJX23: 0 | OJY23: 0 | OJZ23: 0 | OKA23: 0 | OKB23: 0 | OKC23: 0 | OKD23: 0 | OKE23: 0 | OKF23: 0 | OKG23: 0 | OKH23: 0 | OKI23: 0 | OKJ23: 0 | OKK23: 0 | OKL23: 0 | OKM23: 0 | OKN23: 0 | OKO23: 0 | OKP23: 0 | OKQ23: 0 | OKR23: 0 | OKS23: 0 | OKT23: 0 | OKU23: 0 | OKV23: 0 | OKW23: 0 | OKX23: 0 | OKY23: 0 | OKZ23: 0 | OLA23: 0 | OLB23: 0 | OLC23: 0 | OLD23: 0 | OLE23: 0 | OLF23: 0 | OLG23: =OLG6+OLG8+OLG10+OLG12+OLG14+OLG16+OLG18 -> 0 | OLH23: 0 | OLI23: 0 | OLJ23: 0 | OLK23: 0 | OLL23: 0 | OLM23: 0 | OLN23: 0 | OLO23: 0 | OLP23: 0 | OLQ23: 0 | OLR23: 0 | OLS23: 0 | OLT23: 0 | OLU23: 0 | OLV23: 0 | OLW23: 0 | OLX23: 0 | OLY23: 0 | OLZ23: 0 | OMA23: 0 | OMB23: 0 | OMC23: 0 | OMD23: 0 | OME23: 0 | OMF23: 0 | OMG23: 0 | OMH23: 0 | OMI23: 0 | OMJ23: 0 | OMK23: 0 | OML23: 0 | OMM23: 0 | OMN23: 0 | OMO23: 0 | OMP23: 0 | OMQ23: 0 | OMR23: 0 | OMS23: 0 | OMT23: 0 | OMU23: 0 | OMV23: 0 | OMW23: 0 | OMX23: 0 | OMY23: 0 | OMZ23: 0 | ONA23: 0 | ONB23: 0 | ONC23: 0 | OND23: 0 | ONE23: 0 | ONF23: 0 | ONG23: 0 | ONH23: 0 | ONI23: 0 | ONJ23: 0 | ONK23: 0 | ONL23: 0 | ONM23: 0 | ONN23: 0 | ONO23: 0 | ONP23: 0 | ONQ23: 0 | ONR23: 0 | ONS23: =ONS6+ONS8+ONS10+ONS12+ONS14+ONS16+ONS18 -> 0 | ONT23: 0 | ONU23: 0 | ONV23: 0 | ONW23: 0 | ONX23: 0 | ONY23: 0 | ONZ23: 0 | OOA23: 0 | OOB23: 0 | OOC23: 0 | OOD23: 0 | OOE23: 0 | OOF23: 0 | OOG23: 0 | OOH23: 0 | OOI23: 0 | OOJ23: 0 | OOK23: 0 | OOL23: 0 | OOM23: 0 | OON23: 0 | OOO23: 0 | OOP23: 0 | OOQ23: 0 | OOR23: 0 | OOS23: 0 | OOT23: 0 | OOU23: 0 | OOV23: 0 | OOW23: 0 | OOX23: 0 | OOY23: 0 | OOZ23: 0 | OPA23: 0 | OPB23: 0 | OPC23: 0 | OPD23: 0 | OPE23: 0 | OPF23: 0 | OPG23: 0 | OPH23: 0 | OPI23: 0 | OPJ23: 0 | OPK23: 0 | OPL23: 0 | OPM23: 0 | OPN23: 0 | OPO23: 0 | OPP23: 0 | OPQ23: 0 | OPR23: 0 | OPS23: 0 | OPT23: 0 | OPU23: 0 | OPV23: 0 | OPW23: 0 | OPX23: 0 | OPY23: 0 | OPZ23: 0 | OQA23: 0 | OQB23: 0 | OQC23: 0 | OQD23: 0 | OQE23: =OQE6+OQE8+OQE10+OQE12+OQE14+OQE16+OQE18 -> 0 | OQF23: 0 | OQG23: 0 | OQH23: 0 | OQI23: 0 | OQJ23: 0 | OQK23: 0 | OQL23: 0 | OQM23: 0 | OQN23: 0 | OQO23: 0 | OQP23: 0 | OQQ23: 0 | OQR23: 0 | OQS23: 0 | OQT23: 0 | OQU23: 0 | OQV23: 0 | OQW23: 0 | OQX23: 0 | OQY23: 0 | OQZ23: 0 | ORA23: 0 | ORB23: 0 | ORC23: 0 | ORD23: 0 | ORE23: 0 | ORF23: 0 | ORG23: 0 | ORH23: 0 | ORI23: 0 | ORJ23: 0 | ORK23: 0 | ORL23: 0 | ORM23: 0 | ORN23: 0 | ORO23: 0 | ORP23: 0 | ORQ23: 0 | ORR23: 0 | ORS23: 0 | ORT23: 0 | ORU23: 0 | ORV23: 0 | ORW23: 0 | ORX23: 0 | ORY23: 0 | ORZ23: 0 | OSA23: 0 | OSB23: 0 | OSC23: 0 | OSD23: 0 | OSE23: 0 | OSF23: 0 | OSG23: 0 | OSH23: 0 | OSI23: 0 | OSJ23: 0 | OSK23: 0 | OSL23: 0 | OSM23: 0 | OSN23: 0 | OSO23: 0 | OSP23: 0 | OSQ23: =OSQ6+OSQ8+OSQ10+OSQ12+OSQ14+OSQ16+OSQ18 -> 0 | OSR23: 0 | OSS23: 0 | OST23: 0 | OSU23: 0 | OSV23: 0 | OSW23: 0 | OSX23: 0 | OSY23: 0 | OSZ23: 0 | OTA23: 0 | OTB23: 0 | OTC23: 0 | OTD23: 0 | OTE23: 0 | OTF23: 0 | OTG23: 0 | OTH23: 0 | OTI23: 0 | OTJ23: 0 | OTK23: 0 | OTL23: 0 | OTM23: 0 | OTN23: 0 | OTO23: 0 | OTP23: 0 | OTQ23: 0 | OTR23: 0 | OTS23: 0 | OTT23: 0 | OTU23: 0 | OTV23: 0 | OTW23: 0 | OTX23: 0 | OTY23: 0 | OTZ23: 0 | OUA23: 0 | OUB23: 0 | OUC23: 0 | OUD23: 0 | OUE23: 0 | OUF23: 0 | OUG23: 0 | OUH23: 0 | OUI23: 0 | OUJ23: 0 | OUK23: 0 | OUL23: 0 | OUM23: 0 | OUN23: 0 | OUO23: 0 | OUP23: 0 | OUQ23: 0 | OUR23: 0 | OUS23: 0 | OUT23: 0 | OUU23: 0 | OUV23: 0 | OUW23: 0 | OUX23: 0 | OUY23: 0 | OUZ23: 0 | OVA23: 0 | OVB23: 0 | OVC23: =OVC6+OVC8+OVC10+OVC12+OVC14+OVC16+OVC18 -> 0 | OVD23: 0 | OVE23: 0 | OVF23: 0 | OVG23: 0 | OVH23: 0 | OVI23: 0 | OVJ23: 0 | OVK23: 0 | OVL23: 0 | OVM23: 0 | OVN23: 0 | OVO23: 0 | OVP23: 0 | OVQ23: 0 | OVR23: 0 | OVS23: 0 | OVT23: 0 | OVU23: 0 | OVV23: 0 | OVW23: 0 | OVX23: 0 | OVY23: 0 | OVZ23: 0 | OWA23: 0 | OWB23: 0 | OWC23: 0 | OWD23: 0 | OWE23: 0 | OWF23: 0 | OWG23: 0 | OWH23: 0 | OWI23: 0 | OWJ23: 0 | OWK23: 0 | OWL23: 0 | OWM23: 0 | OWN23: 0 | OWO23: 0 | OWP23: 0 | OWQ23: 0 | OWR23: 0 | OWS23: 0 | OWT23: 0 | OWU23: 0 | OWV23: 0 | OWW23: 0 | OWX23: 0 | OWY23: 0 | OWZ23: 0 | OXA23: 0 | OXB23: 0 | OXC23: 0 | OXD23: 0 | OXE23: 0 | OXF23: 0 | OXG23: 0 | OXH23: 0 | OXI23: 0 | OXJ23: 0 | OXK23: 0 | OXL23: 0 | OXM23: 0 | OXN23: 0 | OXO23: =OXO6+OXO8+OXO10+OXO12+OXO14+OXO16+OXO18 -> 0 | OXP23: 0 | OXQ23: 0 | OXR23: 0 | OXS23: 0 | OXT23: 0 | OXU23: 0 | OXV23: 0 | OXW23: 0 | OXX23: 0 | OXY23: 0 | OXZ23: 0 | OYA23: 0 | OYB23: 0 | OYC23: 0 | OYD23: 0 | OYE23: 0 | OYF23: 0 | OYG23: 0 | OYH23: 0 | OYI23: 0 | OYJ23: 0 | OYK23: 0 | OYL23: 0 | OYM23: 0 | OYN23: 0 | OYO23: 0 | OYP23: 0 | OYQ23: 0 | OYR23: 0 | OYS23: 0 | OYT23: 0 | OYU23: 0 | OYV23: 0 | OYW23: 0 | OYX23: 0 | OYY23: 0 | OYZ23: 0 | OZA23: 0 | OZB23: 0 | OZC23: 0 | OZD23: 0 | OZE23: 0 | OZF23: 0 | OZG23: 0 | OZH23: 0 | OZI23: 0 | OZJ23: 0 | OZK23: 0 | OZL23: 0 | OZM23: 0 | OZN23: 0 | OZO23: 0 | OZP23: 0 | OZQ23: 0 | OZR23: 0 | OZS23: 0 | OZT23: 0 | OZU23: 0 | OZV23: 0 | OZW23: 0 | OZX23: 0 | OZY23: 0 | OZZ23: 0 | PAA23: =PAA6+PAA8+PAA10+PAA12+PAA14+PAA16+PAA18 -> 0 | PAB23: 0 | PAC23: 0 | PAD23: 0 | PAE23: 0 | PAF23: 0 | PAG23: 0 | PAH23: 0 | PAI23: 0 | PAJ23: 0 | PAK23: 0 | PAL23: 0 | PAM23: 0 | PAN23: 0 | PAO23: 0 | PAP23: 0 | PAQ23: 0 | PAR23: 0 | PAS23: 0 | PAT23: 0 | PAU23: 0 | PAV23: 0 | PAW23: 0 | PAX23: 0 | PAY23: 0 | PAZ23: 0 | PBA23: 0 | PBB23: 0 | PBC23: 0 | PBD23: 0 | PBE23: 0 | PBF23: 0 | PBG23: 0 | PBH23: 0 | PBI23: 0 | PBJ23: 0 | PBK23: 0 | PBL23: 0 | PBM23: 0 | PBN23: 0 | PBO23: 0 | PBP23: 0 | PBQ23: 0 | PBR23: 0 | PBS23: 0 | PBT23: 0 | PBU23: 0 | PBV23: 0 | PBW23: 0 | PBX23: 0 | PBY23: 0 | PBZ23: 0 | PCA23: 0 | PCB23: 0 | PCC23: 0 | PCD23: 0 | PCE23: 0 | PCF23: 0 | PCG23: 0 | PCH23: 0 | PCI23: 0 | PCJ23: 0 | PCK23: 0 | PCL23: 0 | PCM23: =PCM6+PCM8+PCM10+PCM12+PCM14+PCM16+PCM18 -> 0 | PCN23: 0 | PCO23: 0 | PCP23: 0 | PCQ23: 0 | PCR23: 0 | PCS23: 0 | PCT23: 0 | PCU23: 0 | PCV23: 0 | PCW23: 0 | PCX23: 0 | PCY23: 0 | PCZ23: 0 | PDA23: 0 | PDB23: 0 | PDC23: 0 | PDD23: 0 | PDE23: 0 | PDF23: 0 | PDG23: 0 | PDH23: 0 | PDI23: 0 | PDJ23: 0 | PDK23: 0 | PDL23: 0 | PDM23: 0 | PDN23: 0 | PDO23: 0 | PDP23: 0 | PDQ23: 0 | PDR23: 0 | PDS23: 0 | PDT23: 0 | PDU23: 0 | PDV23: 0 | PDW23: 0 | PDX23: 0 | PDY23: 0 | PDZ23: 0 | PEA23: 0 | PEB23: 0 | PEC23: 0 | PED23: 0 | PEE23: 0 | PEF23: 0 | PEG23: 0 | PEH23: 0 | PEI23: 0 | PEJ23: 0 | PEK23: 0 | PEL23: 0 | PEM23: 0 | PEN23: 0 | PEO23: 0 | PEP23: 0 | PEQ23: 0 | PER23: 0 | PES23: 0 | PET23: 0 | PEU23: 0 | PEV23: 0 | PEW23: 0 | PEX23: 0 | PEY23: =PEY6+PEY8+PEY10+PEY12+PEY14+PEY16+PEY18 -> 0 | PEZ23: 0 | PFA23: 0 | PFB23: 0 | PFC23: 0 | PFD23: 0 | PFE23: 0 | PFF23: 0 | PFG23: 0 | PFH23: 0 | PFI23: 0 | PFJ23: 0 | PFK23: 0 | PFL23: 0 | PFM23: 0 | PFN23: 0 | PFO23: 0 | PFP23: 0 | PFQ23: 0 | PFR23: 0 | PFS23: 0 | PFT23: 0 | PFU23: 0 | PFV23: 0 | PFW23: 0 | PFX23: 0 | PFY23: 0 | PFZ23: 0 | PGA23: 0 | PGB23: 0 | PGC23: 0 | PGD23: 0 | PGE23: 0 | PGF23: 0 | PGG23: 0 | PGH23: 0 | PGI23: 0 | PGJ23: 0 | PGK23: 0 | PGL23: 0 | PGM23: 0 | PGN23: 0 | PGO23: 0 | PGP23: 0 | PGQ23: 0 | PGR23: 0 | PGS23: 0 | PGT23: 0 | PGU23: 0 | PGV23: 0 | PGW23: 0 | PGX23: 0 | PGY23: 0 | PGZ23: 0 | PHA23: 0 | PHB23: 0 | PHC23: 0 | PHD23: 0 | PHE23: 0 | PHF23: 0 | PHG23: 0 | PHH23: 0 | PHI23: 0 | PHJ23: 0 | PHK23: =PHK6+PHK8+PHK10+PHK12+PHK14+PHK16+PHK18 -> 0 | PHL23: 0 | PHM23: 0 | PHN23: 0 | PHO23: 0 | PHP23: 0 | PHQ23: 0 | PHR23: 0 | PHS23: 0 | PHT23: 0 | PHU23: 0 | PHV23: 0 | PHW23: 0 | PHX23: 0 | PHY23: 0 | PHZ23: 0 | PIA23: 0 | PIB23: 0 | PIC23: 0 | PID23: 0 | PIE23: 0 | PIF23: 0 | PIG23: 0 | PIH23: 0 | PII23: 0 | PIJ23: 0 | PIK23: 0 | PIL23: 0 | PIM23: 0 | PIN23: 0 | PIO23: 0 | PIP23: 0 | PIQ23: 0 | PIR23: 0 | PIS23: 0 | PIT23: 0 | PIU23: 0 | PIV23: 0 | PIW23: 0 | PIX23: 0 | PIY23: 0 | PIZ23: 0 | PJA23: 0 | PJB23: 0 | PJC23: 0 | PJD23: 0 | PJE23: 0 | PJF23: 0 | PJG23: 0 | PJH23: 0 | PJI23: 0 | PJJ23: 0 | PJK23: 0 | PJL23: 0 | PJM23: 0 | PJN23: 0 | PJO23: 0 | PJP23: 0 | PJQ23: 0 | PJR23: 0 | PJS23: 0 | PJT23: 0 | PJU23: 0 | PJV23: 0 | PJW23: =PJW6+PJW8+PJW10+PJW12+PJW14+PJW16+PJW18 -> 0 | PJX23: 0 | PJY23: 0 | PJZ23: 0 | PKA23: 0 | PKB23: 0 | PKC23: 0 | PKD23: 0 | PKE23: 0 | PKF23: 0 | PKG23: 0 | PKH23: 0 | PKI23: 0 | PKJ23: 0 | PKK23: 0 | PKL23: 0 | PKM23: 0 | PKN23: 0 | PKO23: 0 | PKP23: 0 | PKQ23: 0 | PKR23: 0 | PKS23: 0 | PKT23: 0 | PKU23: 0 | PKV23: 0 | PKW23: 0 | PKX23: 0 | PKY23: 0 | PKZ23: 0 | PLA23: 0 | PLB23: 0 | PLC23: 0 | PLD23: 0 | PLE23: 0 | PLF23: 0 | PLG23: 0 | PLH23: 0 | PLI23: 0 | PLJ23: 0 | PLK23: 0 | PLL23: 0 | PLM23: 0 | PLN23: 0 | PLO23: 0 | PLP23: 0 | PLQ23: 0 | PLR23: 0 | PLS23: 0 | PLT23: 0 | PLU23: 0 | PLV23: 0 | PLW23: 0 | PLX23: 0 | PLY23: 0 | PLZ23: 0 | PMA23: 0 | PMB23: 0 | PMC23: 0 | PMD23: 0 | PME23: 0 | PMF23: 0 | PMG23: 0 | PMH23: 0 | PMI23: =PMI6+PMI8+PMI10+PMI12+PMI14+PMI16+PMI18 -> 0 | PMJ23: 0 | PMK23: 0 | PML23: 0 | PMM23: 0 | PMN23: 0 | PMO23: 0 | PMP23: 0 | PMQ23: 0 | PMR23: 0 | PMS23: 0 | PMT23: 0 | PMU23: 0 | PMV23: 0 | PMW23: 0 | PMX23: 0 | PMY23: 0 | PMZ23: 0 | PNA23: 0 | PNB23: 0 | PNC23: 0 | PND23: 0 | PNE23: 0 | PNF23: 0 | PNG23: 0 | PNH23: 0 | PNI23: 0 | PNJ23: 0 | PNK23: 0 | PNL23: 0 | PNM23: 0 | PNN23: 0 | PNO23: 0 | PNP23: 0 | PNQ23: 0 | PNR23: 0 | PNS23: 0 | PNT23: 0 | PNU23: 0 | PNV23: 0 | PNW23: 0 | PNX23: 0 | PNY23: 0 | PNZ23: 0 | POA23: 0 | POB23: 0 | POC23: 0 | POD23: 0 | POE23: 0 | POF23: 0 | POG23: 0 | POH23: 0 | POI23: 0 | POJ23: 0 | POK23: 0 | POL23: 0 | POM23: 0 | PON23: 0 | POO23: 0 | POP23: 0 | POQ23: 0 | POR23: 0 | POS23: 0 | POT23: 0 | POU23: =POU6+POU8+POU10+POU12+POU14+POU16+POU18 -> 0 | POV23: 0 | POW23: 0 | POX23: 0 | POY23: 0 | POZ23: 0 | PPA23: 0 | PPB23: 0 | PPC23: 0 | PPD23: 0 | PPE23: 0 | PPF23: 0 | PPG23: 0 | PPH23: 0 | PPI23: 0 | PPJ23: 0 | PPK23: 0 | PPL23: 0 | PPM23: 0 | PPN23: 0 | PPO23: 0 | PPP23: 0 | PPQ23: 0 | PPR23: 0 | PPS23: 0 | PPT23: 0 | PPU23: 0 | PPV23: 0 | PPW23: 0 | PPX23: 0 | PPY23: 0 | PPZ23: 0 | PQA23: 0 | PQB23: 0 | PQC23: 0 | PQD23: 0 | PQE23: 0 | PQF23: 0 | PQG23: 0 | PQH23: 0 | PQI23: 0 | PQJ23: 0 | PQK23: 0 | PQL23: 0 | PQM23: 0 | PQN23: 0 | PQO23: 0 | PQP23: 0 | PQQ23: 0 | PQR23: 0 | PQS23: 0 | PQT23: 0 | PQU23: 0 | PQV23: 0 | PQW23: 0 | PQX23: 0 | PQY23: 0 | PQZ23: 0 | PRA23: 0 | PRB23: 0 | PRC23: 0 | PRD23: 0 | PRE23: 0 | PRF23: 0 | PRG23: =PRG6+PRG8+PRG10+PRG12+PRG14+PRG16+PRG18 -> 0 | PRH23: 0 | PRI23: 0 | PRJ23: 0 | PRK23: 0 | PRL23: 0 | PRM23: 0 | PRN23: 0 | PRO23: 0 | PRP23: 0 | PRQ23: 0 | PRR23: 0 | PRS23: 0 | PRT23: 0 | PRU23: 0 | PRV23: 0 | PRW23: 0 | PRX23: 0 | PRY23: 0 | PRZ23: 0 | PSA23: 0 | PSB23: 0 | PSC23: 0 | PSD23: 0 | PSE23: 0 | PSF23: 0 | PSG23: 0 | PSH23: 0 | PSI23: 0 | PSJ23: 0 | PSK23: 0 | PSL23: 0 | PSM23: 0 | PSN23: 0 | PSO23: 0 | PSP23: 0 | PSQ23: 0 | PSR23: 0 | PSS23: 0 | PST23: 0 | PSU23: 0 | PSV23: 0 | PSW23: 0 | PSX23: 0 | PSY23: 0 | PSZ23: 0 | PTA23: 0 | PTB23: 0 | PTC23: 0 | PTD23: 0 | PTE23: 0 | PTF23: 0 | PTG23: 0 | PTH23: 0 | PTI23: 0 | PTJ23: 0 | PTK23: 0 | PTL23: 0 | PTM23: 0 | PTN23: 0 | PTO23: 0 | PTP23: 0 | PTQ23: 0 | PTR23: 0 | PTS23: =PTS6+PTS8+PTS10+PTS12+PTS14+PTS16+PTS18 -> 0 | PTT23: 0 | PTU23: 0 | PTV23: 0 | PTW23: 0 | PTX23: 0 | PTY23: 0 | PTZ23: 0 | PUA23: 0 | PUB23: 0 | PUC23: 0 | PUD23: 0 | PUE23: 0 | PUF23: 0 | PUG23: 0 | PUH23: 0 | PUI23: 0 | PUJ23: 0 | PUK23: 0 | PUL23: 0 | PUM23: 0 | PUN23: 0 | PUO23: 0 | PUP23: 0 | PUQ23: 0 | PUR23: 0 | PUS23: 0 | PUT23: 0 | PUU23: 0 | PUV23: 0 | PUW23: 0 | PUX23: 0 | PUY23: 0 | PUZ23: 0 | PVA23: 0 | PVB23: 0 | PVC23: 0 | PVD23: 0 | PVE23: 0 | PVF23: 0 | PVG23: 0 | PVH23: 0 | PVI23: 0 | PVJ23: 0 | PVK23: 0 | PVL23: 0 | PVM23: 0 | PVN23: 0 | PVO23: 0 | PVP23: 0 | PVQ23: 0 | PVR23: 0 | PVS23: 0 | PVT23: 0 | PVU23: 0 | PVV23: 0 | PVW23: 0 | PVX23: 0 | PVY23: 0 | PVZ23: 0 | PWA23: 0 | PWB23: 0 | PWC23: 0 | PWD23: 0 | PWE23: =PWE6+PWE8+PWE10+PWE12+PWE14+PWE16+PWE18 -> 0 | PWF23: 0 | PWG23: 0 | PWH23: 0 | PWI23: 0 | PWJ23: 0 | PWK23: 0 | PWL23: 0 | PWM23: 0 | PWN23: 0 | PWO23: 0 | PWP23: 0 | PWQ23: 0 | PWR23: 0 | PWS23: 0 | PWT23: 0 | PWU23: 0 | PWV23: 0 | PWW23: 0 | PWX23: 0 | PWY23: 0 | PWZ23: 0 | PXA23: 0 | PXB23: 0 | PXC23: 0 | PXD23: 0 | PXE23: 0 | PXF23: 0 | PXG23: 0 | PXH23: 0 | PXI23: 0 | PXJ23: 0 | PXK23: 0 | PXL23: 0 | PXM23: 0 | PXN23: 0 | PXO23: 0 | PXP23: 0 | PXQ23: 0 | PXR23: 0 | PXS23: 0 | PXT23: 0 | PXU23: 0 | PXV23: 0 | PXW23: 0 | PXX23: 0 | PXY23: 0 | PXZ23: 0 | PYA23: 0 | PYB23: 0 | PYC23: 0 | PYD23: 0 | PYE23: 0 | PYF23: 0 | PYG23: 0 | PYH23: 0 | PYI23: 0 | PYJ23: 0 | PYK23: 0 | PYL23: 0 | PYM23: 0 | PYN23: 0 | PYO23: 0 | PYP23: 0 | PYQ23: =PYQ6+PYQ8+PYQ10+PYQ12+PYQ14+PYQ16+PYQ18 -> 0 | PYR23: 0 | PYS23: 0 | PYT23: 0 | PYU23: 0 | PYV23: 0 | PYW23: 0 | PYX23: 0 | PYY23: 0 | PYZ23: 0 | PZA23: 0 | PZB23: 0 | PZC23: 0 | PZD23: 0 | PZE23: 0 | PZF23: 0 | PZG23: 0 | PZH23: 0 | PZI23: 0 | PZJ23: 0 | PZK23: 0 | PZL23: 0 | PZM23: 0 | PZN23: 0 | PZO23: 0 | PZP23: 0 | PZQ23: 0 | PZR23: 0 | PZS23: 0 | PZT23: 0 | PZU23: 0 | PZV23: 0 | PZW23: 0 | PZX23: 0 | PZY23: 0 | PZZ23: 0 | QAA23: 0 | QAB23: 0 | QAC23: 0 | QAD23: 0 | QAE23: 0 | QAF23: 0 | QAG23: 0 | QAH23: 0 | QAI23: 0 | QAJ23: 0 | QAK23: 0 | QAL23: 0 | QAM23: 0 | QAN23: 0 | QAO23: 0 | QAP23: 0 | QAQ23: 0 | QAR23: 0 | QAS23: 0 | QAT23: 0 | QAU23: 0 | QAV23: 0 | QAW23: 0 | QAX23: 0 | QAY23: 0 | QAZ23: 0 | QBA23: 0 | QBB23: 0 | QBC23: =QBC6+QBC8+QBC10+QBC12+QBC14+QBC16+QBC18 -> 0 | QBD23: 0 | QBE23: 0 | QBF23: 0 | QBG23: 0 | QBH23: 0 | QBI23: 0 | QBJ23: 0 | QBK23: 0 | QBL23: 0 | QBM23: 0 | QBN23: 0 | QBO23: 0 | QBP23: 0 | QBQ23: 0 | QBR23: 0 | QBS23: 0 | QBT23: 0 | QBU23: 0 | QBV23: 0 | QBW23: 0 | QBX23: 0 | QBY23: 0 | QBZ23: 0 | QCA23: 0 | QCB23: 0 | QCC23: 0 | QCD23: 0 | QCE23: 0 | QCF23: 0 | QCG23: 0 | QCH23: 0 | QCI23: 0 | QCJ23: 0 | QCK23: 0 | QCL23: 0 | QCM23: 0 | QCN23: 0 | QCO23: 0 | QCP23: 0 | QCQ23: 0 | QCR23: 0 | QCS23: 0 | QCT23: 0 | QCU23: 0 | QCV23: 0 | QCW23: 0 | QCX23: 0 | QCY23: 0 | QCZ23: 0 | QDA23: 0 | QDB23: 0 | QDC23: 0 | QDD23: 0 | QDE23: 0 | QDF23: 0 | QDG23: 0 | QDH23: 0 | QDI23: 0 | QDJ23: 0 | QDK23: 0 | QDL23: 0 | QDM23: 0 | QDN23: 0 | QDO23: =QDO6+QDO8+QDO10+QDO12+QDO14+QDO16+QDO18 -> 0 | QDP23: 0 | QDQ23: 0 | QDR23: 0 | QDS23: 0 | QDT23: 0 | QDU23: 0 | QDV23: 0 | QDW23: 0 | QDX23: 0 | QDY23: 0 | QDZ23: 0 | QEA23: 0 | QEB23: 0 | QEC23: 0 | QED23: 0 | QEE23: 0 | QEF23: 0 | QEG23: 0 | QEH23: 0 | QEI23: 0 | QEJ23: 0 | QEK23: 0 | QEL23: 0 | QEM23: 0 | QEN23: 0 | QEO23: 0 | QEP23: 0 | QEQ23: 0 | QER23: 0 | QES23: 0 | QET23: 0 | QEU23: 0 | QEV23: 0 | QEW23: 0 | QEX23: 0 | QEY23: 0 | QEZ23: 0 | QFA23: 0 | QFB23: 0 | QFC23: 0 | QFD23: 0 | QFE23: 0 | QFF23: 0 | QFG23: 0 | QFH23: 0 | QFI23: 0 | QFJ23: 0 | QFK23: 0 | QFL23: 0 | QFM23: 0 | QFN23: 0 | QFO23: 0 | QFP23: 0 | QFQ23: 0 | QFR23: 0 | QFS23: 0 | QFT23: 0 | QFU23: 0 | QFV23: 0 | QFW23: 0 | QFX23: 0 | QFY23: 0 | QFZ23: 0 | QGA23: =QGA6+QGA8+QGA10+QGA12+QGA14+QGA16+QGA18 -> 0 | QGB23: 0 | QGC23: 0 | QGD23: 0 | QGE23: 0 | QGF23: 0 | QGG23: 0 | QGH23: 0 | QGI23: 0 | QGJ23: 0 | QGK23: 0 | QGL23: 0 | QGM23: 0 | QGN23: 0 | QGO23: 0 | QGP23: 0 | QGQ23: 0 | QGR23: 0 | QGS23: 0 | QGT23: 0 | QGU23: 0 | QGV23: 0 | QGW23: 0 | QGX23: 0 | QGY23: 0 | QGZ23: 0 | QHA23: 0 | QHB23: 0 | QHC23: 0 | QHD23: 0 | QHE23: 0 | QHF23: 0 | QHG23: 0 | QHH23: 0 | QHI23: 0 | QHJ23: 0 | QHK23: 0 | QHL23: 0 | QHM23: 0 | QHN23: 0 | QHO23: 0 | QHP23: 0 | QHQ23: 0 | QHR23: 0 | QHS23: 0 | QHT23: 0 | QHU23: 0 | QHV23: 0 | QHW23: 0 | QHX23: 0 | QHY23: 0 | QHZ23: 0 | QIA23: 0 | QIB23: 0 | QIC23: 0 | QID23: 0 | QIE23: 0 | QIF23: 0 | QIG23: 0 | QIH23: 0 | QII23: 0 | QIJ23: 0 | QIK23: 0 | QIL23: 0 | QIM23: =QIM6+QIM8+QIM10+QIM12+QIM14+QIM16+QIM18 -> 0 | QIN23: 0 | QIO23: 0 | QIP23: 0 | QIQ23: 0 | QIR23: 0 | QIS23: 0 | QIT23: 0 | QIU23: 0 | QIV23: 0 | QIW23: 0 | QIX23: 0 | QIY23: 0 | QIZ23: 0 | QJA23: 0 | QJB23: 0 | QJC23: 0 | QJD23: 0 | QJE23: 0 | QJF23: 0 | QJG23: 0 | QJH23: 0 | QJI23: 0 | QJJ23: 0 | QJK23: 0 | QJL23: 0 | QJM23: 0 | QJN23: 0 | QJO23: 0 | QJP23: 0 | QJQ23: 0 | QJR23: 0 | QJS23: 0 | QJT23: 0 | QJU23: 0 | QJV23: 0 | QJW23: 0 | QJX23: 0 | QJY23: 0 | QJZ23: 0 | QKA23: 0 | QKB23: 0 | QKC23: 0 | QKD23: 0 | QKE23: 0 | QKF23: 0 | QKG23: 0 | QKH23: 0 | QKI23: 0 | QKJ23: 0 | QKK23: 0 | QKL23: 0 | QKM23: 0 | QKN23: 0 | QKO23: 0 | QKP23: 0 | QKQ23: 0 | QKR23: 0 | QKS23: 0 | QKT23: 0 | QKU23: 0 | QKV23: 0 | QKW23: 0 | QKX23: 0 | QKY23: =QKY6+QKY8+QKY10+QKY12+QKY14+QKY16+QKY18 -> 0 | QKZ23: 0 | QLA23: 0 | QLB23: 0 | QLC23: 0 | QLD23: 0 | QLE23: 0 | QLF23: 0 | QLG23: 0 | QLH23: 0 | QLI23: 0 | QLJ23: 0 | QLK23: 0 | QLL23: 0 | QLM23: 0 | QLN23: 0 | QLO23: 0 | QLP23: 0 | QLQ23: 0 | QLR23: 0 | QLS23: 0 | QLT23: 0 | QLU23: 0 | QLV23: 0 | QLW23: 0 | QLX23: 0 | QLY23: 0 | QLZ23: 0 | QMA23: 0 | QMB23: 0 | QMC23: 0 | QMD23: 0 | QME23: 0 | QMF23: 0 | QMG23: 0 | QMH23: 0 | QMI23: 0 | QMJ23: 0 | QMK23: 0 | QML23: 0 | QMM23: 0 | QMN23: 0 | QMO23: 0 | QMP23: 0 | QMQ23: 0 | QMR23: 0 | QMS23: 0 | QMT23: 0 | QMU23: 0 | QMV23: 0 | QMW23: 0 | QMX23: 0 | QMY23: 0 | QMZ23: 0 | QNA23: 0 | QNB23: 0 | QNC23: 0 | QND23: 0 | QNE23: 0 | QNF23: 0 | QNG23: 0 | QNH23: 0 | QNI23: 0 | QNJ23: 0 | QNK23: =QNK6+QNK8+QNK10+QNK12+QNK14+QNK16+QNK18 -> 0 | QNL23: 0 | QNM23: 0 | QNN23: 0 | QNO23: 0 | QNP23: 0 | QNQ23: 0 | QNR23: 0 | QNS23: 0 | QNT23: 0 | QNU23: 0 | QNV23: 0 | QNW23: 0 | QNX23: 0 | QNY23: 0 | QNZ23: 0 | QOA23: 0 | QOB23: 0 | QOC23: 0 | QOD23: 0 | QOE23: 0 | QOF23: 0 | QOG23: 0 | QOH23: 0 | QOI23: 0 | QOJ23: 0 | QOK23: 0 | QOL23: 0 | QOM23: 0 | QON23: 0 | QOO23: 0 | QOP23: 0 | QOQ23: 0 | QOR23: 0 | QOS23: 0 | QOT23: 0 | QOU23: 0 | QOV23: 0 | QOW23: 0 | QOX23: 0 | QOY23: 0 | QOZ23: 0 | QPA23: 0 | QPB23: 0 | QPC23: 0 | QPD23: 0 | QPE23: 0 | QPF23: 0 | QPG23: 0 | QPH23: 0 | QPI23: 0 | QPJ23: 0 | QPK23: 0 | QPL23: 0 | QPM23: 0 | QPN23: 0 | QPO23: 0 | QPP23: 0 | QPQ23: 0 | QPR23: 0 | QPS23: 0 | QPT23: 0 | QPU23: 0 | QPV23: 0 | QPW23: =QPW6+QPW8+QPW10+QPW12+QPW14+QPW16+QPW18 -> 0 | QPX23: 0 | QPY23: 0 | QPZ23: 0 | QQA23: 0 | QQB23: 0 | QQC23: 0 | QQD23: 0 | QQE23: 0 | QQF23: 0 | QQG23: 0 | QQH23: 0 | QQI23: 0 | QQJ23: 0 | QQK23: 0 | QQL23: 0 | QQM23: 0 | QQN23: 0 | QQO23: 0 | QQP23: 0 | QQQ23: 0 | QQR23: 0 | QQS23: 0 | QQT23: 0 | QQU23: 0 | QQV23: 0 | QQW23: 0 | QQX23: 0 | QQY23: 0 | QQZ23: 0 | QRA23: 0 | QRB23: 0 | QRC23: 0 | QRD23: 0 | QRE23: 0 | QRF23: 0 | QRG23: 0 | QRH23: 0 | QRI23: 0 | QRJ23: 0 | QRK23: 0 | QRL23: 0 | QRM23: 0 | QRN23: 0 | QRO23: 0 | QRP23: 0 | QRQ23: 0 | QRR23: 0 | QRS23: 0 | QRT23: 0 | QRU23: 0 | QRV23: 0 | QRW23: 0 | QRX23: 0 | QRY23: 0 | QRZ23: 0 | QSA23: 0 | QSB23: 0 | QSC23: 0 | QSD23: 0 | QSE23: 0 | QSF23: 0 | QSG23: 0 | QSH23: 0 | QSI23: =QSI6+QSI8+QSI10+QSI12+QSI14+QSI16+QSI18 -> 0 | QSJ23: 0 | QSK23: 0 | QSL23: 0 | QSM23: 0 | QSN23: 0 | QSO23: 0 | QSP23: 0 | QSQ23: 0 | QSR23: 0 | QSS23: 0 | QST23: 0 | QSU23: 0 | QSV23: 0 | QSW23: 0 | QSX23: 0 | QSY23: 0 | QSZ23: 0 | QTA23: 0 | QTB23: 0 | QTC23: 0 | QTD23: 0 | QTE23: 0 | QTF23: 0 | QTG23: 0 | QTH23: 0 | QTI23: 0 | QTJ23: 0 | QTK23: 0 | QTL23: 0 | QTM23: 0 | QTN23: 0 | QTO23: 0 | QTP23: 0 | QTQ23: 0 | QTR23: 0 | QTS23: 0 | QTT23: 0 | QTU23: 0 | QTV23: 0 | QTW23: 0 | QTX23: 0 | QTY23: 0 | QTZ23: 0 | QUA23: 0 | QUB23: 0 | QUC23: 0 | QUD23: 0 | QUE23: 0 | QUF23: 0 | QUG23: 0 | QUH23: 0 | QUI23: 0 | QUJ23: 0 | QUK23: 0 | QUL23: 0 | QUM23: 0 | QUN23: 0 | QUO23: 0 | QUP23: 0 | QUQ23: 0 | QUR23: 0 | QUS23: 0 | QUT23: 0 | QUU23: =QUU6+QUU8+QUU10+QUU12+QUU14+QUU16+QUU18 -> 0 | QUV23: 0 | QUW23: 0 | QUX23: 0 | QUY23: 0 | QUZ23: 0 | QVA23: 0 | QVB23: 0 | QVC23: 0 | QVD23: 0 | QVE23: 0 | QVF23: 0 | QVG23: 0 | QVH23: 0 | QVI23: 0 | QVJ23: 0 | QVK23: 0 | QVL23: 0 | QVM23: 0 | QVN23: 0 | QVO23: 0 | QVP23: 0 | QVQ23: 0 | QVR23: 0 | QVS23: 0 | QVT23: 0 | QVU23: 0 | QVV23: 0 | QVW23: 0 | QVX23: 0 | QVY23: 0 | QVZ23: 0 | QWA23: 0 | QWB23: 0 | QWC23: 0 | QWD23: 0 | QWE23: 0 | QWF23: 0 | QWG23: 0 | QWH23: 0 | QWI23: 0 | QWJ23: 0 | QWK23: 0 | QWL23: 0 | QWM23: 0 | QWN23: 0 | QWO23: 0 | QWP23: 0 | QWQ23: 0 | QWR23: 0 | QWS23: 0 | QWT23: 0 | QWU23: 0 | QWV23: 0 | QWW23: 0 | QWX23: 0 | QWY23: 0 | QWZ23: 0 | QXA23: 0 | QXB23: 0 | QXC23: 0 | QXD23: 0 | QXE23: 0 | QXF23: 0 | QXG23: =QXG6+QXG8+QXG10+QXG12+QXG14+QXG16+QXG18 -> 0 | QXH23: 0 | QXI23: 0 | QXJ23: 0 | QXK23: 0 | QXL23: 0 | QXM23: 0 | QXN23: 0 | QXO23: 0 | QXP23: 0 | QXQ23: 0 | QXR23: 0 | QXS23: 0 | QXT23: 0 | QXU23: 0 | QXV23: 0 | QXW23: 0 | QXX23: 0 | QXY23: 0 | QXZ23: 0 | QYA23: 0 | QYB23: 0 | QYC23: 0 | QYD23: 0 | QYE23: 0 | QYF23: 0 | QYG23: 0 | QYH23: 0 | QYI23: 0 | QYJ23: 0 | QYK23: 0 | QYL23: 0 | QYM23: 0 | QYN23: 0 | QYO23: 0 | QYP23: 0 | QYQ23: 0 | QYR23: 0 | QYS23: 0 | QYT23: 0 | QYU23: 0 | QYV23: 0 | QYW23: 0 | QYX23: 0 | QYY23: 0 | QYZ23: 0 | QZA23: 0 | QZB23: 0 | QZC23: 0 | QZD23: 0 | QZE23: 0 | QZF23: 0 | QZG23: 0 | QZH23: 0 | QZI23: 0 | QZJ23: 0 | QZK23: 0 | QZL23: 0 | QZM23: 0 | QZN23: 0 | QZO23: 0 | QZP23: 0 | QZQ23: 0 | QZR23: 0 | QZS23: =QZS6+QZS8+QZS10+QZS12+QZS14+QZS16+QZS18 -> 0 | QZT23: 0 | QZU23: 0 | QZV23: 0 | QZW23: 0 | QZX23: 0 | QZY23: 0 | QZZ23: 0 | RAA23: 0 | RAB23: 0 | RAC23: 0 | RAD23: 0 | RAE23: 0 | RAF23: 0 | RAG23: 0 | RAH23: 0 | RAI23: 0 | RAJ23: 0 | RAK23: 0 | RAL23: 0 | RAM23: 0 | RAN23: 0 | RAO23: 0 | RAP23: 0 | RAQ23: 0 | RAR23: 0 | RAS23: 0 | RAT23: 0 | RAU23: 0 | RAV23: 0 | RAW23: 0 | RAX23: 0 | RAY23: 0 | RAZ23: 0 | RBA23: 0 | RBB23: 0 | RBC23: 0 | RBD23: 0 | RBE23: 0 | RBF23: 0 | RBG23: 0 | RBH23: 0 | RBI23: 0 | RBJ23: 0 | RBK23: 0 | RBL23: 0 | RBM23: 0 | RBN23: 0 | RBO23: 0 | RBP23: 0 | RBQ23: 0 | RBR23: 0 | RBS23: 0 | RBT23: 0 | RBU23: 0 | RBV23: 0 | RBW23: 0 | RBX23: 0 | RBY23: 0 | RBZ23: 0 | RCA23: 0 | RCB23: 0 | RCC23: 0 | RCD23: 0 | RCE23: =RCE6+RCE8+RCE10+RCE12+RCE14+RCE16+RCE18 -> 0 | RCF23: 0 | RCG23: 0 | RCH23: 0 | RCI23: 0 | RCJ23: 0 | RCK23: 0 | RCL23: 0 | RCM23: 0 | RCN23: 0 | RCO23: 0 | RCP23: 0 | RCQ23: 0 | RCR23: 0 | RCS23: 0 | RCT23: 0 | RCU23: 0 | RCV23: 0 | RCW23: 0 | RCX23: 0 | RCY23: 0 | RCZ23: 0 | RDA23: 0 | RDB23: 0 | RDC23: 0 | RDD23: 0 | RDE23: 0 | RDF23: 0 | RDG23: 0 | RDH23: 0 | RDI23: 0 | RDJ23: 0 | RDK23: 0 | RDL23: 0 | RDM23: 0 | RDN23: 0 | RDO23: 0 | RDP23: 0 | RDQ23: 0 | RDR23: 0 | RDS23: 0 | RDT23: 0 | RDU23: 0 | RDV23: 0 | RDW23: 0 | RDX23: 0 | RDY23: 0 | RDZ23: 0 | REA23: 0 | REB23: 0 | REC23: 0 | RED23: 0 | REE23: 0 | REF23: 0 | REG23: 0 | REH23: 0 | REI23: 0 | REJ23: 0 | REK23: 0 | REL23: 0 | REM23: 0 | REN23: 0 | REO23: 0 | REP23: 0 | REQ23: =REQ6+REQ8+REQ10+REQ12+REQ14+REQ16+REQ18 -> 0 | RER23: 0 | RES23: 0 | RET23: 0 | REU23: 0 | REV23: 0 | REW23: 0 | REX23: 0 | REY23: 0 | REZ23: 0 | RFA23: 0 | RFB23: 0 | RFC23: 0 | RFD23: 0 | RFE23: 0 | RFF23: 0 | RFG23: 0 | RFH23: 0 | RFI23: 0 | RFJ23: 0 | RFK23: 0 | RFL23: 0 | RFM23: 0 | RFN23: 0 | RFO23: 0 | RFP23: 0 | RFQ23: 0 | RFR23: 0 | RFS23: 0 | RFT23: 0 | RFU23: 0 | RFV23: 0 | RFW23: 0 | RFX23: 0 | RFY23: 0 | RFZ23: 0 | RGA23: 0 | RGB23: 0 | RGC23: 0 | RGD23: 0 | RGE23: 0 | RGF23: 0 | RGG23: 0 | RGH23: 0 | RGI23: 0 | RGJ23: 0 | RGK23: 0 | RGL23: 0 | RGM23: 0 | RGN23: 0 | RGO23: 0 | RGP23: 0 | RGQ23: 0 | RGR23: 0 | RGS23: 0 | RGT23: 0 | RGU23: 0 | RGV23: 0 | RGW23: 0 | RGX23: 0 | RGY23: 0 | RGZ23: 0 | RHA23: 0 | RHB23: 0 | RHC23: =RHC6+RHC8+RHC10+RHC12+RHC14+RHC16+RHC18 -> 0 | RHD23: 0 | RHE23: 0 | RHF23: 0 | RHG23: 0 | RHH23: 0 | RHI23: 0 | RHJ23: 0 | RHK23: 0 | RHL23: 0 | RHM23: 0 | RHN23: 0 | RHO23: 0 | RHP23: 0 | RHQ23: 0 | RHR23: 0 | RHS23: 0 | RHT23: 0 | RHU23: 0 | RHV23: 0 | RHW23: 0 | RHX23: 0 | RHY23: 0 | RHZ23: 0 | RIA23: 0 | RIB23: 0 | RIC23: 0 | RID23: 0 | RIE23: 0 | RIF23: 0 | RIG23: 0 | RIH23: 0 | RII23: 0 | RIJ23: 0 | RIK23: 0 | RIL23: 0 | RIM23: 0 | RIN23: 0 | RIO23: 0 | RIP23: 0 | RIQ23: 0 | RIR23: 0 | RIS23: 0 | RIT23: 0 | RIU23: 0 | RIV23: 0 | RIW23: 0 | RIX23: 0 | RIY23: 0 | RIZ23: 0 | RJA23: 0 | RJB23: 0 | RJC23: 0 | RJD23: 0 | RJE23: 0 | RJF23: 0 | RJG23: 0 | RJH23: 0 | RJI23: 0 | RJJ23: 0 | RJK23: 0 | RJL23: 0 | RJM23: 0 | RJN23: 0 | RJO23: =RJO6+RJO8+RJO10+RJO12+RJO14+RJO16+RJO18 -> 0 | RJP23: 0 | RJQ23: 0 | RJR23: 0 | RJS23: 0 | RJT23: 0 | RJU23: 0 | RJV23: 0 | RJW23: 0 | RJX23: 0 | RJY23: 0 | RJZ23: 0 | RKA23: 0 | RKB23: 0 | RKC23: 0 | RKD23: 0 | RKE23: 0 | RKF23: 0 | RKG23: 0 | RKH23: 0 | RKI23: 0 | RKJ23: 0 | RKK23: 0 | RKL23: 0 | RKM23: 0 | RKN23: 0 | RKO23: 0 | RKP23: 0 | RKQ23: 0 | RKR23: 0 | RKS23: 0 | RKT23: 0 | RKU23: 0 | RKV23: 0 | RKW23: 0 | RKX23: 0 | RKY23: 0 | RKZ23: 0 | RLA23: 0 | RLB23: 0 | RLC23: 0 | RLD23: 0 | RLE23: 0 | RLF23: 0 | RLG23: 0 | RLH23: 0 | RLI23: 0 | RLJ23: 0 | RLK23: 0 | RLL23: 0 | RLM23: 0 | RLN23: 0 | RLO23: 0 | RLP23: 0 | RLQ23: 0 | RLR23: 0 | RLS23: 0 | RLT23: 0 | RLU23: 0 | RLV23: 0 | RLW23: 0 | RLX23: 0 | RLY23: 0 | RLZ23: 0 | RMA23: =RMA6+RMA8+RMA10+RMA12+RMA14+RMA16+RMA18 -> 0 | RMB23: 0 | RMC23: 0 | RMD23: 0 | RME23: 0 | RMF23: 0 | RMG23: 0 | RMH23: 0 | RMI23: 0 | RMJ23: 0 | RMK23: 0 | RML23: 0 | RMM23: 0 | RMN23: 0 | RMO23: 0 | RMP23: 0 | RMQ23: 0 | RMR23: 0 | RMS23: 0 | RMT23: 0 | RMU23: 0 | RMV23: 0 | RMW23: 0 | RMX23: 0 | RMY23: 0 | RMZ23: 0 | RNA23: 0 | RNB23: 0 | RNC23: 0 | RND23: 0 | RNE23: 0 | RNF23: 0 | RNG23: 0 | RNH23: 0 | RNI23: 0 | RNJ23: 0 | RNK23: 0 | RNL23: 0 | RNM23: 0 | RNN23: 0 | RNO23: 0 | RNP23: 0 | RNQ23: 0 | RNR23: 0 | RNS23: 0 | RNT23: 0 | RNU23: 0 | RNV23: 0 | RNW23: 0 | RNX23: 0 | RNY23: 0 | RNZ23: 0 | ROA23: 0 | ROB23: 0 | ROC23: 0 | ROD23: 0 | ROE23: 0 | ROF23: 0 | ROG23: 0 | ROH23: 0 | ROI23: 0 | ROJ23: 0 | ROK23: 0 | ROL23: 0 | ROM23: =ROM6+ROM8+ROM10+ROM12+ROM14+ROM16+ROM18 -> 0 | RON23: 0 | ROO23: 0 | ROP23: 0 | ROQ23: 0 | ROR23: 0 | ROS23: 0 | ROT23: 0 | ROU23: 0 | ROV23: 0 | ROW23: 0 | ROX23: 0 | ROY23: 0 | ROZ23: 0 | RPA23: 0 | RPB23: 0 | RPC23: 0 | RPD23: 0 | RPE23: 0 | RPF23: 0 | RPG23: 0 | RPH23: 0 | RPI23: 0 | RPJ23: 0 | RPK23: 0 | RPL23: 0 | RPM23: 0 | RPN23: 0 | RPO23: 0 | RPP23: 0 | RPQ23: 0 | RPR23: 0 | RPS23: 0 | RPT23: 0 | RPU23: 0 | RPV23: 0 | RPW23: 0 | RPX23: 0 | RPY23: 0 | RPZ23: 0 | RQA23: 0 | RQB23: 0 | RQC23: 0 | RQD23: 0 | RQE23: 0 | RQF23: 0 | RQG23: 0 | RQH23: 0 | RQI23: 0 | RQJ23: 0 | RQK23: 0 | RQL23: 0 | RQM23: 0 | RQN23: 0 | RQO23: 0 | RQP23: 0 | RQQ23: 0 | RQR23: 0 | RQS23: 0 | RQT23: 0 | RQU23: 0 | RQV23: 0 | RQW23: 0 | RQX23: 0 | RQY23: =RQY6+RQY8+RQY10+RQY12+RQY14+RQY16+RQY18 -> 0 | RQZ23: 0 | RRA23: 0 | RRB23: 0 | RRC23: 0 | RRD23: 0 | RRE23: 0 | RRF23: 0 | RRG23: 0 | RRH23: 0 | RRI23: 0 | RRJ23: 0 | RRK23: 0 | RRL23: 0 | RRM23: 0 | RRN23: 0 | RRO23: 0 | RRP23: 0 | RRQ23: 0 | RRR23: 0 | RRS23: 0 | RRT23: 0 | RRU23: 0 | RRV23: 0 | RRW23: 0 | RRX23: 0 | RRY23: 0 | RRZ23: 0 | RSA23: 0 | RSB23: 0 | RSC23: 0 | RSD23: 0 | RSE23: 0 | RSF23: 0 | RSG23: 0 | RSH23: 0 | RSI23: 0 | RSJ23: 0 | RSK23: 0 | RSL23: 0 | RSM23: 0 | RSN23: 0 | RSO23: 0 | RSP23: 0 | RSQ23: 0 | RSR23: 0 | RSS23: 0 | RST23: 0 | RSU23: 0 | RSV23: 0 | RSW23: 0 | RSX23: 0 | RSY23: 0 | RSZ23: 0 | RTA23: 0 | RTB23: 0 | RTC23: 0 | RTD23: 0 | RTE23: 0 | RTF23: 0 | RTG23: 0 | RTH23: 0 | RTI23: 0 | RTJ23: 0 | RTK23: =RTK6+RTK8+RTK10+RTK12+RTK14+RTK16+RTK18 -> 0 | RTL23: 0 | RTM23: 0 | RTN23: 0 | RTO23: 0 | RTP23: 0 | RTQ23: 0 | RTR23: 0 | RTS23: 0 | RTT23: 0 | RTU23: 0 | RTV23: 0 | RTW23: 0 | RTX23: 0 | RTY23: 0 | RTZ23: 0 | RUA23: 0 | RUB23: 0 | RUC23: 0 | RUD23: 0 | RUE23: 0 | RUF23: 0 | RUG23: 0 | RUH23: 0 | RUI23: 0 | RUJ23: 0 | RUK23: 0 | RUL23: 0 | RUM23: 0 | RUN23: 0 | RUO23: 0 | RUP23: 0 | RUQ23: 0 | RUR23: 0 | RUS23: 0 | RUT23: 0 | RUU23: 0 | RUV23: 0 | RUW23: 0 | RUX23: 0 | RUY23: 0 | RUZ23: 0 | RVA23: 0 | RVB23: 0 | RVC23: 0 | RVD23: 0 | RVE23: 0 | RVF23: 0 | RVG23: 0 | RVH23: 0 | RVI23: 0 | RVJ23: 0 | RVK23: 0 | RVL23: 0 | RVM23: 0 | RVN23: 0 | RVO23: 0 | RVP23: 0 | RVQ23: 0 | RVR23: 0 | RVS23: 0 | RVT23: 0 | RVU23: 0 | RVV23: 0 | RVW23: =RVW6+RVW8+RVW10+RVW12+RVW14+RVW16+RVW18 -> 0 | RVX23: 0 | RVY23: 0 | RVZ23: 0 | RWA23: 0 | RWB23: 0 | RWC23: 0 | RWD23: 0 | RWE23: 0 | RWF23: 0 | RWG23: 0 | RWH23: 0 | RWI23: 0 | RWJ23: 0 | RWK23: 0 | RWL23: 0 | RWM23: 0 | RWN23: 0 | RWO23: 0 | RWP23: 0 | RWQ23: 0 | RWR23: 0 | RWS23: 0 | RWT23: 0 | RWU23: 0 | RWV23: 0 | RWW23: 0 | RWX23: 0 | RWY23: 0 | RWZ23: 0 | RXA23: 0 | RXB23: 0 | RXC23: 0 | RXD23: 0 | RXE23: 0 | RXF23: 0 | RXG23: 0 | RXH23: 0 | RXI23: 0 | RXJ23: 0 | RXK23: 0 | RXL23: 0 | RXM23: 0 | RXN23: 0 | RXO23: 0 | RXP23: 0 | RXQ23: 0 | RXR23: 0 | RXS23: 0 | RXT23: 0 | RXU23: 0 | RXV23: 0 | RXW23: 0 | RXX23: 0 | RXY23: 0 | RXZ23: 0 | RYA23: 0 | RYB23: 0 | RYC23: 0 | RYD23: 0 | RYE23: 0 | RYF23: 0 | RYG23: 0 | RYH23: 0 | RYI23: =RYI6+RYI8+RYI10+RYI12+RYI14+RYI16+RYI18 -> 0 | RYJ23: 0 | RYK23: 0 | RYL23: 0 | RYM23: 0 | RYN23: 0 | RYO23: 0 | RYP23: 0 | RYQ23: 0 | RYR23: 0 | RYS23: 0 | RYT23: 0 | RYU23: 0 | RYV23: 0 | RYW23: 0 | RYX23: 0 | RYY23: 0 | RYZ23: 0 | RZA23: 0 | RZB23: 0 | RZC23: 0 | RZD23: 0 | RZE23: 0 | RZF23: 0 | RZG23: 0 | RZH23: 0 | RZI23: 0 | RZJ23: 0 | RZK23: 0 | RZL23: 0 | RZM23: 0 | RZN23: 0 | RZO23: 0 | RZP23: 0 | RZQ23: 0 | RZR23: 0 | RZS23: 0 | RZT23: 0 | RZU23: 0 | RZV23: 0 | RZW23: 0 | RZX23: 0 | RZY23: 0 | RZZ23: 0 | SAA23: 0 | SAB23: 0 | SAC23: 0 | SAD23: 0 | SAE23: 0 | SAF23: 0 | SAG23: 0 | SAH23: 0 | SAI23: 0 | SAJ23: 0 | SAK23: 0 | SAL23: 0 | SAM23: 0 | SAN23: 0 | SAO23: 0 | SAP23: 0 | SAQ23: 0 | SAR23: 0 | SAS23: 0 | SAT23: 0 | SAU23: =SAU6+SAU8+SAU10+SAU12+SAU14+SAU16+SAU18 -> 0 | SAV23: 0 | SAW23: 0 | SAX23: 0 | SAY23: 0 | SAZ23: 0 | SBA23: 0 | SBB23: 0 | SBC23: 0 | SBD23: 0 | SBE23: 0 | SBF23: 0 | SBG23: 0 | SBH23: 0 | SBI23: 0 | SBJ23: 0 | SBK23: 0 | SBL23: 0 | SBM23: 0 | SBN23: 0 | SBO23: 0 | SBP23: 0 | SBQ23: 0 | SBR23: 0 | SBS23: 0 | SBT23: 0 | SBU23: 0 | SBV23: 0 | SBW23: 0 | SBX23: 0 | SBY23: 0 | SBZ23: 0 | SCA23: 0 | SCB23: 0 | SCC23: 0 | SCD23: 0 | SCE23: 0 | SCF23: 0 | SCG23: 0 | SCH23: 0 | SCI23: 0 | SCJ23: 0 | SCK23: 0 | SCL23: 0 | SCM23: 0 | SCN23: 0 | SCO23: 0 | SCP23: 0 | SCQ23: 0 | SCR23: 0 | SCS23: 0 | SCT23: 0 | SCU23: 0 | SCV23: 0 | SCW23: 0 | SCX23: 0 | SCY23: 0 | SCZ23: 0 | SDA23: 0 | SDB23: 0 | SDC23: 0 | SDD23: 0 | SDE23: 0 | SDF23: 0 | SDG23: =SDG6+SDG8+SDG10+SDG12+SDG14+SDG16+SDG18 -> 0 | SDH23: 0 | SDI23: 0 | SDJ23: 0 | SDK23: 0 | SDL23: 0 | SDM23: 0 | SDN23: 0 | SDO23: 0 | SDP23: 0 | SDQ23: 0 | SDR23: 0 | SDS23: 0 | SDT23: 0 | SDU23: 0 | SDV23: 0 | SDW23: 0 | SDX23: 0 | SDY23: 0 | SDZ23: 0 | SEA23: 0 | SEB23: 0 | SEC23: 0 | SED23: 0 | SEE23: 0 | SEF23: 0 | SEG23: 0 | SEH23: 0 | SEI23: 0 | SEJ23: 0 | SEK23: 0 | SEL23: 0 | SEM23: 0 | SEN23: 0 | SEO23: 0 | SEP23: 0 | SEQ23: 0 | SER23: 0 | SES23: 0 | SET23: 0 | SEU23: 0 | SEV23: 0 | SEW23: 0 | SEX23: 0 | SEY23: 0 | SEZ23: 0 | SFA23: 0 | SFB23: 0 | SFC23: 0 | SFD23: 0 | SFE23: 0 | SFF23: 0 | SFG23: 0 | SFH23: 0 | SFI23: 0 | SFJ23: 0 | SFK23: 0 | SFL23: 0 | SFM23: 0 | SFN23: 0 | SFO23: 0 | SFP23: 0 | SFQ23: 0 | SFR23: 0 | SFS23: =SFS6+SFS8+SFS10+SFS12+SFS14+SFS16+SFS18 -> 0 | SFT23: 0 | SFU23: 0 | SFV23: 0 | SFW23: 0 | SFX23: 0 | SFY23: 0 | SFZ23: 0 | SGA23: 0 | SGB23: 0 | SGC23: 0 | SGD23: 0 | SGE23: 0 | SGF23: 0 | SGG23: 0 | SGH23: 0 | SGI23: 0 | SGJ23: 0 | SGK23: 0 | SGL23: 0 | SGM23: 0 | SGN23: 0 | SGO23: 0 | SGP23: 0 | SGQ23: 0 | SGR23: 0 | SGS23: 0 | SGT23: 0 | SGU23: 0 | SGV23: 0 | SGW23: 0 | SGX23: 0 | SGY23: 0 | SGZ23: 0 | SHA23: 0 | SHB23: 0 | SHC23: 0 | SHD23: 0 | SHE23: 0 | SHF23: 0 | SHG23: 0 | SHH23: 0 | SHI23: 0 | SHJ23: 0 | SHK23: 0 | SHL23: 0 | SHM23: 0 | SHN23: 0 | SHO23: 0 | SHP23: 0 | SHQ23: 0 | SHR23: 0 | SHS23: 0 | SHT23: 0 | SHU23: 0 | SHV23: 0 | SHW23: 0 | SHX23: 0 | SHY23: 0 | SHZ23: 0 | SIA23: 0 | SIB23: 0 | SIC23: 0 | SID23: 0 | SIE23: =SIE6+SIE8+SIE10+SIE12+SIE14+SIE16+SIE18 -> 0 | SIF23: 0 | SIG23: 0 | SIH23: 0 | SII23: 0 | SIJ23: 0 | SIK23: 0 | SIL23: 0 | SIM23: 0 | SIN23: 0 | SIO23: 0 | SIP23: 0 | SIQ23: 0 | SIR23: 0 | SIS23: 0 | SIT23: 0 | SIU23: 0 | SIV23: 0 | SIW23: 0 | SIX23: 0 | SIY23: 0 | SIZ23: 0 | SJA23: 0 | SJB23: 0 | SJC23: 0 | SJD23: 0 | SJE23: 0 | SJF23: 0 | SJG23: 0 | SJH23: 0 | SJI23: 0 | SJJ23: 0 | SJK23: 0 | SJL23: 0 | SJM23: 0 | SJN23: 0 | SJO23: 0 | SJP23: 0 | SJQ23: 0 | SJR23: 0 | SJS23: 0 | SJT23: 0 | SJU23: 0 | SJV23: 0 | SJW23: 0 | SJX23: 0 | SJY23: 0 | SJZ23: 0 | SKA23: 0 | SKB23: 0 | SKC23: 0 | SKD23: 0 | SKE23: 0 | SKF23: 0 | SKG23: 0 | SKH23: 0 | SKI23: 0 | SKJ23: 0 | SKK23: 0 | SKL23: 0 | SKM23: 0 | SKN23: 0 | SKO23: 0 | SKP23: 0 | SKQ23: =SKQ6+SKQ8+SKQ10+SKQ12+SKQ14+SKQ16+SKQ18 -> 0 | SKR23: 0 | SKS23: 0 | SKT23: 0 | SKU23: 0 | SKV23: 0 | SKW23: 0 | SKX23: 0 | SKY23: 0 | SKZ23: 0 | SLA23: 0 | SLB23: 0 | SLC23: 0 | SLD23: 0 | SLE23: 0 | SLF23: 0 | SLG23: 0 | SLH23: 0 | SLI23: 0 | SLJ23: 0 | SLK23: 0 | SLL23: 0 | SLM23: 0 | SLN23: 0 | SLO23: 0 | SLP23: 0 | SLQ23: 0 | SLR23: 0 | SLS23: 0 | SLT23: 0 | SLU23: 0 | SLV23: 0 | SLW23: 0 | SLX23: 0 | SLY23: 0 | SLZ23: 0 | SMA23: 0 | SMB23: 0 | SMC23: 0 | SMD23: 0 | SME23: 0 | SMF23: 0 | SMG23: 0 | SMH23: 0 | SMI23: 0 | SMJ23: 0 | SMK23: 0 | SML23: 0 | SMM23: 0 | SMN23: 0 | SMO23: 0 | SMP23: 0 | SMQ23: 0 | SMR23: 0 | SMS23: 0 | SMT23: 0 | SMU23: 0 | SMV23: 0 | SMW23: 0 | SMX23: 0 | SMY23: 0 | SMZ23: 0 | SNA23: 0 | SNB23: 0 | SNC23: =SNC6+SNC8+SNC10+SNC12+SNC14+SNC16+SNC18 -> 0 | SND23: 0 | SNE23: 0 | SNF23: 0 | SNG23: 0 | SNH23: 0 | SNI23: 0 | SNJ23: 0 | SNK23: 0 | SNL23: 0 | SNM23: 0 | SNN23: 0 | SNO23: 0 | SNP23: 0 | SNQ23: 0 | SNR23: 0 | SNS23: 0 | SNT23: 0 | SNU23: 0 | SNV23: 0 | SNW23: 0 | SNX23: 0 | SNY23: 0 | SNZ23: 0 | SOA23: 0 | SOB23: 0 | SOC23: 0 | SOD23: 0 | SOE23: 0 | SOF23: 0 | SOG23: 0 | SOH23: 0 | SOI23: 0 | SOJ23: 0 | SOK23: 0 | SOL23: 0 | SOM23: 0 | SON23: 0 | SOO23: 0 | SOP23: 0 | SOQ23: 0 | SOR23: 0 | SOS23: 0 | SOT23: 0 | SOU23: 0 | SOV23: 0 | SOW23: 0 | SOX23: 0 | SOY23: 0 | SOZ23: 0 | SPA23: 0 | SPB23: 0 | SPC23: 0 | SPD23: 0 | SPE23: 0 | SPF23: 0 | SPG23: 0 | SPH23: 0 | SPI23: 0 | SPJ23: 0 | SPK23: 0 | SPL23: 0 | SPM23: 0 | SPN23: 0 | SPO23: =SPO6+SPO8+SPO10+SPO12+SPO14+SPO16+SPO18 -> 0 | SPP23: 0 | SPQ23: 0 | SPR23: 0 | SPS23: 0 | SPT23: 0 | SPU23: 0 | SPV23: 0 | SPW23: 0 | SPX23: 0 | SPY23: 0 | SPZ23: 0 | SQA23: 0 | SQB23: 0 | SQC23: 0 | SQD23: 0 | SQE23: 0 | SQF23: 0 | SQG23: 0 | SQH23: 0 | SQI23: 0 | SQJ23: 0 | SQK23: 0 | SQL23: 0 | SQM23: 0 | SQN23: 0 | SQO23: 0 | SQP23: 0 | SQQ23: 0 | SQR23: 0 | SQS23: 0 | SQT23: 0 | SQU23: 0 | SQV23: 0 | SQW23: 0 | SQX23: 0 | SQY23: 0 | SQZ23: 0 | SRA23: 0 | SRB23: 0 | SRC23: 0 | SRD23: 0 | SRE23: 0 | SRF23: 0 | SRG23: 0 | SRH23: 0 | SRI23: 0 | SRJ23: 0 | SRK23: 0 | SRL23: 0 | SRM23: 0 | SRN23: 0 | SRO23: 0 | SRP23: 0 | SRQ23: 0 | SRR23: 0 | SRS23: 0 | SRT23: 0 | SRU23: 0 | SRV23: 0 | SRW23: 0 | SRX23: 0 | SRY23: 0 | SRZ23: 0 | SSA23: =SSA6+SSA8+SSA10+SSA12+SSA14+SSA16+SSA18 -> 0 | SSB23: 0 | SSC23: 0 | SSD23: 0 | SSE23: 0 | SSF23: 0 | SSG23: 0 | SSH23: 0 | SSI23: 0 | SSJ23: 0 | SSK23: 0 | SSL23: 0 | SSM23: 0 | SSN23: 0 | SSO23: 0 | SSP23: 0 | SSQ23: 0 | SSR23: 0 | SSS23: 0 | SST23: 0 | SSU23: 0 | SSV23: 0 | SSW23: 0 | SSX23: 0 | SSY23: 0 | SSZ23: 0 | STA23: 0 | STB23: 0 | STC23: 0 | STD23: 0 | STE23: 0 | STF23: 0 | STG23: 0 | STH23: 0 | STI23: 0 | STJ23: 0 | STK23: 0 | STL23: 0 | STM23: 0 | STN23: 0 | STO23: 0 | STP23: 0 | STQ23: 0 | STR23: 0 | STS23: 0 | STT23: 0 | STU23: 0 | STV23: 0 | STW23: 0 | STX23: 0 | STY23: 0 | STZ23: 0 | SUA23: 0 | SUB23: 0 | SUC23: 0 | SUD23: 0 | SUE23: 0 | SUF23: 0 | SUG23: 0 | SUH23: 0 | SUI23: 0 | SUJ23: 0 | SUK23: 0 | SUL23: 0 | SUM23: =SUM6+SUM8+SUM10+SUM12+SUM14+SUM16+SUM18 -> 0 | SUN23: 0 | SUO23: 0 | SUP23: 0 | SUQ23: 0 | SUR23: 0 | SUS23: 0 | SUT23: 0 | SUU23: 0 | SUV23: 0 | SUW23: 0 | SUX23: 0 | SUY23: 0 | SUZ23: 0 | SVA23: 0 | SVB23: 0 | SVC23: 0 | SVD23: 0 | SVE23: 0 | SVF23: 0 | SVG23: 0 | SVH23: 0 | SVI23: 0 | SVJ23: 0 | SVK23: 0 | SVL23: 0 | SVM23: 0 | SVN23: 0 | SVO23: 0 | SVP23: 0 | SVQ23: 0 | SVR23: 0 | SVS23: 0 | SVT23: 0 | SVU23: 0 | SVV23: 0 | SVW23: 0 | SVX23: 0 | SVY23: 0 | SVZ23: 0 | SWA23: 0 | SWB23: 0 | SWC23: 0 | SWD23: 0 | SWE23: 0 | SWF23: 0 | SWG23: 0 | SWH23: 0 | SWI23: 0 | SWJ23: 0 | SWK23: 0 | SWL23: 0 | SWM23: 0 | SWN23: 0 | SWO23: 0 | SWP23: 0 | SWQ23: 0 | SWR23: 0 | SWS23: 0 | SWT23: 0 | SWU23: 0 | SWV23: 0 | SWW23: 0 | SWX23: 0 | SWY23: =SWY6+SWY8+SWY10+SWY12+SWY14+SWY16+SWY18 -> 0 | SWZ23: 0 | SXA23: 0 | SXB23: 0 | SXC23: 0 | SXD23: 0 | SXE23: 0 | SXF23: 0 | SXG23: 0 | SXH23: 0 | SXI23: 0 | SXJ23: 0 | SXK23: 0 | SXL23: 0 | SXM23: 0 | SXN23: 0 | SXO23: 0 | SXP23: 0 | SXQ23: 0 | SXR23: 0 | SXS23: 0 | SXT23: 0 | SXU23: 0 | SXV23: 0 | SXW23: 0 | SXX23: 0 | SXY23: 0 | SXZ23: 0 | SYA23: 0 | SYB23: 0 | SYC23: 0 | SYD23: 0 | SYE23: 0 | SYF23: 0 | SYG23: 0 | SYH23: 0 | SYI23: 0 | SYJ23: 0 | SYK23: 0 | SYL23: 0 | SYM23: 0 | SYN23: 0 | SYO23: 0 | SYP23: 0 | SYQ23: 0 | SYR23: 0 | SYS23: 0 | SYT23: 0 | SYU23: 0 | SYV23: 0 | SYW23: 0 | SYX23: 0 | SYY23: 0 | SYZ23: 0 | SZA23: 0 | SZB23: 0 | SZC23: 0 | SZD23: 0 | SZE23: 0 | SZF23: 0 | SZG23: 0 | SZH23: 0 | SZI23: 0 | SZJ23: 0 | SZK23: =SZK6+SZK8+SZK10+SZK12+SZK14+SZK16+SZK18 -> 0 | SZL23: 0 | SZM23: 0 | SZN23: 0 | SZO23: 0 | SZP23: 0 | SZQ23: 0 | SZR23: 0 | SZS23: 0 | SZT23: 0 | SZU23: 0 | SZV23: 0 | SZW23: 0 | SZX23: 0 | SZY23: 0 | SZZ23: 0 | TAA23: 0 | TAB23: 0 | TAC23: 0 | TAD23: 0 | TAE23: 0 | TAF23: 0 | TAG23: 0 | TAH23: 0 | TAI23: 0 | TAJ23: 0 | TAK23: 0 | TAL23: 0 | TAM23: 0 | TAN23: 0 | TAO23: 0 | TAP23: 0 | TAQ23: 0 | TAR23: 0 | TAS23: 0 | TAT23: 0 | TAU23: 0 | TAV23: 0 | TAW23: 0 | TAX23: 0 | TAY23: 0 | TAZ23: 0 | TBA23: 0 | TBB23: 0 | TBC23: 0 | TBD23: 0 | TBE23: 0 | TBF23: 0 | TBG23: 0 | TBH23: 0 | TBI23: 0 | TBJ23: 0 | TBK23: 0 | TBL23: 0 | TBM23: 0 | TBN23: 0 | TBO23: 0 | TBP23: 0 | TBQ23: 0 | TBR23: 0 | TBS23: 0 | TBT23: 0 | TBU23: 0 | TBV23: 0 | TBW23: =TBW6+TBW8+TBW10+TBW12+TBW14+TBW16+TBW18 -> 0 | TBX23: 0 | TBY23: 0 | TBZ23: 0 | TCA23: 0 | TCB23: 0 | TCC23: 0 | TCD23: 0 | TCE23: 0 | TCF23: 0 | TCG23: 0 | TCH23: 0 | TCI23: 0 | TCJ23: 0 | TCK23: 0 | TCL23: 0 | TCM23: 0 | TCN23: 0 | TCO23: 0 | TCP23: 0 | TCQ23: 0 | TCR23: 0 | TCS23: 0 | TCT23: 0 | TCU23: 0 | TCV23: 0 | TCW23: 0 | TCX23: 0 | TCY23: 0 | TCZ23: 0 | TDA23: 0 | TDB23: 0 | TDC23: 0 | TDD23: 0 | TDE23: 0 | TDF23: 0 | TDG23: 0 | TDH23: 0 | TDI23: 0 | TDJ23: 0 | TDK23: 0 | TDL23: 0 | TDM23: 0 | TDN23: 0 | TDO23: 0 | TDP23: 0 | TDQ23: 0 | TDR23: 0 | TDS23: 0 | TDT23: 0 | TDU23: 0 | TDV23: 0 | TDW23: 0 | TDX23: 0 | TDY23: 0 | TDZ23: 0 | TEA23: 0 | TEB23: 0 | TEC23: 0 | TED23: 0 | TEE23: 0 | TEF23: 0 | TEG23: 0 | TEH23: 0 | TEI23: =TEI6+TEI8+TEI10+TEI12+TEI14+TEI16+TEI18 -> 0 | TEJ23: 0 | TEK23: 0 | TEL23: 0 | TEM23: 0 | TEN23: 0 | TEO23: 0 | TEP23: 0 | TEQ23: 0 | TER23: 0 | TES23: 0 | TET23: 0 | TEU23: 0 | TEV23: 0 | TEW23: 0 | TEX23: 0 | TEY23: 0 | TEZ23: 0 | TFA23: 0 | TFB23: 0 | TFC23: 0 | TFD23: 0 | TFE23: 0 | TFF23: 0 | TFG23: 0 | TFH23: 0 | TFI23: 0 | TFJ23: 0 | TFK23: 0 | TFL23: 0 | TFM23: 0 | TFN23: 0 | TFO23: 0 | TFP23: 0 | TFQ23: 0 | TFR23: 0 | TFS23: 0 | TFT23: 0 | TFU23: 0 | TFV23: 0 | TFW23: 0 | TFX23: 0 | TFY23: 0 | TFZ23: 0 | TGA23: 0 | TGB23: 0 | TGC23: 0 | TGD23: 0 | TGE23: 0 | TGF23: 0 | TGG23: 0 | TGH23: 0 | TGI23: 0 | TGJ23: 0 | TGK23: 0 | TGL23: 0 | TGM23: 0 | TGN23: 0 | TGO23: 0 | TGP23: 0 | TGQ23: 0 | TGR23: 0 | TGS23: 0 | TGT23: 0 | TGU23: =TGU6+TGU8+TGU10+TGU12+TGU14+TGU16+TGU18 -> 0 | TGV23: 0 | TGW23: 0 | TGX23: 0 | TGY23: 0 | TGZ23: 0 | THA23: 0 | THB23: 0 | THC23: 0 | THD23: 0 | THE23: 0 | THF23: 0 | THG23: 0 | THH23: 0 | THI23: 0 | THJ23: 0 | THK23: 0 | THL23: 0 | THM23: 0 | THN23: 0 | THO23: 0 | THP23: 0 | THQ23: 0 | THR23: 0 | THS23: 0 | THT23: 0 | THU23: 0 | THV23: 0 | THW23: 0 | THX23: 0 | THY23: 0 | THZ23: 0 | TIA23: 0 | TIB23: 0 | TIC23: 0 | TID23: 0 | TIE23: 0 | TIF23: 0 | TIG23: 0 | TIH23: 0 | TII23: 0 | TIJ23: 0 | TIK23: 0 | TIL23: 0 | TIM23: 0 | TIN23: 0 | TIO23: 0 | TIP23: 0 | TIQ23: 0 | TIR23: 0 | TIS23: 0 | TIT23: 0 | TIU23: 0 | TIV23: 0 | TIW23: 0 | TIX23: 0 | TIY23: 0 | TIZ23: 0 | TJA23: 0 | TJB23: 0 | TJC23: 0 | TJD23: 0 | TJE23: 0 | TJF23: 0 | TJG23: =TJG6+TJG8+TJG10+TJG12+TJG14+TJG16+TJG18 -> 0 | TJH23: 0 | TJI23: 0 | TJJ23: 0 | TJK23: 0 | TJL23: 0 | TJM23: 0 | TJN23: 0 | TJO23: 0 | TJP23: 0 | TJQ23: 0 | TJR23: 0 | TJS23: 0 | TJT23: 0 | TJU23: 0 | TJV23: 0 | TJW23: 0 | TJX23: 0 | TJY23: 0 | TJZ23: 0 | TKA23: 0 | TKB23: 0 | TKC23: 0 | TKD23: 0 | TKE23: 0 | TKF23: 0 | TKG23: 0 | TKH23: 0 | TKI23: 0 | TKJ23: 0 | TKK23: 0 | TKL23: 0 | TKM23: 0 | TKN23: 0 | TKO23: 0 | TKP23: 0 | TKQ23: 0 | TKR23: 0 | TKS23: 0 | TKT23: 0 | TKU23: 0 | TKV23: 0 | TKW23: 0 | TKX23: 0 | TKY23: 0 | TKZ23: 0 | TLA23: 0 | TLB23: 0 | TLC23: 0 | TLD23: 0 | TLE23: 0 | TLF23: 0 | TLG23: 0 | TLH23: 0 | TLI23: 0 | TLJ23: 0 | TLK23: 0 | TLL23: 0 | TLM23: 0 | TLN23: 0 | TLO23: 0 | TLP23: 0 | TLQ23: 0 | TLR23: 0 | TLS23: =TLS6+TLS8+TLS10+TLS12+TLS14+TLS16+TLS18 -> 0 | TLT23: 0 | TLU23: 0 | TLV23: 0 | TLW23: 0 | TLX23: 0 | TLY23: 0 | TLZ23: 0 | TMA23: 0 | TMB23: 0 | TMC23: 0 | TMD23: 0 | TME23: 0 | TMF23: 0 | TMG23: 0 | TMH23: 0 | TMI23: 0 | TMJ23: 0 | TMK23: 0 | TML23: 0 | TMM23: 0 | TMN23: 0 | TMO23: 0 | TMP23: 0 | TMQ23: 0 | TMR23: 0 | TMS23: 0 | TMT23: 0 | TMU23: 0 | TMV23: 0 | TMW23: 0 | TMX23: 0 | TMY23: 0 | TMZ23: 0 | TNA23: 0 | TNB23: 0 | TNC23: 0 | TND23: 0 | TNE23: 0 | TNF23: 0 | TNG23: 0 | TNH23: 0 | TNI23: 0 | TNJ23: 0 | TNK23: 0 | TNL23: 0 | TNM23: 0 | TNN23: 0 | TNO23: 0 | TNP23: 0 | TNQ23: 0 | TNR23: 0 | TNS23: 0 | TNT23: 0 | TNU23: 0 | TNV23: 0 | TNW23: 0 | TNX23: 0 | TNY23: 0 | TNZ23: 0 | TOA23: 0 | TOB23: 0 | TOC23: 0 | TOD23: 0 | TOE23: =TOE6+TOE8+TOE10+TOE12+TOE14+TOE16+TOE18 -> 0 | TOF23: 0 | TOG23: 0 | TOH23: 0 | TOI23: 0 | TOJ23: 0 | TOK23: 0 | TOL23: 0 | TOM23: 0 | TON23: 0 | TOO23: 0 | TOP23: 0 | TOQ23: 0 | TOR23: 0 | TOS23: 0 | TOT23: 0 | TOU23: 0 | TOV23: 0 | TOW23: 0 | TOX23: 0 | TOY23: 0 | TOZ23: 0 | TPA23: 0 | TPB23: 0 | TPC23: 0 | TPD23: 0 | TPE23: 0 | TPF23: 0 | TPG23: 0 | TPH23: 0 | TPI23: 0 | TPJ23: 0 | TPK23: 0 | TPL23: 0 | TPM23: 0 | TPN23: 0 | TPO23: 0 | TPP23: 0 | TPQ23: 0 | TPR23: 0 | TPS23: 0 | TPT23: 0 | TPU23: 0 | TPV23: 0 | TPW23: 0 | TPX23: 0 | TPY23: 0 | TPZ23: 0 | TQA23: 0 | TQB23: 0 | TQC23: 0 | TQD23: 0 | TQE23: 0 | TQF23: 0 | TQG23: 0 | TQH23: 0 | TQI23: 0 | TQJ23: 0 | TQK23: 0 | TQL23: 0 | TQM23: 0 | TQN23: 0 | TQO23: 0 | TQP23: 0 | TQQ23: =TQQ6+TQQ8+TQQ10+TQQ12+TQQ14+TQQ16+TQQ18 -> 0 | TQR23: 0 | TQS23: 0 | TQT23: 0 | TQU23: 0 | TQV23: 0 | TQW23: 0 | TQX23: 0 | TQY23: 0 | TQZ23: 0 | TRA23: 0 | TRB23: 0 | TRC23: 0 | TRD23: 0 | TRE23: 0 | TRF23: 0 | TRG23: 0 | TRH23: 0 | TRI23: 0 | TRJ23: 0 | TRK23: 0 | TRL23: 0 | TRM23: 0 | TRN23: 0 | TRO23: 0 | TRP23: 0 | TRQ23: 0 | TRR23: 0 | TRS23: 0 | TRT23: 0 | TRU23: 0 | TRV23: 0 | TRW23: 0 | TRX23: 0 | TRY23: 0 | TRZ23: 0 | TSA23: 0 | TSB23: 0 | TSC23: 0 | TSD23: 0 | TSE23: 0 | TSF23: 0 | TSG23: 0 | TSH23: 0 | TSI23: 0 | TSJ23: 0 | TSK23: 0 | TSL23: 0 | TSM23: 0 | TSN23: 0 | TSO23: 0 | TSP23: 0 | TSQ23: 0 | TSR23: 0 | TSS23: 0 | TST23: 0 | TSU23: 0 | TSV23: 0 | TSW23: 0 | TSX23: 0 | TSY23: 0 | TSZ23: 0 | TTA23: 0 | TTB23: 0 | TTC23: =TTC6+TTC8+TTC10+TTC12+TTC14+TTC16+TTC18 -> 0 | TTD23: 0 | TTE23: 0 | TTF23: 0 | TTG23: 0 | TTH23: 0 | TTI23: 0 | TTJ23: 0 | TTK23: 0 | TTL23: 0 | TTM23: 0 | TTN23: 0 | TTO23: 0 | TTP23: 0 | TTQ23: 0 | TTR23: 0 | TTS23: 0 | TTT23: 0 | TTU23: 0 | TTV23: 0 | TTW23: 0 | TTX23: 0 | TTY23: 0 | TTZ23: 0 | TUA23: 0 | TUB23: 0 | TUC23: 0 | TUD23: 0 | TUE23: 0 | TUF23: 0 | TUG23: 0 | TUH23: 0 | TUI23: 0 | TUJ23: 0 | TUK23: 0 | TUL23: 0 | TUM23: 0 | TUN23: 0 | TUO23: 0 | TUP23: 0 | TUQ23: 0 | TUR23: 0 | TUS23: 0 | TUT23: 0 | TUU23: 0 | TUV23: 0 | TUW23: 0 | TUX23: 0 | TUY23: 0 | TUZ23: 0 | TVA23: 0 | TVB23: 0 | TVC23: 0 | TVD23: 0 | TVE23: 0 | TVF23: 0 | TVG23: 0 | TVH23: 0 | TVI23: 0 | TVJ23: 0 | TVK23: 0 | TVL23: 0 | TVM23: 0 | TVN23: 0 | TVO23: =TVO6+TVO8+TVO10+TVO12+TVO14+TVO16+TVO18 -> 0 | TVP23: 0 | TVQ23: 0 | TVR23: 0 | TVS23: 0 | TVT23: 0 | TVU23: 0 | TVV23: 0 | TVW23: 0 | TVX23: 0 | TVY23: 0 | TVZ23: 0 | TWA23: 0 | TWB23: 0 | TWC23: 0 | TWD23: 0 | TWE23: 0 | TWF23: 0 | TWG23: 0 | TWH23: 0 | TWI23: 0 | TWJ23: 0 | TWK23: 0 | TWL23: 0 | TWM23: 0 | TWN23: 0 | TWO23: 0 | TWP23: 0 | TWQ23: 0 | TWR23: 0 | TWS23: 0 | TWT23: 0 | TWU23: 0 | TWV23: 0 | TWW23: 0 | TWX23: 0 | TWY23: 0 | TWZ23: 0 | TXA23: 0 | TXB23: 0 | TXC23: 0 | TXD23: 0 | TXE23: 0 | TXF23: 0 | TXG23: 0 | TXH23: 0 | TXI23: 0 | TXJ23: 0 | TXK23: 0 | TXL23: 0 | TXM23: 0 | TXN23: 0 | TXO23: 0 | TXP23: 0 | TXQ23: 0 | TXR23: 0 | TXS23: 0 | TXT23: 0 | TXU23: 0 | TXV23: 0 | TXW23: 0 | TXX23: 0 | TXY23: 0 | TXZ23: 0 | TYA23: =TYA6+TYA8+TYA10+TYA12+TYA14+TYA16+TYA18 -> 0 | TYB23: 0 | TYC23: 0 | TYD23: 0 | TYE23: 0 | TYF23: 0 | TYG23: 0 | TYH23: 0 | TYI23: 0 | TYJ23: 0 | TYK23: 0 | TYL23: 0 | TYM23: 0 | TYN23: 0 | TYO23: 0 | TYP23: 0 | TYQ23: 0 | TYR23: 0 | TYS23: 0 | TYT23: 0 | TYU23: 0 | TYV23: 0 | TYW23: 0 | TYX23: 0 | TYY23: 0 | TYZ23: 0 | TZA23: 0 | TZB23: 0 | TZC23: 0 | TZD23: 0 | TZE23: 0 | TZF23: 0 | TZG23: 0 | TZH23: 0 | TZI23: 0 | TZJ23: 0 | TZK23: 0 | TZL23: 0 | TZM23: 0 | TZN23: 0 | TZO23: 0 | TZP23: 0 | TZQ23: 0 | TZR23: 0 | TZS23: 0 | TZT23: 0 | TZU23: 0 | TZV23: 0 | TZW23: 0 | TZX23: 0 | TZY23: 0 | TZZ23: 0 | UAA23: 0 | UAB23: 0 | UAC23: 0 | UAD23: 0 | UAE23: 0 | UAF23: 0 | UAG23: 0 | UAH23: 0 | UAI23: 0 | UAJ23: 0 | UAK23: 0 | UAL23: 0 | UAM23: =UAM6+UAM8+UAM10+UAM12+UAM14+UAM16+UAM18 -> 0 | UAN23: 0 | UAO23: 0 | UAP23: 0 | UAQ23: 0 | UAR23: 0 | UAS23: 0 | UAT23: 0 | UAU23: 0 | UAV23: 0 | UAW23: 0 | UAX23: 0 | UAY23: 0 | UAZ23: 0 | UBA23: 0 | UBB23: 0 | UBC23: 0 | UBD23: 0 | UBE23: 0 | UBF23: 0 | UBG23: 0 | UBH23: 0 | UBI23: 0 | UBJ23: 0 | UBK23: 0 | UBL23: 0 | UBM23: 0 | UBN23: 0 | UBO23: 0 | UBP23: 0 | UBQ23: 0 | UBR23: 0 | UBS23: 0 | UBT23: 0 | UBU23: 0 | UBV23: 0 | UBW23: 0 | UBX23: 0 | UBY23: 0 | UBZ23: 0 | UCA23: 0 | UCB23: 0 | UCC23: 0 | UCD23: 0 | UCE23: 0 | UCF23: 0 | UCG23: 0 | UCH23: 0 | UCI23: 0 | UCJ23: 0 | UCK23: 0 | UCL23: 0 | UCM23: 0 | UCN23: 0 | UCO23: 0 | UCP23: 0 | UCQ23: 0 | UCR23: 0 | UCS23: 0 | UCT23: 0 | UCU23: 0 | UCV23: 0 | UCW23: 0 | UCX23: 0 | UCY23: =UCY6+UCY8+UCY10+UCY12+UCY14+UCY16+UCY18 -> 0 | UCZ23: 0 | UDA23: 0 | UDB23: 0 | UDC23: 0 | UDD23: 0 | UDE23: 0 | UDF23: 0 | UDG23: 0 | UDH23: 0 | UDI23: 0 | UDJ23: 0 | UDK23: 0 | UDL23: 0 | UDM23: 0 | UDN23: 0 | UDO23: 0 | UDP23: 0 | UDQ23: 0 | UDR23: 0 | UDS23: 0 | UDT23: 0 | UDU23: 0 | UDV23: 0 | UDW23: 0 | UDX23: 0 | UDY23: 0 | UDZ23: 0 | UEA23: 0 | UEB23: 0 | UEC23: 0 | UED23: 0 | UEE23: 0 | UEF23: 0 | UEG23: 0 | UEH23: 0 | UEI23: 0 | UEJ23: 0 | UEK23: 0 | UEL23: 0 | UEM23: 0 | UEN23: 0 | UEO23: 0 | UEP23: 0 | UEQ23: 0 | UER23: 0 | UES23: 0 | UET23: 0 | UEU23: 0 | UEV23: 0 | UEW23: 0 | UEX23: 0 | UEY23: 0 | UEZ23: 0 | UFA23: 0 | UFB23: 0 | UFC23: 0 | UFD23: 0 | UFE23: 0 | UFF23: 0 | UFG23: 0 | UFH23: 0 | UFI23: 0 | UFJ23: 0 | UFK23: =UFK6+UFK8+UFK10+UFK12+UFK14+UFK16+UFK18 -> 0 | UFL23: 0 | UFM23: 0 | UFN23: 0 | UFO23: 0 | UFP23: 0 | UFQ23: 0 | UFR23: 0 | UFS23: 0 | UFT23: 0 | UFU23: 0 | UFV23: 0 | UFW23: 0 | UFX23: 0 | UFY23: 0 | UFZ23: 0 | UGA23: 0 | UGB23: 0 | UGC23: 0 | UGD23: 0 | UGE23: 0 | UGF23: 0 | UGG23: 0 | UGH23: 0 | UGI23: 0 | UGJ23: 0 | UGK23: 0 | UGL23: 0 | UGM23: 0 | UGN23: 0 | UGO23: 0 | UGP23: 0 | UGQ23: 0 | UGR23: 0 | UGS23: 0 | UGT23: 0 | UGU23: 0 | UGV23: 0 | UGW23: 0 | UGX23: 0 | UGY23: 0 | UGZ23: 0 | UHA23: 0 | UHB23: 0 | UHC23: 0 | UHD23: 0 | UHE23: 0 | UHF23: 0 | UHG23: 0 | UHH23: 0 | UHI23: 0 | UHJ23: 0 | UHK23: 0 | UHL23: 0 | UHM23: 0 | UHN23: 0 | UHO23: 0 | UHP23: 0 | UHQ23: 0 | UHR23: 0 | UHS23: 0 | UHT23: 0 | UHU23: 0 | UHV23: 0 | UHW23: =UHW6+UHW8+UHW10+UHW12+UHW14+UHW16+UHW18 -> 0 | UHX23: 0 | UHY23: 0 | UHZ23: 0 | UIA23: 0 | UIB23: 0 | UIC23: 0 | UID23: 0 | UIE23: 0 | UIF23: 0 | UIG23: 0 | UIH23: 0 | UII23: 0 | UIJ23: 0 | UIK23: 0 | UIL23: 0 | UIM23: 0 | UIN23: 0 | UIO23: 0 | UIP23: 0 | UIQ23: 0 | UIR23: 0 | UIS23: 0 | UIT23: 0 | UIU23: 0 | UIV23: 0 | UIW23: 0 | UIX23: 0 | UIY23: 0 | UIZ23: 0 | UJA23: 0 | UJB23: 0 | UJC23: 0 | UJD23: 0 | UJE23: 0 | UJF23: 0 | UJG23: 0 | UJH23: 0 | UJI23: 0 | UJJ23: 0 | UJK23: 0 | UJL23: 0 | UJM23: 0 | UJN23: 0 | UJO23: 0 | UJP23: 0 | UJQ23: 0 | UJR23: 0 | UJS23: 0 | UJT23: 0 | UJU23: 0 | UJV23: 0 | UJW23: 0 | UJX23: 0 | UJY23: 0 | UJZ23: 0 | UKA23: 0 | UKB23: 0 | UKC23: 0 | UKD23: 0 | UKE23: 0 | UKF23: 0 | UKG23: 0 | UKH23: 0 | UKI23: =UKI6+UKI8+UKI10+UKI12+UKI14+UKI16+UKI18 -> 0 | UKJ23: 0 | UKK23: 0 | UKL23: 0 | UKM23: 0 | UKN23: 0 | UKO23: 0 | UKP23: 0 | UKQ23: 0 | UKR23: 0 | UKS23: 0 | UKT23: 0 | UKU23: 0 | UKV23: 0 | UKW23: 0 | UKX23: 0 | UKY23: 0 | UKZ23: 0 | ULA23: 0 | ULB23: 0 | ULC23: 0 | ULD23: 0 | ULE23: 0 | ULF23: 0 | ULG23: 0 | ULH23: 0 | ULI23: 0 | ULJ23: 0 | ULK23: 0 | ULL23: 0 | ULM23: 0 | ULN23: 0 | ULO23: 0 | ULP23: 0 | ULQ23: 0 | ULR23: 0 | ULS23: 0 | ULT23: 0 | ULU23: 0 | ULV23: 0 | ULW23: 0 | ULX23: 0 | ULY23: 0 | ULZ23: 0 | UMA23: 0 | UMB23: 0 | UMC23: 0 | UMD23: 0 | UME23: 0 | UMF23: 0 | UMG23: 0 | UMH23: 0 | UMI23: 0 | UMJ23: 0 | UMK23: 0 | UML23: 0 | UMM23: 0 | UMN23: 0 | UMO23: 0 | UMP23: 0 | UMQ23: 0 | UMR23: 0 | UMS23: 0 | UMT23: 0 | UMU23: =UMU6+UMU8+UMU10+UMU12+UMU14+UMU16+UMU18 -> 0 | UMV23: 0 | UMW23: 0 | UMX23: 0 | UMY23: 0 | UMZ23: 0 | UNA23: 0 | UNB23: 0 | UNC23: 0 | UND23: 0 | UNE23: 0 | UNF23: 0 | UNG23: 0 | UNH23: 0 | UNI23: 0 | UNJ23: 0 | UNK23: 0 | UNL23: 0 | UNM23: 0 | UNN23: 0 | UNO23: 0 | UNP23: 0 | UNQ23: 0 | UNR23: 0 | UNS23: 0 | UNT23: 0 | UNU23: 0 | UNV23: 0 | UNW23: 0 | UNX23: 0 | UNY23: 0 | UNZ23: 0 | UOA23: 0 | UOB23: 0 | UOC23: 0 | UOD23: 0 | UOE23: 0 | UOF23: 0 | UOG23: 0 | UOH23: 0 | UOI23: 0 | UOJ23: 0 | UOK23: 0 | UOL23: 0 | UOM23: 0 | UON23: 0 | UOO23: 0 | UOP23: 0 | UOQ23: 0 | UOR23: 0 | UOS23: 0 | UOT23: 0 | UOU23: 0 | UOV23: 0 | UOW23: 0 | UOX23: 0 | UOY23: 0 | UOZ23: 0 | UPA23: 0 | UPB23: 0 | UPC23: 0 | UPD23: 0 | UPE23: 0 | UPF23: 0 | UPG23: =UPG6+UPG8+UPG10+UPG12+UPG14+UPG16+UPG18 -> 0 | UPH23: 0 | UPI23: 0 | UPJ23: 0 | UPK23: 0 | UPL23: 0 | UPM23: 0 | UPN23: 0 | UPO23: 0 | UPP23: 0 | UPQ23: 0 | UPR23: 0 | UPS23: 0 | UPT23: 0 | UPU23: 0 | UPV23: 0 | UPW23: 0 | UPX23: 0 | UPY23: 0 | UPZ23: 0 | UQA23: 0 | UQB23: 0 | UQC23: 0 | UQD23: 0 | UQE23: 0 | UQF23: 0 | UQG23: 0 | UQH23: 0 | UQI23: 0 | UQJ23: 0 | UQK23: 0 | UQL23: 0 | UQM23: 0 | UQN23: 0 | UQO23: 0 | UQP23: 0 | UQQ23: 0 | UQR23: 0 | UQS23: 0 | UQT23: 0 | UQU23: 0 | UQV23: 0 | UQW23: 0 | UQX23: 0 | UQY23: 0 | UQZ23: 0 | URA23: 0 | URB23: 0 | URC23: 0 | URD23: 0 | URE23: 0 | URF23: 0 | URG23: 0 | URH23: 0 | URI23: 0 | URJ23: 0 | URK23: 0 | URL23: 0 | URM23: 0 | URN23: 0 | URO23: 0 | URP23: 0 | URQ23: 0 | URR23: 0 | URS23: =URS6+URS8+URS10+URS12+URS14+URS16+URS18 -> 0 | URT23: 0 | URU23: 0 | URV23: 0 | URW23: 0 | URX23: 0 | URY23: 0 | URZ23: 0 | USA23: 0 | USB23: 0 | USC23: 0 | USD23: 0 | USE23: 0 | USF23: 0 | USG23: 0 | USH23: 0 | USI23: 0 | USJ23: 0 | USK23: 0 | USL23: 0 | USM23: 0 | USN23: 0 | USO23: 0 | USP23: 0 | USQ23: 0 | USR23: 0 | USS23: 0 | UST23: 0 | USU23: 0 | USV23: 0 | USW23: 0 | USX23: 0 | USY23: 0 | USZ23: 0 | UTA23: 0 | UTB23: 0 | UTC23: 0 | UTD23: 0 | UTE23: 0 | UTF23: 0 | UTG23: 0 | UTH23: 0 | UTI23: 0 | UTJ23: 0 | UTK23: 0 | UTL23: 0 | UTM23: 0 | UTN23: 0 | UTO23: 0 | UTP23: 0 | UTQ23: 0 | UTR23: 0 | UTS23: 0 | UTT23: 0 | UTU23: 0 | UTV23: 0 | UTW23: 0 | UTX23: 0 | UTY23: 0 | UTZ23: 0 | UUA23: 0 | UUB23: 0 | UUC23: 0 | UUD23: 0 | UUE23: =UUE6+UUE8+UUE10+UUE12+UUE14+UUE16+UUE18 -> 0 | UUF23: 0 | UUG23: 0 | UUH23: 0 | UUI23: 0 | UUJ23: 0 | UUK23: 0 | UUL23: 0 | UUM23: 0 | UUN23: 0 | UUO23: 0 | UUP23: 0 | UUQ23: 0 | UUR23: 0 | UUS23: 0 | UUT23: 0 | UUU23: 0 | UUV23: 0 | UUW23: 0 | UUX23: 0 | UUY23: 0 | UUZ23: 0 | UVA23: 0 | UVB23: 0 | UVC23: 0 | UVD23: 0 | UVE23: 0 | UVF23: 0 | UVG23: 0 | UVH23: 0 | UVI23: 0 | UVJ23: 0 | UVK23: 0 | UVL23: 0 | UVM23: 0 | UVN23: 0 | UVO23: 0 | UVP23: 0 | UVQ23: 0 | UVR23: 0 | UVS23: 0 | UVT23: 0 | UVU23: 0 | UVV23: 0 | UVW23: 0 | UVX23: 0 | UVY23: 0 | UVZ23: 0 | UWA23: 0 | UWB23: 0 | UWC23: 0 | UWD23: 0 | UWE23: 0 | UWF23: 0 | UWG23: 0 | UWH23: 0 | UWI23: 0 | UWJ23: 0 | UWK23: 0 | UWL23: 0 | UWM23: 0 | UWN23: 0 | UWO23: 0 | UWP23: 0 | UWQ23: =UWQ6+UWQ8+UWQ10+UWQ12+UWQ14+UWQ16+UWQ18 -> 0 | UWR23: 0 | UWS23: 0 | UWT23: 0 | UWU23: 0 | UWV23: 0 | UWW23: 0 | UWX23: 0 | UWY23: 0 | UWZ23: 0 | UXA23: 0 | UXB23: 0 | UXC23: 0 | UXD23: 0 | UXE23: 0 | UXF23: 0 | UXG23: 0 | UXH23: 0 | UXI23: 0 | UXJ23: 0 | UXK23: 0 | UXL23: 0 | UXM23: 0 | UXN23: 0 | UXO23: 0 | UXP23: 0 | UXQ23: 0 | UXR23: 0 | UXS23: 0 | UXT23: 0 | UXU23: 0 | UXV23: 0 | UXW23: 0 | UXX23: 0 | UXY23: 0 | UXZ23: 0 | UYA23: 0 | UYB23: 0 | UYC23: 0 | UYD23: 0 | UYE23: 0 | UYF23: 0 | UYG23: 0 | UYH23: 0 | UYI23: 0 | UYJ23: 0 | UYK23: 0 | UYL23: 0 | UYM23: 0 | UYN23: 0 | UYO23: 0 | UYP23: 0 | UYQ23: 0 | UYR23: 0 | UYS23: 0 | UYT23: 0 | UYU23: 0 | UYV23: 0 | UYW23: 0 | UYX23: 0 | UYY23: 0 | UYZ23: 0 | UZA23: 0 | UZB23: 0 | UZC23: =UZC6+UZC8+UZC10+UZC12+UZC14+UZC16+UZC18 -> 0 | UZD23: 0 | UZE23: 0 | UZF23: 0 | UZG23: 0 | UZH23: 0 | UZI23: 0 | UZJ23: 0 | UZK23: 0 | UZL23: 0 | UZM23: 0 | UZN23: 0 | UZO23: 0 | UZP23: 0 | UZQ23: 0 | UZR23: 0 | UZS23: 0 | UZT23: 0 | UZU23: 0 | UZV23: 0 | UZW23: 0 | UZX23: 0 | UZY23: 0 | UZZ23: 0 | VAA23: 0 | VAB23: 0 | VAC23: 0 | VAD23: 0 | VAE23: 0 | VAF23: 0 | VAG23: 0 | VAH23: 0 | VAI23: 0 | VAJ23: 0 | VAK23: 0 | VAL23: 0 | VAM23: 0 | VAN23: 0 | VAO23: 0 | VAP23: 0 | VAQ23: 0 | VAR23: 0 | VAS23: 0 | VAT23: 0 | VAU23: 0 | VAV23: 0 | VAW23: 0 | VAX23: 0 | VAY23: 0 | VAZ23: 0 | VBA23: 0 | VBB23: 0 | VBC23: 0 | VBD23: 0 | VBE23: 0 | VBF23: 0 | VBG23: 0 | VBH23: 0 | VBI23: 0 | VBJ23: 0 | VBK23: 0 | VBL23: 0 | VBM23: 0 | VBN23: 0 | VBO23: =VBO6+VBO8+VBO10+VBO12+VBO14+VBO16+VBO18 -> 0 | VBP23: 0 | VBQ23: 0 | VBR23: 0 | VBS23: 0 | VBT23: 0 | VBU23: 0 | VBV23: 0 | VBW23: 0 | VBX23: 0 | VBY23: 0 | VBZ23: 0 | VCA23: 0 | VCB23: 0 | VCC23: 0 | VCD23: 0 | VCE23: 0 | VCF23: 0 | VCG23: 0 | VCH23: 0 | VCI23: 0 | VCJ23: 0 | VCK23: 0 | VCL23: 0 | VCM23: 0 | VCN23: 0 | VCO23: 0 | VCP23: 0 | VCQ23: 0 | VCR23: 0 | VCS23: 0 | VCT23: 0 | VCU23: 0 | VCV23: 0 | VCW23: 0 | VCX23: 0 | VCY23: 0 | VCZ23: 0 | VDA23: 0 | VDB23: 0 | VDC23: 0 | VDD23: 0 | VDE23: 0 | VDF23: 0 | VDG23: 0 | VDH23: 0 | VDI23: 0 | VDJ23: 0 | VDK23: 0 | VDL23: 0 | VDM23: 0 | VDN23: 0 | VDO23: 0 | VDP23: 0 | VDQ23: 0 | VDR23: 0 | VDS23: 0 | VDT23: 0 | VDU23: 0 | VDV23: 0 | VDW23: 0 | VDX23: 0 | VDY23: 0 | VDZ23: 0 | VEA23: =VEA6+VEA8+VEA10+VEA12+VEA14+VEA16+VEA18 -> 0 | VEB23: 0 | VEC23: 0 | VED23: 0 | VEE23: 0 | VEF23: 0 | VEG23: 0 | VEH23: 0 | VEI23: 0 | VEJ23: 0 | VEK23: 0 | VEL23: 0 | VEM23: 0 | VEN23: 0 | VEO23: 0 | VEP23: 0 | VEQ23: 0 | VER23: 0 | VES23: 0 | VET23: 0 | VEU23: 0 | VEV23: 0 | VEW23: 0 | VEX23: 0 | VEY23: 0 | VEZ23: 0 | VFA23: 0 | VFB23: 0 | VFC23: 0 | VFD23: 0 | VFE23: 0 | VFF23: 0 | VFG23: 0 | VFH23: 0 | VFI23: 0 | VFJ23: 0 | VFK23: 0 | VFL23: 0 | VFM23: 0 | VFN23: 0 | VFO23: 0 | VFP23: 0 | VFQ23: 0 | VFR23: 0 | VFS23: 0 | VFT23: 0 | VFU23: 0 | VFV23: 0 | VFW23: 0 | VFX23: 0 | VFY23: 0 | VFZ23: 0 | VGA23: 0 | VGB23: 0 | VGC23: 0 | VGD23: 0 | VGE23: 0 | VGF23: 0 | VGG23: 0 | VGH23: 0 | VGI23: 0 | VGJ23: 0 | VGK23: 0 | VGL23: 0 | VGM23: =VGM6+VGM8+VGM10+VGM12+VGM14+VGM16+VGM18 -> 0 | VGN23: 0 | VGO23: 0 | VGP23: 0 | VGQ23: 0 | VGR23: 0 | VGS23: 0 | VGT23: 0 | VGU23: 0 | VGV23: 0 | VGW23: 0 | VGX23: 0 | VGY23: 0 | VGZ23: 0 | VHA23: 0 | VHB23: 0 | VHC23: 0 | VHD23: 0 | VHE23: 0 | VHF23: 0 | VHG23: 0 | VHH23: 0 | VHI23: 0 | VHJ23: 0 | VHK23: 0 | VHL23: 0 | VHM23: 0 | VHN23: 0 | VHO23: 0 | VHP23: 0 | VHQ23: 0 | VHR23: 0 | VHS23: 0 | VHT23: 0 | VHU23: 0 | VHV23: 0 | VHW23: 0 | VHX23: 0 | VHY23: 0 | VHZ23: 0 | VIA23: 0 | VIB23: 0 | VIC23: 0 | VID23: 0 | VIE23: 0 | VIF23: 0 | VIG23: 0 | VIH23: 0 | VII23: 0 | VIJ23: 0 | VIK23: 0 | VIL23: 0 | VIM23: 0 | VIN23: 0 | VIO23: 0 | VIP23: 0 | VIQ23: 0 | VIR23: 0 | VIS23: 0 | VIT23: 0 | VIU23: 0 | VIV23: 0 | VIW23: 0 | VIX23: 0 | VIY23: =VIY6+VIY8+VIY10+VIY12+VIY14+VIY16+VIY18 -> 0 | VIZ23: 0 | VJA23: 0 | VJB23: 0 | VJC23: 0 | VJD23: 0 | VJE23: 0 | VJF23: 0 | VJG23: 0 | VJH23: 0 | VJI23: 0 | VJJ23: 0 | VJK23: 0 | VJL23: 0 | VJM23: 0 | VJN23: 0 | VJO23: 0 | VJP23: 0 | VJQ23: 0 | VJR23: 0 | VJS23: 0 | VJT23: 0 | VJU23: 0 | VJV23: 0 | VJW23: 0 | VJX23: 0 | VJY23: 0 | VJZ23: 0 | VKA23: 0 | VKB23: 0 | VKC23: 0 | VKD23: 0 | VKE23: 0 | VKF23: 0 | VKG23: 0 | VKH23: 0 | VKI23: 0 | VKJ23: 0 | VKK23: 0 | VKL23: 0 | VKM23: 0 | VKN23: 0 | VKO23: 0 | VKP23: 0 | VKQ23: 0 | VKR23: 0 | VKS23: 0 | VKT23: 0 | VKU23: 0 | VKV23: 0 | VKW23: 0 | VKX23: 0 | VKY23: 0 | VKZ23: 0 | VLA23: 0 | VLB23: 0 | VLC23: 0 | VLD23: 0 | VLE23: 0 | VLF23: 0 | VLG23: 0 | VLH23: 0 | VLI23: 0 | VLJ23: 0 | VLK23: =VLK6+VLK8+VLK10+VLK12+VLK14+VLK16+VLK18 -> 0 | VLL23: 0 | VLM23: 0 | VLN23: 0 | VLO23: 0 | VLP23: 0 | VLQ23: 0 | VLR23: 0 | VLS23: 0 | VLT23: 0 | VLU23: 0 | VLV23: 0 | VLW23: 0 | VLX23: 0 | VLY23: 0 | VLZ23: 0 | VMA23: 0 | VMB23: 0 | VMC23: 0 | VMD23: 0 | VME23: 0 | VMF23: 0 | VMG23: 0 | VMH23: 0 | VMI23: 0 | VMJ23: 0 | VMK23: 0 | VML23: 0 | VMM23: 0 | VMN23: 0 | VMO23: 0 | VMP23: 0 | VMQ23: 0 | VMR23: 0 | VMS23: 0 | VMT23: 0 | VMU23: 0 | VMV23: 0 | VMW23: 0 | VMX23: 0 | VMY23: 0 | VMZ23: 0 | VNA23: 0 | VNB23: 0 | VNC23: 0 | VND23: 0 | VNE23: 0 | VNF23: 0 | VNG23: 0 | VNH23: 0 | VNI23: 0 | VNJ23: 0 | VNK23: 0 | VNL23: 0 | VNM23: 0 | VNN23: 0 | VNO23: 0 | VNP23: 0 | VNQ23: 0 | VNR23: 0 | VNS23: 0 | VNT23: 0 | VNU23: 0 | VNV23: 0 | VNW23: =VNW6+VNW8+VNW10+VNW12+VNW14+VNW16+VNW18 -> 0 | VNX23: 0 | VNY23: 0 | VNZ23: 0 | VOA23: 0 | VOB23: 0 | VOC23: 0 | VOD23: 0 | VOE23: 0 | VOF23: 0 | VOG23: 0 | VOH23: 0 | VOI23: 0 | VOJ23: 0 | VOK23: 0 | VOL23: 0 | VOM23: 0 | VON23: 0 | VOO23: 0 | VOP23: 0 | VOQ23: 0 | VOR23: 0 | VOS23: 0 | VOT23: 0 | VOU23: 0 | VOV23: 0 | VOW23: 0 | VOX23: 0 | VOY23: 0 | VOZ23: 0 | VPA23: 0 | VPB23: 0 | VPC23: 0 | VPD23: 0 | VPE23: 0 | VPF23: 0 | VPG23: 0 | VPH23: 0 | VPI23: 0 | VPJ23: 0 | VPK23: 0 | VPL23: 0 | VPM23: 0 | VPN23: 0 | VPO23: 0 | VPP23: 0 | VPQ23: 0 | VPR23: 0 | VPS23: 0 | VPT23: 0 | VPU23: 0 | VPV23: 0 | VPW23: 0 | VPX23: 0 | VPY23: 0 | VPZ23: 0 | VQA23: 0 | VQB23: 0 | VQC23: 0 | VQD23: 0 | VQE23: 0 | VQF23: 0 | VQG23: 0 | VQH23: 0 | VQI23: =VQI6+VQI8+VQI10+VQI12+VQI14+VQI16+VQI18 -> 0 | VQJ23: 0 | VQK23: 0 | VQL23: 0 | VQM23: 0 | VQN23: 0 | VQO23: 0 | VQP23: 0 | VQQ23: 0 | VQR23: 0 | VQS23: 0 | VQT23: 0 | VQU23: 0 | VQV23: 0 | VQW23: 0 | VQX23: 0 | VQY23: 0 | VQZ23: 0 | VRA23: 0 | VRB23: 0 | VRC23: 0 | VRD23: 0 | VRE23: 0 | VRF23: 0 | VRG23: 0 | VRH23: 0 | VRI23: 0 | VRJ23: 0 | VRK23: 0 | VRL23: 0 | VRM23: 0 | VRN23: 0 | VRO23: 0 | VRP23: 0 | VRQ23: 0 | VRR23: 0 | VRS23: 0 | VRT23: 0 | VRU23: 0 | VRV23: 0 | VRW23: 0 | VRX23: 0 | VRY23: 0 | VRZ23: 0 | VSA23: 0 | VSB23: 0 | VSC23: 0 | VSD23: 0 | VSE23: 0 | VSF23: 0 | VSG23: 0 | VSH23: 0 | VSI23: 0 | VSJ23: 0 | VSK23: 0 | VSL23: 0 | VSM23: 0 | VSN23: 0 | VSO23: 0 | VSP23: 0 | VSQ23: 0 | VSR23: 0 | VSS23: 0 | VST23: 0 | VSU23: =VSU6+VSU8+VSU10+VSU12+VSU14+VSU16+VSU18 -> 0 | VSV23: 0 | VSW23: 0 | VSX23: 0 | VSY23: 0 | VSZ23: 0 | VTA23: 0 | VTB23: 0 | VTC23: 0 | VTD23: 0 | VTE23: 0 | VTF23: 0 | VTG23: 0 | VTH23: 0 | VTI23: 0 | VTJ23: 0 | VTK23: 0 | VTL23: 0 | VTM23: 0 | VTN23: 0 | VTO23: 0 | VTP23: 0 | VTQ23: 0 | VTR23: 0 | VTS23: 0 | VTT23: 0 | VTU23: 0 | VTV23: 0 | VTW23: 0 | VTX23: 0 | VTY23: 0 | VTZ23: 0 | VUA23: 0 | VUB23: 0 | VUC23: 0 | VUD23: 0 | VUE23: 0 | VUF23: 0 | VUG23: 0 | VUH23: 0 | VUI23: 0 | VUJ23: 0 | VUK23: 0 | VUL23: 0 | VUM23: 0 | VUN23: 0 | VUO23: 0 | VUP23: 0 | VUQ23: 0 | VUR23: 0 | VUS23: 0 | VUT23: 0 | VUU23: 0 | VUV23: 0 | VUW23: 0 | VUX23: 0 | VUY23: 0 | VUZ23: 0 | VVA23: 0 | VVB23: 0 | VVC23: 0 | VVD23: 0 | VVE23: 0 | VVF23: 0 | VVG23: =VVG6+VVG8+VVG10+VVG12+VVG14+VVG16+VVG18 -> 0 | VVH23: 0 | VVI23: 0 | VVJ23: 0 | VVK23: 0 | VVL23: 0 | VVM23: 0 | VVN23: 0 | VVO23: 0 | VVP23: 0 | VVQ23: 0 | VVR23: 0 | VVS23: 0 | VVT23: 0 | VVU23: 0 | VVV23: 0 | VVW23: 0 | VVX23: 0 | VVY23: 0 | VVZ23: 0 | VWA23: 0 | VWB23: 0 | VWC23: 0 | VWD23: 0 | VWE23: 0 | VWF23: 0 | VWG23: 0 | VWH23: 0 | VWI23: 0 | VWJ23: 0 | VWK23: 0 | VWL23: 0 | VWM23: 0 | VWN23: 0 | VWO23: 0 | VWP23: 0 | VWQ23: 0 | VWR23: 0 | VWS23: 0 | VWT23: 0 | VWU23: 0 | VWV23: 0 | VWW23: 0 | VWX23: 0 | VWY23: 0 | VWZ23: 0 | VXA23: 0 | VXB23: 0 | VXC23: 0 | VXD23: 0 | VXE23: 0 | VXF23: 0 | VXG23: 0 | VXH23: 0 | VXI23: 0 | VXJ23: 0 | VXK23: 0 | VXL23: 0 | VXM23: 0 | VXN23: 0 | VXO23: 0 | VXP23: 0 | VXQ23: 0 | VXR23: 0 | VXS23: =VXS6+VXS8+VXS10+VXS12+VXS14+VXS16+VXS18 -> 0 | VXT23: 0 | VXU23: 0 | VXV23: 0 | VXW23: 0 | VXX23: 0 | VXY23: 0 | VXZ23: 0 | VYA23: 0 | VYB23: 0 | VYC23: 0 | VYD23: 0 | VYE23: 0 | VYF23: 0 | VYG23: 0 | VYH23: 0 | VYI23: 0 | VYJ23: 0 | VYK23: 0 | VYL23: 0 | VYM23: 0 | VYN23: 0 | VYO23: 0 | VYP23: 0 | VYQ23: 0 | VYR23: 0 | VYS23: 0 | VYT23: 0 | VYU23: 0 | VYV23: 0 | VYW23: 0 | VYX23: 0 | VYY23: 0 | VYZ23: 0 | VZA23: 0 | VZB23: 0 | VZC23: 0 | VZD23: 0 | VZE23: 0 | VZF23: 0 | VZG23: 0 | VZH23: 0 | VZI23: 0 | VZJ23: 0 | VZK23: 0 | VZL23: 0 | VZM23: 0 | VZN23: 0 | VZO23: 0 | VZP23: 0 | VZQ23: 0 | VZR23: 0 | VZS23: 0 | VZT23: 0 | VZU23: 0 | VZV23: 0 | VZW23: 0 | VZX23: 0 | VZY23: 0 | VZZ23: 0 | WAA23: 0 | WAB23: 0 | WAC23: 0 | WAD23: 0 | WAE23: =WAE6+WAE8+WAE10+WAE12+WAE14+WAE16+WAE18 -> 0 | WAF23: 0 | WAG23: 0 | WAH23: 0 | WAI23: 0 | WAJ23: 0 | WAK23: 0 | WAL23: 0 | WAM23: 0 | WAN23: 0 | WAO23: 0 | WAP23: 0 | WAQ23: 0 | WAR23: 0 | WAS23: 0 | WAT23: 0 | WAU23: 0 | WAV23: 0 | WAW23: 0 | WAX23: 0 | WAY23: 0 | WAZ23: 0 | WBA23: 0 | WBB23: 0 | WBC23: 0 | WBD23: 0 | WBE23: 0 | WBF23: 0 | WBG23: 0 | WBH23: 0 | WBI23: 0 | WBJ23: 0 | WBK23: 0 | WBL23: 0 | WBM23: 0 | WBN23: 0 | WBO23: 0 | WBP23: 0 | WBQ23: 0 | WBR23: 0 | WBS23: 0 | WBT23: 0 | WBU23: 0 | WBV23: 0 | WBW23: 0 | WBX23: 0 | WBY23: 0 | WBZ23: 0 | WCA23: 0 | WCB23: 0 | WCC23: 0 | WCD23: 0 | WCE23: 0 | WCF23: 0 | WCG23: 0 | WCH23: 0 | WCI23: 0 | WCJ23: 0 | WCK23: 0 | WCL23: 0 | WCM23: 0 | WCN23: 0 | WCO23: 0 | WCP23: 0 | WCQ23: =WCQ6+WCQ8+WCQ10+WCQ12+WCQ14+WCQ16+WCQ18 -> 0 | WCR23: 0 | WCS23: 0 | WCT23: 0 | WCU23: 0 | WCV23: 0 | WCW23: 0 | WCX23: 0 | WCY23: 0 | WCZ23: 0 | WDA23: 0 | WDB23: 0 | WDC23: 0 | WDD23: 0 | WDE23: 0 | WDF23: 0 | WDG23: 0 | WDH23: 0 | WDI23: 0 | WDJ23: 0 | WDK23: 0 | WDL23: 0 | WDM23: 0 | WDN23: 0 | WDO23: 0 | WDP23: 0 | WDQ23: 0 | WDR23: 0 | WDS23: 0 | WDT23: 0 | WDU23: 0 | WDV23: 0 | WDW23: 0 | WDX23: 0 | WDY23: 0 | WDZ23: 0 | WEA23: 0 | WEB23: 0 | WEC23: 0 | WED23: 0 | WEE23: 0 | WEF23: 0 | WEG23: 0 | WEH23: 0 | WEI23: 0 | WEJ23: 0 | WEK23: 0 | WEL23: 0 | WEM23: 0 | WEN23: 0 | WEO23: 0 | WEP23: 0 | WEQ23: 0 | WER23: 0 | WES23: 0 | WET23: 0 | WEU23: 0 | WEV23: 0 | WEW23: 0 | WEX23: 0 | WEY23: 0 | WEZ23: 0 | WFA23: 0 | WFB23: 0 | WFC23: =WFC6+WFC8+WFC10+WFC12+WFC14+WFC16+WFC18 -> 0 | WFD23: 0 | WFE23: 0 | WFF23: 0 | WFG23: 0 | WFH23: 0 | WFI23: 0 | WFJ23: 0 | WFK23: 0 | WFL23: 0 | WFM23: 0 | WFN23: 0 | WFO23: 0 | WFP23: 0 | WFQ23: 0 | WFR23: 0 | WFS23: 0 | WFT23: 0 | WFU23: 0 | WFV23: 0 | WFW23: 0 | WFX23: 0 | WFY23: 0 | WFZ23: 0 | WGA23: 0 | WGB23: 0 | WGC23: 0 | WGD23: 0 | WGE23: 0 | WGF23: 0 | WGG23: 0 | WGH23: 0 | WGI23: 0 | WGJ23: 0 | WGK23: 0 | WGL23: 0 | WGM23: 0 | WGN23: 0 | WGO23: 0 | WGP23: 0 | WGQ23: 0 | WGR23: 0 | WGS23: 0 | WGT23: 0 | WGU23: 0 | WGV23: 0 | WGW23: 0 | WGX23: 0 | WGY23: 0 | WGZ23: 0 | WHA23: 0 | WHB23: 0 | WHC23: 0 | WHD23: 0 | WHE23: 0 | WHF23: 0 | WHG23: 0 | WHH23: 0 | WHI23: 0 | WHJ23: 0 | WHK23: 0 | WHL23: 0 | WHM23: 0 | WHN23: 0 | WHO23: =WHO6+WHO8+WHO10+WHO12+WHO14+WHO16+WHO18 -> 0 | WHP23: 0 | WHQ23: 0 | WHR23: 0 | WHS23: 0 | WHT23: 0 | WHU23: 0 | WHV23: 0 | WHW23: 0 | WHX23: 0 | WHY23: 0 | WHZ23: 0 | WIA23: 0 | WIB23: 0 | WIC23: 0 | WID23: 0 | WIE23: 0 | WIF23: 0 | WIG23: 0 | WIH23: 0 | WII23: 0 | WIJ23: 0 | WIK23: 0 | WIL23: 0 | WIM23: 0 | WIN23: 0 | WIO23: 0 | WIP23: 0 | WIQ23: 0 | WIR23: 0 | WIS23: 0 | WIT23: 0 | WIU23: 0 | WIV23: 0 | WIW23: 0 | WIX23: 0 | WIY23: 0 | WIZ23: 0 | WJA23: 0 | WJB23: 0 | WJC23: 0 | WJD23: 0 | WJE23: 0 | WJF23: 0 | WJG23: 0 | WJH23: 0 | WJI23: 0 | WJJ23: 0 | WJK23: 0 | WJL23: 0 | WJM23: 0 | WJN23: 0 | WJO23: 0 | WJP23: 0 | WJQ23: 0 | WJR23: 0 | WJS23: 0 | WJT23: 0 | WJU23: 0 | WJV23: 0 | WJW23: 0 | WJX23: 0 | WJY23: 0 | WJZ23: 0 | WKA23: =WKA6+WKA8+WKA10+WKA12+WKA14+WKA16+WKA18 -> 0 | WKB23: 0 | WKC23: 0 | WKD23: 0 | WKE23: 0 | WKF23: 0 | WKG23: 0 | WKH23: 0 | WKI23: 0 | WKJ23: 0 | WKK23: 0 | WKL23: 0 | WKM23: 0 | WKN23: 0 | WKO23: 0 | WKP23: 0 | WKQ23: 0 | WKR23: 0 | WKS23: 0 | WKT23: 0 | WKU23: 0 | WKV23: 0 | WKW23: 0 | WKX23: 0 | WKY23: 0 | WKZ23: 0 | WLA23: 0 | WLB23: 0 | WLC23: 0 | WLD23: 0 | WLE23: 0 | WLF23: 0 | WLG23: 0 | WLH23: 0 | WLI23: 0 | WLJ23: 0 | WLK23: 0 | WLL23: 0 | WLM23: 0 | WLN23: 0 | WLO23: 0 | WLP23: 0 | WLQ23: 0 | WLR23: 0 | WLS23: 0 | WLT23: 0 | WLU23: 0 | WLV23: 0 | WLW23: 0 | WLX23: 0 | WLY23: 0 | WLZ23: 0 | WMA23: 0 | WMB23: 0 | WMC23: 0 | WMD23: 0 | WME23: 0 | WMF23: 0 | WMG23: 0 | WMH23: 0 | WMI23: 0 | WMJ23: 0 | WMK23: 0 | WML23: 0 | WMM23: =WMM6+WMM8+WMM10+WMM12+WMM14+WMM16+WMM18 -> 0 | WMN23: 0 | WMO23: 0 | WMP23: 0 | WMQ23: 0 | WMR23: 0 | WMS23: 0 | WMT23: 0 | WMU23: 0 | WMV23: 0 | WMW23: 0 | WMX23: 0 | WMY23: 0 | WMZ23: 0 | WNA23: 0 | WNB23: 0 | WNC23: 0 | WND23: 0 | WNE23: 0 | WNF23: 0 | WNG23: 0 | WNH23: 0 | WNI23: 0 | WNJ23: 0 | WNK23: 0 | WNL23: 0 | WNM23: 0 | WNN23: 0 | WNO23: 0 | WNP23: 0 | WNQ23: 0 | WNR23: 0 | WNS23: 0 | WNT23: 0 | WNU23: 0 | WNV23: 0 | WNW23: 0 | WNX23: 0 | WNY23: 0 | WNZ23: 0 | WOA23: 0 | WOB23: 0 | WOC23: 0 | WOD23: 0 | WOE23: 0 | WOF23: 0 | WOG23: 0 | WOH23: 0 | WOI23: 0 | WOJ23: 0 | WOK23: 0 | WOL23: 0 | WOM23: 0 | WON23: 0 | WOO23: 0 | WOP23: 0 | WOQ23: 0 | WOR23: 0 | WOS23: 0 | WOT23: 0 | WOU23: 0 | WOV23: 0 | WOW23: 0 | WOX23: 0 | WOY23: =WOY6+WOY8+WOY10+WOY12+WOY14+WOY16+WOY18 -> 0 | WOZ23: 0 | WPA23: 0 | WPB23: 0 | WPC23: 0 | WPD23: 0 | WPE23: 0 | WPF23: 0 | WPG23: 0 | WPH23: 0 | WPI23: 0 | WPJ23: 0 | WPK23: 0 | WPL23: 0 | WPM23: 0 | WPN23: 0 | WPO23: 0 | WPP23: 0 | WPQ23: 0 | WPR23: 0 | WPS23: 0 | WPT23: 0 | WPU23: 0 | WPV23: 0 | WPW23: 0 | WPX23: 0 | WPY23: 0 | WPZ23: 0 | WQA23: 0 | WQB23: 0 | WQC23: 0 | WQD23: 0 | WQE23: 0 | WQF23: 0 | WQG23: 0 | WQH23: 0 | WQI23: 0 | WQJ23: 0 | WQK23: 0 | WQL23: 0 | WQM23: 0 | WQN23: 0 | WQO23: 0 | WQP23: 0 | WQQ23: 0 | WQR23: 0 | WQS23: 0 | WQT23: 0 | WQU23: 0 | WQV23: 0 | WQW23: 0 | WQX23: 0 | WQY23: 0 | WQZ23: 0 | WRA23: 0 | WRB23: 0 | WRC23: 0 | WRD23: 0 | WRE23: 0 | WRF23: 0 | WRG23: 0 | WRH23: 0 | WRI23: 0 | WRJ23: 0 | WRK23: =WRK6+WRK8+WRK10+WRK12+WRK14+WRK16+WRK18 -> 0 | WRL23: 0 | WRM23: 0 | WRN23: 0 | WRO23: 0 | WRP23: 0 | WRQ23: 0 | WRR23: 0 | WRS23: 0 | WRT23: 0 | WRU23: 0 | WRV23: 0 | WRW23: 0 | WRX23: 0 | WRY23: 0 | WRZ23: 0 | WSA23: 0 | WSB23: 0 | WSC23: 0 | WSD23: 0 | WSE23: 0 | WSF23: 0 | WSG23: 0 | WSH23: 0 | WSI23: 0 | WSJ23: 0 | WSK23: 0 | WSL23: 0 | WSM23: 0 | WSN23: 0 | WSO23: 0 | WSP23: 0 | WSQ23: 0 | WSR23: 0 | WSS23: 0 | WST23: 0 | WSU23: 0 | WSV23: 0 | WSW23: 0 | WSX23: 0 | WSY23: 0 | WSZ23: 0 | WTA23: 0 | WTB23: 0 | WTC23: 0 | WTD23: 0 | WTE23: 0 | WTF23: 0 | WTG23: 0 | WTH23: 0 | WTI23: 0 | WTJ23: 0 | WTK23: 0 | WTL23: 0 | WTM23: 0 | WTN23: 0 | WTO23: 0 | WTP23: 0 | WTQ23: 0 | WTR23: 0 | WTS23: 0 | WTT23: 0 | WTU23: 0 | WTV23: 0 | WTW23: =WTW6+WTW8+WTW10+WTW12+WTW14+WTW16+WTW18 -> 0 | WTX23: 0 | WTY23: 0 | WTZ23: 0 | WUA23: 0 | WUB23: 0 | WUC23: 0 | WUD23: 0 | WUE23: 0 | WUF23: 0 | WUG23: 0 | WUH23: 0 | WUI23: 0 | WUJ23: 0 | WUK23: 0 | WUL23: 0 | WUM23: 0 | WUN23: 0 | WUO23: 0 | WUP23: 0 | WUQ23: 0 | WUR23: 0 | WUS23: 0 | WUT23: 0 | WUU23: 0 | WUV23: 0 | WUW23: 0 | WUX23: 0 | WUY23: 0 | WUZ23: 0 | WVA23: 0 | WVB23: 0 | WVC23: 0 | WVD23: 0 | WVE23: 0 | WVF23: 0 | WVG23: 0 | WVH23: 0 | WVI23: 0 | WVJ23: 0 | WVK23: 0 | WVL23: 0 | WVM23: 0 | WVN23: 0 | WVO23: 0 | WVP23: 0 | WVQ23: 0 | WVR23: 0 | WVS23: 0 | WVT23: 0 | WVU23: 0 | WVV23: 0 | WVW23: 0 | WVX23: 0 | WVY23: 0 | WVZ23: 0 | WWA23: 0 | WWB23: 0 | WWC23: 0 | WWD23: 0 | WWE23: 0 | WWF23: 0 | WWG23: 0 | WWH23: 0 | WWI23: =WWI6+WWI8+WWI10+WWI12+WWI14+WWI16+WWI18 -> 0 | WWJ23: 0 | WWK23: 0 | WWL23: 0 | WWM23: 0 | WWN23: 0 | WWO23: 0 | WWP23: 0 | WWQ23: 0 | WWR23: 0 | WWS23: 0 | WWT23: 0 | WWU23: 0 | WWV23: 0 | WWW23: 0 | WWX23: 0 | WWY23: 0 | WWZ23: 0 | WXA23: 0 | WXB23: 0 | WXC23: 0 | WXD23: 0 | WXE23: 0 | WXF23: 0 | WXG23: 0 | WXH23: 0 | WXI23: 0 | WXJ23: 0 | WXK23: 0 | WXL23: 0 | WXM23: 0 | WXN23: 0 | WXO23: 0 | WXP23: 0 | WXQ23: 0 | WXR23: 0 | WXS23: 0 | WXT23: 0 | WXU23: 0 | WXV23: 0 | WXW23: 0 | WXX23: 0 | WXY23: 0 | WXZ23: 0 | WYA23: 0 | WYB23: 0 | WYC23: 0 | WYD23: 0 | WYE23: 0 | WYF23: 0 | WYG23: 0 | WYH23: 0 | WYI23: 0 | WYJ23: 0 | WYK23: 0 | WYL23: 0 | WYM23: 0 | WYN23: 0 | WYO23: 0 | WYP23: 0 | WYQ23: 0 | WYR23: 0 | WYS23: 0 | WYT23: 0 | WYU23: =WYU6+WYU8+WYU10+WYU12+WYU14+WYU16+WYU18 -> 0 | WYV23: 0 | WYW23: 0 | WYX23: 0 | WYY23: 0 | WYZ23: 0 | WZA23: 0 | WZB23: 0 | WZC23: 0 | WZD23: 0 | WZE23: 0 | WZF23: 0 | WZG23: 0 | WZH23: 0 | WZI23: 0 | WZJ23: 0 | WZK23: 0 | WZL23: 0 | WZM23: 0 | WZN23: 0 | WZO23: 0 | WZP23: 0 | WZQ23: 0 | WZR23: 0 | WZS23: 0 | WZT23: 0 | WZU23: 0 | WZV23: 0 | WZW23: 0 | WZX23: 0 | WZY23: 0 | WZZ23: 0 | XAA23: 0 | XAB23: 0 | XAC23: 0 | XAD23: 0 | XAE23: 0 | XAF23: 0 | XAG23: 0 | XAH23: 0 | XAI23: 0 | XAJ23: 0 | XAK23: 0 | XAL23: 0 | XAM23: 0 | XAN23: 0 | XAO23: 0 | XAP23: 0 | XAQ23: 0 | XAR23: 0 | XAS23: 0 | XAT23: 0 | XAU23: 0 | XAV23: 0 | XAW23: 0 | XAX23: 0 | XAY23: 0 | XAZ23: 0 | XBA23: 0 | XBB23: 0 | XBC23: 0 | XBD23: 0 | XBE23: 0 | XBF23: 0 | XBG23: =XBG6+XBG8+XBG10+XBG12+XBG14+XBG16+XBG18 -> 0 | XBH23: 0 | XBI23: 0 | XBJ23: 0 | XBK23: 0 | XBL23: 0 | XBM23: 0 | XBN23: 0 | XBO23: 0 | XBP23: 0 | XBQ23: 0 | XBR23: 0 | XBS23: 0 | XBT23: 0 | XBU23: 0 | XBV23: 0 | XBW23: 0 | XBX23: 0 | XBY23: 0 | XBZ23: 0 | XCA23: 0 | XCB23: 0 | XCC23: 0 | XCD23: 0 | XCE23: 0 | XCF23: 0 | XCG23: 0 | XCH23: 0 | XCI23: 0 | XCJ23: 0 | XCK23: 0 | XCL23: 0 | XCM23: 0 | XCN23: 0 | XCO23: 0 | XCP23: 0 | XCQ23: 0 | XCR23: 0 | XCS23: 0 | XCT23: 0 | XCU23: 0 | XCV23: 0 | XCW23: 0 | XCX23: 0 | XCY23: 0 | XCZ23: 0 | XDA23: 0 | XDB23: 0 | XDC23: 0 | XDD23: 0 | XDE23: 0 | XDF23: 0 | XDG23: 0 | XDH23: 0 | XDI23: 0 | XDJ23: 0 | XDK23: 0 | XDL23: 0 | XDM23: 0 | XDN23: 0 | XDO23: 0 | XDP23: 0 | XDQ23: 0 | XDR23: 0 | XDS23: =XDS6+XDS8+XDS10+XDS12+XDS14+XDS16+XDS18 -> 0 | XDT23: 0 | XDU23: 0 | XDV23: 0 | XDW23: 0 | XDX23: 0 | XDY23: 0 | XDZ23: 0 | XEA23: 0 | XEB23: 0 | XEC23: 0 | XED23: 0 | XEE23: 0 | XEF23: 0 | XEG23: 0 | XEH23: 0 | XEI23: 0 | XEJ23: 0 | XEK23: 0 | XEL23: 0 | XEM23: 0 | XEN23: 0 | XEO23: 0 | XEP23: 0 | XEQ23: 0 | XER23: 0 | XES23: 0 | XET23: 0 | XEU23: 0 | XEV23: 0 | XEW23: 0 | XEX23: 0 | XEY23: 0 | XEZ23: 0 | XFA23: 0 | XFB23: 0 | XFC23: 0 | XFD23: 0
